Workbook

Sheet Design Converter
A1: LM51772 DC/DC Controller Design Tool
A3: About | C3: xx | F3: = Input Box | J3: http://www.ti.com/product/lm51772 | N3: TERMS OF USE
A4: Version | B4: =Licenses!B5 -> 1.1.1
A5: Step 1: Operating Specifications
D6: Input Voltage - Min, VIN(min) | E6: 6 | F6: V
D7: Input Voltage - Nom, VIN(nom) | E7: 12 | F7: V
D8: Input Voltage - Max, VIN(max) | E8: 36 | F8: V
D9: Output Voltage, VOUT | E9: 9 | F9: V
D10: Full Load Output Current, IOUT(max) | E10: 3 | F10: A
D11: Switching Frequency | E11: 615 | F11: kHz
D12: Frequency Set Resistor, RT | E12: =IF('Standard Value Calculator'!O4/1000>288, "N/A",'Standard Value Calculator'!O4/1000) -> 51.1 | F12: kΩ
A14: Step 2: Filter Inductor
D15: Recommended Filter Inductance | E15: =Lopt_Limit*1000000 -> 8.065556846 | F15: µH
D16: Inductance, LF | E16: 3.3 | F16: µH
D17: Inductor DCR | E17: 5.9 | F17: mΩ
D18: Pk-to-Pk Ripple Current at VIN(min), DIL1 | E18: ='Variable Management'!B84 -> 0.9962177544 | F18: Apk-pk
D19: Pk-to-Pk Ripple Current at VIN(nom), DIL2 | E19: ='Variable Management'!B85 -> 1.11110311 | F19: Apk-pk
D20: Pk-to-Pk Ripple Current at VIN(max), DIL3 | E20: ='Variable Management'!B86 -> 3.334975569 | F20: Apk-pk
D21: DIL as a % at VIN(min) | E21: ='Variable Management'!B96*100 -> 21.0312637 | F21: %
D22: DIL as a % at VIN(nom) | E22: ='Variable Management'!B97*100 -> 37.03677034 | F22: %
D23: DIL as a % at VIN(max) | E23: ='Variable Management'!B98*100 -> 111.1658523 | F23: %
A25: Step 3: OCP, Sense Resistors, Slope Comp
D26: Peak Current Limit Margin | E26: 20 | F26: %
D27: Recommended Sense Resistance | E27: =Rs_ideal*1000 -> 7.959323173 | F27: mΩ
D28: Sense Resistance, RS | E28: 3 | F28: mΩ
D29: Peak Inductor Over-Current Limit, ILPK,Limit | E29: ='Variable Management'!B143 -> 19.5 | F29: A
D30: Max Peak Inductor Current, ILPk,Max | E30: =Ipeak_inductor_max -> 5.234950982 | F30: A
D31: =IF('Variable Management'!B91>'Variable Management'!B89, "Power Loss in Rs at Full Load (Max VIN)", "Power Loss in Rs at Full Load (Min VIN)") -> Power Loss in Rs at Full Load (Min VIN) | E31: ='Variable Management'!B92 -> 0.02276611888 | F31: W
D32: Recommended SLOPE Factor | E32: ='Variable Management'!B148 -> 1
D34: VIN(min) | E34: ='Variable Management'!B135 -> 10.72022827 | F34: A
C35: IOUT(typ) at OCP Inception: | D35: VIN(nom) | E35: ='Variable Management'!B136 -> 16.11111511 | F35: A
D36: VIN(max) | E36: ='Variable Management'!B137 -> 14.99917888 | F36: A
A38: Step 4: Output Capacitor
D39: Output Voltage Ripple Spec | E39: 150 | F39: mVpk-pk
D40: Minimum Output Capacitance | E40: ='Variable Management'!B176 -> 10.9583953 | F40: µF
D41: Output Capacitance, COUT | E41: 60 | F41: µF | H41: LM51772
D42: Maximum Permitted ESR | E42: ='Variable Management'!B180 -> 40.86800392 | F42: mΩ | N42: ='CFG Setting'!H56 -> R_CFG1 | O42: ='CFG Setting'!H57 -> 0 | P42: kΩ
D43: Output Capacitor ESR | E43: 8.3 | F43: mΩ | N43: ='CFG Setting'!H85 -> R_CFG2 | O43: ='CFG Setting'!H86 -> 2.7 | P43: kΩ
D44: Resulting Output Voltage Ripple (max) | E44: =Vripple2*1000 -> 52.29598825 | F44: mVpk-pk | N44: ='CFG Setting'!H115 -> R_CFG3 | O44: ='CFG Setting'!H116 -> 0 | P44: kΩ
D45: Output Capacitor RMS Current (max) | E45: ='Variable Management'!B171 -> 2.121320344 | F45: A (rms) | N45: ='CFG Setting'!H145 -> R_CFG4 | O45: ='CFG Setting'!H146 -> 0 | P45: kΩ
A47: Step 5: Input Capacitor
D48: Input Voltage Ripple Spec | E48: 180 | F48: mVpk-pk | J48: CDC | N48: =_xlfn.SWITCH(IMONLIM_select+1,1,"",2,"Current Limiter (external)", 3,"Current Limiter via I2C") -> Current Limiter (external)
D49: Minimum Input Capacitance | E49: ='Variable Management'!B196 -> 10 | F49: µF | J49: Maximum Output Current | K49: 3.6 | L49: A | N49: =CHOOSE(IMONLIM_select+1,"","Average Current Limit","Average Current Limit") -> Average Current Limit | O49: 5.5 | P49: A
D50: Input Capacitance, CIN | E50: 60 | F50: µF | J50: Maximum Voltage at VCDC | K50: 1 | L50: V | N50: =_xlfn.SWITCH(IMONLIM_select+1,1,"",2,"", 3,"DAC ILIM_THRESHOLD") ->  | O50: 100 | P50: =_xlfn.SWITCH(IMONLIM_select+1,1,"",2,"",3,"", 4,"") -> 
D51: Maximum Permitted ESR | E51: ='Variable Management'!B201 -> 34.21000849 | F51: mΩ | J51: Recommended Current Sense, RISNS(out/in) | K51: =CDC_Threshold/K49*1000 -> 13.88888889 | L51: mΩ | N51: Recommended Current Sense, RISNS(out/in) | O51: =_xlfn.SWITCH(IMONLIM_select+1,1,0,2,ILIM_Threshold/O49, 3,0.05/O49)*1000 -> 9.090909091 | P51: mΩ
D52: Input Capacitor ESR | E52: 8.3 | F52: mΩ | J52: Used Current Sense, RISNS(out/in) | K52: 10 | L52: mΩ | N52: Used Current Sense, RISNS(out/in) | O52: 10 | P52: mΩ
D53: Resulting Input Voltage Ripple (max) | E53: =Vinripple2*1000 -> 59.06535186 | F53: mVpk-pk | J53: CDC Resistance, RCDC | K53: =(K50)/(K52/1000*K49*gm_CDC)/1000 -> 55.55555556 | L53: kΩ | N53: =_xlfn.SWITCH(IMONLIM_select+1,1,"",2,"ILIMCOMP Resistance, RILIM", 3,"Effective average Current Limit") -> ILIMCOMP Resistance, RILIM | O53: =(_xlfn.SWITCH(IMONLIM_select+1,1,"",2,V_Ilimit/(O52/1000*O49*gm_IL)/1000,3,O50*0.0005/(O52*0.001))) -> 18.18181818 | P53: =_xlfn.SWITCH(IMONLIM_select+1,1,"",2,"kΩ", 3,"A") -> kΩ
D54: Input Capacitor RMS Current (max) | E54: ='Variable Management'!B189 -> 1.300212035 | F54: A (rms) | N54: =_xlfn.SWITCH(IMONLIM_select+1,1,"",2,"ILIMCOMP Capacitor, CILIM,HF", 3,"ILIMCOMP Capacitor, CILIM") -> ILIMCOMP Capacitor, CILIM,HF | O54: =(_xlfn.SWITCH(IMONLIM_select+1,1,"",2,C_ILimit_HF_STD*1000000000000,3,C_limitcomp_STD*1000000000)) -> 27 | P54: =_xlfn.SWITCH(IMONLIM_select+1,1,"",2,"pF", 3,"nF") -> pF
A56: Step 6: Soft-start, UVLO, CFG
D57: recommended Soft-Start Time, tSS for ISCP(MIN) | E57: =E41*0.000001*E9/(E26-E10)*1000 -> 0.03176470588 | F57: ms | M57: VIN(nom) | N57: =VIN_nom&"V" -> 12V
D58: Soft-Start Time, tSS | E58: 2 | F58: ms
D59: Soft-Start Capacitance, CSS | E59: =Css_u*1000000000 ->  | F59: nF
D61: Required Input Voltage UVLO On | E61: 8.7 | F61: V
D62: Input Voltage UVLO Off | E62: =E61-0.375 -> 8.325 | F62: V
D63: Upper UVLO Resistor, RUV1 | E63: =Ruvlo1 -> 75 | F63: kΩ
D64: Lower UVLO Resistor, RUV2 | E64: ='Variable Management'!E221 -> 12.4 | F64: kΩ
A73: Step 7: Compensation Design
D74: Load Pole Frequency | E74: =Fp_dominant -> 884.1941283 | F74: Hz
D75: COUT ESR Zero Frequency | E75: =Fesr/1000 -> 319.5882391 | F75: kHz
D76: Boost RHP Zero Frequency @ VIN(MIN) | E76: =IF(E6<E9,Frhp_Vinmin/1000,"---") -> 63.60524744 | F76: kHz
D77: Boost RHP Zero Frequency @ VIN(NOM) | E77: =IF(E7<E9,Frhp/1000,"---") -> --- | F77: kHz
D78: Desired Crossover Frequency | E78: =MIN(Fsw*0.05,E76/4,E77/4) ->  | F78: kHz
D79: Desired Crossover Frequency | E79: 8 | F79: =" kHz " -> kHz
D80: Error Amp Pole Frequency | E80: =Fp1_u -> 1.325343572 | F80: Hz
D81: Upper Feedback Resistor, RFBT | E81: 100 | F81: kΩ
D82: Lower Feedback Resistor, RFBB | E82: =Rfb2_u/1000 -> 5.263157895 | F82: kΩ
A84: Compensation Components
B85: Calculated / | C85: Std Values | E85: =" Selected" -> Selected | G85: Actual P/Z Frequencies
A86: RC | B86: =Rcea1/1000 ->  | C86: ='Standard Value Calculator'!O27 ->  | E86: 7.15 | F86: kΩ | G86: =Fp1_u -> 1.325343572 | H86: Hz (FPEA)
A87: CC1 | B87: =Cc1ea*1000000000 ->  | C87: ='Standard Value Calculator'!O28 ->  | E87: 12 | F87: nF | G87: =Fz1_u/1000 -> 1.854952717 | H87: kHz (FZCOMP)
A88: CC2 | B88: =IF(Cc2ea*1000000000000<0, 0, Cc2ea*1000000000000) ->  | C88: ='Standard Value Calculator'!O29 ->  | E88: 220 | F88: pF | G88: =Fp2_u/1000 -> 97.91010405 | H88: kHz (FPCOMP)
A90: Efficiency / Power Loss Analyzer
A92: Step 8: Efficiency | M92: VIN(nom) | N92: =VIN_nom&"V" -> 12V
D93: Buck-Leg Power MOSFETs (Q1, Q2) | E93: SQJ422EP
E94: Hi-side | F94: Low-side
D95: On-State Resistance, RDS(on) | E95: 4 | F95: 4 | G95: mΩ
D96: Total Gate Charge, QG | E96: 22 | F96: 22 | G96: nC
D97: Gate-Drain Charge, QGD | E97: 8 | F97: 8 | G97: nC
D98: Gate-Source Charge, QGS | E98: 6.6 | F98: 6.6 | G98: nC
D99: Gate Resistance, RG | E99: 2.4 | F99: 2.4 | G99: Ω
D100: Transconductance, gFS | E100: 65 | F100: 65 | G100: S
D101: Gate-Source Threshold Voltage, VTH | E101: 2.3 | F101: 2.3 | G101: V
D102: Body Diode Forward Voltage, VBD | E102: 1.2 | F102: 1.2 | G102: V
D103: Body Diode Rev Recovery Charge, QRR | F103: 22 | G103: nC
D104: Thermal Resistance, θJA | E104: 62 | F104: 62 | G104: °C/W
D106: Boost-Leg Power MOSFETs (Q3, Q4) | E106: SQJ422EP
E107: Hi-side | F107: Low-side
D108: On-State Resistance, RDS(on) | E108: 4 | F108: 4 | G108: mΩ
D109: Total Gate Charge, QG | E109: 22 | F109: 22 | G109: nC
D110: Gate-Drain Charge, QGD | E110: 8 | F110: 8 | G110: nC
D111: Gate-Source Charge, QGS | E111: 6.6 | F111: 6.5 | G111: nC
D112: Gate Resistance, RG | E112: 2.4 | F112: 2.4 | G112: Ω
D113: Transconductance, gFS | E113: 65 | F113: 65 | G113: S
D114: Gate-Source Threshold Voltage, VTH | E114: 2.3 | F114: 2.3 | G114: V
D115: Body Diode Forward Voltage, VBD | E115: 1.2 | F115: 1.2 | G115: V
D116: Body Diode Rev Recovery Charge, QRR | E116: 22 | G116: nC
D117: Thermal Resistance, θJA | E117: 62 | F117: 62 | G117: °C/W
A119: External Schottky Diode (if applicable) | E119: Buck Leg | F119: Boost Leg
D120: Schottky Fwd Voltage, VFWDsch | E120: 0 | F120: 0 | G120: V
D121: Schottky Rev Recovery Charge, QRRsch | E121: 0 | F121: 0 | G121: nC

Sheet Licenses
A5: Version Number | B5: 1.1.1
A35: Version History
A36: Version | B36: Change List Description
A37: 1.0.0 | B37: Initial Release
A38: 1.0.1 | B38: Reworked inductor selection, updated current monitor and limiter configuration
A39: 1.1.0 | B39: updated input limit to 55V
B40: fixed error in efficency calculation - R for ISNS was not implemented right
B41: Fixed labeling in efficiency graph
B42: Updated Current Limit and Monitor configuration
B43: Added internal FB divider configuration
A44: 1.1.1 | B44: updated calculation for ILIM with DAC and ISET
B45: fixed resistor value for R(CFG) setting 3

Sheet BOM & Schematic (hidden)
B45: ** Tie MODE to VCC (or voltage > 2.4V) for No Hiccup **
A46: ="VIN = "&VIN_min&" V to "&VIN_max&" V, VOUT = "& Vout &" V, IOUT = " &Iout & " A, Fsw = " & Fsw/1000 &" kHz, Current Limit = "&ROUNDUP(Ilimit_DC,0)&" A" -> 
A47: High Efficiency Synchronous Buck-Boost Regulator BOM
A48: Count | B48: Ref Des | C48: Value | D48: Description | H48: Size | I48: Part Number | J48: MFR
A49: 2 | B49: CBOOT1, CBOOT2 | C49: 0.1 | D49: =C49 -> 0.1 | H49: 0603 | I49: Std | J49: Std
A50: 1 | B50: CC1 | C50: ='Design Converter'!E87 -> 12 | D50: 12 | H50: 0603 | I50: Std | J50: Std
A51: 1 | B51: CC2 | C51: ='Design Converter'!E88 -> 220 | D51: 220 | H51: 0603 | I51: Std | J51: Std
A52: 1 | B52: RSLOPE | C52: =Rslope/1000 -> 50.81300813 | H52: 0603 | I52: Std | J52: Std
A53: 1 | B53: CCS | C53: 100 | D53: =C53 -> 100 | H53: 0603 | I53: Std | J53: Std
A54: 1 | B54: CDITH | C54: =Cdither*1000000000 -> 0 | D54: =C54 -> 0 | H54: 0603 | I54: Std | J54: Std
A55: =ROUNDUP('Design Converter'!E50/10,0) -> 6 | B55: CIN | C55: 10 | D55: =C55 -> 10 | H55: 1210 | I55: Std | J55: Std
A56: =ROUNDUP('Design Converter'!E41/22,0) -> 3 | B56: COUT | C56: 22 | D56: =C56 -> 22 | H56: 1210 | I56: Std | J56: Std
A57: 1 | B57: CSS | C57: ='Design Converter'!E59 ->  | D57: =C57 ->  | H57: 0603 | I57: Std | J57: Std
A58: 1 | B58: CVCC | C58: 1 | D58: 1 | H58: 0603 | I58: Std | J58: Std
A59: 1 | B59: CVIN | C59: 0.1 | D59: 0.1 | H59: 0603 | I59: Std | J59: Std
A60: 3 | B60: DBOOT1, DBOOT2, DVIN | C60: See description | D60: Schottky Diode, 200mA | H60: - | I60: - | J60: Various
A61: 1 | B61: LF | C61: ='Design Converter'!E16 -> 3.3 | D61: ="Inductor, "&Lf*1000000&"µH, "&Rdcr*1000&"mΩ, >"&ROUNDUP(IL_peak_OCP*1.1,0)&"A" -> Inductor, 3.3µH, 5.9mΩ, >22A | H61: - | I61: - | J61: Various
A62: 2 | B62: Q1, Q2 | C62: See description | D62: ='Design Converter'!E95 -> 4 | H62: Std | I62: ='Design Converter'!E93 -> SQJ422EP | J62: -
A63: 2 | B63: Q3, Q4 | C63: See description | D63: ='Design Converter'!E108 -> 4 | H63: Std | I63: ='Design Converter'!E106 -> SQJ422EP | J63: -
A64: 1 | B64: RC1 | C64: ='Design Converter'!E86 -> 7.15 | D64: =C64 -> 7.15 | H64: 0603 | I64: Std | J64: Std
A65: 1 | B65: RS | C65: =Rs*1000 -> 3 | D65: 3 | H65: 2512 | I65: Std | J65: Std
A66: 1 | B66: RCS(out) | C66: ='Standard Value Calculator'!O21 -> 10 | D66: =C66 -> 10 | H66: 2512 | I66: Std | J66: Std
A67: 1 | B67: RT | C67: ='Design Converter'!E12 -> 51.1 | D67: 51.1 | H67: 0603 | I67: Std | J67: Std
A68: 1 | B68: RFB1 | C68: ='Design Converter'!E81 -> 100 | D68: 100 | H68: 0603 | I68: Std | J68: Std
A69: 1 | B69: RFB2 | C69: ='Design Converter'!E82 -> 5.263157895 | D69: 5.263157895 | H69: 0603 | I69: Std | J69: Std
A70: 1 | B70: RPGOOD | C70: 20 | D70: 20 | H70: 0603 | I70: Std | J70: Std
A71: 2 | B71: RCS, RCSG | C71: 100 | D71: 100 | H71: 0603 | I71: Std | J71: Std
A72: 1 | B72: RUV1 | C72: ='Design Converter'!E63 -> 75 | D72: 75 | H72: 0603 | I72: Std | J72: Std
A73: 1 | B73: RUV2 | C73: ='Design Converter'!E64 -> 12.4 | D73: 12.4 | H73: 0603 | I73: Std | J73: Std
A74: 1 | B74: RVIN | C74: 2.2 | D74: 2.2 | H74: 0603 | I74: Std | J74: Std
A75: 1 | B75: U1 | C75: LM5177 | D75: IC, LM5177, Buck-Boost PWM Controller | H75: TSSOP-38 | I75: LM5177HTSSOP | J75: TI
A78: NOTES:
A79: ** For information on TI NexFETTM MOSFETs, see ** | D79: http://www.ti.com/nexfet | E79: **
A80: ** Inductor saturation current should be higher than the peak inductor current at the OCP setpoint for all input voltages and operating temperatures **
A81: ** Effective input and output capacitances should be appropriately derated for applied voltage and temperature, particularly with ceramics **

Sheet EVMs (hidden)
A1: LM5175 Quickstart Design Tool
B6: LM5175EVM-HD PCB Layout | M6: LM5175EVM-HP PCB Layout | W6: LM5175EVM PCB Layout

Sheet MOSFET LOSS (hidden)

Sheet DeviceParameter (hidden)
A1: EXCEL Device Parameter
B2: Input from user = | F2: to check
B3: Output =
B4: Constant
A5: Variable Name | B5: Selected Value | C5: STD Units | D5: Device
D6: LM5177 | E6: LM51771 | F6: LM51772
A7: MaxVin | B7: =IF(Device=DeviceParameter!$D$6,DeviceParameter!D7,IF(Device=DeviceParameter!$E$6,DeviceParameter!E7,IF(Device=DeviceParameter!$F$6,DeviceParameter!F7,""))) -> 55 | C7: V | D7: 60 | F7: 55
A8: MinVin | B8: =IF(Device=DeviceParameter!$D$6,DeviceParameter!D8,IF(Device=DeviceParameter!$E$6,DeviceParameter!E8,IF(Device=DeviceParameter!$F$6,DeviceParameter!F8,""))) -> 3.3 | C8: V | D8: 2.8 | F8: 3.3
A9: MaxfSW | B9: =IF(Device=DeviceParameter!$D$6,DeviceParameter!D9,IF(Device=DeviceParameter!$E$6,DeviceParameter!E9,IF(Device=DeviceParameter!$F$6,DeviceParameter!F9,""))) -> 2200 | C9: kHz | D9: 600 | F9: 2200
A11: gm_monitor | B11: =IF(Device=DeviceParameter!$D$6,DeviceParameter!D11,IF(Device=DeviceParameter!$E$6,DeviceParameter!E11,IF(Device=DeviceParameter!$F$6,DeviceParameter!F11,""))) -> 0.001 | C11: S | D11: 0.001 | F11: 0.001
A12: gm_IL_DAC | B12: =IF(Device=DeviceParameter!$D$6,DeviceParameter!D12,IF(Device=DeviceParameter!$E$6,DeviceParameter!E12,IF(Device=DeviceParameter!$F$6,DeviceParameter!F12,""))) -> 0.0005 | C12: S | F12: 0.0005
A13: gm_IL | B13: =IF(Device=DeviceParameter!$D$6,DeviceParameter!D13,IF(Device=DeviceParameter!$E$6,DeviceParameter!E13,IF(Device=DeviceParameter!$F$6,DeviceParameter!F13,""))) -> 0.001 | C13: S | D13: 0.0002 | F13: 0.001
A14: gm_CDC | B14: 0.0005 | C14: S | F14: 0.0005 | J14: CDC Transconductance
A16: CDC_Threshold | B16: 0.05 | C16: V
A17: IMON_Threshold | B17: 0.05 | C17: V
A18: ILIM_Threshold | B18: 0.05 | C18: V
A20: V_Ilimit | B20: 1 | C20: V

Sheet Variable Management (hidden)
A1: EXCEL Variables Names/Calculations
B2: Input from user = | F2: to check
B3: Output =
B4: Constant
A5: Variable Name | B5: Value | C5: STD Units | E5: Notes | I5: Iteration
A6: Step 1: Operational Specs
A7: VIN_min | B7: ='Design Converter'!E6 -> 6 | C7: V | D7: Minimum input voltage | I7: 1
B8: ='Design Converter'!E7 -> 12 | C8: V | D8: Nominal input voltage | K8: Efficiency vs IOUT Plot | L8: 1
A9: VIN_max | B9: ='Design Converter'!E8 -> 36 | C9: V | D9: Maximum input voltage | K9: Efficiency vs VIN Plot | L9: 2
A10: VIN_edgebuckboost | B10: =B44 -> 7.188317149 | C10: V | K10: PLOT_TYPE | L10: 2 | M10: CFG | O10: ='CFG Setting'!G28 -> 13 | P10: 1 = Yes, 2 = No
K11: BODEPLOT_TYPE | L11: FALSE
A12: Vout | B12: ='Design Converter'!E9 -> 9 | C12: V | D12: Output Voltage | I12: 1
A13: Iout | B13: ='Design Converter'!E10 -> 3 | C13: A | D13: Maximum Output Current | I13: 1
A14: Rout | B14: =Vout/Iout -> 3 | C14: W | D14: Load resistance
A15: Pout | B15: =Vout*Iout -> 27 | C15: W | D15: Output power
A16: Efficiency | B16: 0.95 | D16: Edited by Vijay from 96% to 90% to match datasheet calculations.
A17: Pin | B17: =Pout/Efficiency -> 28.42105263 | C17: W | D17: Calculate input power assuming 90% efficiency
A18: Iin_Vinmin | B18: =Pin/VIN_min -> 4.736842105 | C18: A
A19: Iin_Vinnom | B19: =Pin/VIN_nom -> 2.368421053 | C19: A | D19: Input currents at min, nom, max Vin
A20: Iin_Vinmax | B20: =Pin/VIN_max -> 0.7894736842 | C20: A
A22: Fsw | B22: ='Design Converter'!E11*1000 -> 615000 | C22: Hz | D22: Nominal Switching Frequency | I22: 1
A23: Ts | B23: =1/Fsw -> 1.62601626e-06 | C23: sec | D23: Period
A24: Vref | B24: =_xlfn.SWITCH(Internal_FB_enabled,1,1,Vout/10,2,3,Vout/20) ->  | C24: V | D24: Reference Voltage
A25: Vref_eff | B25: =Vref ->  | C25: V | D25: effective Vref with Tracking
A26: Rt | B26: =IF(Device<>"LM51772",(1/Fsw -0.00000002)*30300000000,(1/Fsw -0.000000018)*31500000000) -> 50652.5122 | C26: W | D26: Frequency Set Resistor | F26: edited based on LM5177 curve fit.
A27: Ifb | B27: 6e-08 | C27: A
A29: Device | B29: =CHOOSE(C29,L29,L30) -> LM51772 | C29: 2 | K29: Device | L29: LM5177
A30: Mode | B30: 1 | D30: 0: PSM 1: FPWM | L30: LM51772
A32: Toff_min_buck | B32: =MinToffBuck -> 2.253627554e-07 | C32: sec | D32: 200ns | E32: buck min timer
A33: Ton_min_boost | B33: =MinTonBoost -> 1.853627554e-07 | C33: sec | D33: 300ns | E33: boost min timer
A34: T_max_BB | B34: =TonBubo -> 1.298702285e-06 | C34: sec | E34: max timer before transition from BB
A36: D_min_boost | B36: =MinTonBoost*Fsw -> 0.1139980946
A37: D_max_exitBB_to_boost | B37: =TBubo*Fsw -> 0.2012980946 | C37: =MinTonBoost*Fsw -> 0.1139980946
A38: D_max_buck_BB | B38: 1 | C38: =MaxTonBuck*Fsw -> 0.8614019054
A40: D_min_boost_exitBB_to_buck | B40: =TBubo*Fsw -> 0.2012980946
A41: D_max_exitBB_to_buck | B41: =MaxTonBuck*Fsw -> 0.8614019054
A42: D_max_buck_enterBB | B42: =MaxTonBoost*Fsw -> 0.9127
A44: VIN_BB_to_boost | B44: =Vout*(1-B40) -> 7.188317149 | C44: V
A45: VIN_boost_to_BB | B45: =IF(B30=0,Vout,Vout*(1-B36)) -> 7.974017149 | C45: V
A46: VIN_buck_to_BB | B46: =IF(B30=0,Vout,Vout/B42) -> 9.860852416 | C46: V
A47: VIN_BB_to_buck | B47: =IF(B30=0,Vout,Vout/B41) -> 10.44808462 | C47: V
A51: Step 2: Filter Inductor
A52: Don1 | B52: =Vout/VIN_nom -> 0.75 | C52: =(Vout-VIN_nom)/Vout -> -0.3333333333 | E52: Ideal Duty Cycle at VIN(nom) | I52: 1
A53: Doff1 | B53: =1-_Don1 -> 0.25 | E53: Ideal 1- Duty Cycle at VIN(nom) | I53: 1
A55: Don_Vinmin | B55: =IF(VIN_min>Vout, Vout/VIN_min, (Vout-VIN_min)/Vout) -> 0.3333333333 | C55: =IF(VIN_min>Vout, "BUCK", "BOOST") -> BOOST
A56: Don_Vinnom | B56: =IF(VIN_nom>Vout, Vout/VIN_nom, (Vout-VIN_nom)/Vout) -> 0.75 | C56: =IF(VIN_nom>Vout, "BUCK", "BOOST") -> BUCK
A57: Don_Vinmax | B57: =IF(VIN_max>Vout, Vout/VIN_max, (Vout-VIN_max)/Vout) -> 0.25 | C57: =IF(VIN_max>Vout, "BUCK", "BOOST") -> BUCK
A58: Don_buckboost | B58: =B37 -> 0.2012980946 | C58: lower edge of BUCK-BOOST
B59: BUCK | C59: BOOST
A60: Lf_Vinmin | B60: =(VIN_min-Vout)*Don_Vinmin/(Fsw*Iout*0.3) -> -1.806684734e-06 | C60: =VIN_min/(Iin_Vinmin*0.3*Fsw)*(1-VIN_min/Vout) -> 2.288467329e-06 | D60: H | E60: Calculated inductance for 30% ripple at VIN(min)
A61: Lf_Vinnom | B61: =(VIN_nom-Vout)*Don_Vinnom/(Fsw*Iout*0.35) -> 3.484320557e-06 | C61: =VIN_nom/(Iin_Vinnom*0.35*Fsw)*(1-VIN_nom/Vout) -> -7.8461737e-06 | D61: H | E61: Calculated inductance for 35% ripple at VIN(nom) | I61: 1
A62: Lf_Vinmax | B62: =(VIN_max-Vout)*Don_Vinmax/(Fsw*Iout*0.4) -> 9.146341463e-06 | C62: =VIN_max/(Iin_Vinmax*0.4*Fsw)*(1-VIN_max/Vout) -> -0.000556097561 | D62: H | E62: Calculated inductance for 40% ripple at VIN(max) | K62: Joerg's Calculation | R62: LM5177
A64: L_Vinmin | B64: =MAX(IF(VIN_min>Vout,B60,C60),O64) -> 2.288467329e-06 | C64: H | D64: =IF(VIN_min>Vout, "BUCK", "BOOST") -> BOOST | E64: Calculated inductance for 30% ripple at VIN(min) | K64: Lbuck | L64: =(VIN_max-Vout)*Vout/(0.4*Iout*Fsw*VIN_max) -> 9.146341463e-06 | M64: H | N64: Lmin | O64: =MAX(10*Vout*Rs/Fsw,Rs*125/Fsw) -> 6.097560976e-07 | P64: H
A65: L_Vinnom | B65: =IF(VIN_nom>Vout, B61,C61) -> 3.484320557e-06 | C65: H | D65: =IF(VIN_nom>Vout, "BUCK", "BOOST") -> BUCK | E65: Calculated inductance for 35% ripple at VIN(nom) | K65: Lboost | L65: =(Vout-VIN_min)*VIN_min^2/(0.3*Iout*Fsw*Vout^2) -> 2.408912978e-06 | M65: H | N65: Lmax | O65: =Rs*5000/Fsw -> 2.43902439e-05 | P65: H
A66: L_Vinmax | B66: =MIN(IF(VIN_max>Vout,B62,C62),O65) -> 9.146341463e-06 | C66: H | D66: =IF(VIN_max>Vout, "BUCK", "BOOST") -> BUCK | E66: Calculated inductance for 40% ripple at VIN(max) | K66: Lmax(0.5d boost) | L66: =Rs*25*Vout/Fsw -> 1.097560976e-06 | M66: H | N66: Ltyp | O66: =Rs*625/Fsw -> 3.048780488e-06 | P66: H
K67: Iinpeakmax | L67: =Vout/VIN_min*1.4*Iout -> 6.3 | M67: A | N67: Lminheadroom | O67: =Rs*10*Vout/Fsw -> 4.390243902e-07 | P67: H
A68: Lopt | B68: =O74 -> 8.065556846e-06 | C68: H | D68: average of calculated inductances at VIN(min), VIN(max) and VIN(nom) | K68: Rsns_suggest | L68: =Buck_CS_threshold/L67 -> 0.007936507937 | M68: W | N68: LminSC | O68: =Rs*125/Fsw -> 6.097560976e-07 | P68: H
A69: Lmin | B69: =O64 -> 6.097560976e-07 | C69: H
A70: Lmax | B70: =O65 -> 2.43902439e-05 | C70: H | K70: L_avg | L70: =(MAX(MIN(AVERAGE(L64:L65),O65),O64)) -> 5.777627221e-06 | M70: H
A71: Lopt_Limit | B71: =MAX(MIN(B68,B70),B69) -> 8.065556846e-06 | C71: H | K71: L_min | L71: =(MAX(MIN(MIN(L64:L65),O65),O64)) -> 2.408912978e-06 | M71: H
A72: Lf | B72: ='Design Converter'!E16/1000000 -> 3.3e-06 | C72: H | E72: Chosen inductance | I72: 2
A73: Rdcr | B73: ='Design Converter'!E17/1000 -> 0.0059 | C73: W | E73: Chosen inductor DCR | I73: 1 | N73: Ltyp_sugguest | O73: =L68*625/Fsw -> 8.065556846e-06 | P73: H
N74: Ltyp_sugguest_limit | O74: =MAX(O64,MIN(O65,O73)) -> 8.065556846e-06 | P74: H
A75: Don2 | B75: =(Vout+Iout*(Rdcr+Rs))/(Vin+Iout*Rs) -> 0.7516612541 | I75: 2
A76: Doff2 | B76: =1-_Don2 -> 0.2483387459 | I76: 2
A78: Don_Vinmin_2 | B78: =IF(VIN_min>Vout, (Vout+Iout*(Rdcr+Rs))/(VIN_min+Iout*Rs), (Vout-VIN_min+Iin_Vinmin*(Rdcr))/(Vout-Iin_Vinmin*Rs)) -> 0.3369706554 | C78: =IF(VIN_min>Vout, "BUCK", "BOOST") -> BOOST | E78: Duty cycles adjusted for DCR and shunt voltage drops | I78: 2
A79: Don_Vinnom_2 | B79: =IF(VIN_nom>Vout, (Vout+Iout*(Rdcr+Rs))/(VIN_nom+Iout*Rs), (Vout-VIN_nom+Iin_Vinnom*(Rdcr))/(Vout-Iin_Vinnom*Rs)) -> 0.7516612541 | C79: =IF(VIN_nom>Vout, "BUCK", "BOOST") -> BUCK | E79: need to include RDS(on) later | R79: LM51772
A80: Don_Vinmax_2 | B80: =IF(VIN_max>Vout, (Vout+Iout*(Rdcr+Rs))/(VIN_max+Iout*Rs), (Vout-VIN_max+Iin_Vinmax*(Rdcr))/(Vout-Iin_Vinmax*Rs)) -> 0.2506789969 | C80: =IF(VIN_max>Vout, "BUCK", "BOOST") -> BUCK
A82: Vripple1 | B82: ='Design Converter'!E39/1000 -> 0.15 | C82: V | E82: Output voltage ripple spec(pk-pk) | I82: 1
A84: Iripple_Vinmin | B84: =IF(VIN_min>Vout, (VIN_min-Vout)*Don_Vinmin_2/(Fsw*Lf),VIN_min*Don_Vinmin_2/(Lf*Fsw)) -> 0.9962177544 | C84: =(VIN_min-Vout)*Don_Vinmin_2/(Fsw*Lf) -> -0.4981088772 | D84: A | E84: =IF(VIN_min>Vout, "BUCK", "BOOST") -> BOOST | H84: =VIN_min*Don_Vinmin_2/(Lopt*Fsw) -> 0.4075997048
A85: Iripple_Vinnom | B85: =IF(VIN_nom>Vout, (VIN_nom-Vout)*Don_Vinnom_2/(Fsw*Lf),VIN_nom*Don_Vinnom_2/(Lf*Fsw)) -> 1.11110311 | C85: =(VIN_nom-Vout)*Don_Vinnom_2/(Fsw*Lf) -> 1.11110311 | D85: A | E85: =IF(VIN_nom>Vout, "BUCK", "BOOST") -> BUCK
A86: Iripple_Vinmax | B86: =IF(VIN_max>Vout, (VIN_max-Vout)*Don_Vinmax_2/(Fsw*Lf),VIN_max*Don_Vinmax_2/(Lf*Fsw)) -> 3.334975569 | C86: =(VIN_max-Vout)*Don_Vinmax_2/(Fsw*Lf) -> 3.334975569 | D86: A | E86: =IF(VIN_max>Vout, "BUCK", "BOOST") -> BUCK
A87: Iripple_edgebuckboost | B87: =VIN_edgebuckboost*Don_buckboost/(Lf*Fsw) -> 0.7129808057 | D87: A | E87: BUCK-BOOST
A89: Ishunt_rms_Vinmin | B89: =IF(VIN_min>Vout, SQRT(1-Don_Vinmin_2)*SQRT(Iout^2+(Iripple_Vinmin^2)/12), SQRT(Don_Vinmin_2)*SQRT(Iin_Vinmin^2+(Iripple_Vinmin^2)/12)) -> 2.75476066 | C89: A | E89: =SQRT(1-Don_Vinmin_2)*SQRT(Iout^2+(Iripple_Vinmin^2)/12) -> 2.453996614 | F89: =SQRT(Don_Vinmin_2)*SQRT(Iout^2+(Iripple_Vinmin^2)/12) -> 1.749458422
A90: Ishunt_rms_Vinnom | B90: =IF(VIN_nom>Vout, SQRT(1-Don_Vinnom_2)*SQRT(Iout^2+(Iripple_Vinnom^2)/12), SQRT(Don_Vinnom_2)*SQRT(Iin_Vinnom^2+(Iripple_Vinnom^2)/12)) -> 1.503528383 | C90: A | E90: =SQRT(1-Don_Vinnom_2)*SQRT(Iout^2+(Iripple_Vinnom^2)/12) -> 1.503528383 | F90: =SQRT(Don_Vinnom_2)*SQRT(Iout^2+(Iripple_Vinnom^2)/12) -> 2.615775521
A91: Ishunt_rms_Vinmax | B91: =IF(VIN_max>Vout, SQRT(1-Don_Vinmax_2)*SQRT(Iout^2+(Iripple_Vinmax^2)/12), SQRT(Don_Vinmax_2)*SQRT(Iin_Vinmax^2+(Iripple_Vinmax^2)/12)) -> 2.727340937 | C91: A | E91: =SQRT(1-Don_Vinmax_2)*SQRT(Iout^2+(Iripple_Vinmax^2)/12) -> 2.727340937 | F91: =SQRT(Don_Vinmax_2)*SQRT(Iout^2+(Iripple_Vinmax^2)/12) -> 1.577482145
A92: Max shunt power loss at full load | B92: =MAX(B89,B91)^2*Rs -> 0.02276611888 | C92: W | D92: =IF(B91>B89, "BUCK", "BOOST") -> BOOST
A94: Max inductor ripple current | B94: =MAX(B84:B86) -> 3.334975569 | C94: A
F95: Ripple I | G95: Iin
A96: % Ripple Current | B96: =IF(VIN_min>Vout, B84/Iout, B84/Iin_Vinmin) -> 0.210312637 | C96: =IF(VIN_min>Vout, "BUCK", "BOOST") -> BOOST | F96: =B84 -> 0.9962177544 | G96: =Iin_Vinmin -> 4.736842105
B97: =IF(VIN_nom>Vout, B85/Iout, B85/Iin_Vinnom) -> 0.3703677034 | C97: =IF(VIN_nom>Vout, "BUCK", "BOOST") -> BUCK | F97: =B85 -> 1.11110311 | G97: =Iin_Vinnom -> 2.368421053
B98: =IF(VIN_max>Vout, B86/Iout, B86/Iin_Vinmax) -> 1.111658523 | C98: =IF(VIN_max>Vout, "BUCK", "BOOST") -> BUCK | F98: =B86 -> 3.334975569 | G98: =Iin_Vinmax -> 0.7894736842
A100: Temp | B100: 100
A101: DCR at hot | B101: =Rdcr*(1+0.0039*(B100-25)) -> 0.00762575 | C101: W
A104: Step 3: Sense Resistors, Slope Comp, Current Limit
A106: Ilimit_Margin | B106: ='Design Converter'!E26 -> 20 | C106: % | E106: Chosen OCP level - based on output current
A108: Ipeak_inductor_Vinmin | B108: =IF(VIN_min>Vout, Iout/Efficiency+Iripple_Vinmin/2, Iin_Vinmin+Iripple_Vinmin/2) -> 5.234950982 | C108: A | D108: =IF(VIN_min>Vout, "BUCK", "BOOST") -> BOOST
A109: Ipeak_inductor_Vinnom | B109: =IF(VIN_nom>Vout, Iout/Efficiency+Iripple_Vinnom/2,Iin_Vinnom+Iripple_Vinnom/2) -> 3.713446292 | C109: A | D109: =IF(VIN_nom>Vout, "BUCK", "BOOST") -> BUCK
A110: Ipeak_inductor_Vinmax | B110: =IF(VIN_max>Vout, Iout/Efficiency+Iripple_Vinmax/2,Iin_Vinmin+Iripple_Vinmax/2) -> 4.825382521 | C110: A | D110: =IF(VIN_max>Vout, "BUCK", "BOOST") -> BUCK
A111: Ipeak_inductor_buckboost | B111: =Iout/Efficiency+Iripple_edgebuckboost/2 -> 3.51438514 | C111: A | D111: edge of buck-boost
A112: Ipeak_inductor_max | B112: =MAX(B108:B110) -> 5.234950982 | C112: A | D112: Max inductor of Boost and Buck
A113: Ipeak_inductor_max_margin | B113: =Ipeak_inductor_max*(1+Ilimit_Margin/100) -> 6.281941179 | C113: A | D113: with added margin
A115: Buck CS threshold_min | B115: 0.0385 | C115: V
A116: Buck CS threshold | B116: 0.05 | C116: V | E116: Pos and neg. is identical - otherwise take lower value
A117: Buck CS threshold_max | B117: 0.0585 | C117: V | E117: Identical for Buck and Boost
A119: Boost CS Threshold_min | B119: 0.0385 | C119: V
A120: Boost CS Threshold | B120: 0.05 | C120: V | E120: Pos and neg. is identical - otherwise take lower value
A121: Boost CS Threshold_max | B121: 0.0585 | C121: V | E121: Identical for Buck and Boost
A123: Assume we'd like to achieve current limit particularly at VIN(min) and boost side of buck-boost region; accept inevitable variation over line thereafter
A124: Shunt required to get OCP at VIN(min) | B124: =IF(VIN_min>Vout,Buck_CS_threshold/B108, Boost_CS_Threshold/B108)/(1+Ilimit_Margin/100) -> 0.007959323173 | C124: W | D124: =IF(VIN_min>Vout, "BUCK", "BOOST") -> BOOST
A125: Shunt required to get OCP at VIN(nom) | B125: =IF(VIN_nom>Vout,Buck_CS_threshold/B109, Boost_CS_Threshold/B109)/(1+Ilimit_Margin/100) -> 0.01122048453 | C125: W | D125: =IF(VIN_nom>Vout, "BUCK", "BOOST") -> BUCK
A126: Shunt required to get OCP at VIN(max) | B126: =IF(VIN_max>Vout,Buck_CS_threshold/B110, Boost_CS_Threshold/B110)/(1+Ilimit_Margin/100) -> 0.008634894018 | C126: W | D126: =IF(VIN_max>Vout, "BUCK", "BOOST") -> BUCK
A127: Shunt required to get OCP at VIN(edge-bb) | B127: =IF(VIN_min<VIN_edgebuckboost,Buck_CS_threshold/B111, 10)/(1+Ilimit_Margin/100) -> 0.01185603314 | C127: W | D127: Edge of B-B
A129: Rs_ideal | B129: =MIN(B124:B126) -> 0.007959323173 | C129: W | E129: Ideal Rs for the required OCP -- based on 80mV or 160mV CL threshold
A130: Rs | B130: ='Design Converter'!E28/1000 -> 0.003 | C130: W | E130: Selected (starndard value) current limit sense resistor
A131: Rs_in_range | B131: =IF(AND(100<Rs/Lf,Rs/Lf<8000,Rs/Lf<(1*Fsw/(Vout*10))),1,0) -> 1
A132: BOOST current limit - peak | B132: =Boost_CS_Threshold_max/Rs -> 19.5 | C132: A | E132: Peak inductor current limit in BOOST
A133: BUCK current limit - peak | B133: =Buck_CS_threshold_max/Rs -> 19.5 | C133: A | E133: Peak inductor current limit in BUCK
A135: Iout_OCP_Vinmin | B135: =IF(VIN_min>Vout,Buck_CS_threshold/Rs-Iripple_Vinmin/2, (Boost_CS_Threshold/Rs-Iripple_Vinmin/2)*(1-Don_Vinmin_2)) -> 10.72022827 | C135: A | D135: =IF(VIN_min>Vout, "BUCK", "BOOST") -> BOOST | E135: Current limit setpoints (i.e. IOUT) after standard components are selected
A136: Iout_OCP_Vinnom | B136: =IF(VIN_nom>Vout,Buck_CS_threshold/Rs-Iripple_Vinnom/2, IF(VIN_nom<VIN_edgebuckboost,(Boost_CS_Threshold/Rs-Iripple_Vinnom/2)*(1-Don_Vinnom_2),(Buck_CS_threshold/Rs-Iripple_Vinnom/2)*(1-Don_Vinnom_2))) -> 16.11111511 | C136: A | D136: =IF(VIN_nom>Vout,"BUCK",IF(VIN_nom<VIN_edgebuckboost,"BOOST","BUCK-BOOST")) -> BUCK
A137: Iout_OCP_Vinmax | B137: =IF(VIN_max>Vout, Buck_CS_threshold/Rs-Iripple_Vinmax/2, (Boost_CS_Threshold/Rs-Iripple_Vinmax/2)*(1-Don_Vinmax_2)) -> 14.99917888 | C137: A | D137: =IF(VIN_max>Vout, "BUCK", "BOOST") -> BUCK
A138: Iout_edgebuckboost | B138: =(Buck_CS_threshold/Rs-Iripple_edgebuckboost/2)*(1-Don_buckboost) -> 13.02696886 | C138: A | D138: lower edge of buck-boost window | K138: RMS current in Rs | M138: Power diss in Rs
A140: ILpeak_OCP_Vinmin | B140: =IF(VIN_min>Vout, Buck_CS_threshold_max/Rs, Boost_CS_Threshold_max/Rs) -> 19.5 | C140: A | D140: =IF(VIN_min>Vout, "BUCK", "BOOST") -> BOOST | E140: Peak inductor currents in OCP | H140: =SQRT(Don_Vinmin_2)*SQRT(Iin_Vinmin^2+(Iripple_Vinmin^2)/12) -> 2.75476066 | K140: =IF(VIN_min>Vout, SQRT(1-Don_Vinmin_2)*SQRT(Iout_OCP_Vinmin^2+(Iripple_Vinmin^2)/12), SQRT(Don_Vinmin_2)*SQRT(Iin_Vinmin^2+(Iripple_Vinmin^2)/12)) -> 2.75476066 | L140: A | M140: =K140^2*Rs -> 0.02276611888 | N140: W
A141: ILpeak_OCP_Vinnom | B141: =IF(VIN_nom>Vout, Buck_CS_threshold_max/Rs, IF(VIN_nom<VIN_edgebuckboost, Boost_CS_Threshold_max/Rs, Buck_CS_threshold_max/Rs)) -> 19.5 | C141: A | D141: =IF(VIN_nom>Vout,"BUCK",IF(VIN_nom<VIN_edgebuckboost,"BOOST","BUCK-BOOST")) -> BUCK | H141: =SQRT(1-Don_Vinnom_2)*SQRT(Iout_OCP_Vinnom^2+(Iripple_Vinnom^2)/12) -> 8.030339219 | K141: =IF(VIN_nom>Vout, SQRT(1-Don_Vinnom_2)*SQRT(Iout_OCP_Vinnom^2+(Iripple_Vinnom^2)/12), SQRT(Don_Vinnom_2)*SQRT(Iin_Vinnom^2+(Iripple_Vinnom^2)/12)) -> 8.030339219 | L141: A | M141: =K141^2*Rs -> 0.1934590439 | N141: W
A142: ILpeak_OCP_Vinmax | B142: =IF(VIN_max>Vout, Buck_CS_threshold_max/Rs, Boost_CS_Threshold_max/Rs) -> 19.5 | C142: A | D142: =IF(VIN_max>Vout, "BUCK", "BOOST") -> BUCK | H142: =SQRT(1-Don_Vinmax_2)*SQRT(Iout_OCP_Vinmax^2+(Iripple_Vinmax^2)/12) -> 13.01050604 | K142: =IF(VIN_max>Vout, SQRT(1-Don_Vinmax_2)*SQRT(Iout_OCP_Vinmax^2+(Iripple_Vinmax^2)/12), SQRT(Don_Vinmax_2)*SQRT(Iin_Vinmax^2+(Iripple_Vinmax^2)/12)) -> 13.01050604 | L142: A | M142: =K142^2*Rs -> 0.507819802 | N142: W
A143: Worst case peak inductor current | B143: =MAX(B140:B142) -> 19.5 | C143: A
A145: IL_peak_OCP | B145: =MAX(B140:B142) -> 19.5 | C145: A | E145: Peak inductor current over the full input range
A147: Rslope calc LM51772 | B147: =Rs/Lf/Fsw*625 -> 0.9238728751
A148: Rslope select LM51772 | B148: =INDEX(P153:P168,MATCH(B147,P153:P168,1)+1) -> 1
A149: Rslope setting for CFG1 in LM51772 | B149: =INDEX(O153:O168,MATCH(B147,P153:P168)+1)+1 -> 8
A150: Rslope_equ_772 | B150: =625*50000000/(Fsw*B148) -> 50813.00813 | C150: W
A151: Islope_fixed | B151: =Isc_const -> 0 | C151: A | K151: BUCK | L151: BOOST | O151: LM51772 Slope table
A152: Rslope | B152: =B150 -> 50813.00813 | C152: W | K152: =B153*(1-Don_Vinmin_2)/Fsw -> 0.04773811281 | L152: =B153*Don_Vinmin_2/Fsw -> 0.02426188719 | M152: =IF(VIN_min>Vout, "BUCK", "BOOST") -> BOOST | O152: SEL_SLOPE | P152: Factor
A153: SLOPE comp dv/dt = I_slope_total/Cslope | B153: =(ABS((VIN_min-Vout))*gm_slopecomp/Cslope + Islope_fixed)/(Rslope) -> 44280 | C153: V/s | E153: at VIN_min | K153: =B154*(1-Don_Vinnom_2)/Fsw -> 0.01788038971 | L153: =B154*Don_Vinnom_2/Fsw -> 0.05411961029 | M153: =IF(VIN_nom>Vout, "BUCK", "BOOST") -> BUCK | O153: 0 | P153: =0.125 + 0.125 *O153 -> 0.125
A154: SLOPE comp dv/dt = I_slope_total/Cslope | B154: =(ABS((VIN_nom-Vout))*gm_slopecomp/Cslope + Islope_fixed)/(Rslope) -> 44280 | C154: V/s | E154: at VIN_nom | K154: =B155*(1-Don_Vinmax_2)/Fsw -> 0.48556001 | L154: =B155*Don_Vinmax_2/Fsw -> 0.16243999 | M154: =IF(VIN_max>Vout, "BUCK", "BOOST") -> BUCK | O154: 1 | P154: =0.125 + 0.125 *O154 -> 0.25
A155: SLOPE comp dv/dt = I_slope_total/Cslope | B155: =(ABS((VIN_max-Vout))*gm_slopecomp/Cslope + Islope_fixed)/(Rslope) -> 398520 | C155: V/s | E155: at VIN_max | O155: 2 | P155: =0.125 + 0.125 *O155 -> 0.375
O156: 3 | P156: 0.5
A157: DV_SLOPEcomp at Vinmin | B157: =IF(D157="BUCK", K152,L152) -> 0.02426188719 | C157: V | D157: =IF(VIN_min>Vout, "BUCK", "BOOST") -> BOOST | E157: at VIN_min | O157: 4 | P157: 0.625
A158: DV_SLOPEcomp at Vinnom | B158: =IF(D158="BUCK", K153,L153) -> 0.01788038971 | C158: V | D158: =IF(VIN_nom>Vout,"BUCK",IF(VIN_nom<VIN_edgebuckboost,"BOOST","BUCK-BOOST")) -> BUCK | E158: at VIN_nom | O158: 5 | P158: 0.75
A159: DV_SLOPEcomp at Vinmax | B159: =IF(D159="BUCK", K154,L154) -> 0.48556001 | C159: V | D159: =IF(VIN_max>Vout, "BUCK", "BOOST") -> BUCK | E159: at VIN_max | O159: 6 | P159: 0.875
O160: 7 | P160: 1
O161: 8 | P161: =1 + 4 *P153 -> 1.5
O162: 9 | P162: =1 + 4 *P154 -> 2
O163: 10 | P163: 2.5
O164: 11 | P164: 3
O165: 12 | P165: 3.5
O166: 13 | P166: 4
A167: Step 4: Output Capacitor | O167: 14 | P167: 4.5
A168: Icoutrms_VINmin | B168: =IF(D168="BUCK", Iripple_Vinmin/SQRT(12), Iout*SQRT((Vout-VIN_min)/VIN_min)) -> 2.121320344 | C168: A | D168: =IF(VIN_min>Vout, "BUCK", "BOOST") -> BOOST | E168: Output Cap RMS current | O168: 15 | P168: 5
A169: Icoutrms_VINnom | B169: =IF(D169="BUCK", Iripple_Vinnom/SQRT(12), Iout*SQRT((Vout-VIN_nom)/VIN_nom)) -> 0.3207478399 | C169: A | D169: =IF(VIN_nom>Vout,"BUCK",IF(VIN_nom<VIN_edgebuckboost,"BOOST","BUCK-BOOST")) -> BUCK
A170: Icoutrms_VINmax | B170: =IF(D170="BUCK", Iripple_Vinmax/SQRT(12), Iout*SQRT((Vout-VIN_max)/VIN_max)) -> 0.9627245212 | C170: A | D170: =IF(VIN_max>Vout, "BUCK", "BOOST") -> BUCK
A171: Max Cout rms current | B171: =MAX(B168:B170) -> 2.121320344 | C171: A
A173: Output Ripple Spec (pk-pk) | B173: =Vripple1*1000 -> 150 | C173: mV | E173: Vout ripple spec at Vin(nom)
A175: Coutmin | B175: =IF(VIN_min>Vout, Iripple_Vinmin/(Fsw*8*Vripple1), Iout*Don_Vinmin_2/(Vripple1*Fsw)) -> 1.09583953e-05 | C175: F | E175: Minimum Output Capacitnace | H175: =Vripple2 -> 0.05229598825 | I175: 1 | K175: =Coutmin -> 1.09583953e-05
A176: Reported Coutmin | B176: =IF(Coutmin*1000000<H176, H176,Coutmin*1000000) -> 10.9583953 | C176: uF | E176: Limit Min. output Cap | H176: 0.1 | K176: =Coutmin*1000000 -> 10.9583953
A177: Cout | B177: ='Design Converter'!E41/1000000 -> 6e-05 | C177: F | E177: Chosen Output Capacitance | I177: 1
A178: Resrmax | B178: =IF(VIN_min>Vout, SQRT((Vripple1/Iripple_Vinmin)^2-(1/(Fsw*Cout*8))^2), (Vripple1-Iout*Don_Vinmin_2/(Fsw*Cout))/Iout) -> 0.04086800392 | C178: W | E178: Max ESR before ripple exceeds Vripple1 | I178: 1
A180: Reported Cout ESR max | B180: =IF(OR(CoutEsrMax>0.3, CoutEsrMax<0, (ISERROR(CoutEsrMax))), "N/A", CoutEsrMax*1000) -> 40.86800392 | C180: mΩ
A181: CoutEsr | B181: ='Design Converter'!E43/1000 -> 0.0083 | C181: W | E181: Chosen ESR | I181: 1 | K181: =ISERROR(CoutEsrMax) -> FALSE | L181: =ISERROR(B180) -> FALSE
A182: Vripple | B182: =IF(VIN_min>Vout, Iripple_Vinmax*SQRT(CoutEsr^2+(1/(8*Fsw*Cout))^2), CoutEsr*Iout+Iout*Don_Vinmin_2/(Fsw*Cout)) -> 0.05229598825 | C182: Vp-p | L182: =OR(CoutEsrMax>0.3,CoutEsrMax<0) -> FALSE
K183: =OR(TRUE, FALSE, TRUE) -> TRUE
A184: Step 5: Input Capacitor
A186: Icinrms_VINmin | B186: =IF(D186="BUCK", Iout*SQRT(Don_Vinmin_2*(1-Don_Vinmax_2)), Iripple_Vinmin/SQRT(12)) -> 0.2875832943 | C186: A | D186: =IF(VIN_min>Vout, "BUCK", "BOOST") -> BOOST | F186: =Iripple_Vinmin/SQRT(12) -> 0.2875832943 | G186: =Iout*SQRT(Don_Vinmax_2*(1-Don_Vinmax_2)) -> 1.300212035 | H186: =Iout*0.25 -> 0.75
A187: Icinrms_VINnom | B187: =IF(D187="BUCK", Iout*SQRT(Don_Vinnom_2*(1-Don_Vinnom_2)), Iripple_Vinnom/SQRT(12)) -> 1.296147954 | C187: A | D187: =IF(VIN_nom>Vout,"BUCK",IF(VIN_nom<VIN_edgebuckboost,"BOOST","BUCK-BOOST")) -> BUCK
A188: Icinrms_VINmiax | B188: =IF(D188="BUCK", Iout*SQRT(Don_Vinmax_2*(1-Don_Vinmax_2)), Iripple_Vinmax/SQRT(12)) -> 1.300212035 | C188: A | D188: =IF(VIN_max>Vout, "BUCK", "BOOST") -> BUCK
A189: Max Cin rms current | B189: =MAX(B186:B188) -> 1.300212035 | C189: A | D189: …report this
A191: Vinripple1 | B191: ='Design Converter'!E48/1000 -> 0.18 | C191: Vp-p | D191: Input voltage ripple spec (pk-pk)
A193: Cinmin_Vinmax | B193: =IF(VIN_max>Vout, Iout*Don_Vinmax_2*(1-Don_Vinmax_2)/(Vinripple1*Fsw), Iripple_Vinmax/(Fsw*8*Vinripple1)) -> 5.090488819e-06 | C193: F | D193: Calculate cap at Vinmax and 50% duty cycle (Vin = 2*Vout) | K193: =Iripple_Vinnom/(Fsw*8*Vinripple1) -> 1.254633142e-06
A194: Cinmin_50%D | B194: =IF(VIN_max>Vout, Iout*0.5*(1-0.5)/(Vinripple1*Fsw), Iripple_Vinmax/(Fsw*8*Vinripple1)) -> 6.775067751e-06 | D194: Buck 50% typically worst case
A195: Cinmin | B195: =IF(VIN_max<2*Vout, B193,B194) -> 6.775067751e-06
A196: Reported Cinmin | B196: =IF(Cinmin*1000000<10, 10,Cinmin*1000000) -> 10 | C196: uF | D196: …report this
A197: Cin | B197: ='Design Converter'!E50/1000000 -> 6e-05 | C197: F | D197: Input capacitance
A198: CinEsrMax_Vinmax | B198: =IF(VIN_max>Vout, -(Iout*Don_Vinmax_2*(1-Don_Vinmax_2)/(Cin*Fsw)-Vinripple1)/(Iout+Iripple_Vinmax/2), SQRT((Vinripple1/Iripple_Vinmax)^2-(1/(Fsw*Cin*8))^2)) -> 0.03529276158 | C198: W
A199: CinEsrMax_50%D | B199: =IF(VIN_max>Vout, -(Iout*0.5*(1-0.5)/(Cin*Fsw)-Vinripple1)/(Iout+Iripple_Vinmax/2), SQRT((Vinripple1/Iripple_Vinmax)^2-(1/(Fsw*Cin*8))^2)) -> 0.03421000849 | C199: W | D199: Calculate ESR at Vinmax and 50% duty cycle (Vin = 2*Vout)
A200: CinEsrMax | B200: =IF(VIN_max<2*Vout, B198,B199) -> 0.03421000849 | C200: W
A201: Reported Cin ESR max | B201: =IF(OR(CinEsrMax>0.3, CinEsrMax<0), "N/A",CinEsrMax*1000) -> 34.21000849 | C201: mΩ | D201: …report this
A202: RCinEsr | B202: ='Design Converter'!E52/1000 -> 0.0083 | C202: W | D202: Input capacitance series resistance (ESR)
K203: =CinEsrMax -> 0.03421000849
A204: Vinripple2_Vinmax | B204: =IF(VIN_max>Vout, Iout*Don_Vinmax_2*(1-Don_Vinmax_2)/(Cin*Fsw)+(Iout +Iripple_Vinmax/2)*RCinEsr, Iripple_Vinmax*SQRT(RCinEsr^2+(1/(8*Fsw*Cin))^2)) -> 0.05401161507 | C204: Vp-p
A205: Vinripple2_50%D | B205: =IF(VIN_max>Vout, Iout*0.5*(1-0.5)/(Cin*Fsw)+(Iout +Iripple_Vinmax/2)*RCinEsr, Iripple_Vinmax*SQRT(RCinEsr^2+(1/(8*Fsw*Cin))^2)) -> 0.05906535186 | C205: Vp-p | D205: Calculate ripple at Vinmax and 50% duty cycle (Vin = 2*Vout)
A206: Vinripple2 | B206: =IF(VIN_max<2*Vout, B204,B205) -> 0.05906535186 | C206: Vp-p | D206: …report highest of these
B208: =Iout*Don_Vinmax_2*(1-Don_Vinmax_2)/(Cin*Fsw) -> 0.01527146646 | C208: Vp-p
A210: Step 6a: Soft Start
A211: Tss | B211: ='Design Converter'!E58/1000 -> 0.002 | C211: s | D211: Soft-start time
A212: Iss | B212: 1e-05 | C212: A | D212: Load cap current during soft start
A213: Css | B213: =Iss*Tss/Vref ->  | C213: F
A214: Css_u | B214: ='Standard Value Calculator'!B4 ->  | C214: F
A216: Step 6b: Other Components - UVLO, Dither, MODE
A218: VINUVLO_ON | B218: ='Design Converter'!E61 -> 8.7 | C218: V
A219: VINUVLO_OFF | B219: ='Design Converter'!E62 -> 8.325 | C219: V
A220: RUV1 | B220: =(VINuvlo_on-VINuvlo_off)/Iuvlo1 -> 75 | C220: kΩ | E220: ='Standard Value Calculator'!O16 -> 75 | F220: kΩ | G220: =IF(Ruvlo1<0,"N/A",E220) -> 75 | H220: =IF(Ruvlo1<0,"N/A",E220&"kΩ") -> 75kΩ
A221: RUV2 | B221: =Ruvlo1/(('Design Converter'!E61-Vuvlo_hys)/Vuvlo_off-1) -> 12.43261456 | C221: kΩ | E221: ='Standard Value Calculator'!O17 -> 12.4 | F221: kΩ | G221: =IF(G220="N/A","N/A",E221) -> 12.4 | H221: =IF(H220="N/A","N/A",E221&"kΩ") -> 12.4kΩ
A223: VINUVLO_ON_ACTUAL | B223: =(E220+E221)/E221*Vuvlo_on+Iuvlo1*E220 -> 9.396935484
A224: VINUVLO_OFF_ACTUAL | B224: =(E220+E221)/E221*Vuvlo_off -> 8.669516129
A226: Rising UVLO/EN Threshold | B226: 1.28 | C226: V
A227: Falling UVLO/EN Threshold | B227: 1.23 | C227: V
A228: Voltage Hysteresis | B228: =B226-B227 -> 0.05 | C228: V
A229: Rising UVLO/EN Current | B229: 0.005 | C229: mA
A230: Falling UVLO/EN Current | C230: mA
A231: UVLO/EN Current Hysteresis | C231: mA
A233: RPG | B233: 20 | C233: kΩ
A234: RSB | C234: W
A235: Rh | B235: 0 | C235: W
A236: Rmode | C236: W | D236: TBD | E236: Tie to GND or VCC for DCM/CCM, respectively. Use 93.1k or 200k for hiccup in DCM, CCM, respectively.
A243: Step 6c: Current Monitor / Current Limiter
A244: Monitor
A245: With Rcs | B245: ='CFG Setting'!J146 -> 2 | E245: Flag to show current sense is used
A246: With_CDC | B246: ='CFG Setting'!B159 -> 2 | E246: Flag to show CDC is used
A247: IMONLIM_select | B247: ='CFG Setting'!F145-1 -> 1 | E247: 0:off / 1: ILIM (ext) / 2: ILIM (DAC)
A248: Imonitor,Max
... 236 more rows

Sheet Inductor Current (hidden)
A1: VIN_min | B1: ='Design Converter'!E6 -> 6 | C1: V | D1: Minimum input voltage
B2: ='Design Converter'!E7 -> 12 | C2: V | D2: Nominal input voltage
A3: VIN_max | B3: ='Design Converter'!E8 -> 36 | C3: V | D3: Maximum input voltage | I3: Vin | J3: Iin | K3: D | L3: IL | N3: Ripple
H4: 0 | I4: =Vin -> 12 | J4: =Pin/I4 -> 2.368421053 | K4: =IF(I4>Vout, (Vout+Iout*(Rdcr+Rs))/(I4+Iout*Rs), (Vout-I4+J4*(Rdcr))/(Vout-J4*Rs)) -> 0.7516612541 | L4: =IF(I4>Vout, (I4-Vout)*K4/(Fsw*Lf),I4*K4/(Lf*Fsw)) -> 1.11110311 | M4: =(I4-Vout)*K4/(Fsw*Lf) -> 1.11110311 | N4: =IF(I4>Vout, L4/Iout, L4/J4) -> 0.3703677034 | Q4: =IF(I4>Vout, "BUCK", "BOOST") -> BUCK
H5: 1 | I5: =VIN_min+(VIN_max-VIN_min)/20*H5 -> 7.5 | J5: 3.789473684 | K5: 0.1693648117 | L5: 0.6258862221 | M5: -0.1251772444 | N5: 0.1651644197 | Q5: BOOST
H6: 2 | I6: 9 | J6: 3.157894737 | K6: 0.002072356867 | L6: 0.009190052625 | M6: 0 | N6: 0.002910183331 | Q6: BOOST
H7: 3 | I7: 10.5 | J7: 2.706766917 | K7: 0.8589494719 | L7: 0.6348480945 | M7: 0.6348480945 | N7: 0.2116160315 | Q7: BUCK
H8: 4 | I8: 12 | J8: 2.368421053 | K8: 0.7516612541 | L8: 1.11110311 | M8: 1.11110311 | N8: 0.3703677034 | Q8: BUCK
H9: 5 | I9: 13.5 | J9: 2.105263158 | K9: 0.6681989785 | L9: 1.481594187 | M9: 1.481594187 | N9: 0.4938647291 | Q9: BUCK
H10: 6 | I10: 15 | J10: 1.894736842 | K10: 0.6014191485 | L10: 1.778031481 | M10: 1.778031481 | N10: 0.5926771604 | Q10: BUCK
H11: 7 | I11: 16.5 | J11: 1.722488038 | K11: 0.5467744866 | L11: 2.020600468 | M11: 2.020600468 | N11: 0.6735334893 | Q11: BUCK
H12: 8 | I12: 18 | J12: 1.578947368 | K12: 0.501232717 | L12: 2.222761494 | M12: 2.222761494 | N12: 0.7409204981 | Q12: BUCK
H13: 9 | I13: 19.5 | J13: 1.457489879 | K13: 0.4626941412 | L13: 2.393835172 | M13: 2.393835172 | N13: 0.7979450574 | Q13: BUCK
H14: 10 | I14: 21 | J14: 1.353383459 | K14: 0.4296587177 | L14: 2.540480223 | M14: 2.540480223 | N14: 0.846826741 | Q14: BUCK
H15: 11 | I15: 22.5 | J15: 1.263157895 | K15: 0.4010262562 | L15: 2.667580418 | M15: 2.667580418 | N15: 0.8891934726 | Q15: BUCK
H16: 12 | I16: 24 | J16: 1.184210526 | K16: 0.3759715107 | L16: 2.778799044 | M16: 2.778799044 | N16: 0.9262663481 | Q16: BUCK
H17: 13 | I17: 25.5 | J17: 1.114551084 | K17: 0.3538633423 | L17: 2.876937743 | M17: 2.876937743 | N17: 0.9589792476 | Q17: BUCK
H18: 14 | I18: 27 | J18: 1.052631579 | K18: 0.3342108186 | L18: 2.964175775 | M18: 2.964175775 | N18: 0.9880585916 | Q18: BUCK
H19: 15 | I19: 28.5 | J19: 0.9972299169 | K19: 0.3166263285 | L19: 3.042233755 | M19: 3.042233755 | N19: 1.014077918 | Q19: BUCK
H20: 16 | I20: 30 | J20: 0.9473684211 | K20: 0.3007997601 | L20: 3.112488279 | M20: 3.112488279 | N20: 1.037496093 | Q20: BUCK
H21: 17 | I21: 31.5 | J21: 0.9022556391 | K21: 0.2864800533 | L21: 3.176053806 | M21: 3.176053806 | N21: 1.058684602 | Q21: BUCK
H22: 18 | I22: 33 | J22: 0.8612440191 | K22: 0.2734617832 | L22: 3.233842225 | M22: 3.233842225 | N22: 1.077947408 | Q22: BUCK
H23: 19 | I23: 34.5 | J23: 0.823798627 | K23: 0.2615752412 | L23: 3.286606874 | M23: 3.286606874 | N23: 1.095535625 | Q23: BUCK
H24: 20 | I24: 36 | J24: 0.7894736842 | K24: 0.2506789969 | L24: 3.334975569 | M24: 3.334975569 | N24: 1.111658523 | Q24: BUCK
H28: Vin | I28: =VIN_min -> 6
I29: L | J29: Iin | K29: D | L29: IL Peak,Peak | N29: Ripple Ratio | O29: IL Peak
H30: 0 | I30: =Lmin -> 6.097560976e-07 | J30: =Pin/$I$28 -> 4.736842105 | K30: =IF($I$28>Vout, (Vout+Iout*(Rdcr+Rs))/($I$28+Iout*Rs), (Vout-$I$28+J30*(Rdcr))/(Vout-J30*Rs)) -> 0.3369706554 | L30: =IF($I$28>Vout, ($I$28-Vout)*K30/(Fsw*I30),$I$28*K30/(I30*Fsw)) -> 5.391530487 | M30: =($I$28-Vout)*K30/(Fsw*I30) -> -2.695765243 | N30: =IF($I$28>Vout, L30/Iout, L30/J30) -> 1.138211992 | O30: =IF($I$80>Vout, L30/2+Iout, L30/2+J30) -> 5.695765243 | Q30: =IF(I30>Vout, "BUCK", "BOOST") -> BOOST
H31: 1 | I31: =Lmin+(Lmax-Lmin)/20*H5 -> 1.798780488e-06 | J31: 4.736842105 | K31: 0.3369706554 | L31: 1.827637453 | M31: -0.9138187266 | N31: 0.3858345734 | O31: 3.913818727 | Q31: BOOST
H32: 2 | I32: 2.987804878e-06 | J32: 4.736842105 | K32: 0.3369706554 | L32: 1.100312344 | M32: -0.5501561721 | N32: 0.2322881616 | O32: 3.550156172 | Q32: BOOST
H33: 3 | I33: 4.176829268e-06 | J33: 4.736842105 | K33: 0.3369706554 | L33: 0.7870847426 | M33: -0.3935423713 | N33: 0.1661623345 | O33: 3.393542371 | Q33: BOOST
H34: 4 | I34: 5.365853659e-06 | J34: 4.736842105 | K34: 0.3369706554 | L34: 0.6126739189 | M34: -0.3063369595 | N34: 0.1293422718 | O34: 3.306336959 | Q34: BOOST
H35: 5 | I35: 6.554878049e-06 | J35: 4.736842105 | K35: 0.3369706554 | L35: 0.5015377197 | M35: -0.2507688598 | N35: 0.1058801853 | O35: 3.25076886 | Q35: BOOST
H36: 6 | I36: 7.743902439e-06 | J36: 4.736842105 | K36: 0.3369706554 | L36: 0.4245299596 | M36: -0.2122649798 | N36: 0.08962299147 | O36: 3.21226498 | Q36: BOOST
H37: 7 | I37: 8.932926829e-06 | J37: 4.736842105 | K37: 0.3369706554 | L37: 0.3680225588 | M37: -0.1840112794 | N37: 0.07769365131 | O37: 3.184011279 | Q37: BOOST
H38: 8 | I38: 1.012195122e-05 | J38: 4.736842105 | K38: 0.3369706554 | L38: 0.3247909932 | M38: -0.1623954966 | N38: 0.06856698745 | O38: 3.162395497 | Q38: BOOST
H39: 9 | I39: 1.131097561e-05 | J39: 4.736842105 | K39: 0.3369706554 | L39: 0.2906485438 | M39: -0.1453242719 | N39: 0.06135913702 | O39: 3.145324272 | Q39: BOOST
H40: 10 | I40: 1.25e-05 | J40: 4.736842105 | K40: 0.3369706554 | L40: 0.2630014872 | M40: -0.1315007436 | N40: 0.05552253618 | O40: 3.131500744 | Q40: BOOST
H41: 11 | I41: 1.368902439e-05 | J41: 4.736842105 | K41: 0.3369706554 | L41: 0.24015726 | M41: -0.12007863 | N41: 0.050699866 | O41: 3.12007863 | Q41: BOOST
H42: 12 | I42: 1.487804878e-05 | J42: 4.736842105 | K42: 0.3369706554 | L42: 0.2209643642 | M42: -0.1104821821 | N42: 0.04664803244 | O42: 3.110482182 | Q42: BOOST
H43: 13 | I43: 1.606707317e-05 | J43: 4.736842105 | K43: 0.3369706554 | L43: 0.2046121627 | M43: -0.1023060813 | N43: 0.04319590101 | O43: 3.102306081 | Q43: BOOST
H44: 14 | I44: 1.725609756e-05 | J44: 4.736842105 | K44: 0.3369706554 | L44: 0.1905134448 | M44: -0.09525672238 | N44: 0.04021950501 | O44: 3.095256722 | Q44: BOOST
H45: 15 | I45: 1.844512195e-05 | J45: 4.736842105 | K45: 0.3369706554 | L45: 0.1782324128 | M45: -0.08911620639 | N45: 0.0376268427 | O45: 3.089116206 | Q45: BOOST
H46: 16 | I46: 1.963414634e-05 | J46: 4.736842105 | K46: 0.3369706554 | L46: 0.167438835 | M46: -0.0837194175 | N46: 0.0353481985 | O46: 3.083719417 | Q46: BOOST
H47: 17 | I47: 2.082317073e-05 | J47: 4.736842105 | K47: 0.3369706554 | L47: 0.1578779059 | M47: -0.07893895295 | N47: 0.03332978014 | O47: 3.078938953 | Q47: BOOST
H48: 18 | I48: 2.201219512e-05 | J48: 4.736842105 | K48: 0.3369706554 | L48: 0.149349875 | M48: -0.07467493749 | N48: 0.03152941805 | O48: 3.074674937 | Q48: BOOST
H49: 19 | I49: 2.320121951e-05 | J49: 4.736842105 | K49: 0.3369706554 | L49: 0.1416959392 | M49: -0.0708479696 | N49: 0.02991358717 | O49: 3.07084797 | Q49: BOOST
H50: 20 | I50: 2.43902439e-05 | J50: 4.736842105 | K50: 0.3369706554 | L50: 0.1347882622 | M50: -0.06739413108 | N50: 0.02845529979 | O50: 3.067394131 | Q50: BOOST
H54: Vin | I54: =VIN_nom -> 12
I55: L | J55: Iin | K55: D | L55: IL Peak,Peak | N55: Ripple Ratio | O55: IL Peak
H56: 0 | I56: =Lmin -> 6.097560976e-07 | J56: =Pin/$I$54 -> 2.368421053 | K56: =IF($I$54>Vout, (Vout+Iout*(Rdcr+Rs))/($I$54+Iout*Rs), (Vout-$I$54+J56*(Rdcr))/(Vout-J56*Rs)) -> 0.7516612541 | L56: =IF($I$54>Vout, ($I$54-Vout)*K56/(Fsw*I56),$I$54*K56/(I56*Fsw)) -> 6.013290032 | M56: =($I$54-Vout)*K56/(Fsw*I56) -> 6.013290032 | N56: =IF($I$54>Vout, L56/Iout, L56/J56) -> 2.004430011 | O56: =IF($I$80>Vout, L56/2+Iout, L56/2+J56) -> 6.006645016 | Q56: =IF(I56>Vout, "BUCK", "BOOST") -> BOOST
H57: 1 | I57: =Lmin+(Lmax-Lmin)/20*H31 -> 1.798780488e-06 | J57: 2.368421053 | K57: 0.7516612541 | L57: 2.038403401 | M57: 2.038403401 | N57: 0.6794678003 | O57: 4.0192017 | Q57: BOOST
H58: 2 | I58: 2.987804878e-06 | J58: 2.368421053 | K58: 0.7516612541 | L58: 1.227202047 | M58: 1.227202047 | N58: 0.4090673491 | O58: 3.613601024 | Q58: BOOST
H59: 3 | I59: 4.176829268e-06 | J59: 2.368421053 | K59: 0.7516612541 | L59: 0.8778525595 | M59: 0.8778525595 | N59: 0.2926175198 | O59: 3.43892628 | Q59: BOOST
H60: 4 | I60: 5.365853659e-06 | J60: 2.368421053 | K60: 0.7516612541 | L60: 0.6833284128 | M60: 0.6833284128 | N60: 0.2277761376 | O60: 3.341664206 | Q60: BOOST
H61: 5 | I61: 6.554878049e-06 | J61: 2.368421053 | K61: 0.7516612541 | L61: 0.559375817 | M61: 0.559375817 | N61: 0.1864586057 | O61: 3.279687908 | Q61: BOOST
H62: 6 | I62: 7.743902439e-06 | J62: 2.368421053 | K62: 0.7516612541 | L62: 0.4734874041 | M62: 0.4734874041 | N62: 0.1578291347 | O62: 3.236743702 | Q62: BOOST
H63: 7 | I63: 8.932926829e-06 | J63: 2.368421053 | K63: 0.7516612541 | L63: 0.4104634834 | M63: 0.4104634834 | N63: 0.1368211611 | O63: 3.205231742 | Q63: BOOST
H64: 8 | I64: 1.012195122e-05 | J64: 2.368421053 | K64: 0.7516612541 | L64: 0.3622463875 | M64: 0.3622463875 | N64: 0.1207487958 | O64: 3.181123194 | Q64: BOOST
H65: 9 | I65: 1.131097561e-05 | J65: 2.368421053 | K65: 0.7516612541 | L65: 0.3241665786 | M65: 0.3241665786 | N65: 0.1080555262 | O65: 3.162083289 | Q65: BOOST
H66: 10 | I66: 1.25e-05 | J66: 2.368421053 | K66: 0.7516612541 | L66: 0.2933312211 | M66: 0.2933312211 | N66: 0.0977770737 | O66: 3.146665611 | Q66: BOOST
H67: 11 | I67: 1.368902439e-05 | J67: 2.368421053 | K67: 0.7516612541 | L67: 0.2678525627 | M67: 0.2678525627 | N67: 0.08928418756 | O67: 3.133926281 | Q67: BOOST
H68: 12 | I68: 1.487804878e-05 | J68: 2.368421053 | K68: 0.7516612541 | L68: 0.2464463128 | M68: 0.2464463128 | N68: 0.08214877094 | O68: 3.123223156 | Q68: BOOST
H69: 13 | I69: 1.606707317e-05 | J69: 2.368421053 | K69: 0.7516612541 | L69: 0.2282083504 | M69: 0.2282083504 | N69: 0.07606945013 | O69: 3.114104175 | Q69: BOOST
H70: 14 | I70: 1.725609756e-05 | J70: 2.368421053 | K70: 0.7516612541 | L70: 0.2124837467 | M70: 0.2124837467 | N70: 0.07082791558 | O70: 3.106241873 | Q70: BOOST
H71: 15 | I71: 1.844512195e-05 | J71: 2.368421053 | K71: 0.7516612541 | L71: 0.1987864474 | M71: 0.1987864474 | N71: 0.06626214912 | O71: 3.099393224 | Q71: BOOST
H72: 16 | I72: 1.963414634e-05 | J72: 2.368421053 | K72: 0.7516612541 | L72: 0.1867481377 | M72: 0.1867481377 | N72: 0.06224937922 | O72: 3.093374069 | Q72: BOOST
H73: 17 | I73: 2.082317073e-05 | J73: 2.368421053 | K73: 0.7516612541 | L73: 0.1760846276 | M73: 0.1760846276 | N73: 0.05869487587 | O73: 3.088042314 | Q73: BOOST
H74: 18 | I74: 2.201219512e-05 | J74: 2.368421053 | K74: 0.7516612541 | L74: 0.1665731311 | M74: 0.1665731311 | N74: 0.05552437703 | O74: 3.083286566 | Q74: BOOST
H75: 19 | I75: 2.320121951e-05 | J75: 2.368421053 | K75: 0.7516612541 | L75: 0.1580365317 | M75: 0.1580365317 | N75: 0.05267884391 | O75: 3.079018266 | Q75: BOOST
H76: 20 | I76: 2.43902439e-05 | J76: 2.368421053 | K76: 0.7516612541 | L76: 0.1503322508 | M76: 0.1503322508 | N76: 0.05011075027 | O76: 3.075166125 | Q76: BOOST
H80: Vin | I80: =VIN_max -> 36 | S80: IL Peak,Peak | X80: IL Peak | AC80: Ripple Ratio
I81: L | J81: Iin | K81: D | L81: IL Peak,Peak | N81: Ripple Ratio | O81: IL Peak | R81: =I81 -> L | S81: =CONCATENATE("Vin = ",$I$28," V") -> Vin = 6 V | T81: =CONCATENATE("Vin = ",$I$54," V") -> Vin = 12 V | U81: =CONCATENATE("Vin = ",$I$80," V") -> Vin = 36 V | W81: =I81 -> L | X81: =CONCATENATE("Vin = ",$I$28," V") -> Vin = 6 V | Y81: =CONCATENATE("Vin = ",$I$54," V") -> Vin = 12 V | Z81: =CONCATENATE("Vin = ",$I$80," V") -> Vin = 36 V | AB81: =I81 -> L | AC81: =CONCATENATE("Vin = ",$I$28," V") -> Vin = 6 V | AD81: =CONCATENATE("Vin = ",$I$54," V") -> Vin = 12 V | AE81: =CONCATENATE("Vin = ",$I$80," V") -> Vin = 36 V
H82: 0 | I82: =Lmin -> 6.097560976e-07 | J82: =Pin/$I$80 -> 0.7894736842 | K82: =IF($I$80>Vout, (Vout+Iout*(Rdcr+Rs))/($I$80+Iout*Rs), (Vout-$I$80+J82*(Rdcr))/(Vout-J82*Rs)) -> 0.2506789969 | L82: =IF($I$80>Vout, ($I$80-Vout)*K82/(Fsw*I82),$I$80*K82/(I82*Fsw)) -> 18.04888778 | M82: =($I$80-Vout)*K82/(Fsw*I82) -> 18.04888778 | N82: =IF($I$80>Vout, L82/Iout, L82/J82) -> 6.016295926 | O82: =IF($I$80>Vout, L82/2+Iout, L82/2+J82) -> 12.02444389 | Q82: =IF(I82>Vout, "BUCK", "BOOST") -> BOOST | R82: =I82*1000000 -> 0.6097560976 | S82: =L30 -> 5.391530487 | T82: =L56 -> 6.013290032 | U82: =L82 -> 18.04888778 | W82: =I82 -> 6.097560976e-07 | X82: =O30 -> 5.695765243 | Y82: =O56 -> 6.006645016 | Z82: =O82 -> 12.02444389 | AB82: =I82*1000000 -> 0.6097560976 | AC82: =N30 -> 1.138211992 | AD82: =N56 -> 2.004430011 | AE82: =N82 -> 6.016295926
H83: 1 | I83: =Lmin+(Lmax-Lmin)/20*H57 -> 1.798780488e-06 | J83: 0.7894736842 | K83: 0.2506789969 | L83: 6.118267043 | M83: 6.118267043 | N83: 2.039422348 | O83: 6.059133522 | Q83: BOOST | R83: =I83*1000000 -> 1.798780488 | S83: =L31 -> 1.827637453 | T83: =L57 -> 2.038403401 | U83: =L83 -> 6.118267043 | W83: =I83 -> 1.798780488e-06 | X83: =O31 -> 3.913818727 | Y83: =O57 -> 4.0192017 | Z83: =O83 -> 6.059133522 | AB83: 1.798780488 | AC83: 0.3858345734 | AD83: 0.6794678003 | AE83: 2.039422348
H84: 2 | I84: 2.987804878e-06 | J84: 0.7894736842 | K84: 0.2506789969 | L84: 3.683446485 | M84: 3.683446485 | N84: 1.227815495 | O84: 4.841723243 | Q84: BOOST | R84: =I84*1000000 -> 2.987804878 | S84: 1.100312344 | T84: 1.227202047 | U84: 3.683446485 | W84: 2.987804878e-06 | X84: 3.550156172 | Y84: 3.613601024 | Z84: 4.841723243 | AB84: 2.987804878 | AC84: 0.2322881616 | AD84: 0.4090673491 | AE84: 1.227815495
H85: 3 | I85: 4.176829268e-06 | J85: 0.7894736842 | K85: 0.2506789969 | L85: 2.634874128 | M85: 2.634874128 | N85: 0.8782913761 | O85: 4.317437064 | Q85: BOOST | R85: 4.176829268 | S85: 0.7870847426 | T85: 0.8778525595 | U85: 2.634874128 | W85: 4.176829268e-06 | X85: 3.393542371 | Y85: 3.43892628 | Z85: 4.317437064 | AB85: 4.176829268 | AC85: 0.1661623345 | AD85: 0.2926175198 | AE85: 0.8782913761
H86: 4 | I86: 5.365853659e-06 | J86: 0.7894736842 | K86: 0.2506789969 | L86: 2.051009975 | M86: 2.051009975 | N86: 0.6836699916 | O86: 4.025504987 | Q86: BOOST | R86: 5.365853659 | S86: 0.6126739189 | T86: 0.6833284128 | U86: 2.051009975 | W86: 5.365853659e-06 | X86: 3.306336959 | Y86: 3.341664206 | Z86: 4.025504987 | AB86: 5.365853659 | AC86: 0.1293422718 | AD86: 0.2277761376 | AE86: 0.6836699916
H87: 5 | I87: 6.554878049e-06 | J87: 0.7894736842 | K87: 0.2506789969 | L87: 1.678966305 | M87: 1.678966305 | N87: 0.559655435 | O87: 3.839483152 | Q87: BOOST | R87: 6.554878049 | S87: 0.5015377197 | T87: 0.559375817 | U87: 1.678966305 | W87: 6.554878049e-06 | X87: 3.25076886 | Y87: 3.279687908 | Z87: 3.839483152 | AB87: 6.554878049 | AC87: 0.1058801853 | AD87: 0.1864586057 | AE87: 0.559655435
H88: 6 | I88: 7.743902439e-06 | J88: 0.7894736842 | K88: 0.2506789969 | L88: 1.421172266 | M88: 1.421172266 | N88: 0.4737240887 | O88: 3.710586133 | Q88: BOOST | R88: 7.743902439 | S88: 0.4245299596 | T88: 0.4734874041 | U88: 1.421172266 | W88: 7.743902439e-06 | X88: 3.21226498 | Y88: 3.236743702 | Z88: 3.710586133 | AB88: 7.743902439 | AC88: 0.08962299147 | AD88: 0.1578291347 | AE88: 0.4737240887
H89: 7 | I89: 8.932926829e-06 | J89: 0.7894736842 | K89: 0.2506789969 | L89: 1.232005992 | M89: 1.232005992 | N89: 0.4106686639 | O89: 3.616002996 | Q89: BOOST | R89: 8.932926829 | S89: 0.3680225588 | T89: 0.4104634834 | U89: 1.232005992 | W89: 8.932926829e-06 | X89: 3.184011279 | Y89: 3.205231742 | Z89: 3.616002996 | AB89: 8.932926829 | AC89: 0.07769365131 | AD89: 0.1368211611 | AE89: 0.4106686639
H90: 8 | I90: 1.012195122e-05 | J90: 0.7894736842 | K90: 0.2506789969 | L90: 1.087282396 | M90: 1.087282396 | N90: 0.3624274654 | O90: 3.543641198 | Q90: BOOST | R90: 10.12195122 | S90: 0.3247909932 | T90: 0.3622463875 | U90: 1.087282396 | W90: 1.012195122e-05 | X90: 3.162395497 | Y90: 3.181123194 | Z90: 3.543641198 | AB90: 10.12195122 | AC90: 0.06856698745 | AD90: 0.1207487958 | AE90: 0.3624274654
H91: 9 | I91: 1.131097561e-05 | J91: 0.7894736842 | K91: 0.2506789969 | L91: 0.972985864 | M91: 0.972985864 | N91: 0.3243286213 | O91: 3.486492932 | Q91: BOOST | R91: 11.31097561 | S91: 0.2906485438 | T91: 0.3241665786 | U91: 0.972985864 | W91: 1.131097561e-05 | X91: 3.145324272 | Y91: 3.162083289 | Z91: 3.486492932 | AB91: 11.31097561 | AC91: 0.06135913702 | AD91: 0.1080555262 | AE91: 0.3243286213
H92: 10 | I92: 1.25e-05 | J92: 0.7894736842 | K92: 0.2506789969 | L92: 0.8804335501 | M92: 0.8804335501 | N92: 0.29347785 | O92: 3.440216775 | Q92: BOOST | R92: 12.5 | S92: 0.2630014872 | T92: 0.2933312211 | U92: 0.8804335501 | W92: 1.25e-05 | X92: 3.131500744 | Y92: 3.146665611 | Z92: 3.440216775 | AB92: 12.5 | AC92: 0.05552253618 | AD92: 0.0977770737 | AE92: 0.29347785
H93: 11 | I93: 1.368902439e-05 | J93: 0.7894736842 | K93: 0.2506789969 | L93: 0.8039593665 | M93: 0.8039593665 | N93: 0.2679864555 | O93: 3.401979683 | Q93: BOOST | R93: 13.68902439 | S93: 0.24015726 | T93: 0.2678525627 | U93: 0.8039593665 | W93: 1.368902439e-05 | X93: 3.12007863 | Y93: 3.133926281 | Z93: 3.401979683 | AB93: 13.68902439 | AC93: 0.050699866 | AD93: 0.08928418756 | AE93: 0.2679864555
H94: 12 | I94: 1.487804878e-05 | J94: 0.7894736842 | K94: 0.2506789969 | L94: 0.7397085155 | M94: 0.7397085155 | N94: 0.2465695052 | O94: 3.369854258 | Q94: BOOST | R94: 14.87804878 | S94: 0.2209643642 | T94: 0.2464463128 | U94: 0.7397085155 | W94: 1.487804878e-05 | X94: 3.110482182 | Y94: 3.123223156 | Z94: 3.369854258 | AB94: 14.87804878 | AC94: 0.04664803244 | AD94: 0.08214877094 | AE94: 0.2465695052
H95: 13 | I95: 1.606707317e-05 | J95: 0.7894736842 | K95: 0.2506789969 | L95: 0.6849672781 | M95: 0.6849672781 | N95: 0.228322426 | O95: 3.342483639 | Q95: BOOST | R95: 16.06707317 | S95: 0.2046121627 | T95: 0.2282083504 | U95: 0.6849672781 | W95: 1.606707317e-05 | X95: 3.102306081 | Y95: 3.114104175 | Z95: 3.342483639 | AB95: 16.06707317 | AC95: 0.04319590101 | AD95: 0.07606945013 | AE95: 0.228322426
H96: 14 | I96: 1.725609756e-05 | J96: 0.7894736842 | K96: 0.2506789969 | L96: 0.6377698862 | M96: 0.6377698862 | N96: 0.2125899621 | O96: 3.318884943 | Q96: BOOST | R96: 17.25609756 | S96: 0.1905134448 | T96: 0.2124837467 | U96: 0.6377698862 | W96: 1.725609756e-05 | X96: 3.095256722 | Y96: 3.106241873 | Z96: 3.318884943 | AB96: 17.25609756 | AC96: 0.04021950501 | AD96: 0.07082791558 | AE96: 0.2125899621
H97: 15 | I97: 1.844512195e-05 | J97: 0.7894736842 | K97: 0.2506789969 | L97: 0.5966574472 | M97: 0.5966574472 | N97: 0.1988858157 | O97: 3.298328724 | Q97: BOOST | R97: 18.44512195 | S97: 0.1782324128 | T97: 0.1987864474 | U97: 0.5966574472 | W97: 1.844512195e-05 | X97: 3.089116206 | Y97: 3.099393224 | Z97: 3.298328724 | AB97: 18.44512195 | AC97: 0.0376268427 | AD97: 0.06626214912 | AE97: 0.1988858157
H98: 16 | I98: 1.963414634e-05 | J98: 0.7894736842 | K98: 0.2506789969 | L98: 0.5605244652 | M98: 0.5605244652 | N98: 0.1868414884 | O98: 3.280262233 | Q98: BOOST | R98: 19.63414634 | S98: 0.167438835 | T98: 0.1867481377 | U98: 0.5605244652 | W98: 1.963414634e-05 | X98: 3.083719417 | Y98: 3.093374069 | Z98: 3.280262233 | AB98: 19.63414634 | AC98: 0.0353481985 | AD98: 0.06224937922 | AE98: 0.1868414884
H99: 17 | I99: 2.082317073e-05 | J99: 0.7894736842 | K99: 0.2506789969 | L99: 0.5285179437 | M99: 0.5285179437 | N99: 0.1761726479 | O99: 3.264258972 | Q99: BOOST | R99: 20.82317073 | S99: 0.1578779059 | T99: 0.1760846276 | U99: 0.5285179437 | W99: 2.082317073e-05 | X99: 3.078938953 | Y99: 3.088042314 | Z99: 3.264258972 | AB99: 20.82317073 | AC99: 0.03332978014 | AD99: 0.05869487587 | AE99: 0.1761726479
H100: 18 | I100: 2.201219512e-05 | J100: 0.7894736842 | K100: 0.2506789969 | L100: 0.4999691905 | M100: 0.4999691905 | N100: 0.1666563968 | O100: 3.249984595 | Q100: BOOST | R100: 22.01219512 | S100: 0.149349875 | T100: 0.1665731311 | U100: 0.4999691905 | W100: 2.201219512e-05 | X100: 3.074674937 | Y100: 3.083286566 | Z100: 3.249984595 | AB100: 22.01219512 | AC100: 0.03152941805 | AD100: 0.05552437703 | AE100: 0.1666563968
H101: 19 | I101: 2.320121951e-05 | J101: 0.7894736842 | K101: 0.2506789969 | L101: 0.4743465908 | M101: 0.4743465908 | N101: 0.1581155303 | O101: 3.237173295 | Q101: BOOST | R101: 23.20121951 | S101: 0.1416959392 | T101: 0.1580365317 | U101: 0.4743465908 | W101: 2.320121951e-05 | X101: 3.07084797 | Y101: 3.079018266 | Z101: 3.237173295 | AB101: 23.20121951 | AC101: 0.02991358717 | AD101: 0.05267884391 | AE101: 0.1581155303
H102: 20 | I102: 2.43902439e-05 | J102: 0.7894736842 | K102: 0.2506789969 | L102: 0.4512221945 | M102: 0.4512221945 | N102: 0.1504073982 | O102: 3.225611097 | Q102: BOOST | R102: 24.3902439 | S102: 0.1347882622 | T102: 0.1503322508 | U102: 0.4512221945 | W102: 2.43902439e-05 | X102: 3.067394131 | Y102: 3.075166125 | Z102: 3.225611097 | AB102: 24.3902439 | AC102: 0.02845529979 | AD102: 0.05011075027 | AE102: 0.1504073982

Sheet Timings (hidden)
A1: DeadTime | B1: 2e-08 | D1: fsw | E1: =Fsw -> 615000
A2: GdrvDelay | B2: 2e-08 | D2: Tsw | E2: =1/E1 -> 1.62601626e-06
A3: IL | B3: 1
A4: IlPos | B4: =IF(B3>0,1,0) -> 1
A5: IlNeg | B5: =IF(B3<0,1,0) -> 0
A6: IlDir | B6: =B4-B5 -> 1
A8: Ifsw_2M | B8: 1e-06
A9: Iconst | B9: 1e-06
A10: T12_min | B10: 7.5e-08
A11: T23_min | B11: 7.5e-08
A12: I_T12_max | B12: =0.75/T12_min*Ifsw_2M/2000000*0.2 -> 1e-06
A13: I_T23_max | B13: =0.75/T23_min*Ifsw_2M/2000000*0.2 -> 1e-06
A14: Kgain_12 | B14: =1+4*0.25 -> 2
A15: Kratio_23 | B15: =1-2*0.041666 -> 0.916668
A17: I_T12(FSW) | B17: =MIN(Ifsw_2M/2000000*Fsw*Kgain_12,I_T12_max) -> 6.15e-07
A18: I_T23(FSW) | B18: =MIN(Ifsw_2M/2000000*Fsw*Kratio_23+Iconst*(1-Kratio_23),I_T23_max) -> 3.6520741e-07 | E18: D
A20: T1_to_T2(Fsw) | B20: =0.000000075/I_T12_FSW*0.000001 -> 1.219512195e-07 | E20: =T1_to_T2_Fsw*Fsw -> 0.075
A21: T2_to_T3(Fsw) | B21: =0.000000075/I_T23_FSW*0.000001 -> 2.053627554e-07 | E21: =T2_to_T3_Fsw*Fsw -> 0.1262980946
A22: T3_to_T4(Fsw) | B22: =T2_to_T3_Fsw -> 2.053627554e-07 | E22: =T3_to_T4_Fsw*Fsw -> 0.1262980946
A23: T1_to_T3(Fsw) | B23: =T1_to_T2_Fsw+T2_to_T3_Fsw -> 3.273139749e-07 | E23: =B23*Fsw -> 0.2012980946
A25: MinT1FallCtrl(Fsw) | B25: =0.2*T1_to_T2_Fsw -> 2.43902439e-08
A26: MinT1RiseCtrl(Fsw) | B26: =0.2*T1_to_T2_Fsw -> 2.43902439e-08 | G26: Vin
A28: MinTonBuck(Fsw) | B28: =T3_to_T4_Fsw-IlDir*DeadTime -> 1.853627554e-07 | E28: =MinTonBuck*Fsw -> 0.1139980946 | G28: =Vout/E28 -> 78.948688
A29: MinToffBuck(Fsw) | B29: =T2_to_T3_Fsw+IlDir*DeadTime -> 2.253627554e-07 | E29: =(E2-MinToffBuck)*Fsw -> 0.8614019054 | G29: =Vout/E29 -> 10.44808462
A30: MaxTonBuck(Fsw) | B30: =1/Fsw-MinToffBuck -> 1.400653505e-06 | E30: =MaxTonBuck*Fsw -> 0.8614019054 | G30: =Vout/E30 -> 10.44808462
A32: MinTonBoost(Fsw) | B32: =T2_to_T3_Fsw-IlDir*DeadTime -> 1.853627554e-07 | E32: =MinTonBoost*Fsw -> 0.1139980946 | G32: =Vout*(1-E32) -> 7.974017149
A33: MinToffBoost(Fsw) | B33: =T1_to_T2_Fsw+IlDir*DeadTime -> 1.419512195e-07 | E33: =(E2-MinToffBoost)*Fsw -> 0.9127 | G33: =Vout*(1-E33) -> 0.7857
A34: MaxTonBoost(Fsw) | B34: =1/Fsw-MinToffBoost -> 1.484065041e-06 | E34: =MaxTonBoost*Fsw -> 0.9127 | G34: =Vout*(1-E34) -> 0.7857
A35: MaxToffBoost(Fsw) | B35: =1/Fsw-MaxTonBoost -> 1.419512195e-07 | E35: =MaxToffBoost*Fsw -> 0.0873
A36: MinTlRise(Fsw) | B36: =MAX(MAX(MinT1RiseCtrl,IlNeg*GdrvDelay)-IlDir*DeadTime,0) -> 4.390243902e-09 | E36: =MinTlRise*Fsw -> 0.0027
A37: MinTlFall(Fsw) | B37: =MAX(MinT1FallCtrl,IlPos*GdrvDelay) -> 2.43902439e-08 | E37: =MinTlFall*Fsw -> 0.015
A39: TBubo(Fsw) | B39: =T1_to_T2_Fsw+T2_to_T3_Fsw -> 3.273139749e-07 | E39: =TBubo*Fsw -> 0.2012980946 | G39: =Vout*(1-E39) -> 7.188317149
A40: TonBubo(Fsw) | B40: =1/Fsw-TBubo+0*DeadTime -> 1.298702285e-06 | E40: =TonBubo*Fsw -> 0.7987019054 | G40: =Vout*(1-E40) -> 1.811682851
A41: MaxTlRise(Fsw) | B41: =MAX(TBubo-MinTlFall-IlDir*DeadTime,0) -> 2.82923731e-07 | E41: =MaxTlRise*Fsw -> 0.1739980946
B43: =DeadTime+GdrvDelay -> 4e-08 | E43: =B43*Fsw -> 0.0246

Sheet CFG Setting (hidden)
A1: LM5177
A2: CFG
A3: Setting | B3: R_CFG [ | C3: DRSS | D3: HICCUP | E3: USLEEP | F3: IMON_LIMIT | G3: =C3 -> DRSS | H3: =D3 -> HICCUP | I3: =E3 -> USLEEP | J3: =F3 -> IMON_LIMIT
A4: 1 | B4: 0 | C4: 0 | D4: 0 | E4: 0 | F4: 0 | G4: =IF(C4=1,"Enable","Disable") -> Disable | H4: =IF(D4=1,"Enable","Disable") -> Disable | I4: =IF(E4=1,"Enable","Disable") -> Disable | J4: =IF(F4=1,"Enable","Disable") -> Disable | L4: =CONCATENATE(G$3,": ",C4) -> DRSS: 0 | M4: =CONCATENATE(H$3,": ",D4) -> HICCUP: 0 | N4: =CONCATENATE(I$3,": ",E4) -> USLEEP: 0 | O4: =CONCATENATE(J$3,": ",F4) -> IMON_LIMIT: 0 | P4: =CONCATENATE(K$3,": ",G4) -> : Disable | R4: =CONCATENATE(L4," / ",M4," / ",N4," / ",O4) -> DRSS: 0 / HICCUP: 0 / USLEEP: 0 / IMON_LIMIT: 0
A5: 2 | B5: 0.511 | C5: 1 | D5: 0 | E5: 0 | F5: 0 | G5: =IF(C5=1,"Enable","Disable") -> Enable | H5: Disable | I5: Disable | J5: Disable | L5: =CONCATENATE(G$3,": ",C5) -> DRSS: 1 | M5: HICCUP: 0 | N5: USLEEP: 0 | O5: IMON_LIMIT: 0 | P5: : Enable | R5: =CONCATENATE(L5," / ",M5," / ",N5," / ",O5) -> DRSS: 1 / HICCUP: 0 / USLEEP: 0 / IMON_LIMIT: 0
A6: 3 | B6: 1.15 | C6: 0 | D6: 1 | E6: 0 | F6: 0 | G6: Disable | H6: Enable | I6: Disable | J6: Disable | L6: DRSS: 0 | M6: HICCUP: 1 | N6: USLEEP: 0 | O6: IMON_LIMIT: 0 | P6: : Disable | R6: DRSS: 0 / HICCUP: 1 / USLEEP: 0 / IMON_LIMIT: 0
A7: 4 | B7: 1.9 | C7: 1 | D7: 1 | E7: 0 | F7: 0 | G7: Enable | H7: Enable | I7: Disable | J7: Disable | L7: DRSS: 1 | M7: HICCUP: 1 | N7: USLEEP: 0 | O7: IMON_LIMIT: 0 | P7: : Enable | R7: DRSS: 1 / HICCUP: 1 / USLEEP: 0 / IMON_LIMIT: 0
A8: 5 | B8: 2.7 | C8: 0 | D8: 0 | E8: 0 | F8: 1 | G8: Disable | H8: Disable | I8: Disable | J8: Enable | L8: DRSS: 0 | M8: HICCUP: 0 | N8: USLEEP: 0 | O8: IMON_LIMIT: 1 | P8: : Disable | R8: DRSS: 0 / HICCUP: 0 / USLEEP: 0 / IMON_LIMIT: 1
A9: 6 | B9: 3.8 | C9: 1 | D9: 0 | E9: 0 | F9: 1 | G9: Enable | H9: Disable | I9: Disable | J9: Enable | L9: DRSS: 1 | M9: HICCUP: 0 | N9: USLEEP: 0 | O9: IMON_LIMIT: 1 | P9: : Enable | R9: DRSS: 1 / HICCUP: 0 / USLEEP: 0 / IMON_LIMIT: 1
A10: 7 | B10: 5.1 | C10: 0 | D10: 1 | E10: 0 | F10: 1 | G10: Disable | H10: Enable | I10: Disable | J10: Enable | L10: DRSS: 0 | M10: HICCUP: 1 | N10: USLEEP: 0 | O10: IMON_LIMIT: 1 | P10: : Disable | R10: DRSS: 0 / HICCUP: 1 / USLEEP: 0 / IMON_LIMIT: 1
A11: 8 | B11: 6.5 | C11: 1 | D11: 1 | E11: 0 | F11: 1 | G11: Enable | H11: Enable | I11: Disable | J11: Enable | L11: DRSS: 1 | M11: HICCUP: 1 | N11: USLEEP: 0 | O11: IMON_LIMIT: 1 | P11: : Enable | R11: DRSS: 1 / HICCUP: 1 / USLEEP: 0 / IMON_LIMIT: 1
A12: 9 | B12: 8.3 | C12: 0 | D12: 0 | E12: 1 | F12: 0 | G12: Disable | H12: Disable | I12: Enable | J12: Disable | L12: DRSS: 0 | M12: HICCUP: 0 | N12: USLEEP: 1 | O12: IMON_LIMIT: 0 | P12: : Disable | R12: DRSS: 0 / HICCUP: 0 / USLEEP: 1 / IMON_LIMIT: 0
A13: 10 | B13: 10.5 | C13: 1 | D13: 0 | E13: 1 | F13: 0 | G13: Enable | H13: Disable | I13: Enable | J13: Disable | L13: DRSS: 1 | M13: HICCUP: 0 | N13: USLEEP: 1 | O13: IMON_LIMIT: 0 | P13: : Enable | R13: DRSS: 1 / HICCUP: 0 / USLEEP: 1 / IMON_LIMIT: 0
A14: 11 | B14: 13.3 | C14: 0 | D14: 1 | E14: 1 | F14: 0 | G14: Disable | H14: Enable | I14: Enable | J14: Disable | L14: DRSS: 0 | M14: HICCUP: 1 | N14: USLEEP: 1 | O14: IMON_LIMIT: 0 | P14: : Disable | R14: DRSS: 0 / HICCUP: 1 / USLEEP: 1 / IMON_LIMIT: 0
A15: 12 | B15: 16.2 | C15: 1 | D15: 1 | E15: 1 | F15: 0 | G15: Enable | H15: Enable | I15: Enable | J15: Disable | L15: DRSS: 1 | M15: HICCUP: 1 | N15: USLEEP: 1 | O15: IMON_LIMIT: 0 | P15: : Enable | R15: DRSS: 1 / HICCUP: 1 / USLEEP: 1 / IMON_LIMIT: 0
A16: 13 | B16: 20.5 | C16: 0 | D16: 0 | E16: 1 | F16: 1 | G16: Disable | H16: Disable | I16: Enable | J16: Enable | L16: DRSS: 0 | M16: HICCUP: 0 | N16: USLEEP: 1 | O16: IMON_LIMIT: 1 | P16: : Disable | R16: DRSS: 0 / HICCUP: 0 / USLEEP: 1 / IMON_LIMIT: 1
A17: 14 | B17: 24.9 | C17: 1 | D17: 0 | E17: 1 | F17: 1 | G17: Enable | H17: Disable | I17: Enable | J17: Enable | L17: DRSS: 1 | M17: HICCUP: 0 | N17: USLEEP: 1 | O17: IMON_LIMIT: 1 | P17: : Enable | R17: DRSS: 1 / HICCUP: 0 / USLEEP: 1 / IMON_LIMIT: 1
A18: 15 | B18: 30.1 | C18: 0 | D18: 1 | E18: 1 | F18: 1 | G18: Disable | H18: Enable | I18: Enable | J18: Enable | L18: DRSS: 0 | M18: HICCUP: 1 | N18: USLEEP: 1 | O18: IMON_LIMIT: 1 | P18: : Disable | R18: DRSS: 0 / HICCUP: 1 / USLEEP: 1 / IMON_LIMIT: 1
A19: 16 | B19: 36.5 | C19: 1 | D19: 1 | E19: 1 | F19: 1 | G19: Enable | H19: Enable | I19: Enable | J19: Enable | L19: DRSS: 1 | M19: HICCUP: 1 | N19: USLEEP: 1 | O19: IMON_LIMIT: 1 | P19: : Enable | R19: DRSS: 1 / HICCUP: 1 / USLEEP: 1 / IMON_LIMIT: 1
C21: 0 | D21: 1 | E21: 3 | F21: 2
C22: DRSS: off | D22: HICCUP: off | E22: uSleep: off | F22: IMON_LIMIT: off
C23: DRSS: on | D23: HICCUP: on | E23: uSleep: on | F23: IMON: on
F24: ILIMIT: positive
F25: ILIMIT: negative
B27: CFG Setting | C27: 1 | D27: 1 | E27: 2 | F27: 3 | G27: Calc Setting | H27: =CONCATENATE("R_",A2) -> R_CFG | J27: This cell give 1 for disable and 2 for enable
C28: =(C27-1)*2^C21 -> 0 | D28: =(D27-1)*2^D21 -> 0 | E28: =(E27-1)*2^E21 -> 8 | F28: =(IF(F27>2,1,0)*2^F21) -> 4 | G28: =SUM(C28:F28)+1 -> 13 | H28: =INDEX(B4:B19,G28) -> 20.5
A30: LM51772
A31: CFG1
A32: Setting | B32: R_CFG2 [ | C32: Slope Comp. | D32: I2C
A33: 1 | B33: 0 | C33: n/a | D33: ADDR LSB: 0 | L33: =CONCATENATE($C$32,": ",C33) -> Slope Comp.: n/a | M33: =CONCATENATE(D$32," ",D33) -> I2C ADDR LSB: 0 | R33: =CONCATENATE(L33," / ",M33) -> Slope Comp.: n/a / I2C ADDR LSB: 0
A34: 2 | B34: 0.511 | C34: 0.25 | D34: Disabled | L34: =CONCATENATE($C$32,": ",C34) -> Slope Comp.: 0.25 | M34: =CONCATENATE(D$32," ",D34) -> I2C Disabled | R34: =CONCATENATE(L34," / ",M34," / ",N34," / ",O34) -> Slope Comp.: 0.25 / I2C Disabled / /
A35: 3 | B35: 1.15 | C35: 0.375 | D35: Disabled | L35: Slope Comp.: 0.375 | M35: I2C Disabled | R35: Slope Comp.: 0.375 / I2C Disabled / /
A36: 4 | B36: 1.9 | C36: 0.5 | D36: Disabled | L36: Slope Comp.: 0.5 | M36: I2C Disabled | R36: Slope Comp.: 0.5 / I2C Disabled / /
A37: 5 | B37: 2.7 | C37: 0.625 | D37: Disabled | L37: Slope Comp.: 0.625 | M37: I2C Disabled | R37: Slope Comp.: 0.625 / I2C Disabled / /
A38: 6 | B38: 3.8 | C38: 0.75 | D38: Disabled | L38: Slope Comp.: 0.75 | M38: I2C Disabled | R38: Slope Comp.: 0.75 / I2C Disabled / /
A39: 7 | B39: 5.1 | C39: 0.875 | D39: Disabled | L39: Slope Comp.: 0.875 | M39: I2C Disabled | R39: Slope Comp.: 0.875 / I2C Disabled / /
A40: 8 | B40: 6.5 | C40: 1 | D40: Disabled | L40: Slope Comp.: 1 | M40: I2C Disabled | R40: Slope Comp.: 1 / I2C Disabled / /
A41: 9 | B41: 8.3 | C41: 1.5 | D41: Disabled | L41: Slope Comp.: 1.5 | M41: I2C Disabled | R41: Slope Comp.: 1.5 / I2C Disabled / /
A42: 10 | B42: 10.5 | C42: 2 | D42: Disabled | L42: Slope Comp.: 2 | M42: I2C Disabled | R42: Slope Comp.: 2 / I2C Disabled / /
A43: 11 | B43: 13.3 | C43: 2.5 | D43: Disabled | L43: Slope Comp.: 2.5 | M43: I2C Disabled | R43: Slope Comp.: 2.5 / I2C Disabled / /
A44: 12 | B44: 16.2 | C44: 3 | D44: Disabled | L44: Slope Comp.: 3 | M44: I2C Disabled | R44: Slope Comp.: 3 / I2C Disabled / /
A45: 13 | B45: 20.5 | C45: 3.5 | D45: Disabled | L45: Slope Comp.: 3.5 | M45: I2C Disabled | R45: Slope Comp.: 3.5 / I2C Disabled / /
A46: 14 | B46: 24.9 | C46: 4 | D46: Disabled | L46: Slope Comp.: 4 | M46: I2C Disabled | R46: Slope Comp.: 4 / I2C Disabled / /
A47: 15 | B47: 30.1 | C47: 4.5 | D47: Disabled | L47: Slope Comp.: 4.5 | M47: I2C Disabled | R47: Slope Comp.: 4.5 / I2C Disabled / /
A48: 16 | B48: 36.5 | C48: n/a | D48: ADDR LSB: 1 | L48: Slope Comp.: n/a | M48: I2C ADDR LSB: 1 | R48: Slope Comp.: n/a / I2C ADDR LSB: 1 / /
C51: =CONCATENATE(C32,": off") -> Slope Comp.: off | D51: =CONCATENATE(D32,": 0") -> I2C: 0
C52: =CONCATENATE(C32,": on") -> Slope Comp.: on | D52: =CONCATENATE(D32,": 1") -> I2C: 1
B56: CFG Setting | C56: 1 | D56: =IF(OR(C56=1,B56=16),1,2) -> 1 | E56: 1 | F56: 1 | G56: Calc Setting | H56: =CONCATENATE("R_",A31) -> R_CFG1 | J56: This cell give 1 for disable and 2 for enable
C57: =C56 -> 1 | D57: =(D56-1)*2^D50 -> 0 | E57: =(E56-1)*2^E50 -> 0 | F57: =(IF(F56>1,1,0)*2^F50) -> 0 | G57: =C57 -> 1 | H57: =INDEX(B33:B48,G57) -> 0
A60: CFG2
A61: Setting | B61: R_CFG2 [ | C61: EN_SYNC_OUT | D61: SYNC_IN_FALLING | E61: VDET_EN | F61: PCM_HYST_30 | G61: =C61 -> EN_SYNC_OUT | H61: =D61 -> SYNC_IN_FALLING | I61: =E61 -> VDET_EN | J61: =F61 -> PCM_HYST_30
A62: 1 | B62: 0 | C62: 0 | D62: 0 | E62: 0 | F62: 0 | G62: =IF(C62=1,"Enable","Disable") -> Disable | H62: =IF(D62=1,"Enable","Disable") -> Disable | I62: =IF(E62=1,"Enable","Disable") -> Disable | J62: =IF(F62=1,"Enable","Disable") -> Disable | L62: =CONCATENATE($C$61,": ",C62) -> EN_SYNC_OUT: 0 | M62: =CONCATENATE(D$61,": ",D62) -> SYNC_IN_FALLING: 0 | N62: =CONCATENATE(E$61,": ",E62) -> VDET_EN: 0 | O62: =CONCATENATE(F$61,": ",F62) -> PCM_HYST_30: 0 | P62: =CONCATENATE(K$3,": ",G62) -> : Disable | R62: =CONCATENATE(L62," / ",M62," / ",N62," / ",O62) -> EN_SYNC_OUT: 0 / SYNC_IN_FALLING: 0 / VDET_EN: 0 / PCM_HYST_30: 0
A63: 2 | B63: 0.511 | C63: 1 | D63: 0 | E63: 0 | F63: 0 | G63: Enable | H63: Disable | I63: Disable | J63: Disable | L63: =CONCATENATE($C$61,": ",C63) -> EN_SYNC_OUT: 1 | M63: =CONCATENATE(D$61,": ",D63) -> SYNC_IN_FALLING: 0 | N63: =CONCATENATE(E$61,": ",E63) -> VDET_EN: 0 | O63: =CONCATENATE(F$61,": ",F63) -> PCM_HYST_30: 0 | P63: : Enable | R63: =CONCATENATE(L63," / ",M63," / ",N63," / ",O63) -> EN_SYNC_OUT: 1 / SYNC_IN_FALLING: 0 / VDET_EN: 0 / PCM_HYST_30: 0
A64: 3 | B64: 1.15 | C64: 0 | D64: 1 | E64: 0 | F64: 0 | G64: Disable | H64: Enable | I64: Disable | J64: Disable | L64: EN_SYNC_OUT: 0 | M64: SYNC_IN_FALLING: 1 | N64: VDET_EN: 0 | O64: PCM_HYST_30: 0 | P64: : Disable | R64: EN_SYNC_OUT: 0 / SYNC_IN_FALLING: 1 / VDET_EN: 0 / PCM_HYST_30: 0
A65: 4 | B65: 1.9 | C65: 1 | D65: 1 | E65: 0 | F65: 0 | G65: Enable | H65: Enable | I65: Disable | J65: Disable | L65: EN_SYNC_OUT: 1 | M65: SYNC_IN_FALLING: 1 | N65: VDET_EN: 0 | O65: PCM_HYST_30: 0 | P65: : Enable | R65: EN_SYNC_OUT: 1 / SYNC_IN_FALLING: 1 / VDET_EN: 0 / PCM_HYST_30: 0
A66: 5 | B66: 2.7 | C66: 0 | D66: 0 | E66: 1 | F66: 0 | G66: Disable | H66: Disable | I66: Enable | J66: Disable | L66: EN_SYNC_OUT: 0 | M66: SYNC_IN_FALLING: 0 | N66: VDET_EN: 1 | O66: PCM_HYST_30: 0 | P66: : Disable | R66: EN_SYNC_OUT: 0 / SYNC_IN_FALLING: 0 / VDET_EN: 1 / PCM_HYST_30: 0
A67: 6 | B67: 3.8 | C67: 1 | D67: 1 | E67: 1 | F67: 0 | G67: Enable | H67: Enable | I67: Enable | J67: Disable | L67: EN_SYNC_OUT: 1 | M67: SYNC_IN_FALLING: 1 | N67: VDET_EN: 1 | O67: PCM_HYST_30: 0 | P67: : Enable | R67: EN_SYNC_OUT: 1 / SYNC_IN_FALLING: 1 / VDET_EN: 1 / PCM_HYST_30: 0
A68: 7 | B68: 5.1 | C68: 0 | D68: 1 | E68: 1 | F68: 0 | G68: Disable | H68: Enable | I68: Enable | J68: Disable | L68: EN_SYNC_OUT: 0 | M68: SYNC_IN_FALLING: 1 | N68: VDET_EN: 1 | O68: PCM_HYST_30: 0 | P68: : Disable | R68: EN_SYNC_OUT: 0 / SYNC_IN_FALLING: 1 / VDET_EN: 1 / PCM_HYST_30: 0
A69: 8 | B69: 6.5 | C69: 1 | D69: 1 | E69: 1 | F69: 0 | G69: Enable | H69: Enable | I69: Enable | J69: Disable | L69: EN_SYNC_OUT: 1 | M69: SYNC_IN_FALLING: 1 | N69: VDET_EN: 1 | O69: PCM_HYST_30: 0 | P69: : Enable | R69: EN_SYNC_OUT: 1 / SYNC_IN_FALLING: 1 / VDET_EN: 1 / PCM_HYST_30: 0
A70: 9 | B70: 8.3 | C70: 0 | D70: 0 | E70: 0 | F70: 1 | G70: Disable | H70: Disable | I70: Disable | J70: Enable | L70: EN_SYNC_OUT: 0 | M70: SYNC_IN_FALLING: 0 | N70: VDET_EN: 0 | O70: PCM_HYST_30: 1 | P70: : Disable | R70: EN_SYNC_OUT: 0 / SYNC_IN_FALLING: 0 / VDET_EN: 0 / PCM_HYST_30: 1
A71: 10 | B71: 10.5 | C71: 1 | D71: 0 | E71: 0 | F71: 1 | G71: Enable | H71: Disable | I71: Disable | J71: Enable | L71: EN_SYNC_OUT: 1 | M71: SYNC_IN_FALLING: 0 | N71: VDET_EN: 0 | O71: PCM_HYST_30: 1 | P71: : Enable | R71: EN_SYNC_OUT: 1 / SYNC_IN_FALLING: 0 / VDET_EN: 0 / PCM_HYST_30: 1
A72: 11 | B72: 13.3 | C72: 0 | D72: 1 | E72: 0 | F72: 1 | G72: Disable | H72: Enable | I72: Disable | J72: Enable | L72: EN_SYNC_OUT: 0 | M72: SYNC_IN_FALLING: 1 | N72: VDET_EN: 0 | O72: PCM_HYST_30: 1 | P72: : Disable | R72: EN_SYNC_OUT: 0 / SYNC_IN_FALLING: 1 / VDET_EN: 0 / PCM_HYST_30: 1
A73: 12 | B73: 16.2 | C73: 1 | D73: 1 | E73: 0 | F73: 1 | G73: Enable | H73: Enable | I73: Disable | J73: Enable | L73: EN_SYNC_OUT: 1 | M73: SYNC_IN_FALLING: 1 | N73: VDET_EN: 0 | O73: PCM_HYST_30: 1 | P73: : Enable | R73: EN_SYNC_OUT: 1 / SYNC_IN_FALLING: 1 / VDET_EN: 0 / PCM_HYST_30: 1
A74: 13 | B74: 20.5 | C74: 0 | D74: 0 | E74: 1 | F74: 1 | G74: Disable | H74: Disable | I74: Enable | J74: Enable | L74: EN_SYNC_OUT: 0 | M74: SYNC_IN_FALLING: 0 | N74: VDET_EN: 1 | O74: PCM_HYST_30: 1 | P74: : Disable | R74: EN_SYNC_OUT: 0 / SYNC_IN_FALLING: 0 / VDET_EN: 1 / PCM_HYST_30: 1
A75: 14 | B75: 24.9 | C75: 1 | D75: 0 | E75: 1 | F75: 1 | G75: Enable | H75: Disable | I75: Enable | J75: Enable | L75: EN_SYNC_OUT: 1 | M75: SYNC_IN_FALLING: 0 | N75: VDET_EN: 1 | O75: PCM_HYST_30: 1 | P75: : Enable | R75: EN_SYNC_OUT: 1 / SYNC_IN_FALLING: 0 / VDET_EN: 1 / PCM_HYST_30: 1
A76: 15 | B76: 30.1 | C76: 0 | D76: 1 | E76: 1 | F76: 1 | G76: Disable | H76: Enable | I76: Enable | J76: Enable | L76: EN_SYNC_OUT: 0 | M76: SYNC_IN_FALLING: 1 | N76: VDET_EN: 1 | O76: PCM_HYST_30: 1 | P76: : Disable | R76: EN_SYNC_OUT: 0 / SYNC_IN_FALLING: 1 / VDET_EN: 1 / PCM_HYST_30: 1
A77: 16 | B77: 36.5 | C77: 1 | D77: 1 | E77: 1 | F77: 1 | G77: Enable | H77: Enable | I77: Enable | J77: Enable | L77: EN_SYNC_OUT: 1 | M77: SYNC_IN_FALLING: 1 | N77: VDET_EN: 1 | O77: PCM_HYST_30: 1 | P77: : Enable | R77: EN_SYNC_OUT: 1 / SYNC_IN_FALLING: 1 / VDET_EN: 1 / PCM_HYST_30: 1
C79: 0 | D79: 1 | E79: 2 | F79: 3
C80: =CONCATENATE(C61,": off") -> EN_SYNC_OUT: off | D80: =CONCATENATE(D61,": off") -> SYNC_IN_FALLING: off | E80: =CONCATENATE(E61,": off") -> VDET_EN: off | F80: =CONCATENATE(F61,": off") -> PCM_HYST_30: off
C81: =CONCATENATE(C61,": on") -> EN_SYNC_OUT: on | D81: =CONCATENATE(D61,": on") -> SYNC_IN_FALLING: on | E81: =CONCATENATE(E61,": on") -> VDET_EN: on | F81: =CONCATENATE(F61,": on") -> PCM_HYST_30: on
B85: CFG Setting | C85: 1 | D85: 1 | E85: 2 | F85: 1 | G85: Calc Setting | H85: =CONCATENATE("R_",A60) -> R_CFG2 | J85: This cell give 1 for disable and 2 for enable
C86: =(C85-1)*2^C79 -> 0 | D86: =(D85-1)*2^D79 -> 0 | E86: =(E85-1)*2^E79 -> 4 | F86: =(F85-1)*2^F79 -> 0 | G86: =SUM(C86:F86)+1 -> 5 | H86: =INDEX(B62:B77,G86) -> 2.7
A90: CFG3
A91: Setting | B91: R_CFG3 [ | C91: EN_VCC1 | D91: INC_INDUCT_De-Rate | E91: USLEEP | F91: SCALE_DT | G91: =C91 -> EN_VCC1 | H91: =D91 -> INC_INDUCT_De-Rate | I91: =E91 -> USLEEP | J91: =F91 -> SCALE_DT
A92: 1 | B92: 0 | C92: 0 | D92: 0 | E92: 0 | F92: 0 | G92: =IF(C92=1,"Enable","Disable") -> Disable | H92: =IF(D92=1,"Enable","Disable") -> Disable | I92: =IF(E92=1,"Enable","Disable") -> Disable | J92: =IF(F92=1,"Enable","Disable") -> Disable | L92: =CONCATENATE($C$91,": ",C92) -> EN_VCC1: 0 | M92: =CONCATENATE(D$91,": ",D92) -> INC_INDUCT_De-Rate: 0 | N92: =CONCATENATE(E$91,": ",E92) -> USLEEP: 0 | O92: =CONCATENATE(F$91,": ",F92) -> SCALE_DT: 0 | P92: =CONCATENATE(K$3,": ",G92) -> : Disable | R92: =CONCATENATE(L92," / ",M92," / ",N92," / ",O92) -> EN_VCC1: 0 / INC_INDUCT_De-Rate: 0 / USLEEP: 0 / SCALE_DT: 0
A93: 2 | B93: 0.511 | C93: 1 | D93: 0 | E93: 0 | F93: 0 | G93: Enable | H93: Disable | I93: Disable | J93: Disable | L93: =CONCATENATE($C$91,": ",C93) -> EN_VCC1: 1 | M93: =CONCATENATE(D$91,": ",D93) -> INC_INDUCT_De-Rate: 0 | N93: =CONCATENATE(E$91,": ",E93) -> USLEEP: 0 | O93: =CONCATENATE(F$91,": ",F93) -> SCALE_DT: 0 | P93: : Enable | R93: =CONCATENATE(L93," / ",M93," / ",N93," / ",O93) -> EN_VCC1: 1 / INC_INDUCT_De-Rate: 0 / USLEEP: 0 / SCALE_DT: 0
A94: 3 | B94: 1.15 | C94: 0 | D94: 1 | E94: 0 | F94: 0 | G94: Disable | H94: Enable | I94: Disable | J94: Disable | L94: EN_VCC1: 0 | M94: INC_INDUCT_De-Rate: 1 | N94: USLEEP: 0 | O94: SCALE_DT: 0 | P94: : Disable | R94: EN_VCC1: 0 / INC_INDUCT_De-Rate: 1 / USLEEP: 0 / SCALE_DT: 0
A95: 4 | B95: 1.9 | C95: 1 | D95: 1 | E95: 0 | F95: 0 | G95: Enable | H95: Enable | I95: Disable | J95: Disable | L95: EN_VCC1: 1 | M95: INC_INDUCT_De-Rate: 1 | N95: USLEEP: 0 | O95: SCALE_DT: 0 | P95: : Enable | R95: EN_VCC1: 1 / INC_INDUCT_De-Rate: 1 / USLEEP: 0 / SCALE_DT: 0
A96: 5 | B96: 2.7 | C96: 0 | D96: 0 | E96: 1 | F96: 0 | G96: Disable | H96: Disable | I96: Enable | J96: Disable | L96: EN_VCC1: 0 | M96: INC_INDUCT_De-Rate: 0 | N96: USLEEP: 1 | O96: SCALE_DT: 0 | P96: : Disable | R96: EN_VCC1: 0 / INC_INDUCT_De-Rate: 0 / USLEEP: 1 / SCALE_DT: 0
A97: 6 | B97: 3.8 | C97: 1 | D97: 0 | E97: 1 | F97: 0 | G97: Enable | H97: Disable | I97: Enable | J97: Disable | L97: EN_VCC1: 1 | M97: INC_INDUCT_De-Rate: 0 | N97: USLEEP: 1 | O97: SCALE_DT: 0 | P97: : Enable | R97: EN_VCC1: 1 / INC_INDUCT_De-Rate: 0 / USLEEP: 1 / SCALE_DT: 0
A98: 7 | B98: 5.1 | C98: 0 | D98: 1 | E98: 1 | F98: 0 | G98: Disable | H98: Enable | I98: Enable | J98: Disable | L98: EN_VCC1: 0 | M98: INC_INDUCT_De-Rate: 1 | N98: USLEEP: 1 | O98: SCALE_DT: 0 | P98: : Disable | R98: EN_VCC1: 0 / INC_INDUCT_De-Rate: 1 / USLEEP: 1 / SCALE_DT: 0
A99: 8 | B99: 6.5 | C99: 1 | D99: 1 | E99: 1 | F99: 0 | G99: Enable | H99: Enable | I99: Enable | J99: Disable | L99: EN_VCC1: 1 | M99: INC_INDUCT_De-Rate: 1 | N99: USLEEP: 1 | O99: SCALE_DT: 0 | P99: : Enable | R99: EN_VCC1: 1 / INC_INDUCT_De-Rate: 1 / USLEEP: 1 / SCALE_DT: 0
A100: 9 | B100: 8.3 | C100: 0 | D100: 0 | E100: 0 | F100: 1 | G100: Disable | H100: Disable | I100: Disable | J100: Enable | L100: EN_VCC1: 0 | M100: INC_INDUCT_De-Rate: 0 | N100: USLEEP: 0 | O100: SCALE_DT: 1 | P100: : Disable | R100: EN_VCC1: 0 / INC_INDUCT_De-Rate: 0 / USLEEP: 0 / SCALE_DT: 1
A101: 10 | B101: 10.5 | C101: 1 | D101: 0 | E101: 0 | F101: 1 | G101: Enable | H101: Disable | I101: Disable | J101: Enable | L101: EN_VCC1: 1 | M101: INC_INDUCT_De-Rate: 0 | N101: USLEEP: 0 | O101: SCALE_DT: 1 | P101: : Enable | R101: EN_VCC1: 1 / INC_INDUCT_De-Rate: 0 / USLEEP: 0 / SCALE_DT: 1
A102: 11 | B102: 13.3 | C102: 0 | D102: 1 | E102: 0 | F102: 1 | G102: Disable | H102: Enable | I102: Disable | J102: Enable | L102: EN_VCC1: 0 | M102: INC_INDUCT_De-Rate: 1 | N102: USLEEP: 0 | O102: SCALE_DT: 1 | P102: : Disable | R102: EN_VCC1: 0 / INC_INDUCT_De-Rate: 1 / USLEEP: 0 / SCALE_DT: 1
A103: 12 | B103: 16.2 | C103: 1 | D103: 1 | E103: 0 | F103: 1 | G103: Enable | H103: Enable | I103: Disable | J103: Enable | L103: EN_VCC1: 1 | M103: INC_INDUCT_De-Rate: 1 | N103: USLEEP: 0 | O103: SCALE_DT: 1 | P103: : Enable | R103: EN_VCC1: 1 / INC_INDUCT_De-Rate: 1 / USLEEP: 0 / SCALE_DT: 1
A104: 13 | B104: 20.5 | C104: 0 | D104: 0 | E104: 1 | F104: 1 | G104: Disable | H104: Disable | I104: Enable | J104: Enable | L104: EN_VCC1: 0 | M104: INC_INDUCT_De-Rate: 0 | N104: USLEEP: 1 | O104: SCALE_DT: 1 | P104: : Disable | R104: EN_VCC1: 0 / INC_INDUCT_De-Rate: 0 / USLEEP: 1 / SCALE_DT: 1
A105: 14 | B105: 24.9 | C105: 1 | D105: 0 | E105: 1 | F105: 1 | G105: Enable | H105: Disable | I105: Enable | J105: Enable | L105: EN_VCC1: 1 | M105: INC_INDUCT_De-Rate: 0 | N105: USLEEP: 1 | O105: SCALE_DT: 1 | P105: : Enable | R105: EN_VCC1: 1 / INC_INDUCT_De-Rate: 0 / USLEEP: 1 / SCALE_DT: 1
A106: 15 | B106: 30.1 | C106: 0 | D106: 1 | E106: 1 | F106: 1 | G106: Disable | H106: Enable | I106: Enable | J106: Enable | L106: EN_VCC1: 0 | M106: INC_INDUCT_De-Rate: 1 | N106: USLEEP: 1 | O106: SCALE_DT: 1 | P106: : Disable | R106: EN_VCC1: 0 / INC_INDUCT_De-Rate: 1 / USLEEP: 1 / SCALE_DT: 1
A107: 16 | B107: 36.5 | C107: 1 | D107: 1 | E107: 1 | F107: 1 | G107: Enable | H107: Enable | I107: Enable | J107: Enable | L107: EN_VCC1: 1 | M107: INC_INDUCT_De-Rate: 1 | N107: USLEEP: 1 | O107: SCALE_DT: 1 | P107: : Enable | R107: EN_VCC1: 1 / INC_INDUCT_De-Rate: 1 / USLEEP: 1 / SCALE_DT: 1
C109: 0 | D109: 1 | E109: 2 | F109: 3
C110: =CONCATENATE(C91,": off") -> EN_VCC1: off | D110: =CONCATENATE(D91,": off") -> INC_INDUCT_De-Rate: off | E110: =CONCATENATE(E91,": off") -> USLEEP: off | F110: =CONCATENATE(F91,": off") -> SCALE_DT: off
C111: =CONCATENATE(C91,": on") -> EN_VCC1: on | D111: =CONCATENATE(D91,": on") -> INC_INDUCT_De-Rate: on | E111: =CONCATENATE(E91,": on") -> USLEEP: on | F111: =CONCATENATE(F91,": on") -> SCALE_DT: on
B115: CFG Setting | C115: 1 | D115: 1 | E115: 1 | F115: 1 | G115: Calc Setting | H115: =CONCATENATE("R_",A90) -> R_CFG3 | J115: This cell give 1 for disable and 2 for enable
C116: =(C115-1)*2^C109 -> 0 | D116: =(D115-1)*2^D109 -> 0 | E116: =(E115-1)*2^E109 -> 0 | F116: =(F115-1)*2^F109 -> 0 | G116: =SUM(C116:F116)+1 -> 1 | H116: =INDEX(B92:B107,G116) -> 0
A120: CFG4
A121: Setting | B121: R_CFG4 [ | C121: DRSS | D121: SCP – Hiccup Mode | E121: Negative Current Limit | F121: Current Limit | G121: Current Limit | H121: =D121 -> SCP – Hiccup Mode | I121: =E121 -> Negative Current Limit | J121: =F121 -> Current Limit
A122: 1 | B122: 0 | C122: 0 | D122: 0 | E122: 0 | F122: 0 | G122: =IF(C122=1,"Enable","Disable") -> Disable | H122: =IF(D122=1,"Enable","Disable") -> Disable | I122: =IF(E122=1,"Enable","Disable") -> Disable | J122: =IF(F122=1,"Enable","Disable") -> Disable | L122: =CONCATENATE($C$121,": ",C122) -> DRSS: 0 | M122: =CONCATENATE(D$121,": ",D122) -> SCP – Hiccup Mode: 0 | N122: =CONCATENATE(E$121,": ",E122) -> Negative Current Limit: 0 | O122: =CONCATENATE(F$121,": ",F122) -> Current Limit: 0 | P122: =CONCATENATE(K$3,": ",G122) -> : Disable | R122: =CONCATENATE(L122," / ",M122," / ",N122," / ",O122) -> DRSS: 0 / SCP – Hiccup Mode: 0 / Negative Current Limit: 0 / Current Limit: 0
A123: 2 | B123: 0.511 | C123: 1 | D123: 0 | E123: 0 | F123: 0 | G123: Enable | H123: Disable | I123: Disable | J123: Disable | L123: =CONCATENATE($C$121,": ",C123) -> DRSS: 1 | M123: =CONCATENATE(D$121,": ",D123) -> SCP – Hiccup Mode: 0 | N123: =CONCATENATE(E$121,": ",E123) -> Negative Current Limit: 0 | O123: =CONCATENATE(F$121,": ",F123) -> Current Limit: 0 | P123: : Enable | R123: =CONCATENATE(L123," / ",M123," / ",N123," / ",O123) -> DRSS: 1 / SCP – Hiccup Mode: 0 / Negative Current Limit: 0 / Current Limit: 0
A124: 3 | B124: 1.15 | C124: 0 | D124: 1 | E124: 0 | F124: 0 | G124: Disable | H124: Enable | I124: Disable | J124: Disable | L124: DRSS: 0 | M124: SCP – Hiccup Mode: 1 | N124: Negative Current Limit: 0 | O124: Current Limit: 0 | P124: : Disable | R124: DRSS: 0 / SCP – Hiccup Mode: 1 / Negative Current Limit: 0 / Current Limit: 0
A125: 4 | B125: 1.9 | C125: 1 | D125: 1 | E125: 0 | F125: 0 | G125: Enable | H125: Enable | I125: Disable | J125: Disable | L125: DRSS: 1 | M125: SCP – Hiccup Mode: 1 | N125: Negative Current Limit: 0 | O125: Current Limit: 0 | P125: : Enable | R125: DRSS: 1 / SCP – Hiccup Mode: 1 / Negative Current Limit: 0 / Current Limit: 0
A126: 5 | B126: 2.7 | C126: 0 | D126: 0 | E126: 1 | F126: 0 | G126: Disable | H126: Disable | I126: Enable | J126: Disable | L126: DRSS: 0 | M126: SCP – Hiccup Mode: 0 | N126: Negative Current Limit: 1 | O126: Current Limit: 0 | P126: : Disable | R126: DRSS: 0 / SCP – Hiccup Mode: 0 / Negative Current Limit: 1 / Current Limit: 0
A127: 6 | B127: 3.8 | C127: 1 | D127: 0 | E127: 1 | F127: 0 | G127: Enable | H127: Disable | I127: Enable | J127: Disable | L127: DRSS: 1 | M127: SCP – Hiccup Mode: 0 | N127: Negative Current Limit: 1 | O127: Current Limit: 0 | P127: : Enable | R127: DRSS: 1 / SCP – Hiccup Mode: 0 / Negative Current Limit: 1 / Current Limit: 0
A128: 7 | B128: 5.1 | C128: 0 | D128: 1 | E128: 1 | F128: 0 | G128: Disable | H128: Enable | I128: Enable | J128: Disable | L128: DRSS: 0 | M128: SCP – Hiccup Mode: 1 | N128: Negative Current Limit: 1 | O128: Current Limit: 0 | P128: : Disable | R128: DRSS: 0 / SCP – Hiccup Mode: 1 / Negative Current Limit: 1 / Current Limit: 0
A129: 8 | B129: 6.5 | C129: 1 | D129: 1 | E129: 1 | F129: 0 | G129: Enable | H129: Enable | I129: Enable | J129: Disable | L129: DRSS: 1 | M129: SCP – Hiccup Mode: 1 | N129: Negative Current Limit: 1 | O129: Current Limit: 0 | P129: : Enable | R129: DRSS: 1 / SCP – Hiccup Mode: 1 / Negative Current Limit: 1 / Current Limit: 0
A130: 9 | B130: 8.3 | C130: 0 | D130: 0 | E130: 0 | F130: 1 | G130: Disable | H130: Disable | I130: Disable | J130: Enable | L130: DRSS: 0 | M130: SCP – Hiccup Mode: 0 | N130: Negative Current Limit: 0 | O130: Current Limit: 1 | P130: : Disable | R130: DRSS: 0 / SCP – Hiccup Mode: 0 / Negative Current Limit: 0 / Current Limit: 1
A131: 10 | B131: 10.5 | C131: 1 | D131: 0 | E131: 0 | F131: 1 | G131: Enable | H131: Disable | I131: Disable | J131: Enable | L131: DRSS: 1 | M131: SCP – Hiccup Mode: 0 | N131: Negative Current Limit: 0 | O131: Current Limit: 1 | P131: : Enable | R131: DRSS: 1 / SCP – Hiccup Mode: 0 / Negative Current Limit: 0 / Current Limit: 1
A132: 11 | B132: 13.3 | C132: 0 | D132: 1 | E132: 0 | F132: 1 | G132: Disable | H132: Enable | I132: Disable | J132: Enable | L132: DRSS: 0 | M132: SCP – Hiccup Mode: 1 | N132: Negative Current Limit: 0 | O132: Current Limit: 1 | P132: : Disable | R132: DRSS: 0 / SCP – Hiccup Mode: 1 / Negative Current Limit: 0 / Current Limit: 1
A133: 12 | B133: 16.2 | C133: 1 | D133: 1 | E133: 0 | F133: 1 | G133: Enable | H133: Enable | I133: Disable | J133: Enable | L133: DRSS: 1 | M133: SCP – Hiccup Mode: 1 | N133: Negative Current Limit: 0 | O133: Current Limit: 1 | P133: : Enable | R133: DRSS: 1 / SCP – Hiccup Mode: 1 / Negative Current Limit: 0 / Current Limit: 1
A134: 13 | B134: 20.5 | C134: 0 | D134: 0 | E134: 1 | F134: 1 | G134: Disable | H134: Disable | I134: Enable | J134: Enable | L134: DRSS: 0 | M134: SCP – Hiccup Mode: 0 | N134: Negative Current Limit: 1 | O134: Current Limit: 1 | P134: : Disable | R134: DRSS: 0 / SCP – Hiccup Mode: 0 / Negative Current Limit: 1 / Current Limit: 1
A135: 14 | B135: 24.9 | C135: 1 | D135: 0 | E135: 1 | F135: 1 | G135: Enable | H135: Disable | I135: Enable | J135: Enable | L135: DRSS: 1 | M135: SCP – Hiccup Mode: 0 | N135: Negative Current Limit: 1 | O135: Current Limit: 1 | P135: : Enable | R135: DRSS: 1 / SCP – Hiccup Mode: 0 / Negative Current Limit: 1 / Current Limit: 1
A136: 15 | B136: 30.1 | C136: 0 | D136: 1 | E136: 1 | F136: 1 | G136: Disable | H136: Enable | I136: Enable | J136: Enable | L136: DRSS: 0 | M136: SCP – Hiccup Mode: 1 | N136: Negative Current Limit: 1 | O136: Current Limit: 1 | P136: : Disable | R136: DRSS: 0 / SCP – Hiccup Mode: 1 / Negative Current Limit: 1 / Current Limit: 1
A137: 16 | B137: 36.5 | C137: 1 | D137: 1 | E137: 1 | F137: 1 | G137: Enable | H137: Enable | I137: Enable | J137: Enable | L137: DRSS: 1 | M137: SCP – Hiccup Mode: 1 | N137: Negative Current Limit: 1 | O137: Current Limit: 1 | P137: : Enable | R137: DRSS: 1 / SCP – Hiccup Mode: 1 / Negative Current Limit: 1 / Current Limit: 1
C139: 0 | D139: 1 | E139: 2 | F139: 3
C140: =CONCATENATE(C121,": off") -> DRSS: off | D140: =CONCATENATE(D121,": off") -> SCP – Hiccup Mode: off | E140: =CONCATENATE(E121,": off") -> Negative Current Limit: off | F140: IMON_LIMIT: off
C141: =CONCATENATE(C121,": on") -> DRSS: on | D141: =CONCATENATE(D121,": on") -> SCP – Hiccup Mode: on | E141: =CONCATENATE(E121,": on") -> Negative Current Limit: on | F141: ILIMIT: on (external)
F142: ILIMIT: on (ILIM_DAC)
B145: CFG Setting | C145: 1 | D145: 1 | E145: 1 | F145: 2 | G145: Calc Setting | H145: =CONCATENATE("R_",A120) -> R_CFG4 | J145: This cell give 1 for disable and 2 for enable
C146: =(C145-1)*2^C139 -> 0 | D146: =(D145-1)*2^D139 -> 0 | E146: =(E145-1)*2^E139 -> 0 | F146: =(IF(F145>2,1,0)*2^F139) -> 0 | G146: =SUM(C146:F146)+1 -> 1 | H146: =INDEX(B122:B137,G146) -> 0 | J146: =F145 -> 2 | K146: Decoded IMON/Limiter
A151: CDC Gain
A152: 0.25
A153: 0.5
A154: 1
A155: 2
A159: CDC disabled | B159: 2
A160: CDC enabled
A162: Internal FB disabled | B162: 2
A163: Int. FB (SEL_DIV20 = 0)
A164: Int. FB (SEL_DIV20 = 1)

Sheet Stability Calculations (hidden)
B2: Divider Network & EA Poles/Zeros | E2: Modulator | J2: Power Stage Poles/Zeros | M2: Complex Pole Pair | P2: Total System
B3: Afb1 | C3: =Afb ->  | D3: V/V | E3: Acs | F3: =Acs -> 33.33333333 | G3: A/V | H3: gm | I3: =gm -> 0.0006 | J3: z_ESR | K3: =Fesr -> 319588.2391 | L3: Hz | M3: p3 | N3: =Fsw/2 -> 307500 | O3: Hz | P3: Adc | Q3: =Am*Afb*AEA ->  | R3: V/V | S3: =20*LOG(Adc) ->  | T3: dB
B4: EA zero, z1 | C4: =Fz1_u -> 1854.952717 | D4: Hz | E4: Am | F4: =Am -> 50.67566335 | G4: V/V | J4: p_dom | K4: =Fp_dominant -> 884.1941283 | L4: Hz | M4: pterm1 | N4: =Q*PS_Pole2 -> 148650.2471 | P4: Crossover | Q4: =AM8/1000 ->  | R4: kHz | U4: IL zero, z1 | V4: =1/(2*Pi*RcIL*Cc1IL) -> 
B5: EA pole, p1 | C5: =Fp1_u -> 1.325343572 | D5: Hz | E5: Q | F5: =Q -> 0.4834154378 | J5: z_RHP | K5: =IF(VIN_nom>Vout, 10000000,Frhp) -> 10000000 | L5: Hz | M5: pterm2 | N5: =PS_Pole2^2+0.01 -> 9.455625e+10 | P5: Phase Margin | Q5: =AM9 ->  | R5: ° | U5: IL pole, p1 | V5: =1/(2*Pi*(RoEA_IL+RcIL)*Cc1IL) -> 
B6: Aea | C6: =AEA -> 6000 | D6: V/V | E6: mc | F6: =mc -> 1.5412 | P6: radconv | Q6: =180/Pi -> 57.29577951 | U6: AIL | V6: =gm_IL*RoEA_IL -> 10000 | AL6: XOVER SEARCH
B7: EA pole, p2 | C7: =Fp2_u -> 97910.10405 | D7: Hz | E7: k | F7: =k -> 1.158460325 | U7: IL pole, p2 | V7: =1/(2*Pi*RcIL*(Cc2IL+Cbw_IL)) ->  | AL7: System | AN7: Error Amp | AP7: IL Error Amp
AL8: xover | AM8: =SUM(AL12:AL613) ->  | AN8: xover | AO8: =SUM(AN12:AN613) -> 398110 | AP8: xover | AQ8: =SUM(AP12:AP613) ->  | AR8: 0
AL9: phase margin | AM9: =SUM(AM13:AM613) ->  | AN9: phase margin | AO9: =SUM(AO13:AO613) -> -76.44981835 | AP9: phase margin | AQ9: =SUM(AQ13:AQ613) -> 
B10: Freq (Hz) | C10: Power Stage | I10: Error Amplifier | O10: ILimit Amplifier | U10: Sampling Double Pole | W10: System Response | AB10: ERROR AMP Response | AE10: ILimit AMP Response | AG10: EA*5 | AI10: PLANT Response
C11: p_dom | E11: z_ESR | G11: z_RHP | I11: p1 | K11: z1 | M11: p2 | O11: p1 | Q11: z1 | S11: p2 | U11: p3
C12: Gain(V/V) | D12: Phase(rad) | E12: Gain(V/V) | F12: Phase(rad) | G12: Gain(V/V) | H12: Phase(rad) | I12: Gain(V/V) | J12: Phase(rad) | K12: Gain(V/V) | L12: Phase(rad) | M12: Gain(V/V) | N12: Phase(rad) | O12: Gain(V/V) | P12: Phase(rad) | Q12: Gain(V/V) | R12: Phase(rad) | S12: Gain(V/V) | T12: Phase(rad) | U12: Gain(V/V) | V12: Phase(rad) | W12: Loop Gain (dB) | X12: :Loop Phase Margin (°) | Y12: Phase (°) | AB12: Gain(dB) | AC12: Phase(Deg) | AE12: ILimit Gain(dB) | AF12: ILimit Phase(Deg) | AG12: Gain(dB) | AI12: Gain(dB) | AJ12: Phase(Deg)
B13: 1 | C13: =SQRT(1+(B13/PS_Pole1)^2) -> 1.00000064 | D13: =ATAN(B13/PS_Pole1) -> 0.001130972873 | E13: =SQRT(1+(B13/PS_Zero1)^2) -> 1 | F13: =ATAN(B13/PS_Zero1) -> 3.129026283e-06 | G13: =IF(VIN_nom>Vout, 1, SQRT(1+(B13/PS_RHPZ)^2)) -> 1 | H13: =IF(VIN_nom>Vout, 0, -ATAN(B13/PS_RHPZ)) -> 0 | I13: =SQRT(1+(B13/EA_Pole1)^2) -> 1.252718022 | J13: =ATAN(B13/EA_Pole1) -> 0.6463884883 | K13: =SQRT(1+(B13/EA_Zero1)^2) -> 1.000000145 | L13: =ATAN(B13/EA_Zero1) -> 0.0005390972471 | M13: =SQRT(1+(B13/EA_Pole2)^2) -> 1 | N13: =ATAN(B13/EA_Pole2) -> 1.021345049e-05 | O13: =SQRT(1+(B13/$V$5)^2) ->  | P13: =ATAN(B13/$V$5) ->  | Q13: =SQRT(1+(B13/$V$4)^2) ->  | R13: =ATAN(B13/$V$4) ->  | S13: =SQRT(1+(B13/$V$7)^2) ->  | T13: =ATAN(B13/$V$7) ->  | U13: =SQRT((1-(B13^2/pterm2))^2+(B13/pterm1)^2) -> 1 | V13: =IF((ATAN((B13/pterm1)/(1-B13^2/pterm2))>0),ATAN((B13/pterm1)/(1-B13^2/pterm2)),PI()+ATAN((B13/pterm1)/(1-B13^2/pterm2))) -> 6.727200387e-06 | W13: =20*LOG10(((E13*K13*G13)/(C13*I13*U13*M13))*Adc) ->  | X13: =IF(((F13+L13+H13)-(D13+J13+V13+N13))*radconv<-180,((F13+L13+H13)-(D13+J13+V13+N13))*radconv+180,((F13+L13+H13)-(D13+J13+V13+N13))*radconv) -> -37.07003563 | Y13: =IF(X13>0,X13-180,X13+180) -> 142.9299644 | AB13: =20*LOG10((K13/(I13*M13))*AEA) -> 73.60595976 | AC13: =(L13-(J13+N13))*radconv -> -37.0050295 | AE13: =20*LOG10((Q13/(O13*S13))*AIL) ->  | AF13: =(R13-(P13+T13))*radconv ->  | AI13: =20*LOG10((E13*G13/(C13*U13))*Acs*Am) -> 64.5535582 | AJ13: =(F13+H13-(D13+V13))*radconv -> -0.06500613256 | AL13: =SUM((W14<0)*(W13>0))*B13 ->  | AM13: =IF(AL13>0,Y11,0) ->  | AN13: =SUM((AB14<0)*(AB13>0))*B13 -> 0 | AO13: =IF(AN13>0,AC13,0) -> 0 | AP13: =SUM((AE14<0)*(AE13>0))*B13 ->  | AQ13: =IF(AP13>0,AE13,0) -> 
B14: 1.0965 | C14: 1.000000769 | D14: 0.001240111648 | E14: 1 | F14: 3.430977319e-06 | G14: 1 | H14: 0 | I14: 1.297874918 | J14: 0.6911864179 | K14: 1.000000175 | L14: 0.0005911201199 | M14: 1 | N14: 1.119904846e-05 | U14: 1 | V14: 7.376375224e-06 | X14: =IF(((F14+L14+H14)-(D14+J14+V14+N14))*radconv<-180,((F14+L14+H14)-(D14+J14+V14+N14))*radconv+180,((F14+L14+H14)-(D14+J14+V14+N14))*radconv) -> -39.64011679 | Y14: =IF(X14>0,X14-180,X14+180) -> 140.3598832 | AB14: 73.29836973 | AC14: -39.56883757 | AI14: 64.55355707 | AJ14: -0.07127921822 | AN14: 0 | AO14: =IF(AN14>0,AC14,0) -> 0 | AP14: =SUM((AE15<0)*(AE14>0))*B14 ->  | AQ14: =IF(AP14>0,AE14,0) -> 
B15: 1.2023 | C15: 1.000000924 | D15: 0.001359768427 | E15: 1 | F15: 3.7620283e-06 | G15: 1 | H15: 0 | I15: 1.350163353 | J15: 0.7367573975 | K15: 1.00000021 | L15: 0.0006481565923 | M15: 1 | N15: 1.227963152e-05 | U15: 1 | V15: 8.088113025e-06 | X15: =IF(((F15+L15+H15)-(D15+J15+V15+N15))*radconv<-180,((F15+L15+H15)-(D15+J15+V15+N15))*radconv+360,((F15+L15+H15)-(D15+J15+V15+N15))*radconv) -> -42.25481319 | Y15: 137.7451868 | AB15: 72.95530051 | AC15: -42.17665634 | AI15: 64.55355572 | AJ15: -0.07815685838 | AN15: 0 | AO15: 0
B16: 1.3183 | C16: 1.000001111 | D16: 0.001490961069 | E16: 1 | F16: 4.124995349e-06 | G16: 1 | H16: 0 | I16: 1.410460632 | J16: 0.7827338273 | K16: 1.000000253 | L16: 0.0007106918501 | M16: 1 | N16: 1.346439178e-05 | U16: 1 | V16: 8.86846827e-06 | X16: -44.89309415 | Y16: 135.1069058 | AB16: 72.57580782 | AC16: -44.80739659 | AI16: 64.5535541 | AJ16: -0.08569755768 | AN16: 0 | AO16: 0
B17: 1.4454 | C17: 1.000001336 | D17: 0.001634707432 | E17: 1 | F17: 4.522694589e-06 | G17: 1 | H17: 0 | I17: 1.479653993 | J17: 0.8287011161 | K17: 1.000000304 | L17: 0.0007792110788 | M17: 1 | N17: 1.476252133e-05 | U17: 1 | V17: 9.723495439e-06 | X17: -47.53123657 | Y17: 132.4687634 | AB17: 72.15982423 | AC17: -47.43727675 | AI17: 64.55355215 | AJ17: -0.09395982051 | AN17: 0 | AO17: 0
B18: 1.5849 | C18: 1.000001606 | D18: 0.001792477751 | E18: 1 | F18: 4.959193756e-06 | G18: 1 | H18: 0 | I18: 1.558857071 | J18: 0.8743499939 | K18: 1.000000365 | L18: 0.0008544151018 | M18: 1 | N18: 1.618729768e-05 | U18: 1 | V18: 1.066193989e-05 | X18: -50.15156571 | Y18: 129.8484343 | AB18: 71.70690223 | AC18: -50.04853755 | AI18: 64.5535498 | AJ18: -0.1030281533 | AN18: 0 | AO18: 0
B19: 1.7378 | C19: 1.000001931 | D19: 0.001965402966 | E19: 1 | F19: 5.437621875e-06 | G19: 1 | H19: 0 | I19: 1.64901918 | J19: 0.9192444695 | K19: 1.000000439 | L19: 0.0009368430127 | M19: 1 | N19: 1.774893426e-05 | U19: 1 | V19: 1.169052883e-05 | X19: -52.72913579 | Y19: 127.2708642 | AB19: 71.21851468 | AC19: -52.61616823 | AI19: 64.55354698 | AJ19: -0.1129675602 | AN19: 0 | AO19: 0
B20: 1.9055 | C20: 1.000002322 | D20: 0.002155066392 | E20: 1 | F20: 5.962359582e-06 | G20: 1 | H20: 0 | I20: 1.751313069 | J20: 0.9630727205 | K20: 1.000000528 | L20: 0.001027249543 | M20: 1 | N20: 1.94617299e-05 | U20: 1 | V20: 1.281868034e-05 | X20: -55.24612931 | Y20: 124.7538707 | AB20: 70.69575382 | AC20: -55.12226026 | AI20: 64.55354358 | AJ20: -0.1238690471 | AN20: 0 | AO20: 0
B21: 2.0893 | C21: 1.000002792 | D21: 0.002362938233 | E21: 1 | F21: 6.537474613e-06 | G21: 1 | H21: 0 | I21: 1.86684346 | J21: 1.005502977 | K21: 1.000000634 | L21: 0.001126335511 | M21: 1 | N21: 2.13389621e-05 | U21: 1 | V21: 1.405513977e-05 | X21: -57.68358237 | Y21: 122.3164176 | AB21: 70.14087246 | AC21: -57.54776525 | AI21: 64.5535395 | AJ21: -0.1358171185 | AN21: 0 | AO21: 0
B22: 2.2909 | C22: 1.000003356 | D22: 0.002590941062 | E22: 1 | F22: 7.168286312e-06 | G22: 1 | H22: 0 | I22: 1.996954198 | J22: 1.046316739 | K22: 1.000000763 | L22: 0.001235017375 | M22: 1 | N22: 2.339799372e-05 | U22: 1 | V22: 1.541134337e-05 | X22: -60.02903478 | Y22: 119.9709652 | AB22: 69.55566955 | AC22: -59.8801125 | AI22: 64.5535346 | AJ22: -0.1489222802 | AN22: 0 | AO22: 0
B23: 2.5119 | C23: 1.000004035 | D23: 0.002840884329 | E23: 1 | F23: 7.85980112e-06 | G23: 1 | H23: 0 | I23: 2.142917261 | J23: 1.085293007 | K23: 1.000000917 | L23: 0.001354157679 | M23: 1 | N23: 2.565516628e-05 | U23: 1 | V23: 1.689805465e-05 | X23: -62.26987979 | Y23: 117.7301202 | AB23: 68.94292491 | AC23: -62.10659126 | AI23: 64.5535287 | AJ23: -0.1632885359 | AN23: 0 | AO23: 0
B24: 2.7542 | C24: 1.000004851 | D24: 0.003114916741 | E24: 1 | F24: 8.617964188e-06 | G24: 1 | H24: 0 | I24: 2.306189641 | J24: 1.122294873 | K24: 1.000001102 | L24: 0.001484780691 | M24: 1 | N24: 2.812988533e-05 | U24: 1 | V24: 1.85280553e-05 | X24: -64.39833904 | Y24: 115.601661 | AB24: 68.30513424 | AC24: -64.21929965 | AI24: 64.55352161 | AJ24: -0.1790393892 | AN24: 0 | AO24: 0
B25: 3.02 | C25: 1.000005833 | D25: 0.003415526251 | E25: 1 | F25: 9.449659374e-06 | G25: 1 | H25: 0 | I25: 2.488426412 | J25: 1.157248731 | K25: 1.000001325 | L25: 0.001628072406 | M25: 1 | N25: 3.084462046e-05 | U25: 1 | V25: 2.031614517e-05 | X25: -66.41027158 | Y25: 113.5897284 | AB25: 67.64454047 | AC25: -66.21395373 | AI25: 64.55351309 | AJ25: -0.1963178428 | AN25: 0 | AO25: 0
B26: 3.3113 | C26: 1.000007012 | D26: 0.003744974564 | E26: 1 | F26: 1.036114473e-05 | G26: 1 | H26: 0 | I26: 2.691140071 | J26: 1.190075558 | K26: 1.000001593 | L26: 0.001785110991 | M26: 1.000000001 | N26: 3.381979859e-05 | U26: 1 | V26: 2.227577864e-05 | X26: -68.30121908 | Y26: 111.6987809 | AB26: 66.96431278 | AC26: -68.08596519 | AI26: 64.55350284 | AJ26: -0.2152538951 | AN26: 0 | AO26: 0
B27: 3.6308 | C27: 1.000008431 | D27: 0.004106314978 | E27: 1 | F27: 1.136086863e-05 | G27: 1 | H27: 0 | I27: 2.916324441 | J27: 1.220796785 | K27: 1.000001916 | L27: 0.001957351975 | M27: 1.000000001 | N27: 3.708299602e-05 | U27: 1 | V27: 2.442511916e-05 | X27: -70.07250319 | Y27: 109.9274968 | AB27: 66.26632489 | AC27: -69.83648014 | AI27: 64.55349052 | AJ27: -0.236023044 | AN27: 0 | AO27: 0
B28: 3.9811 | C28: 1.000010136 | D28: 0.004502487599 | E28: 1 | F28: 1.245696653e-05 | G28: 1 | H28: 0 | I28: 3.165906494 | J28: 1.249427822 | K28: 1.000002303 | L28: 0.002146196963 | M28: 1.000000001 | N28: 4.066076772e-05 | U28: 1 | V28: 2.678165746e-05 | X28: -71.72509697 | Y28: 108.274903 | AB28: 65.55308333 | AC28: -71.46630269 | AI28: 64.55347571 | AJ28: -0.2587942811 | AN28: 0 | AO28: 0
B29: 4.3652 | C29: 1.000012187 | D29: 0.004936884782 | E29: 1 | F29: 1.365882553e-05 | G29: 1 | H29: 0 | I29: 3.442098427 | J29: 1.27602562 | K29: 1.000002769 | L29: 0.002353263187 | M29: 1.000000001 | N29: 4.458375404e-05 | U29: 1 | V29: 2.936557513e-05 | X29: -73.26236755 | Y29: 106.7376324 | AB29: 64.82658335 | AC29: -72.97860496 | AI29: 64.5534579 | AJ29: -0.2837625924 | AN29: 0 | AO29: 0
B30: 4.7863 | C30: 1.000014651 | D30: 0.005413124898 | E30: 1 | F30: 1.49764585e-05 | G30: 1 | H30: 0 | I30: 3.747260399 | J30: 1.300661242 | K30: 1.000003329 | L30: 0.002580275678 | M30: 1.000000001 | N30: 4.888463803e-05 | U30: 1 | V30: 3.219839921e-05 | X30: -74.68849767 | Y30: 105.3115023 | AB30: 64.08877644 | AC30: -74.37736171 | AI30: 64.55343649 | AJ30: -0.3111359552 | AN30: 0 | AO30: 0
B31: 5.2481 | C31: 1.000017615 | D31: 0.005935391566 | E31: 1 | F31: 1.642144283e-05 | G31: 1 | H31: 0 | I31: 4.084120845 | J31: 1.323430586 | K31: 1.000004002 | L31: 0.002829228988 | M31: 1.000000001 | N31: 5.360120946e-05 | U31: 1 | V31: 3.530502035e-05 | X31: -76.00911014 | Y31: 103.9908899 | AB31: 63.34108808 | AC31: -75.6679553 | AI31: 64.55341075 | AJ31: -0.3411548358 | AN31: 0 | AO31: 0
B32: 5.7544 | C32: 1.000021177 | D32: 0.006507981195 | E32: 1 | F32: 1.800566884e-05 | G32: 1 | H32: 0 | I32: 4.455488724 | J32: 1.344425661 | K32: 1.000004812 | L32: 0.003102171548 | M32: 1.000000002 | N32: 5.877227942e-05 | U32: 1 | V32: 3.87110019e-05 | X32: -77.22960848 | Y32: 102.7703915 | AB32: 62.58515981 | AC32: -76.8555423 | AI32: 64.55337981 | AJ32: -0.3740661838 | AN32: 0 | AO32: 0
B33: 6.3096 | C33: 1.000025461 | D33: 0.007135868359 | E33: 1 | F33: 1.974290423e-05 | G33: 1 | H33: 0 | I33: 4.864620158 | J33: 1.363754409 | K33: 1.000005785 | L33: 0.003401475202 | M33: 1.000000002 | N33: 6.444278711e-05 | U33: 1 | V33: 4.244594355e-05 | X33: -78.35633001 | Y33: 101.64367 | AB33: 61.82209654 | AC33: -77.94617408 | AI33: 64.5533426 | AJ33: -0.4101559285 | AN33: 0 | AO33: 0
B34: 6.9183 | C34: 1.00003061 | D34: 0.007824253296 | E34: 1 | F34: 2.164754253e-05 | G34: 1 | H34: 0 | I34: 5.314927247 | J34: 1.381518845 | K34: 1.000006955 | L34: 0.003729619553 | M34: 1.000000002 | N34: 7.065971439e-05 | U34: 1.000000001 | V34: 4.654079043e-05 | X34: -79.39527914 | Y34: 100.6047209 | AB34: 61.05313892 | AC34: -78.94555617 | AI34: 64.55329788 | AJ34: -0.4497229697 | AN34: 0 | AO34: 0
B35: 7.5858 | C35: 1.000036802 | D35: 0.008579127194 | E35: 1 | F35: 2.373616757e-05 | G35: 1 | H35: 0 | I35: 5.810348157 | J35: 1.397828417 | K35: 1.000008362 | L35: 0.004089461496 | M35: 1.000000003 | N35: 7.747719256e-05 | U35: 1.000000001 | V35: 5.103119668e-05 | X35: -80.35291068 | Y35: 99.64708932 | AB35: 60.27905449 | AC35: -79.85979901 | AI35: 64.5532441 | AJ35: -0.4931116701 | AN35: 0 | AO35: 0
B36: 8.3176 | C36: 1.000044245 | D36: 0.009406706516 | E36: 1 | F36: 2.602598901e-05 | G36: 1 | H36: 0 | I36: 6.354978292 | J36: 1.412782641 | K36: 1.000010053 | L36: 0.004483965645 | M36: 1.000000004 | N36: 8.495139558e-05 | U36: 1.000000001 | V36: 5.595416192e-05 | X36: -81.2351171 | Y36: 98.7648829 | AB36: 59.50083087 | AC36: -80.69443776 | AI36: 64.55317945 | AJ36: -0.5406793405 | AN36: 0 | AO36: 0
B37: 9.1201 | C37: 1.000053194 | D37: 0.01031422433 | E37: 1 | F37: 2.85370326e-05 | G37: 1 | H37: 0 | I37: 6.953590985 | J37: 1.426485366 | K37: 1.000012087 | L37: 0.004916581664 | M37: 1.000000004 | N37: 9.314768953e-05 | U37: 1.000000001 | V37: 6.135274022e-05 | X37: -82.04807034 | Y37: 97.95192966 | AB37: 58.71894712 | AC37: -81.45522862 | AI37: 64.55310172 | AJ37: -0.5928417245 | AN37: 0 | AO37: 0
B38: 10 | C38: 1.000063953 | D38: 0.01130925138 | E38: 1 | F38: 3.129026282e-05 | G38: 1 | H38: 0 | I38: 7.611192047 | J38: 1.439029897 | K38: 1.000014531 | L38: 0.005390920769 | M38: 1.000000005 | N38: 0.0001021345045 | U38: 1.000000001 | V38: 6.727200384e-05 | X38: -82.79734852 | Y38: 97.20265148 | AB38: 57.93409757 | AC38: -82.14731455 | AI38: 64.55300828 | AJ38: -0.6500339754 | AN38: 0 | AO38: 0
B39: 10.965 | C39: 1.000076891 | D39: 0.01240048719 | E39: 1.000000001 | F39: 3.430977318e-05 | G39: 1 | H39: 0 | I39: 8.333542476 | J39: 1.450509478 | K39: 1.000017471 | L39: 0.005911133039 | M39: 1.000000006 | N39: 0.0001119904841 | U39: 1.000000001 | V39: 7.37637522e-05 | X39: -83.48856096 | Y39: 96.51143904 | AB39: 57.14658364 | AC39: -82.77580483 | AI39: 64.5528959 | AJ39: -0.7127561261 | AN39: 0 | AO39: 0
B40: 12.023 | C40: 1.000092444 | D40: 0.01359685469 | E40: 1.000000001 | F40: 3.762028298e-05 | G40: 1 | H40: 0 | I40: 9.126560579 | J40: 1.461005588 | K40: 1.000021005 | L40: 0.006481476067 | M40: 1.000000008 | N40: 0.0001227963146 | U40: 1.000000002 | V40: 8.08811302e-05 | X40: -84.12664957 | Y40: 95.87335043 | AB40: 56.35706457 | AC40: -83.34512852 | AI40: 64.55276082 | AJ40: -0.7815210521 | AN40: 0 | AO40: 0
B41: 13.183 | C41: 1.000111142 | D41: 0.0149085171 | E41: 1.000000001 | F41: 4.124995347e-05 | G41: 1 | H41: 0 | I41: 9.996995518 | J41: 1.4705987 | K41: 1.000025254 | L41: 0.007106800048 | M41: 1.000000009 | N41: 0.000134643917 | U41: 1.000000002 | V41: 8.868468263e-05 | X41: -84.71653668 | Y41: 95.28346332 | AB41: 55.56585433 | AC41: -83.85962377 | AI41: 64.55259843 | AJ41: -0.8569129186 | AN41: 0 | AO41: 0
B42: 14.454 | C42: 1.000133605 | D42: 0.01634563298 | E42: 1.000000001 | F42: 4.522694586e-05 | G42: 1 | H42: 0 | I42: 10.95160235 | J42: 1.479358123 | K42: 1.000030358 | L42: 0.007791954666 | M42: 1.000000011 | N42: 0.0001476252123 | U42: 1.000000003 | V42: 9.72349543e-05 | X42: -85.26250462 | Y42: 94.73749538 | AB42: 54.77373527 | AC42: -84.322989 | AI42: 64.55240334 | AJ42: -0.9395156227 | AN42: 0 | AO42: 0
B43: 15.849 | C43: 1.000160636 | D43: 0.01792287734 | E43: 1.000000001 | F43: 4.959193752e-05 | G43: 1 | H43: 0 | I43: 12.00014737 | J43: 1.487367267 | K43: 1.000036501 | L43: 0.008543945192 | M43: 1.000000013 | N43: 0.0001618729754 | U43: 1.000000003 | V43: 0.0001066193988 | X43: -85.76978229 | Y43: 94.23021771 | AB43: 53.97961034 | AC43: -84.73960963 | AI43: 64.55216858 | AJ43: -1.030172661 | AN43: 0 | AO43: 0
B44: 17.378 | C44: 1.000193122 | D44: 0.01965152489 | E44: 1.000000001 | F44: 5.437621869e-05 | G44: 1 | H44: 0 | I44: 13.15014926 | J44: 1.494678079 | K44: 1.000043883 | L44: 0.009368158801 | M44: 1.000000016 | N44: 0.0001774893407 | U44: 1.000000004 | V44: 0.0001169052882 | X44: -86.24169118 | Y44: 93.75830882 | AB44: 53.18479238 | AC44: -85.11215909 | AI44: 64.55188646 | AJ44: -1.129532089 | AN44: 0 | AO44: 0
B45: 19.055 | C45: 1.000232189 | D45: 0.02154736193 | E45: 1.000000002 | F45: 5.962359575e-05 | G45: 1 | H45: 0 | I45: 14.41213886 | J45: 1.501354577 | K45: 1.000052761 | L45: 0.01027213773 | M45: 1.000000019 | N45: 0.0001946172966 | U45: 1.000000004 | V45: 0.0001281868032 | X45: -86.68238269 | Y45: 93.31761731 | AB45: 52.38891435 | AC45: -85.44388141 | AI45: 64.55154719 | AJ45: -1.238501281 | AM45: =IF(AL45>0,Y43,0) ->  | AN45: 0 | AO45: 0
B46: 20.893 | C46: 1.000279136 | D46: 0.02362502996 | E46: 1.000000002 | F46: 6.537474604e-05 | G46: 1 | H46: 0 | I46: 15.7958998 | J46: 1.507446395 | K46: 1.00006343 | L46: 0.01126288361 | M46: 1.000000023 | N46: 0.0002133896178 | U46: 1.000000005 | V46: 0.0001405513974 | X46: -87.09514869 | Y46: 92.90485131 | AB46: 51.59268833 | AC46: -85.73722688 | AI46: 64.55113952 | AJ46: -1.357921812 | AN46: 0 | AO46: 0
B47: 22.909 | C47: 1.000335594 | D47: 0.02590367325 | E47: 1.000000003 | F47: 7.168286299e-05 | G47: 1 | H47: 0 | I47: 17.31423135 | J47: 1.513008212 | K47: 1.000076261 | L47: 0.01234955218 | M47: 1.000000027 | N47: 0.000233979933 | U47: 1.000000006 | V47: 0.0001541134333 | X47: -87.48370782 | Y47: 92.51629218 | AB47: 50.79562281 | AC47: -85.99481374 | AI47: 64.55064928 | AJ47: -1.488894075 | AN47: 0 | AO47: 0
B48: 25.119 | C48: 1.000403452 | D48: 0.02840128078 | E48: 1.000000003 | F48: 7.859801104e-05 | G48: 1 | H48: 0 | I48: 18.97918435 | J48: 1.518082614 | K48: 1.000091683 | L48: 0.01354075743 | M48: 1.000000033 | N48: 0.0002565516572 | U48: 1.000000008 | V48: 0.000168980546 | X48: -87.85104987 | Y48: 92.14895013 | AB48: 49.99827015 | AC48: -86.21859781 | AI48: 64.55006008 | AJ48: -1.632452059 | AN48: 0 | AO48: 0
B49: 27.542 | C49: 1.000485021 | D49: 0.03113919954 | E49: 1.000000004 | F49: 8.617964167e-05 | G49: 1 | H49: 0 | I49: 20.80507308 | J49: 1.5227126 | K49: 1.000110223 | L49: 0.01484672686 | M49: 1.00000004 | N49: 0.0002812988459 | U49: 1.000000009 | V49: 0.0001852805524 | X49: -88.20029063 | Y49: 91.79970937 | AB49: 49.20059708 | AC49: -86.41046785 | AI49: 64.54935189 | AJ49: -1.789822775 | AN49: 0 | AO49: 0
B50: 30.2 | C50: 1.000583125 | D50: 0.03414212283 | E50: 1.000000004 | F50: 9.449659346e-05 | G50: 1 | H50: 0 | I50: 22.80847651 | J50: 1.526938919 | K50: 1.000132522 | L50: 0.0162793002 | M50: 1.000000048 | N50: 0.000308446195 | U50: 1.000000011 | V50: 0.0002031614508 | X50: -88.53451869 | Y50: 91.46548131 | AB50: 48.40225004 | AC50: -86.57209312 | AI50: 64.54850021 | AJ50: -1.962425579 | AN50: 0 | AO50: 0
B51: 33.113 | C51: 1.000701003 | D51: 0.03743242764 | E51: 1.000000005 | F51: 0.0001036114469 | G51: 1 | H51: 0 | I51: 25.00446937 | J51: 1.530792808 | K51: 1.000159319 | L51: 0.01784923307 | M51: 1.000000057 | N51: 0.0003381979731 | U51: 1.000000013 | V51: 0.0002227577853 | X51: -88.8562055 | Y51: 91.1437945 | AB51: 47.60405537 | AC51: -86.70465879 | AI51: 64.54747699 | AJ51: -2.151546703 | AN51: 0 | AO51: 0
B52: 36.308 | C52: 1.000842746 | D52: 0.04104032353 | E52: 1.000000006 | F52: 0.0001136086858 | G52: 1 | H52: 0 | I52: 27.41340592 | J52: 1.534309729 | K52: 1.000191543 | L52: 0.01957104562 | M52: 1.000000069 | N52: 0.0003708299433 | U52: 1.000000016 | V52: 0.0002442511902 | X52: -89.16830321 | Y52: 90.83169679 | AB52: 46.80542804 | AC52: -86.80938062 | AI52: 64.54624676 | AJ52: -2.358922592 | AN52: 0 | AO52: 0
B53: 39.811 | C53: 1.00101312 | D53: 0.04499479118 | E53: 1.000000008 | F53: 0.0001245696647 | G53: 1 | H53: 0 | I53: 30.05488967 | J53: 1.537517728 | K53: 1.000230282 | L53: 0.02145870824 | M53: 1.000000083 | N53: 0.000406607655 | U53: 1.000000019 | V53: 0.0002678165727 | X53: -89.47329933 | Y53: 90.52670067 | AB53: 46.00672151 | AC53: -86.88708025 | AI53: 64.54476826 | AJ53: -2.586219078 | AN53: 0 | AO53: 0
B54: 43.652 | C54: 1.00121792 | D54: 0.04932919786 | E54: 1.000000009 | F54: 0.0001365882545 | G54: 1 | H54: 0 | I54: 32.95154257 | J54: 1.540444074 | K54: 1.000276855 | L54: 0.02352833273 | M54: 1.000000099 | N54: 0.0004458375112 | U54: 1.000000023 | V54: 0.0002936557488 | X54: -89.77376859 | Y54: 90.22623141 | AB54: 45.20791354 | AC54: -86.93841444 | AI54: 64.54299135 | AJ54: -2.835354149 | AN54: 0 | AO54: 0
B55: 47.863 | C55: 1.001464053 | D55: 0.05407899727 | E55: 1.000000011 | F55: 0.0001497645839 | G55: 1 | H55: 0 | I55: 36.12749714 | J55: 1.543113043 | K55: 1.000332837 | L55: 0.02579708995 | M55: 1.000000119 | N55: 0.0004888463418 | U55: 1.000000028 | V55: 0.0003219839888 | X55: -90.07217491 | Y55: 89.92782509 | AB55: 44.40915697 | AC55: -86.96380916 | AI55: 64.54085631 | AJ55: -3.108365749 | AN55: 0 | AO55: 0
B56: 52.481 | C56: 1.001759936 | D56: 0.05928505812 | E56: 1.000000013 | F56: 0.0001642144269 | G56: 1 | H56: 0 | I56: 39.61065901 | J56: 1.545547914 | K56: 1.000400149 | L56: 0.02828482004 | M56: 1.000000144 | N56: 0.0005360120437 | U56: 1.000000033 | V56: 0.0003530501991 | X56: -90.37108606 | Y56: 89.62891394 | AB56: 43.61025735 | AC56: -86.96348294 | AI56: 64.5382904 | AJ56: -3.407603111 | AN56: 0 | AO56: 0
B57: 57.544 | C57: 1.002115513 | D57: 0.06498908038 | E57: 1.000000016 | F57: 0.0001800566865 | G57: 1 | H57: 0 | I57: 43.42969004 | J57: 1.547768569 | K57: 1.000481061 | L57: 0.03101186942 | M57: 1.000000173 | N57: 0.0005877227272 | U57: 1.00000004 | V57: 0.0003871100133 | X57: -90.67289477 | Y57: 89.32710523 | AB57: 42.81146635 | AC57: -86.93743146 | AI57: 64.53520784 | AJ57: -3.735463302 | AN57: 0 | AO57: 0
B58: 63.096 | C58: 1.002542884 | D58: 0.07123913646 | E58: 1.000000019 | F58: 0.0001974290398 | G58: 1 | H58: 0 | I58: 47.61777954 | J58: 1.549794224 | K58: 1.000578339 | L58: 0.03400177375 | M58: 1.000000208 | N58: 0.0006444277828 | U58: 1.000000048 | V58: 0.000424459428 | X58: -90.98014273 | Y58: 89.01985727 | AB58: 42.01266234 | AC58: -86.88543299 | AI58: 64.53150433 | AJ58: -4.094709738 | AN58: 0 | AO58: 0
B59: 69.183 | C59: 1.003056401 | D59: 0.07808503968 | E59: 1.000000023 | F59: 0.000216475422 | G59: 1 | H59: 0 | I59: 52.20962712 | J59: 1.5516416 | K59: 1.000695268 | L59: 0.03727908956 | M59: 1.00000025 | N59: 0.0007065970275 | U59: 1.000000058 | V59: 0.0004654078943 | X59: -91.29527151 | Y59: 88.70472849 | AB59: 41.21404793 | AC59: -86.80706552 | AI59: 64.52705638 | AJ59: -4.488205997 | AN59: 0 | AO59: 0
B60: 75.858 | C60: 1.003673504 | D60: 0.08558380738 | E60: 1.000000028 | F60: 0.0002373616713 | G60: 1 | H60: 0 | I60: 57.24521439 | J60: 1.553326729 | K60: 1.000835845 | L60: 0.04087206843 | M60: 1.0000003 | N60: 0.0007747717721 | U60: 1.000000069 | V60: 0.0005103119537 | X60: -91.62088977 | Y60: 88.37911023 | AB60: 40.4154957 | AC60: -86.70165991 | AI60: 64.5217142 | AJ60: -4.919229857 | AN60: 0 | AO60: 0
B61: 83.176 | C61: 1.004414822 | D61: 0.09379382492 | E61: 1.000000034 | F61: 0.0002602598842 | G61: 1 | H61: 0 | I61: 62.76603309 | J61: 1.554863469 | K61: 1.001004806 | L61: 0.04480994111 | M61: 1.000000361 | N61: 0.0008495137534 | U61: 1.000000083 | V61: 0.0005595416019 | X61: -91.9595054 | Y61: 88.0404946 | AB61: 39.6172515 | AC61: -86.56836751 | AI61: 64.51530106 | AJ61: -5.391137892 | AN61: 0 | AO61: 0
B62: 91.201 | C62: 1.005305464 | D62: 0.102782426 | E62: 1.000000041 | F62: 0.0002853703183 | G62: 1 | H62: 0 | I62: 68.82036587 | J62: 1.556265233 | K62: 1.001207929 | L62: 0.04912665339 | M62: 1.000000434 | N62: 0.0009314766286 | U62: 1.0000001 | V62: 0.0006135273795 | X62: -92.31385066 | Y62: 87.68614934 | AB62: 38.8191673 | AC62: -86.40604943 | AI62: 64.50760237 | AJ62: -5.907801233 | AN62: 0 | AO62: 0
B63: 100 | C63: 1.006375182 | D63: 0.1126187932 | E63: 1.000000049 | F63: 0.0003129026181 | G63: 1 | H63: 0 | I63: 75.45875984 | J63: 1.557543667 | K63: 1.001452075 | L63: 0.0538575956 | M63: 1.000000522 | N63: 0.001021344694 | U63: 1.000000121 | V63: 0.0006727200083 | X63: -92.68658191 | Y63: 87.31341809 | AB63: 38.02143063 | AC63: -86.21338434 | AI63: 64.49836477 | AJ63: -6.473197562 | AN63: 0 | AO63: 0
B64: 109.65 | C64: 1.007660054 | D64: 0.1233813166 | E64: 1.000000059 | F64: 0.0003430977185 | G64: 1 | H64: 0 | I64: 82.73930759 | J64: 1.558709879 | K64: 1.001745592 | L64: 0.05904331252 | M64: 1.000000627 | N64: 0.001119904378 | U64: 1.000000145 | V64: 0.0007376374824 | X64: -93.08056489 | Y64: 86.91943511 | AB64: 37.22393072 | AC64: -85.98873071 | AI64: 64.48728215 | AJ64: -7.091834178 | AN64: 0 | AO64: 0
B65: 120.23 | C65: 1.009202519 | D65: 0.1351480441 | E65: 1.000000071 | F65: 0.0003762028123 | G65: 1 | H65: 0 | I65: 90.72161154 | J65: 1.559773372 | K65: 1.002098334 | L65: 0.06472513133 | M65: 1.000000754 | N65: 0.001227962535 | U65: 1.000000174 | V65: 0.0008088112498 | X65: -93.49851059 | Y65: 86.50148941 | AB65: 36.42701014 | AC65: -85.73031141 | AI65: 64.47399634 | AJ65: -7.768199174 | AN65: 0 | AO65: 0
B66: 131.83 | C66: 1.011053748 | D66: 0.1480059357 | E66: 1.000000085 | F66: 0.0004124995115 | G66: 1 | H66: 0 | I66: 99.47357407 | J66: 1.560743236 | K66: 1.002522235 | L66: 0.07094990545 | M66: 1.000000906 | N66: 0.001346438364 | U66: 1.000000209 | V66: 0.0008868467575 | X66: -93.94330899 | Y66: 86.05669101 | AB66: 35.63074296 | AC66: -85.43601544 | AI66: 64.4580778 | AJ66: -8.507293554 | AN66: 0 | AO66: 0
B67: 144.54 | C67: 1.013273276 | D67: 0.1620376697 | E67: 1.000000102 | F67: 0.0004522694281 | G67: 1 | H67: 0 | I67: 109.0630982 | J67: 1.561627194 | K67: 1.003031256 | L67: 0.07776399109 | M67: 1.00000109 | N67: 0.001476251061 | U67: 1.000000252 | V67: 0.0009723494523 | X67: -94.41755485 | Y67: 85.58244515 | AB67: 34.83574826 | AC67: -85.10368187 | AI67: 64.43903068 | AJ67: -9.313872986 | AN67: 0 | AO67: 0
B68: 158.49 | C68: 1.015937908 | D68: 0.1773644111 | E68: 1.000000123 | F68: 0.0004959193349 | G68: 1 | H68: 0 | I68: 119.5882673 | J68: 1.562434205 | K68: 1.00364349 | L68: 0.08523452196 | M68: 1.00000131 | N68: 0.001618728354 | U68: 1.000000303 | V68: 0.001066193869 | X68: -94.92496016 | Y68: 85.07503984 | AB68: 34.0408316 | AC68: -84.73005364 | AI68: 64.41621888 | AJ68: -10.19490652 | AN68: 0 | AO68: 0
B69: 173.78 | C69: 1.019131094 | D69: 0.1940669632 | E69: 1.000000148 | F69: 0.0005437621339 | G69: 1 | H69: 0 | I69: 131.1245307 | J69: 1.563169915 | K69: 1.00437879 | L69: 0.0934116816 | M69: 1.000001575 | N69: 0.001774891562 | U69: 1.000000364 | V69: 0.001169052724 | X69: -95.46768191 | Y69: 84.53231809 | AB69: 33.24728305 | AC69: -84.31263746 | AI69: 64.38896083 | AJ69: -11.15504444 | AN69: 0 | AO69: 0
B70: 190.55 | C70: 1.022958091 | D70: 0.2122606829 | E70: 1.000000178 | F70: 0.0005962358876 | G70: 1 | H70: 0 | I70: 143.7775179 | J70: 1.56384108 | K70: 1.005262366 | L70: 0.1023659285 | M70: 1.000001894 | N70: 0.001946170533 | U70: 1.000000438 | V70: 0.001281867824 | X70: -96.04879053 | Y70: 83.95120947 | AB70: 32.4547774 | AC70: -83.84786542 | AI70: 64.35640466 | AJ70: -12.20092511 | AN70: 0 | AO70: 0
B71: 208.93 | C71: 1.02753831 | D71: 0.2320381345 | E71: 1.000000214 | F71: 0.0006537473682 | G71: 1 | H71: 0 | I71: 157.6453141 | J71: 1.56445293 | K71: 1.006323173 | L71: 0.1121608895 | M71: 1.000002277 | N71: 0.002133892972 | U71: 1.000000526 | V71: 0.0014055137 | X71: -96.67034646 | Y71: 83.32965354 | AB71: 31.66413338 | AC71: -83.33246763 | AI71: 64.31760058 | AJ71: -13.33787883 | AN71: 0 | AO71: 0
B72: 229.09 | C72: 1.033019872 | D72: 0.2535198818 | E72: 1.000000257 | F72: 0.0007168285084 | G72: 1 | H72: 0 | I72: 172.856185 | J72: 1.565011139 | K72: 1.007597486 | L72: 0.1228795731 | M72: 1.000002737 | N72: 0.002339795102 | U72: 1.000000633 | V72: 0.001541133972 | X72: -97.33496106 | Y72: 82.66503894 | AB72: 30.87504426 | AC72: -82.76211258 | AI72: 64.27138697 | AJ72: -14.57284848 | AN72: 0 | AO72: 0
B73: 251.19 | C73: 1.039570427 | D73: 0.2767965745 | E73: 1.000000309 | F73: 0.0007859799502 | G73: 1 | H73: 0 | I73: 189.530852 | J73: 1.565520116 | K73: 1.009127075 | L73: 0.1345971128 | M73: 1.000003291 | N73: 0.002565511 | U73: 1.00000076 | V73: 0.001689804984 | X73: -98.04390273 | Y73: 81.95609727 | AB73: 30.08831529 | AC73: -82.13284187 | AI73: 64.2164815 | AJ73: -15.91106086 | AN73: 0 | AO73: 0
B74: 275.42 | C74: 1.047390897 | D74: 0.301966906 | E74: 1.000000371 | F74: 0.0008617962055 | G74: 1 | H74: 0 | I74: 207.8126719 | J74: 1.565984282 | K74: 1.010962793 | L74: 0.1474012821 | M74: 1.000003956 | N74: 0.002812981114 | U74: 1.000000914 | V74: 0.001852804897 | X74: -98.79820062 | Y74: 81.20179938 | AB74: 29.30425357 | AC74: -81.43999074 | AI74: 64.15138314 | AJ74: -17.35820988 | AN74: 0 | AO74: 0
B75: 302 | C75: 1.05672092 | D75: 0.329130777 | E75: 1.000000446 | F75: 0.0009449656562 | G75: 1 | H75: 0 | I75: 227.8676372 | J75: 1.5664078 | K75: 1.013166445 | L75: 0.1613913663 | M75: 1.000004757 | N75: 0.003084452266 | U75: 1.000001099 | V75: 0.002031613681 | X75: -99.59830268 | Y75: 80.40169732 | AB75: 28.52294666 | AC75: -80.6782379 | AI75: 64.07435198 | AJ75: -18.92006478 | AN75: 0 | AO75: 0
B76: 331.13 | C76: 1.067824731 | D76: 0.3583315467 | E76: 1.000000537 | F76: 0.001036114102 | G76: 1 | H76: 0 | I76: 249.8466506 | J76: 1.566793861 | K76: 1.015808191 | L76: 0.1766505741 | M76: 1.000005719 | N76: 0.003381966966 | U76: 1.000001321 | V76: 0.002227576763 | X76: -100.4422668 | Y76: 79.55773323 | AB76: 27.7457389 | AC76: -79.84311569 | AI76: 63.98355744 | AJ76: -20.59915108 | AN76: 0 | AO76: 0
B77: 363.08 | C77: =SQRT(1+(B77/PS_Pole1)^2) -> 1.081027346 | D77: =ATAN(B77/PS_Pole1) -> 0.3896397059 | E77: =SQRT(1+(B77/PS_Zero1)^2) -> 1.000000645 | F77: =ATAN(B77/PS_Zero1) -> 0.001136086374 | G77: =IF(VIN_nom>Vout, 1, SQRT(1+(B77/PS_RHPZ)^2)) -> 1 | H77: =IF(VIN_nom>Vout, 0, -ATAN(B77/PS_RHPZ)) -> 0 | I77: =SQRT(1+(B77/EA_Pole1)^2) -> 273.9534311 | J77: =ATAN(B77/EA_Pole1) -> 1.567146063 | K77: =SQRT(1+(B77/EA_Zero1)^2) -> 1.018976136 | L77: =ATAN(B77/EA_Zero1) -> 0.193291686 | M77: =SQRT(1+(B77/EA_Pole2)^2) -> 1.000006876 | N77: =ATAN(B77/EA_Pole2) -> 0.003708282605 | O77: =SQRT(1+(B77/$V$5)^2) ->  | P77: =ATAN(B77/$V$5) ->  | Q77: =SQRT(1+(B77/$V$4)^2) ->  | R77: =ATAN(B77/$V$4) ->  | S77: =SQRT(1+(B77/$V$7)^2) ->  | T77: =ATAN(B77/$V$7) ->  | U77: =SQRT((1-(B77^2/pterm2))^2+(B77/pterm1)^2) -> 1.000001589 | V77: =IF((ATAN((B77/pterm1)/(1-B77^2/pterm2))>0),ATAN((B77/pterm1)/(1-B77^2/pterm2)),PI()+ATAN((B77/pterm1)/(1-B77^2/pterm2))) -> 0.002442510464 | W77: =20*LOG10(((E77*K77*G77)/(C77*I77*U77*M77))*Adc) ->  | X77: -101.3280897 | Y77: 78.67191031 | AB77: =20*LOG10((K77/(I77*M77))*AEA) -> 26.97271066 | AC77: =(L77-(J77+N77))*radconv -> -78.92852643 | AE77: =20*LOG10((Q77/(O77*S77))*AIL) ->  | AF77: =(R77-(P77+T77))*radconv ->  | AI77: =20*LOG10((E77*G77/(C77*U77))*Acs*Am) -> 63.87682196 | AJ77: =(F77+H77-(D77+V77))*radconv -> -22.39956326 | AL77: =SUM((W78<0)*(W77>0))*B77 ->  | AM77: =IF(AL77>0,Y75,0) ->  | AN77: =SUM((AB78<0)*(AB77>0))*B77 -> 0 | AO77: 0
B78: 398.11 | C78: 1.096688965 | D78: 0.4230633055 | E78: 1.000000776 | F78: 0.001245696009 | G78: 1 | H78: 0 | I78: 300.3841529 | J78: 1.56746725 | K78: 1.022771605 | L78: 0.2114129458 | M78: 1.000008266 | N78: 0.004066054366 | U78: 1.00000191 | V78: 0.002678163832 | X78: -102.2509724 | Y78: =IF(X78>0,X78-180,X78+180) -> 77.74902758 | AB78: 26.20498611 | AC78: -77.92915619 | AI78: 63.75188443 | AJ78: -24.32181624 | AN78: 0 | AO78: =IF(AN78>0,AC78,0) -> 0 | AP78: =SUM((AE79<0)*(AE78>0))*B78 ->  | AQ78: =IF(AP78>0,AE78,0) -> 
B79: 436.52 | C79: 1.115227454 | D79: 0.4585888801 | E79: 1.000000933 | F79: 0.001365881704 | G79: 1 | H79: 0 | I79: 329.3651709 | J79: 1.567760178 | K79: 1.027316252 | L79: 0.2311215904 | M79: 1.000009939 | N79: 0.004458345868 | U79: 1.000002296 | V79: 0.00293655499 | X79: =IF(((F79+L79+H79)-(D79+J79+V79+N79))*radconv<-180,((F79+L79+H79)-(D79+J79+V79+N79))*radconv+360,((F79+L79+H79)-(D79+J79+V79+N79))*radconv) -> -103.2043945 | Y79: 76.79560546 | AB79: 25.44346841 | AC79: -76.83919423 | AI79: 63.60628287 | AJ79: -26.36520031 | AN79: 0 | AO79: 0
B80: 478.63 | C80: 1.137112543 | D80: 0.4961529685 | E80: 1.000001121 | F80: 0.00149764473 | G80: 1 | H80: 0 | I80: 361.1379307 | J80: 1.568027298 | K80: 1.032752885 | L80: 0.252520171 | M80: 1.000011948 | N80: 0.004888424868 | U80: 1.000002761 | V80: 0.003219836595 | X80: -104.1792378 | Y80: 75.82076217 | AB80: 24.68938746 | AC80: -75.65309242 | AI80: 63.43748051 | AJ80: -28.52614541 | AN80: 0 | AO80: 0
B81: 524.81 | C81: 1.162883057 | D81: 0.5356604906 | E81: 1.000001348 | F81: 0.001642142807 | G81: 1 | H81: 0 | I81: 395.9816041 | J81: 1.568270954 | K81: 1.039252517 | L81: 0.2757177432 | M81: 1.000014365 | N81: 0.005360069618 | U81: 1.000003319 | V81: 0.00353049765 | X81: -105.1642333 | Y81: 74.83576671 | AB81: 23.94382172 | AC81: -74.36495316 | AI81: 63.24282577 | AJ81: -30.79928013 | AN81: 0 | AO81: 0
B82: 575.44 | C82: 1.193126209 | D82: 0.5769425385 | E82: 1.000001621 | F82: 0.001800564938 | G82: 1 | H82: 0 | I82: 434.1829081 | J82: 1.568493148 | K82: 1.04701256 | L82: 0.3008046815 | M82: 1.000017271 | N82: 0.00587716028 | U82: 1.000003991 | V82: 0.00387109441 | X82: -106.1449404 | Y82: 73.85505958 | AB82: 23.20845836 | AC82: -72.96993534 | AI82: 63.01981545 | AJ82: -33.17500508 | AN82: 0 | AO82: 0
B83: 630.96 | C83: 1.228504562 | D83: 0.6197945878 | E83: 1.000001949 | F83: 0.001974287858 | G83: 1 | H83: 0 | I83: 476.0738313 | J83: 1.568695811 | K83: 1.056267593 | L83: 0.3278719106 | M83: 1.000020764 | N83: 0.006444189515 | U83: 1.000004798 | V83: 0.004244586736 | X83: -107.10489 | Y83: 72.89510995 | AB83: 22.48483757 | AC83: -71.46319746 | AI83: 62.76600353 | AJ83: -35.64169259 | AN83: 0 | AO83: 0
B84: 691.83 | C84: 1.269730043 | D84: 0.6639423394 | E84: 1.000002343 | F84: 0.002164750872 | G84: 1 | H84: 0 | I84: 522.0014525 | J84: 1.568880622 | K84: 1.067287173 | L84: 0.3569842134 | M84: 1.000024964 | N84: 0.007065853858 | U84: 1.000005768 | V84: 0.004654068999 | X84: -108.0251143 | Y84: 71.97488566 | AB84: 21.77499975 | AC84: -69.84139303 | AI84: 62.47930609 | AJ84: -38.18372131 | AN84: 0 | AO84: 0
B85: 758.58 | C85: 1.317592634 | D85: 0.7090820307 | E85: 1.000002817 | F85: 0.0023736123 | G85: 1 | H85: 0 | I85: 572.3656672 | J85: 1.569049191 | K85: 1.080388272 | L85: 0.3881966586 | M85: 1.000030013 | N85: 0.007747564252 | U85: 1.000006935 | V85: 0.005103106427 | X85: -108.8855653 | Y85: 71.11443475 | AB85: 21.08089004 | AC85: -68.10176907 | AI85: 62.15790482 | AJ85: -40.78379618 | AN85: 0 | AO85: 0
B86: 831.76 | C86: 1.372921511 | D86: 0.7548508329 | E86: 1.000003387 | F86: 0.002602593025 | G86: 1 | H86: 0 | I86: 627.5814616 | J86: 1.569202907 | K86: 1.095929822 | L86: 0.4215222102 | M86: 1.000036083 | N86: 0.00849493523 | U86: 1.000008338 | V86: 0.005595398738 | X86: -109.6652261 | Y86: 70.33477386 | AB86: 20.40496437 | AC86: -66.24398412 | AI86: 61.80060655 | AJ86: -43.42124203 | AN86: 0 | AO86: 0
B87: 912.01 | C87: 1.436630672 | D87: 0.8008828447 | E87: 1.000004072 | F87: 0.002853695514 | G87: 1 | H87: 0 | I87: 688.1317286 | J87: 1.569343116 | K87: 1.114330134 | L87: 0.4569550904 | M87: 1.000043382 | N87: 0.009314499595 | U87: 1.000010024 | V87: 0.006135251013 | X87: -110.3440467 | Y87: 69.65595326 | AB87: 19.74949405 | AC87: -64.26882057 | AI87: 61.40660936 | AJ87: -46.07522617 | AN87: 0 | AO87: 0
B88: 1000 | C88: 1.50966908 | D88: 0.8467826985 | E88: 1.000004895 | F88: 0.003129016071 | G88: 1 | H88: 0 | I88: 754.5219968 | J88: 1.569470984 | K88: 1.136057172 | L88: 0.4944340986 | M88: 1.000052156 | N88: 0.01021309537 | U88: 1.000012052 | V88: 0.006727170052 | X88: -110.9034774 | Y88: 69.09652256 | AB88: 19.11713765 | AC88: -62.18024361 | AI88: 60.97586639 | AJ88: -48.72323383 | AN88: 0 | AO88: 0
B89: 1096.5 | C89: 1.593072025 | D89: 0.8921780818 | E89: 1.000005886 | F89: 0.003430963857 | G89: 1 | H89: 0 | I89: 827.3332473 | J89: 1.569587624 | K89: 1.161646709 | L89: 0.5338646417 | M89: 1.000062707 | N89: 0.01119858031 | U89: 1.00001449 | V89: 0.007376335232 | X89: -111.3282788 | Y89: 68.67172121 | AB89: 18.51035214 | AC89: -59.984187 | AI89: 60.50878079 | AJ89: -51.34409179 | AN89: 0 | AO89: 0
B90: 1202.3 | C90: 1.687889941 | D90: 0.9366926272 | E90: 1.000007076 | F90: 0.003762010552 | G90: 1 | H90: 0 | I90: 907.1615512 | J90: 1.569693987 | K90: 1.19168246 | L90: 0.5750782998 | M90: 1.000075392 | N90: 0.01227901437 | U90: 1.000017421 | V90: 0.008088060304 | X90: -111.6072155 | Y90: 68.39278455 | AB90: 17.93188843 | AC90: -57.69081682 | AI90: 60.0065914 | AJ90: -53.91639863 | AM90: =IF(AL90>0,Y90,0) ->  | AN90: 0 | AO90: 0
B91: 1318.3 | C91: 1.795262712 | D91: 0.9800012126 | E91: 1.000008508 | F91: 0.004124971953 | G91: 1 | H91: 0 | I91: 994.6859775 | J91: 1.569790984 | K91: 1.226818273 | L91: 0.6178657972 | M91: 1.000090641 | N91: 0.01346357821 | U91: 1.000020945 | V91: 0.00886839877 | X91: -111.7344136 | Y91: 68.26558642 | AB91: 17.38412256 | AC91: -55.31270184 | AI91: 59.47089551 | AJ91: -56.42171174 | AN91: 0 | AO91: 0
B92: 1445.4 | C92: 1.916317601 | D92: 1.02179665 | E92: 1.000010227 | F92: 0.004522663753 | G92: 1 | H92: 0 | I92: 1090.585595 | J92: 1.569879388 | K92: 1.267742147 | L92: 0.6619357036 | M92: 1.00010896 | N92: 0.01476144907 | U92: 1.000025179 | V92: 0.009723403837 | X92: -111.7097259 | Y92: 68.29027409 | AB92: 16.86950208 | AC92: -52.86710989 | AI92: 58.90408412 | AJ92: -58.84261602 | AN92: 0 | AO92: 0
B93: 1584.9 | C93: 2.052555327 | D93: 1.061918481 | E93: 1.000012297 | F93: 0.004959153102 | G93: 1 | H93: 0 | I93: 1195.841281 | J93: 1.569960095 | K93: 1.315304346 | L93: 0.7070518006 | M93: 1.000131006 | N93: 0.01618588406 | U93: 1.000030273 | V93: 0.01066181913 | X93: -111.5385721 | Y93: 68.46142792 | AB93: 16.38894146 | AC93: -50.36838624 | AI93: 58.30751017 | AJ93: -61.17018584 | AN93: 0 | AO93: 0
B94: 1737.8 | C94: 2.205179985 | D94: 1.100132846 | E94: 1.000014784 | F94: 0.005437568283 | G94: 1 | H94: 0 | I94: 1311.207556 | J94: 1.570033671 | K94: 1.370282943 | L94: 0.7528016475 | M94: 1.0001575 | N94: 0.01774707083 | U94: 1.000036396 | V94: 0.01169036963 | X94: -111.2320062 | Y94: 68.76799379 | AB94: 15.94443326 | AC94: -47.84077808 | AI94: 57.6844952 | AJ94: -63.39122813 | AN94: 0 | AO94: 0
B95: 1905.5 | C95: 2.375778932 | D95: 1.136342993 | E95: 1.000017775 | F95: 0.00596228893 | G95: 1 | H95: 0 | I95: 1437.74075 | J95: 1.570100791 | K95: 1.433611651 | L95: 0.7988391619 | M95: 1.000189362 | N95: 0.01945927336 | U95: 1.000043759 | V95: 0.01281847046 | X95: -110.8054583 | Y95: 69.19454169 | AB95: 15.53639918 | AC95: -45.30497049 | AI95: 57.03721752 | AJ95: -65.50048782 | AN95: 0 | AO95: 0
B96: 2089.3 | C96: 2.565832785 | D96: 1.170450322 | E96: 1.000021369 | F96: 0.006537381481 | G96: 1 | H96: 0 | I96: 1576.421741 | J96: 1.570161979 | K96: 1.506198113 | L96: 0.8447432724 | M96: 1.00022765 | N96: 0.02133572408 | U96: 1.000052608 | V96: 0.01405486312 | X96: -110.2784607 | Y96: 69.72153928 | AB96: 15.16524157 | AC96: -42.7858772 | AI96: 56.36872542 | AJ96: -67.49258352 | AN96: 0 | AO96: 0
B97: 2290.9 | C97: 2.777229848 | D97: 1.202452302 | E97: 1.000025692 | F97: 0.007168163536 | G97: 1 | H97: 0 | I97: 1728.533214 | J97: 1.570217802 | K97: 1.589109646 | L97: 0.8901657763 | M97: 1.000273696 | N97: 0.02339372526 | U97: 1.000063251 | V97: 0.01541097866 | X97: -109.6721931 | Y97: 70.32780688 | AB97: 14.83017074 | AC97: -40.30447262 | AI97: 55.68100105 | AJ97: -69.3677205 | AN97: 0 | AO97: 0
B98: 2511.9 | C98: 3.011754836 | D98: 1.232338995 | E98: 1.000030888 | F98: 0.007859639276 | G98: 1 | H98: 0 | I98: 1895.282403 | J98: 1.570268701 | K98: 1.683373179 | L98: 0.9347179444 | M98: 1.00032904 | N98: 0.02564953987 | U98: 1.000076042 | V98: 0.01689757389 | X98: -109.0096453 | Y98: 70.99035474 | AB98: 14.53029694 | AC98: -37.8839864 | AI98: 54.97677924 | AJ98: -71.12565886 | AN98: 0 | AO98: 0
B99: 2754.2 | C99: 3.271508683 | D99: 1.260154958 | E99: 1.000037134 | F99: 0.008617750848 | G99: 1 | H99: 0 | I99: 2078.102899 | J99: 1.570315119 | K99: 1.790133218 | L99: 0.9780781078 | M99: 1.000395567 | N99: 0.02812246922 | U99: 1.00009142 | V99: 0.01852742158 | X99: -108.3133229 | Y99: 71.68667707 | AB99: 14.2639559 | AC99: -35.54397999 | AI99: 54.25813071 | AJ99: -72.76934294 | AN99: 0 | AO99: 0
B100: 3020 | C100: 3.558919822 | D100: 1.285976926 | E100: 1.000044647 | F100: 0.009449378117 | G100: 1 | H100: 0 | I100: 2278.654649 | J100: 1.570357471 | K100: 1.910660734 | L100: 1.019984505 | M100: 1.000475582 | N100: 0.03083484429 | U100: 1.000109917 | V100: 0.0203153097 | X100: -107.604377 | Y100: 72.39562301 | AB100: 14.02899653 | AC100: -33.30075457 | AI100: 53.52663279 | AJ100: -74.30362242 | AN100: 0 | AO100: 0
B101: 3311.3 | C101: 3.876205053 | D101: 1.309861043 | E101: 1.000053675 | F101: 0.01036077399 | G101: 1 | H101: 0 | I101: 2498.446694 | J101: 1.570396078 | K101: 2.046125123 | L101: 1.060164394 | M101: 1.000571726 | N101: 0.03380691332 | U101: 1.000132144 | V101: 0.02227467736 | X101: -106.9032414 | Y101: 73.09675857 | AB101: 13.82330248 | AC101: -31.17111551 | AI101: 52.78474738 | AJ101: -75.73212592 | AN101: 0 | AO101: 0
B102: 3630.8 | C102: 4.226347389 | D102: 1.331920079 | E102: 1.000064533 | F102: 0.01136037989 | G102: 1 | H102: 0 | I102: 2739.516243 | J102: 1.570431299 | K102: 2.198007402 | L102: 1.098471814 | M102: 1.000687338 | N102: 0.03706601183 | U102: 1.000158874 | V102: 0.02442366738 | X102: -106.226883 | Y102: 73.77311697 | AB102: 13.64416233 | AC102: -29.16501261 | AI102: 52.03344058 | AJ102: -77.06187042 | AN102: 0 | AO102: 0
B103: 3981.1 | C103: 4.612230324 | D103: 1.352245813 | E103: 1.000077585 | F103: 0.01245632225 | G103: 1 | H103: 0 | I103: 3003.82505 | J103: 1.570463418 | K103: 2.367736377 | L103: 1.134766258 | M103: 1.000826308 | N103: 0.04063838182 | U103: 1.000191008 | V103: 0.02677974368 | X103: -105.5906657 | Y103: 74.4093343 | AB103: 13.48902499 | AC103: -27.29201615 | AI103: 51.27435897 | AJ103: -78.29864955 | AN103: 0 | AO103: 0
B104: 4365.2 | C104: 5.037184469 | D104: 1.370945018 | E104: 1.000093277 | F104: 0.01365797621 | G104: 1 | H104: 0 | I104: 3293.63668 | J104: 1.570492711 | K104: 2.556925512 | L104: 1.168975603 | M104: 1.000993362 | N104: 0.04455424938 | U104: 1.000229642 | V104: 0.02936305233 | X104: -105.0072042 | Y104: 74.99279578 | AB104: 13.35524877 | AC104: -25.55800615 | AI104: 50.50862238 | AJ104: -79.44919807 | AN104: 0 | AO104: 0
B105: 4786.3 | C105: 5.504770075 | D105: 1.38812141 | E105: 1.000112141 | F105: 0.01497533894 | G105: 1 | H105: 0 | I105: 3611.3656 | J105: 1.570519423 | K105: 2.767282444 | L105: 1.201064543 | M105: 1.001194141 | N105: 0.04884575381 | U105: 1.000276084 | V105: 0.03219507373 | X105: -104.4869773 | Y105: 75.51302272 | AB105: 13.24029964 | AC105: -23.96686092 | AI105: 49.73735636 | AJ105: -80.52011636 | AN105: 0 | AO105: 0
B106: 5248.1 | C106: 6.019111267 | D106: 1.403884913 | E106: 1.000134823 | F106: 0.01641996698 | G106: 1 | H106: 0 | I106: 3959.80354 | J106: 1.570543789 | K106: 3.000763133 | L106: 1.231049329 | M106: 1.001435514 | N106: 0.05354996412 | U106: 1.000331927 | V106: 0.03530063664 | X106: -104.0382498 | Y106: 75.96175024 | AB106: 13.14172675 | AC106: -22.51978666 | AI106: 48.96120469 | AJ106: -81.51846311 | AN106: 0 | AO106: 0
B107: 5370.3 | C107: 6.155438346 | D107: 1.407615122 | E107: 1.000141174 | F107: 0.0168022285 | G107: 1 | H107: 0 | I107: 4052.006044 | J107: 1.570549535 | K107: 3.062953866 | L107: 1.238216866 | M107: 1.001503093 | N107: 0.05479438854 | U107: 1.000347564 | V107: 0.03612238718 | X107: -103.9381158 | Y107: 76.06188418 | AB107: 13.11938653 | AC107: -22.18074658 | AI107: 48.76659179 | AJ107: -81.75736924 | AN107: 0 | AO107: 0
B108: 5432.85 | C108: 6.225251558 | D108: 1.40946126 | E108: 1.000144482 | F108: 0.01699789319 | G108: 1 | H108: 0 | I108: 4099.201352 | J108: 1.570552377 | K108: 3.094846211 | L108: 1.241774128 | M108: 1.001538284 | N108: 0.05543130134 | U108: 1.000355708 | V108: 0.03654300755 | X108: -103.8896198 | Y108: 76.11038017 | AB108: 13.10847034 | AC108: -22.0135857 | AI108: 48.66859141 | AJ108: -81.87603413 | AN108: 0 | AO108: 0
B109: 5495.4 | C109: 6.295085517 | D109: 1.411266443 | E109: 1.000147827 | F109: 0.01719355659 | G109: 1 | H109: 0 | I109: 4146.39666 | J109: 1.570555154 | K109: 3.126776919 | L109: 1.245258779 | M109: 1.001573881 | N109: 0.05606816913 | U109: 1.000363945 | V109: 0.03696362406 | X109: -103.8429312 | Y109: 76.15706881 | AB109: 13.09788622 | AC109: -21.85057879 | AI109: 48.57165437 | AJ109: -81.9923524 | AN109: 0 | AO109: 0
B110: 5559.4 | C110: 6.366559089 | D110: 1.413072478 | E110: 1.00015129 | F110: 0.01739375439 | G110: 1 | H110: 0 | I110: 4194.686024 | J110: 1.57055793 | K110: 3.159486321 | L110: 1.248751265 | M110: 1.001610724 | N110: 0.05671975332 | U110: 1.000372471 | V110: 0.03739398702 | X110: -103.7969843 | Y110: 76.20301572 | AB110: 13.0873861 | AC110: -21.6879662 | AI110: 48.47354762 | AJ110: -82.10901808 | AN110: 0 | AO110: 0
B111: 5623.4 | C111: 6.438052967 | D111: 1.414838408 | E111: 1.000154794 | F111: 0.01759395079 | G111: 1 | H111: 0 | I111: 4242.975388 | J111: 1.570560643 | K111: 3.192233472 | L111: 1.252172137 | M111: 1.001647992 | N111: 0.0573712893 | U111: 1.000381096 | V111: 0.03782434584 | X111: -103.7528361 | Y111: 76.24716393 | AB111: 13.0772052 | AC111: -21.52945037 | AI111: 48.37650773 | AJ111: -82.2233857 | AN111: 0 | AO111: 0
B112: 5688.9 | C112: 6.511242809 | D112: 1.416605566 | E112: 1.00015842 | F112: 0.01779883783 | G112: 1 | H112: 0 | I112: 4292.396534 | J112: 1.570563357 | K112: 3.225786019 | L112: 1.255601229 | M112: 1.001686574 | N112: 0.05803804516 | U112: 1.000390025 | V112: 0.03826478686 | X112: -103.7094683 | Y112: 76.29053168 | AB112: 13.06710234 | AC112: -21.37133566 | AI112: 48.27827479 | AJ112: -82.33813266 | AN112: 0 | AO112: 0
B113: 5754.4 | C113: 6.584452533 | D113: 1.418333433 | E113: 1.000162089 | F113: 0.01800372338 | G113: 1 | H113: 0 | I113: 4341.81768 | J113: 1.570566009 | K113: 3.259375716 | L113: 1.258959682 | M113: 1.001725602 | N113: 0.05870474936 | U113: 1.000399058 | V113: 0.03870522344 | X113: -103.66789 | Y113: 76.33211002 | AB113: 13.05730639 | AC113: -21.21726175 | AI113: 48.18111262 | AJ113: -82.45062823 | AN113: 0 | AO113: 0
B114: 5821.4 | C114: 6.659358701 | D114: 1.420061559 | E114: 1.000165885 | F114: 0.01821329941 | G114: 1 | H114: 0 | I114: 4392.370609 | J114: 1.570568659 | K114: 3.293771893 | L114: 1.262324138 | M114: 1.001765983 | N114: 0.05938666755 | U114: 1.000408404 | V114: 0.03915574171 | X114: -103.627163 | Y114: 76.37283695 | AB114: 13.04759025 | AC114: -21.06371554 | AI114: 48.0828097 | AJ114: -82.56344751 | AN114: 0 | AO114: 0
B115: 5888.4 | C115: 6.734284315 | D115: 1.421751235 | E115: 1.000169725 | F115: 0.01842287383 | G115: 1 | H115: 0 | I115: 4442.923537 | J115: 1.57057125 | K115: 3.328204583 | L115: 1.265619015 | M115: 1.001806831 | N115: 0.06006853044 | U115: 1.000417858 | V115: 0.03960625523 | X115: -103.5882129 | Y115: 76.41178709 | AB115: 13.03816874 | AC115: -20.91414928 | AI115: 47.98558017 | AJ115: -82.67406363 | AN115: 0 | AO115: 0
B116: 5957 | C116: 6.811018674 | D116: 1.423442739 | E116: 1.000173702 | F116: 0.01863745133 | G116: 1 | H116: 0 | I116: 4494.683699 | J116: 1.570573842 | K116: 3.363496208 | L116: 1.268922643 | M116: 1.001849136 | N116: 0.06076661868 | U116: 1.000427651 | V116: 0.0400675223 | X116: -103.5501253 | Y116: 76.44987466 | AB116: 13.0288146 | AC116: -20.76501137 | AI116: 47.88711723 | AJ116: -82.78511397 | AN116: 0 | AO116: 0
B117: 6025.6 | C117: 6.887772086 | D117: 1.42509655 | E117: 1.000177726 | F117: 0.01885202712 | G117: 1 | H117: 0 | I117: 4546.443861 | J117: 1.570576375 | K117: 3.398823778 | L117: 1.272157629 | M117: 1.001891929 | N117: 0.06146464762 | U117: 1.000437557 | V117: 0.04052878427 | X117: -103.513804 | Y117: 76.48619602 | AB117: 13.01974374 | AC117: -20.61979955 | AI117: 47.78973222 | AJ117: -82.89400443 | AN117: 0 | AO117: 0
B118: 6095.8 | C118: 6.966334734 | D118: 1.426751202 | E118: 1.000181891 | F118: 0.0190716058 | G118: 1 | H118: 0 | I118: 4599.411257 | J118: 1.570578908 | K118: 3.435011372 | L118: 1.275399145 | M118: 1.001936226 | N118: 0.06217889504 | U118: 1.000447811 | V118: 0.0410007992 | X118: -103.4784154 | Y118: 76.52158463 | AB118: 13.01074213 | AC118: -20.47514284 | AI118: 47.69116796 | AJ118: -83.00327252 | AN118: 0 | AO118: 0
B119: 6166 | C119: 7.044916028 | D119: 1.428368945 | E119: 1.000186104 | F119: 0.01929118264 | G119: 1 | H119: 0 | I119: 4652.378654 | J119: 1.570581383 | K119: 3.471234307 | L119: 1.278573043 | M119: 1.001981035 | N119: 0.06289307894 | U119: 1.000458184 | V119: 0.04147280868 | X119: -103.4447792 | Y119: 76.55522085 | AB119: 13.00201248 | AC119: -20.33435347 | AI119: 47.59368484 | AJ119: -83.11042569 | AN119: 0 | AO119: 0
B120: 6237.8 | C120: 7.125306997 | D120: 1.429986644 | E120: 1.000190463 | F120: 0.01951576215 | G120: 1 | H120: 0 | I120: 4706.553284 | J120: 1.570583857 | K120: 3.508318252 | L120: 1.281751449 | M120: 1.002027393 | N120: 0.06362347408 | U120: 1.000468916 | V120: 0.04195557048 | X120: -103.4121403 | Y120: 76.58785974 | AB120: 12.99335319 | AC120: -20.19423451 | AI120: 47.49507432 | AJ120: -83.21790575 | AN120: 0 | AO120: 0
B121: 6309.6 | C121: 7.205716196 | D121: 1.431568242 | E121: 1.000194872 | F121: 0.01974033969 | G121: 1 | H121: 0 | I121: 4760.727915 | J121: 1.570586275 | K121: 3.545436897 | L121: 1.284863334 | M121: 1.002074285 | N121: 0.06435380126 | U121: 1.000479772 | V121: 0.04243832645 | X121: -103.381237 | Y121: 76.61876298 | AB121: 12.98495463 | AC121: -20.05791982 | AI121: 47.39754692 | AJ121: -83.3233172 | AN121: 0 | AO121: 0
B122: 6383.05 | C122: 7.287991473 | D122: 1.43315007 | E122: 1.000199435 | F122: 0.01997007608 | G122: 1 | H122: 0 | I122: 4816.147506 | J122: 1.570588692 | K122: 3.583443329 | L122: 1.287979994 | M122: 1.002122808 | N122: 0.06510084058 | U122: 1.000491007 | V122: 0.04293217026 | X122: -103.3513706 | Y122: 76.6486294 | AB122: 12.97662129 | AC122: -19.92228907 | AI122: 47.29887495 | AJ122: -83.42908153 | AN122: 0 | AO122: 0
B123: 6456.5 | C123: 7.370284579 | D123: 1.434696579 | E123: 1.000204051 | F123: 0.02019981036 | G123: 1 | H123: 0 | I123: 4871.567097 | J123: 1.570591054 | K123: 3.621483838 | L123: 1.291031207 | M123: 1.002171891 | N123: 0.06584780715 | U123: 1.000502371 | V123: 0.04342600782 | X123: -103.3232227 | Y123: 76.67677726 | AB123: 12.96853792 | AC123: -19.79040081 | AI123: 47.20128835 | AJ123: -83.53282193 | AN123: 0 | AO123: 0
B124: 6531.7 | C124: 7.454556233 | D124: 1.436244555 | E124: 1.000208831 | F124: 0.02043501601 | G124: 1 | H124: 0 | I124: 4928.3071 | J124: 1.570593417 | K124: 3.660464885 | L124: 1.294089386 | M124: 1.002222721 | N124: 0.06661249451 | U124: 1.000514141 | V124: 0.04393160486 | X124: -103.2961356 | Y124: 76.70386444 | AB124: 12.96050977 | AC124: -19.65912884 | AI124: 47.10247692 | AJ124: -83.63700673 | AN124: 0 | AO124: 0
B125: 6606.9 | C125: 7.53884535 | D125: 1.43775792 | E125: 1.000213667 | F125: 0.02067021941 | G125: 1 | H125: 0 | I125: 4985.047103 | J125: 1.570595727 | K125: 3.699479446 | L125: 1.297083089 | M125: 1.002274138 | N125: 0.06737710385 | U125: 1.000526047 | V125: 0.04443719518 | X125: -103.2707517 | Y125: 76.72924833 | AB125: 12.95272157 | AC125: -19.53154348 | AI125: 47.00475477 | AJ125: -83.7392082 | AN125: 0 | AO125: 0
B126: 6683.85 | C126: 7.625113456 | D126: 1.439271865 | E126: 1.000218673 | F126: 0.02091089392 | G126: 1 | H126: 0 | I126: 5043.107518 | J126: 1.570598036 | K126: 3.739435522 | L126: 1.300081767 | M126: 1.002327358 | N126: 0.06815942496 | U126: 1.000538371 | V126: 0.04495454421 | X126: -103.2464911 | Y126: 76.75350895 | AB126: 12.94498975 | AC126: -19.40468793 | AI126: 46.90586173 | AJ126: -83.84180312 | AN126: 0 | AO126: 0
B127: 6760.8 | C127: 7.711398648 | D127: 1.440751933 | E127: 1.000223736 | F127: 0.02115156601 | G127: 1 | H127: 0 | I127: 5101.167934 | J127: 1.570600293 | K127: 3.779424512 | L127: 1.303017014 | M127: 1.002381192 | N127: 0.06894166251 | U127: 1.000550838 | V127: 0.04547188604 | X127: -103.2239157 | Y127: 76.77608434 | AB127: 12.93748791 | AC127: -19.28145888 | AI127: 46.80806058 | AJ127: -83.94245679 | AN127: 0 | AO127: 0
B128: 6839.55 | C128: 7.799719306 | D128: 1.442232715 | E128: 1.000228978 | F128: 0.02139786531 | G128: 1 | H128: 0 | I128: 5160.586488 | J128: 1.57060255 | K128: 3.820381916 | L128: 1.305957275 | M128: 1.00243692 | N128: 0.06974211053 | U128: 1.000563745 | V128: 0.04600132191 | X128: -103.2025078 | Y128: 76.79749221 | AB128: 12.93003834 | AC128: -19.15898595 | AI128: 46.70907769 | AJ128: -84.04352184 | AN128: 0 | AO128: 0
B129: 6918.3 | C129: 7.888056683 | D129: 1.443680333 | E129: 1.000234281 | F129: 0.02164416202 | G129: 1 | H129: 0 | I129: 5220.005042 | J129: 1.570604756 | K129: 3.861371648 | L129: 1.308835137 | M129: 1.002493289 | N129: 0.07054246905 | U129: 1.0005768 | V129: 0.04653075006 | X129: -103.1827667 | Y129: 76.81723334 | AB129: 12.92280914 | AC129: -19.04008015 | AI129: 46.61118942 | AJ129: -84.1426865 | AN129: 0 | AO129: 0
B130: 6998.9 | C130: 7.978486021 | D130: 1.445128761 | E130: 1.000239771 | F130: 0.02189624203 | G130: 1 | H130: 0 | I130: 5280.81946 | J130: 1.570606962 | K130: 3.903356725 | L130: 1.311717993 | M130: 1.002551648 | N130: 0.0713615359 | U130: 1.000590317 | V130: 0.0470726075 | X130: -103.1642385 | Y130: 76.83576148 | AB130: 12.91562836 | AC130: -18.92196015 | AI130: 46.51211044 | AJ130: -84.24227837 | AN130: 0 | AO130: 0
B131: 7079.5 | C131: 8.068931722 | D131: 1.446544722 | E131: 1.000245324 | F131: 0.02214831925 | G131: 1 | H131: 0 | I131: 5341.633879 | J131: 1.570609118 | K131: 3.945373552 | L131: 1.314539469 | M131: 1.00261068 | N131: 0.07218050684 | U131: 1.000603991 | V131: 0.04761445667 | X131: -103.1473582 | Y131: 76.85264181 | AB131: 12.9086587 | AC131: -18.80734857 | AI131: 46.41412892 | AJ131: -84.34000962 | AN131: 0 | AO131: 0
B132: 7161.95 | C132: 8.161469774 | D132: 1.447960707 | E132: 1.000251071 | F132: 0.02240617946 | G132: 1 | H132: 0 | I132: 5403.844162 | J132: 1.570611273 | K132: 3.98838659 | L132: 1.317364173 | M132: 1.002671762 | N132: 0.07301817516 | U132: 1.00061814 | V132: 0.04816873419 | X132: -103.1317463 | Y132: 76.86825367 | AB132: 12.90173795 | AC132: -18.69362327 | AI132: 46.31500928 | AJ132: -84.43812306 | AN132: 0 | AO132: 0
B133: 7244.4 | C133: 8.254023823 | D133: 1.44934494 | E133: 1.000256884 | F133: 0.02266403668 | G133: 1 | H133: 0 | I133: 5466.054445 | J133: 1.570613379 | K133: 4.031430771 | L133: 1.32012858 | M133: 1.002733548 | N133: 0.07385574083 | U133: 1.000632454 | V133: 0.04872300285 | X133: -103.117761 | Y133: 76.88223904 | AB133: 12.89501917 | AC133: -18.58334409 | AI133: 46.21698869 | AJ133: -84.53441687 | AN133: 0 | AO133: 0
B134: 7328.75 | C134: 8.348726712 | D134: 1.450729308 | E134: 1.0002629 | F134: 0.02292783292 | G134: 1 | H134: 0 | I134: 5529.698318 | J134: 1.570615485 | K134: 4.075498074 | L134: 1.322896241 | M134: 1.002797485 | N134: 0.07471250017 | U134: 1.000647266 | V134: 0.04929003497 | X134: -103.1050876 | Y134: 76.8949124 | AB134: 12.88834537 | AC134: -18.47397813 | AI134: 46.11782181 | AJ134: -84.63110947 | AN134: 0 | AO134: 0
B135: 7413.1 | C135: 8.443445242 | D135: 1.452082619 | E135: 1.000268986 | F135: 0.02319162596 | G135: 1 | H135: 0 | I135: 5593.342192 | J135: 1.570617543 | K135: 4.119595928 | L135: 1.32560467 | M135: 1.002862158 | N135: 0.07556914963 | U135: 1.00066225 | V135: 0.04985705762 | X135: -103.0940191 | Y135: 76.90598086 | AB135: 12.88186474 | AC135: -18.36799687 | AI135: 46.01975567 | AJ135: -84.72602226 | AN135: 0 | AO135: 0
B136: 7499.45 | C136: 8.540425276 | D136: 1.453436921 | E136: 1.000275288 | F136: 0.02346167038 | G136: 1 | H136: 0 | I136: 5658.495108 | J136: 1.570619601 | K136: 4.164770005 | L136: 1.328317886 | M136: 1.002929127 | N136: 0.07644599578 | U136: 1.000677767 | V136: 0.05043751486 | X136: -103.084302 | Y136: 76.91569801 | AB136: 12.87542169 | AC136: -18.26289857 | AI136: 45.92047959 | AJ136: -84.82140342 | AN136: 0 | AO136: 0
B137: 7585.8 | C137: 8.637420622 | D137: 1.454760809 | E137: 1.000281663 | F137: 0.02373171139 | G137: 1 | H137: 0 | I137: 5723.648024 | J137: 1.570621613 | K137: 4.209974084 | L137: 1.330972856 | M137: 1.002996867 | N137: 0.07732272416 | U137: 1.000693463 | V137: 0.05101796194 | X137: -103.0761697 | Y137: 76.92383031 | AB137: 12.86916355 | AC137: -18.16112811 | AI137: 45.82230726 | AJ137: -84.91504158 | AN137: 0 | AO137: 0
B138: 7674.15 | C138: 8.736677848 | D138: 1.456084933 | E138: 1.000288261 | F138: 0.02400800337 | G138: 1 | H138: 0 | I138: 5790.309983 | J138: 1.570623624 | K138: 4.256255213 | L138: 1.33363093 | M138: 1.003066974 | N138: 0.07821963566 | U138: 1.000709709 | V138: 0.05161184243 | X138: -103.0694409 | Y138: 76.93055907 | AB138: 12.86294332 | AC138: -18.06033615 | AI138: 45.72297849 | AJ138: -85.00910478 | AN138: 0 | AO138: 0
B139: 7762.5 | C139: 8.835950048 | D139: 1.457379307 | E139: 1.000294936 | F139: 0.0242842917 | G139: 1 | H139: 0 | I139: 5856.971942 | J139: 1.57062559 | K139: 4.302565768 | L139: 1.336231802 | M139: 1.003137887 | N139: 0.07911642107 | U139: 1.000726143 | V139: 0.05220571205 | X139: -103.0642748 | Y139: 76.93572525 | AB139: 12.85689982 | AC139: -17.96281179 | AI139: 45.6247552 | AJ139: -85.10146296 | AN139: 0 | AO139: 0
B140: 7852.9 | C140: 8.937540656 | D140: 1.458673948 | E140: 1.000301844 | F140: 0.02456698694 | G140: 1 | H140: 0 | I140: 5925.180669 | J140: 1.570627556 | K140: 4.349980351 | L140: 1.338835684 | M140: 1.003211281 | N140: 0.08003388276 | U140: 1.000743153 | V140: 0.05281334992 | X140: -103.060558 | Y140: 76.93944203 | AB140: 12.85089082 | AC140: -17.86629965 | AI140: 45.52537199 | AJ140: -85.19425832 | AN140: 0 | AO140: 0
B141: 7943.3 | C141: =SQRT(1+(B141/PS_Pole1)^2) -> 9.039145907 | D141: =ATAN(B141/PS_Pole1) -> 1.459939487 | E141: =SQRT(1+(B141/PS_Zero1)^2) -> 1.000308833 | F141: =ATAN(B141/PS_Zero1) -> 0.02484967826 | G141: =IF(VIN_nom>Vout, 1, SQRT(1+(B141/PS_RHPZ)^2)) -> 1 | H141: =IF(VIN_nom>Vout, 0, -ATAN(B141/PS_RHPZ)) -> 0 | I141: =SQRT(1+(B141/EA_Pole1)^2) -> 5993.389397 | J141: =ATAN(B141/EA_Pole1) -> 1.570629476 | K141: =SQRT(1+(B141/EA_Zero1)^2) -> 4.397423791 | L141: =ATAN(B141/EA_Zero1) -> 1.341383397 | M141: =SQRT(1+(B141/EA_Pole2)^2) -> 1.00328552 | N141: =ATAN(B141/EA_Pole2) -> 0.08095120945 | O141: =SQRT(1+(B141/$V$5)^2) ->  | P141: =ATAN(B141/$V$5) ->  | Q141: =SQRT(1+(B141/$V$4)^2) ->  | R141: =ATAN(B141/$V$4) ->  | S141: =SQRT(1+(B141/$V$7)^2) ->  | T141: =ATAN(B141/$V$7) ->  | U141: =SQRT((1-(B141^2/pterm2))^2+(B141/pterm1)^2) -> 1.00076036 | V141: =IF((ATAN((B141/pterm1)/(1-B141^2/pterm2))>0),ATAN((B141/pterm1)/(1-B141^2/pterm2)),PI()+ATAN((B141/pterm1)/(1-B141^2/pterm2))) -> 0.05342097614 | W141: =20*LOG10(((E141*K141*G141)/(C141*I141*U141*M141))*Adc) ->  | X141: -103.0583812 | Y141: 76.94161878 | AB141: =20*LOG10((K141/(I141*M141))*AEA) -> 12.84505066 | AC141: =(L141-(J141+N141))*radconv -> -17.77299547 | AE141: =20*LOG10((Q141/(O141*S141))*AIL) ->  | AF141: =(R141-(P141+T141))*radconv ->  | AI141: =20*LOG10((E141*G141/(C141*U141))*Acs*Am) -> 45.427096 | AJ141: =(F141+H141-(D141+V141))*radconv -> -85.28538575 | AL141: =SUM((W142<0)*(W141>0))*B141 ->  | AN141: =SUM((AB142<0)*(AB141>0))*B141 -> 0 | AO141: 0
B142: 8035.8 | C142: 9.143126106 | D142: 1.461205308 | E142: 1.000316066 | F142: 0.02513893242 | G142: 1 | H142: 0 | I142: 6063.18262 | J142: 1.570631397 | K142: 4.445998254 | L142: 1.343933993 | M142: 1.003362356 | N142: 0.08188970439 | U142: 1.000778171 | V142: 0.05404270536 | X142: -103.0577002 | Y142: =IF(X142>0,X142-180,X142+180) -> 76.94229976 | AB142: 12.83924172 | AC142: -17.6807389 | AI142: 45.32765796 | AJ142: -85.37696134 | AN142: 0 | AO142: =IF(AN142>0,AC142,0) -> 0 | AP142: =SUM((AE143<0)*(AE142>0))*B142 ->  | AQ142: =IF(AP142>0,AE142,0) -> 
B143: 8128.3 | C143: 9.247120625 | D143: 1.462442659 | E143: 1.000323383 | F143: 0.02542818236 | G143: 1 | H143: 0 | I143: 6132.975842 | J143: 1.570633274 | K143: 4.494601015 | L143: 1.346429444 | M143: 1.003440076 | N143: 0.08282805478 | U143: 1.000796187 | V143: 0.0546644221 | X143: =IF(((F143+L143+H143)-(D143+J143+V143+N143))*radconv<-180,((F143+L143+H143)-(D143+J143+V143+N143))*radconv+360,((F143+L143+H143)-(D143+J143+V143+N143))*radconv) -> -103.0585365 | Y143: 76.94146352 | AB143: 12.83359399 | AC143: -17.59163119 | AI143: 45.22932887 | AJ143: -85.46690529 | AN143: 0 | AO143: 0
B144: 8222.95 | C144: 9.35354664 | D144: 1.463680287 | E144: 1.000330957 | F144: 0.02572415101 | G144: 1 | H144: 0 | I144: 6204.391285 | J144: 1.570635151 | K144: 4.544361808 | L144: 1.348927626 | M144: 1.003520517 | N144: 0.08378806416 | U144: 1.000814836 | V144: 0.05530057647 | X144: -103.0609153 | Y144: 76.93908473 | AB144: 12.82797433 | AC144: -17.50360789 | AI144: 45.12983692 | AJ144: -85.55730738 | AN144: 0 | AO144: 0
B145: 8270.275 | C145: 9.406764929 | D145: 1.464288599 | E145: 1.000334777 | F145: 0.02587213364 | G145: 1 | H145: 0 | I145: 6240.099007 | J145: 1.570636073 | K145: 4.569252666 | L145: 1.350156309 | M145: 1.003561085 | N145: 0.08426801091 | U145: 1.000824241 | V145: 0.05561864865 | X145: -103.0626678 | Y145: 76.93733219 | AB145: 12.82522263 | AC145: -17.46076131 | AI145: 45.08050896 | AJ145: -85.6019065 | AN145: 0 | AO145: 0
B146: 8317.6 | C146: 9.45998666 | D146: 1.464890067 | E146: 1.000338619 | F146: 0.02602011515 | G146: 1 | H146: 0 | I146: 6275.806729 | J146: 1.570636985 | K146: 4.594150347 | L146: 1.351371676 | M146: 1.003601883 | N146: 0.08474791875 | U146: 1.0008337 | V146: 0.05593671746 | X146: -103.0647882 | Y146: 76.93521182 | AB146: 12.82250852 | AC146: -17.41867484 | AI146: 45.03145557 | AJ146: -85.64611334 | AN146: 0 | AO146: 0
B147: 8366.05 | C147: 9.514477071 | D147: 1.465498861 | E147: 1.000342574 | F147: 0.02617161325 | G147: 1 | H147: 0 | I147: 6312.363287 | J147: 1.570637908 | K147: 4.619646844 | L147: 1.352602362 | M147: 1.003643891 | N147: 0.08523919433 | U147: 1.00084344 | V147: 0.05626234383 | X147: -103.0673342 | Y147: 76.93266584 | AB147: 12.81976793 | AC147: -17.37636265 | AI147: 44.98151739 | AJ147: -85.69097151 | AN147: 0 | AO147: 0
B148: 8414.5 | C148: 9.568970969 | D148: 1.466100722 | E148: 1.000346553 | F148: 0.02632311016 | G148: 1 | H148: 0 | I148: 6348.919845 | J148: 1.57063882 | K148: 4.645150261 | L148: 1.353819535 | M148: 1.003686141 | N148: 0.08573042866 | U148: 1.000853237 | V148: 0.05658796664 | X148: -103.0702539 | Y148: 76.92974607 | AB148: 12.81706492 | AC148: -17.33482166 | AI148: 44.93186065 | AJ148: -85.73543227 | AN148: 0 | AO148: 0
B149: 8462.95 | C149: 9.623468294 | D149: 1.466695767 | E149: 1.000350555 | F149: 0.02647460585 | G149: 1 | H149: 0 | I149: 6385.476403 | J149: 1.570639721 | K149: 4.670660485 | L149: 1.355023415 | M149: 1.003728633 | N149: 0.08622162152 | U149: 1.00086309 | V149: 0.05691358586 | X149: -103.0735417 | Y149: 76.92645827 | AB149: 12.81439864 | AC149: -17.29403939 | AI149: 44.88248224 | AJ149: -85.77950234 | AN149: 0 | AO149: 0
B150: 8511.4 | C150: 9.677968988 | D150: 1.467284109 | E150: 1.000354579 | F150: 0.02662610034 | G150: 1 | H150: 0 | I150: 6422.032961 | J150: 1.570640613 | K150: 4.696177404 | L150: 1.356214213 | M150: 1.003771367 | N150: 0.08671277268 | U150: 1.000872999 | V150: 0.05723920147 | X150: -103.0771919 | Y150: 76.92280807 | AB150: 12.81176823 | AC150: -17.25400363 | AI150: 44.83337905 | AJ150: -85.8231883 | AN150: 0 | AO150: 0
B151: 8560.95 | C151: 9.733710481 | D151: 1.467878995 | E151: 1.000358719 | F151: 0.02678103306 | G151: 1 | H151: 0 | I151: 6459.419493 | J151: 1.570641514 | K151: 4.722280468 | L151: 1.357418735 | M151: 1.003815322 | N151: 0.08721503147 | U151: 1.000883192 | V151: 0.05757220605 | X151: -103.0812941 | Y151: 76.91870594 | AB151: 12.80911435 | AC151: -17.21381857 | AI151: 44.78344257 | AJ151: -85.86747549 | AN151: 0 | AO151: 0
B152: 8610.5 | C152: 9.78945538 | D152: 1.468467105 | E152: 1.000362883 | F152: 0.02693596449 | G152: 1 | H152: 0 | I152: 6496.806025 | J152: 1.570642405 | K152: 4.748390307 | L152: 1.358610012 | M152: 1.00385953 | N152: 0.08771724614 | U152: 1.000893444 | V152: 0.05790520681 | X152: -103.0857636 | Y152: 76.91423637 | AB152: 12.80649627 | AC152: -17.17438925 | AI152: 44.73378762 | AJ152: -85.91137438 | AN152: 0 | AO152: 0
B153: 8660.05 | C153: 9.845203626 | D153: 1.469048556 | E153: 1.000367071 | F153: 0.02709089463 | G153: 1 | H153: 0 | I153: 6534.192556 | J153: 1.570643286 | K153: 4.774506811 | L153: 1.359788258 | M153: 1.003903992 | N153: 0.08821941646 | U153: 1.000903756 | V153: 0.05823820373 | X153: -103.0905949 | Y153: 76.90940505 | AB153: 12.80391316 | AC153: -17.13570343 | AI153: 44.68441106 | AJ153: -85.95489152 | AN153: 0 | AO153: 0
B154: 8709.6 | C154: 9.900955164 | D154: 1.469623459 | E154: 1.000371282 | F154: 0.02724582347 | G154: 1 | H154: 0 | I154: 6571.579088 | J154: 1.570644156 | K154: 4.800629872 | L154: 1.360953682 | M154: 1.003948706 | N154: 0.08872154217 | U154: 1.000914126 | V154: 0.05857119679 | X154: -103.0957824 | Y154: 76.90421757 | AB154: 12.80136421 | AC154: -17.09774909 | AI154: 44.63530982 | AJ154: -85.99803334 | AM154: =IF(AL154>0,Y154,0) ->  | AN154: 0 | AO154: 0
B155: 8760.325 | C155: 9.958032112 | D155: 1.470205326 | E155: 1.000375619 | F155: 0.02740442485 | G155: 1 | H155: 0 | I155: 6609.852182 | J155: 1.570645037 | K155: 4.82737908 | L155: 1.362133676 | M155: 1.003994743 | N155: 0.08923552853 | U155: 1.000924804 | V155: 0.05891208224 | X155: -103.1014561 | Y155: 76.89854386 | AB155: 12.79878936 | AC155: -17.05964016 | AI155: 44.58532624 | AJ155: -86.04181598 | AN155: 0 | AO155: 0
B156: 8811.05 | C156: 10.01511239 | D156: 1.470780561 | E156: 1.00037998 | F156: 0.02756302485 | G156: 1 | H156: 0 | I156: 6648.125277 | J156: 1.570645908 | K156: 4.854134935 | L156: 1.363300663 | M156: 1.004041045 | N156: 0.08974946763 | U156: 1.000935544 | V156: 0.05925296359 | X156: -103.1074916 | Y156: 76.89250838 | AB156: 12.79624867 | AC156: -17.02227317 | AI156: 44.53562481 | AJ156: -86.08521845 | AN156: 0 | AO156: 0
B157: 8861.775 | C157: 10.07219595 | D157: 1.471349275 | E157: 1.000384367 | F157: 0.02772162346 | G157: 1 | H157: 0 | I157: 6686.398371 | J157: 1.570646769 | K157: 4.880897328 | L157: 1.364454854 | M157: 1.004087612 | N157: 0.09026335919 | U157: 1.000946345 | V157: 0.05959384082 | X157: -103.1138832 | Y157: 76.88611677 | AB157: 12.79374131 | AC157: -16.98563603 | AI157: 44.48620239 | AJ157: -86.1282472 | AN157: 0 | AO157: 0
B158: 8912.5 | C158: 10.12928273 | D158: 1.47191158 | E158: 1.000388779 | F158: 0.02788022067 | G158: 1 | H158: 0 | I158: 6724.671465 | J158: 1.570647621 | K158: 4.907666153 | L158: 1.365596456 | M158: 1.004134445 | N158: 0.09077720295 | U158: 1.000957209 | V158: 0.05993471391 | X158: -103.1206254 | Y158: 76.87937457 | AB158: 12.79126651 | AC158: -16.94971692 | AI158: 44.43705589 | AJ158: -86.17090852 | AN158: 0 | AO158: 0
B159: 8964.4 | C159: 10.18769515 | D159: 1.472480387 | E159: 1.00039332 | F159: 0.0280424902 | G159: 1 | H159: 0 | I159: 6763.831122 | J159: 1.570648482 | K159: 4.935061601 | L159: 1.366751682 | M159: 1.004182637 | N159: 0.09130289971 | U159: 1.000968388 | V159: 0.06028347872 | X159: -103.127881 | Y159: 76.87211897 | AB159: 12.7887673 | AC159: -16.91369687 | AI159: 44.38705335 | AJ159: -86.21418416 | AN159: 0 | AO159: 0
B160: 9016.3 | C160: 10.24611083 | D160: 1.473042709 | E160: 1.000397886 | F160: 0.02820475825 | G160: 1 | H160: 0 | I160: 6802.990779 | J160: 1.570649333 | K160: 4.962463562 | L160: 1.367894152 | M160: 1.004231106 | N160: 0.09182854586 | U160: 1.000979633 | V160: 0.06063223915 | X160: -103.1354923 | Y160: 76.86450772 | AB160: 12.78630059 | AC160: -16.87840424 | AI160: 44.33733326 | AJ160: -86.25708804 | AN160: 0 | AO160: 0
B161: 9068.2 | C161: 10.30452971 | D161: 1.473598655 | E161: 1.000402479 | F161: 0.02836702482 | G161: 1 | H161: 0 | I161: 6842.150436 | J161: 1.570650174 | K161: 4.98987193 | L161: 1.369024072 | M161: 1.004279852 | N161: 0.09235414112 | U161: 1.000990942 | V161: 0.06098099517 | X161: -103.1434536 | Y161: 76.85654639 | AB161: 12.78386562 | AC161: -16.84382716 | AI161: 44.28789247 | AJ161: -86.29962646 | AN161: 0 | AO161: 0
B162: 9120.1 | C162: 10.36295175 | D162: 1.474148332 | E162: 1.000407098 | F162: 0.02852928989 | G162: 1 | H162: 0 | I162: 6881.310092 | J162: 1.570651006 | K162: 5.017286598 | L162: 1.370141647 | M162: 1.004328876 | N162: 0.09287968523 | U162: 1.001002316 | V162: 0.06132974675 | X162: -103.1517596 | Y162: 76.84824045 | AB162: 12.78146163 | AC162: -16.809954 | AI162: 44.23872788 | AJ162: -86.34180556 | AN162: 0 | AO162: 0
B163: 9173.2 | C163: 10.42272778 | D163: 1.474704342 | E163: 1.000411852 | F163: 0.0286953052 | G163: 1 | H163: 0 | I163: 6921.375175 | J163: 1.570651847 | K163: 5.045341546 | L163: 1.371272489 | M163: 1.004379321 | N163: 0.09341732739 | U163: 1.00101402 | V163: 0.06168655734 | X163: -103.1606086 | Y163: 76.8393914 | AB163: 12.77903336 | AC163: -16.77601429 | AI163: 44.18870921 | AJ163: -86.38459431 | AN163: 0 | AO163: 0
B164: 9226.3 | C164: 10.482507 | D164: 1.475254009 | E164: 1.000416632 | F164: 0.02886131893 | G164: 1 | H164: 0 | I164: 6961.440257 | J164: 1.570652678 | K164: 5.073402875 | L164: 1.372390824 | M164: 1.004430056 | N164: 0.09395491539 | U164: 1.001025792 | V164: 0.06204336323 | X164: -103.1698071 | Y164: 76.83019286 | AB164: 12.77663602 | AC164: -16.74278759 | AI164: 44.13897325 | AJ164: -86.42701954 | AN164: 0 | AO164: 0
B165: 9279.4 | C165: 10.54228935 | D165: 1.475797443 | E165: 1.000421441 | F165: 0.02902733107 | G165: 1 | H165: 0 | I165: 7001.50534 | J165: 1.5706535 | K165: 5.101470479 | L165: 1.373496855 | M165: 1.004481081 | N165: 0.09449244893 | U165: 1.001037632 | V165: 0.0624001644 | X165: -103.1793496 | Y165: 76.82065035 | AB165: 12.77426885 | AC165: -16.71026223 | AI165: 44.08951685 | AJ165: -86.46908742 | AN165: 0 | AO165: 0
B166: 9332.5 | C166: 10.60207478 | D166: 1.476334749 | E166: 1.000426277 | F166: 0.0291933416 | G166: 1 | H166: 0 | I166: 7041.570422 | J166: 1.570654313 | K166: 5.129544255 | L166: 1.37459078 | M166: 1.004532396 | N166: 0.09502992771 | U166: 1.00104954 | V166: 0.06275696082 | X166: -103.1892307 | Y166: 76.81076927 | AB166: 12.77193114 | AC166: -16.67842676 | AI166: 44.04033689 | AJ166: -86.51080398 | AN166: 0 | AO166: 0
B167: 9386.85 | C167: 10.66327072 | D167: 1.476878463 | E167: 1.000431255 | F167: 0.02936325844 | G167: 1 | H167: 0 | I167: 7082.578656 | J167: 1.570655135 | K167: 5.158285188 | L167: 1.375698124 | M167: 1.00458522 | N167: 0.09558000197 | U167: 1.001061799 | V167: 0.06312215146 | X167: -103.1996895 | Y167: 76.80031048 | AB167: 12.76956818 | AC167: -16.64654465 | AI167: 43.9902823 | AJ167: -86.55314487 | AN167: 0 | AO167: 0
B168: 9441.2 | C168: 10.72446978 | D168: 1.477415972 | E168: 1.000436263 | F168: 0.02953317359 | G168: 1 | H168: 0 | I168: 7123.58689 | J168: 1.570655948 | K168: 5.187032377 | L168: 1.376793196 | M168: 1.004638348 | N168: 0.09613001822 | U168: 1.001074128 | V168: 0.06348733707 | X168: -103.2104919 | Y168: 76.78950811 | AB168: 12.76723463 | AC168: -16.61536185 | AI168: 43.94051091 | AJ168: -86.59513003 | AN168: 0 | AO168: 0
B169: 9495.55 | C169: 10.7856719 | D169: 1.477947381 | E169: 1.000441299 | F169: 0.02970308702 | G169: 1 | H169: 0 | I169: 7164.595124 | J169: 1.570656752 | K169: 5.215785717 | L169: 1.377876195 | M169: 1.00469178 | N169: 0.09667997614 | U169: 1.001086529 | V169: 0.06385251761 | X169: -103.2216324 | Y169: 76.77836761 | AB169: 12.76492978 | AC169: -16.58486688 | AI169: 43.89101953 | AJ169: -86.63676551 | AN169: 0 | AO169: 0
B170: 9549.9 | C170: 10.84687703 | D170: 1.478472793 | E170: 1.000446364 | F170: 0.02987299874 | G170: 1 | H170: 0 | I170: 7205.603358 | J170: 1.570657546 | K170: 5.244545108 | L170: 1.378947317 | M170: 1.004745515 | N170: 0.0972298754 | U170: 1.001099001 | V170: 0.06421769306 | X170: -103.2331057 | Y170: 76.76689432 | AB170: 12.76265294 | AC170: -16.55504849 | AI170: 43.84180506 | AJ170: -86.67805719 | AN170: 0 | AO170: 0
B171: 9605.525 | C171: 10.90952104 | D171: 1.479004426 | E171: 1.000451578 | F171: 0.03004689465 | G171: 1 | H171: 0 | I171: 7247.573607 | J171: 1.57065835 | K171: 5.273985328 | L171: 1.38003147 | M171: 1.004800826 | N171: 0.0977926137 | U171: 1.00111184 | V171: 0.06459142988 | X171: -103.2451872 | Y171: 76.75481275 | AB171: 12.76035099 | AC171: -16.52521968 | AI171: 43.79171958 | AJ171: -86.71996756 | AN171: 0 | AO171: 0
B172: 9661.15 | C172: 10.9721681 | D172: 1.479529988 | E172: 1.000456822 | F172: 0.03022078874 | G172: 1 | H172: 0 | I172: 7289.543856 | J172: 1.570659144 | K172: 5.303431679 | L172: 1.381103585 | M172: 1.004856455 | N172: 0.09835528987 | U172: 1.001124752 | V172: 0.06496516131 | X172: -103.2576064 | Y172: 76.74239359 | AB172: 12.75807698 | AC172: -16.49607651 | AI172: 43.74191771 | AJ172: -86.76152991 | AN172: 0 | AO172: 0
B173: 9716.775 | C173: 11.03481816 | D173: 1.480049583 | E173: 1.000462096 | F173: 0.03039468099 | G173: 1 | H173: 0 | I173: 7331.514105 | J173: 1.570659929 | K173: 5.332884058 | L173: 1.382163859 | M173: 1.004912402 | N173: 0.09891790357 | U173: 1.00113774 | V173: 0.06533888732 | X173: -103.2703578 | Y173: 76.72964221 | AB173: 12.75583024 | AC173: -16.46760766 | AI173: 43.69239626 | AJ173: -86.80275012 | AN173: 0 | AO173: 0
B174: 9772.4 | C174: 11.09747116 | D174: 1.480563311 | E174: 1.000467401 | F174: 0.03056857141 | G174: 1 | H174: 0 | I174: 7373.484354 | J174: 1.570660706 | K174: 5.362342367 | L174: 1.383212485 | M174: 1.004968667 | N174: 0.09948045445 | U174: 1.001150802 | V174: 0.06571260787 | X174: -103.2834361 | Y174: 76.71656391 | AB174: 12.7536101 | AC174: -16.4398021 | AI174: 43.6431521 | AJ174: -86.84363399 | AN174: 0 | AO174: 0
B175: 9829.3 | C175: 11.16156325 | D175: 1.481082847 | E175: 1.000472858 | F175: 0.03074644572 | G175: 1 | H175: 0 | I175: 7416.416617 | J175: 1.570661491 | K175: 5.392481933 | L175: 1.384273292 | M175: 1.00502655 | N175: 0.1000558344 | U175: 1.00116424 | V175: 0.06609488892 | X175: -103.297147 | Y175: 76.70285297 | AB175: 12.75136592 | AC175: -16.41203418 | AI175: 43.5930629 | AJ175: -86.88511285 | AN175: 0 | AO175: 0
B176: 9886.2 | C176: 11.22565832 | D176: 1.48159645 | E176: 1.000478347 | F176: 0.03092431809 | G176: 1 | H176: 0 | I176: 7459.348881 | J176: 1.570662267 | K176: 5.4226275 | L176: 1.385322305 | M176: 1.005084767 | N176: 0.1006311479 | U176: 1.001177756 | V176: 0.0664771642 | X176: -103.3111892 | Y176: 76.68881079 | AB176: 12.74914824 | AC176: -16.38493763 | AI176: 43.5432574 | AJ176: -86.92625158 | AN176: 0 | AO176: 0
B177: 9943.1 | C177: 11.28975631 | D177: 1.482104222 | E177: 1.000483868 | F177: 0.03110218849 | G177: 1 | H177: 0 | I177: 7502.281144 | J177: 1.570663034 | K177: 5.452778968 | L177: 1.386359719 | M177: 1.005143316 | N177: 0.1012063945 | U177: 1.001191351 | V177: 0.06685943366 | X177: -103.3255573 | Y177: 76.67444267 | AB177: 12.7469564 | AC177: -16.35850139 | AI177: 43.49373242 | AJ177: -86.96705594 | AN177: 0 | AO177: 0
B178: 10000 | C178: 11.35385719 | D178: 1.48260626 | E178: 1.000489421 | F178: 0.03128005693 | G178: 1 | H178: 0 | I178: 7545.213408 | J178: 1.570663792 | K178: 5.48293624 | L178: 1.387385721 | M178: 1.005202197 | N178: 0.101781574 | U178: 1.001205023 | V178: 0.06724169729 | X178: -103.3402462 | Y178: 76.65975383 | AB178: 12.74478978 | AC178: -16.33271459 | AI178: 43.44448483 | AJ178: -87.00753159 | AN178: 0 | AO178: 0
B179: 10058.25 | C179: 11.41948184 | D179: 1.483114371 | E179: 1.000495137 | F179: 0.03146214339 | G179: 1 | H179: 0 | I179: 7589.164275 | J179: 1.57066456 | K179: 5.513814932 | L179: 1.388424439 | M179: 1.00526282 | N179: 0.10237033 | U179: 1.0012191 | V179: 0.06763302436 | X179: -103.3556104 | Y179: 76.64438957 | AB179: 12.74259723 | AC179: -16.30697763 | AI179: 43.39435291 | AJ179: -87.0486328 | AN179: 0 | AO179: 0
B180: 10116.5 | C180: 11.4851094 | D180: 1.483616675 | E180: 1.000500888 | F180: 0.03164422777 | G180: 1 | H180: 0 | I180: 7633.115143 | J180: 1.570665319 | K180: 5.544699506 | L180: 1.389451587 | M180: 1.005323792 | N180: 0.1029590149 | U180: 1.001233259 | V180: 0.06802434523 | X180: -103.3713001 | Y180: 76.6286999 | AB180: 12.74042982 | AC180: -16.28189902 | AI180: 43.34450523 | AJ180: -87.08940108 | AN180: 0 | AO180: 0
B181: 10174.75 | C181: 11.55073983 | D181: 1.484113271 | E181: 1.000506671 | F181: 0.03182631005 | G181: 1 | H181: 0 | I181: 7677.06601 | J181: 1.570666069 | K181: 5.575589865 | L181: 1.390467355 | M181: 1.005385111 | N181: 0.1035476281 | U181: 1.0012475 | V181: 0.06841565988 | X181: -103.3873099 | Y181: 76.61269007 | AB181: 12.73828692 | AC181: -16.25746785 | AI181: 43.29493859 | AJ181: -87.12984208 | AN181: 0 | AO181: 0
B182: 10233 | C182: 11.61637308 | D182: 1.484604256 | E182: 1.000512487 | F182: 0.03200839021 | G182: 1 | H182: 0 | I182: 7721.016877 | J182: 1.57066681 | K182: 5.606485913 | L182: 1.391471928 | M182: 1.005446779 | N182: 0.1041361694 | U182: 1.001261823 | V182: 0.06880696826 | X182: -103.4036348 | Y182: 76.59636522 | AB182: 12.73616793 | AC182: -16.23367346 | AI182: 43.24564984 | AJ182: -87.16996132 | AN182: 0 | AO182: 0
B183: 10292.5 | C183: 11.68341762 | D183: 1.485100081 | E183: 1.000518463 | F183: 0.03219437549 | G183: 1 | H183: 0 | I183: 7765.910896 | J183: 1.570667559 | K183: 5.638050743 | L183: 1.392486691 | M183: 1.00551013 | N183: 0.1047372655 | U183: 1.001276537 | V183: 0.06920666732 | X183: -103.4206299 | Y183: 76.57937006 | AB183: 12.73402754 | AC183: -16.21001501 | AI183: 43.19558709 | AJ183: -87.21061493 | AN183: 0 | AO183: 0
B184: 10352 | C184: 11.75046501 | D184: 1.485590249 | E184: 1.000524473 | F184: 0.03238035853 | G184: 1 | H184: 0 | I184: 7810.804915 | J184: 1.570668299 | K184: 5.669621315 | L184: 1.393490153 | M184: 1.005573844 | N184: 0.1053382857 | U184: 1.001291337 | V184: 0.06960635976 | X184: -103.4379433 | Y184: 76.56205673 | AB184: 12.73191087 | AC184: -16.18699917 | AI184: 43.14580783 | AJ184: -87.2509441 | AN184: 0 | AO184: 0
B185: 10411.5 | C185: 11.81751518 | D185: 1.486074854 | E185: 1.000530518 | F185: 0.03256633934 | G185: 1 | H185: 0 | I185: 7855.698934 | J185: 1.570669031 | K185: 5.701197532 | L185: 1.394482501 | M185: 1.005637922 | N185: 0.1059392295 | U185: 1.001306222 | V185: 0.07000604556 | X185: -103.4555696 | Y185: 76.54443039 | AB185: 12.72981732 | AC185: -16.16461528 | AI185: 43.09630888 | AJ185: -87.29095433 | AN185: 0 | AO185: 0
B186: 10471 | C186: 11.8845681 | D186: 1.486553991 | E186: 1.000536597 | F186: 0.03275231789 | G186: 1 | H186: 0 | I186: 7900.592953 | J186: 1.570669754 | K186: 5.732779301 | L186: 1.395463917 | M186: 1.005702362 | N186: 0.1065400966 | U186: 1.001321192 | V186: 0.07040572467 | X186: -103.4735039 | Y186: 76.52649609 | AB186: 12.72774632 | AC186: -16.1428529 | AI186: 43.0470871 | AJ186: -87.330651 | AN186: 0 | AO186: 0
B187: 10532 | C187: 11.95331423 | D187: 1.487039627 | E187: 1.000542866 | F187: 0.03294298262 | G187: 1 | H187: 0 | I187: 7946.618754 | J187: 1.570670487 | K187: 5.765162919 | L187: 1.39645891 | M187: 1.005768804 | N187: 0.1071560313 | U187: 1.001336628 | V187: 0.07081547275 | X187: -103.4922049 | Y187: 76.50779514 | AB187: 12.72564592 | AC187: -16.12117644 | AI187: 42.99690897 | AJ187: -87.37102842 | AN187: 0 | AO187: 0
B188: 10593 | C188: 12.02206314 | D188: 1.487519708 | E188: 1.00054917 | F188: 0.03313364496 | G188: 1 | H188: 0 | I188: 7992.644555 | J188: 1.570671212 | K188: 5.79755218 | L188: 1.397442787 | M188: 1.005835628 | N188: 0.1077718845 | U188: 1.001352153 | V188: 0.07122521372 | X188: -103.5112191 | Y188: 76.48878091 | AB188: 12.72356804 | AC188: -16.10013175 | AI188: 42.94701566 | AJ188: -87.41108734 | AN188: 0 | AO188: 0
B189: 10654 | C189: 12.0908148 | D189: 1.48799433 | E189: 1.000555512 | F189: 0.03332430489 | G189: 1 | H189: 0 | I189: 8038.670356 | J189: 1.570671928 | K189: 5.829946991 | L189: 1.398415731 | M189: 1.005902833 | N189: 0.1083876556 | U189: 1.001367768 | V189: 0.07163494753 | X189: -103.5305415 | Y189: 76.46945853 | AB189: 12.72151211 | AC189: -16.0797083 | AI189: 42.89740398 | AJ189: -87.45083317 | AN189: 0 | AO189: 0
B190: 10715 | C190: 12.15956914 | D190: 1.488463584 | E190: 1.000561889 | F190: 0.03351496239 | G190: 1 | H190: 0 | I190: 8084.696157 | J190: 1.570672636 | K190: 5.862347259 | L190: 1.399377921 | M190: 1.005970419 | N190: 0.1090033442 | U190: 1.001383473 | V190: 0.07204467416 | X190: -103.550167 | Y190: 76.44983299 | AB190: 12.71947756 | AC190: -16.0598958 | AI190: 42.84807077 | AJ190: -87.49027121 | AN190: 0 | AO190: 0
B191: 10777.5 | C191: 12.23001692 | D191: 1.488938906 | E191: 1.000568462 | F191: 0.03371030567 | G191: 1 | H191: 0 | I191: 8131.85374 | J191: 1.570673354 | K191: 5.895549822 | L191: 1.400352802 | M191: 1.006040063 | N191: 0.1096340866 | U191: 1.001399657 | V191: 0.07246446854 | X191: -103.5705844 | Y191: 76.42941555 | AB191: 12.7174146 | AC191: -16.04021923 | AI191: 42.79781002 | AJ191: -87.53036521 | AN191: 0 | AO191: 0
B192: 10840 | C192: 12.30046742 | D192: 1.489408782 | E192: 1.000575072 | F192: 0.03390564637 | G192: 1 | H192: 0 | I192: 8179.011323 | J192: 1.570674063 | K192: 5.928757926 | L192: 1.401316762 | M192: 1.006110106 | N192: 0.1102647415 | U192: 1.001415935 | V192: 0.07288425528 | X192: -103.5913098 | Y192: 76.40869018 | AB192: 12.71537295 | AC192: -16.02116286 | AI192: 42.74783507 | AJ192: -87.57014696 | AN192: 0 | AO192: 0
B193: 10902.5 | C193: 12.37092061 | D193: 1.489873307 | E193: 1.00058172 | F193: 0.03410098448 | G193: 1 | H193: 0 | I193: 8226.168906 | J193: 1.570674764 | K193: 5.961971477 | L193: 1.402269983 | M193: 1.00618055 | N193: 0.1108953083 | U193: 1.001432307 | V193: 0.07330403434 | X193: -103.6123381 | Y193: 76.38766193 | AB193: 12.71335207 | AC193: -16.00271629 | AI193: 42.69814268 | AJ193: -87.60962179 | AN193: 0 | AO193: 0
B194: 10965 | C194: 12.44137644 | D194: 1.49033257 | E194: 1.000588407 | F194: 0.03429631999 | G194: 1 | H194: 0 | I194: 8273.32649 | J194: 1.570675456 | K194: 5.995190385 | L194: 1.403212642 | M194: 1.006251394 | N194: 0.1115257865 | U194: 1.001448773 | V194: 0.07372380568 | X194: -103.6336643 | Y194: 76.36633575 | AB194: 12.71135143 | AC194: -15.98486938 | AI194: 42.6487297 | AJ194: -87.64879487 | AN194: 0 | AO194: 0
B195: 11028.75 | C195: 12.51324406 | D195: 1.490795691 | E195: 1.000595267 | F195: 0.03449555951 | G195: 1 | H195: 0 | I195: 8321.427224 | J195: 1.570676155 | K195: 6.029079099 | L195: 1.404163451 | M195: 1.006324067 | N195: 0.1121687827 | U195: 1.001465666 | V195: 0.07415196444 | X195: -103.6557189 | Y195: 76.34428114 | AB195: 12.70933107 | AC195: -15.96727301 | AI195: 42.59861305 | AJ195: -87.68844584 | AN195: 0 | AO195: 0
B196: 11092.5 | C196: 12.58511433 | D196: 1.491253522 | E196: 1.000602166 | F196: 0.03469479629 | G196: 1 | H196: 0 | I196: 8369.527959 | J196: 1.570676846 | K196: 6.062973202 | L196: 1.405103631 | M196: 1.006397156 | N196: 0.1128116857 | U196: 1.001482656 | V196: 0.07458011508 | X196: -103.6780733 | Y196: 76.32192666 | AB196: 12.70733067 | AC196: -15.95027989 | AI196: 42.54878058 | AJ196: -87.72779344 | AN196: 0 | AO196: 0
B197: 11156.25 | C197: 12.65698721 | D197: 1.491706154 | E197: 1.000609106 | F197: 0.03489403032 | G197: 1 | H197: 0 | I197: 8417.628694 | J197: 1.570677528 | K197: 6.096872605 | L197: 1.406033356 | M197: 1.006470661 | N197: 0.113454495 | U197: 1.001499744 | V197: 0.07500825754 | X197: -103.7007228 | Y197: 76.29927724 | AB197: 12.70534973 | AC197: -15.93387994 | AI197: 42.49922909 | AJ197: -87.76684282 | AN197: 0 | AO197: 0
B198: 11220 | C198: 12.72886265 | D198: 1.492153674 | E198: 1.000616085 | F198: 0.03509326158 | G198: 1 | H198: 0 | I198: 8465.729428 | J198: 1.570678203 | K198: 6.13077722 | L198: 1.406952799 | M198: 1.006544581 | N198: 0.1140972102 | U198: 1.00151693 | V198: 0.07543639179 | X198: -103.7236623 | Y198: 76.2763377 | AB198: 12.70338772 | AC198: -15.91806329 | AI198: 42.44995544 | AJ198: -87.80559902 | AN198: 0 | AO198: 0
B199: 11285.5 | C199: 12.80271377 | D199: 1.492608246 | E199: 1.000623297 | F199: 0.03529795902 | G199: 1 | H199: 0 | I199: 8515.150575 | J199: 1.570678889 | K199: 6.165617888 | L199: 1.407886948 | M199: 1.006620964 | N199: 0.11475747 | U199: 1.001534689 | V199: 0.07587627012 | X199: -103.7475288 | Y199: 76.25247125 | AB199: 12.70139107 | AC199: -15.90240984 | AI199: 42.3996153 | AJ199: -87.84511891 | AN199: 0 | AO199: 0
B200: 11351 | C200: 12.8765675 | D200: 1.493057603 | E200: 1.00063055 | F200: 0.03550265351 | G200: 1 | H200: 0 | I200: 8564.571722 | J200: 1.570679567 | K200: 6.200463875 | L200: 1.408810599 | M200: 1.006697786 | N200: 0.1154176293 | U200: 1.001552552 | V200: 0.07631613969 | X200: -103.7716914 | Y200: 76.22830856 | AB200: 12.69941336 | AC200: -15.88735173 | AI200: 42.3495619 | AJ200: -87.88433971 | AN200: 0 | AO200: 0
B201: 11416.5 | C201: 12.95042381 | D201: 1.493501834 | E201: 1.000637846 | F201: 0.03570734502 | G201: 1 | H201: 0 | I201: 8613.992869 | J201: 1.570680237 | K201: 6.235315093 | L201: 1.409723925 | M201: 1.006775046 | N201: 0.1160776875 | U201: 1.001570518 | V201: 0.07675600042 | X201: -103.7961454 | Y201: 76.20385456 | AB201: 12.6974541 | AC201: -15.87287892 | AI201: 42.29979197 | AJ201: -87.92326652 | AN201: 0 | AO201: 0
... 435 more rows

Sheet Schematic Management (hidden)
A2: =CHOOSE(With_CDC,CHOOSE(With_RCS, "SCH772_NO_RCS_NO_CDC", "SCH772_RCS_LIM_NO_CDC","SCH772_RCS_LIM_DAC_NO_CDC"),CHOOSE(With_RCS, "SCH772_NO_RCS","SCH772_RCS_LIM","SCH772_RCS_LIM_DAC")) -> SCH772_RCS_LIM
B6: "SCH772_NO_RCS_NO_CDC" | D6: "SCH772_RCS_LIM_NO_CDC" | F6: "SCH772_RCS_LIM_DAC_NO_CDC"
B17: "SCH772_NO_RCS" | D17: "SCH772_RCS_LIM" | F17: "SCH772_RCS_LIM_DAC"

Sheet Efficiency Plot Management (hidden)
A2: =IF(PLOT_TYPE=1, "EFF_IOUT", "EFF_VIN") -> EFF_VIN
A9: =IF(BODEPLOT_TYPE=FALSE, "BodePlot", "BodePlot_ILim") -> BodePlot

Sheet Efficiency vs VIN Calculations (hidden)
A1: BUCK-BOOST CONTROLLER POWER TOOL
H2: =BH9 -> 0.9369988857 | I2: Low VIN
H3: =BH109 -> 0.9342637547 | I3: Nom VIN
H4: =BH209 -> 0.9088645284 | I4: High VIN
A6: Enter the values of your design and MOSFET datasheet specifications below. Note that thermal resistance (θJA) will change when components are placed on the PCB | BY6: 80 | BZ6: 100 | CA6: 120 | CB6: 140 | CC6: 160 | CD6: 180 | CE6: 20 | CF6: 30 | CG6: 40 | CH6: 50
G7: Operating Point Condtions | U7: Filter Inductor | Y7: Cout | AB7: Cin | AE7: High-side BUCK "Control" MOSFET Losses | AJ7: Low-side BUCK "Sync" MOSFET Losses | AN7: Low-side BOOST "Control" MOSFET Losses | AS7: High-side BOOST "Sync" MOSFET Losses | AW7: Pass FET | AX7: External Diode | AY7: Diode/FET | AZ7: Sense Rs | BA7: Output Rs | BB7: Controller IC Losses | BF7: RESULTS | BL7: Consolidated Buck/Boost Efficiency & Losses
A8: Input Parameters | G8: Step | H8: Vin | I8: Mode | J8: Mode Digit | K8: Iout | L8: Iin | M8: Avg IL | N8: Duty Cycle BUCK Leg | O8: Duty Cycle BOOST Leg | P8: BOE/BUD BUBO ratio | Q8: T BOE | R8: T BOD/BUE | S8: T BUD | T8: Ripple Current pk-pk | U8: Irms Lf | V8: DCR Loss | W8: Core Loss | X8: Total Inductor Loss | Y8: Irms Cout | Z8: Cout ESR Loss | AA8: Total Cout Loss | AB8: Irms Cin | AC8: Cin ESR Loss | AD8: Total Cin Loss | AE8: Irms BuCtrl | AF8: RDS(on) Loss BuCtrl | AG8: Transition Loss BuCtrl | AH8: Dead Time Loss BuCtrl | AI8: Total Control Bu MOSFET Loss | AJ8: Irms BuSync | AK8: RDS(on) Loss BuSync | AL8: Deadtime Loss BuSync | AM8: Total Sync Bu MOSFET Loss | AN8: Irms BoCtlr | AO8: RDS(on) Loss BoCtlr | AP8: Transition Loss BoCtlr | AQ8: Dead Time Loss BoCtlr | AR8: Total Control Bo MOSFET Loss | AS8: Irms BoSync | AT8: RDS(on) Loss BoSync | AU8: Deadtime Loss BoSync | AV8: Total Sync Bo MOSFET Loss | AW8: Q1/Q3 RDS(on) Loss @ D = 100% | AX8: Deadtime Loss ext D | AY8: Reverse Recovery Loss MOSFET D | AZ8: Isense Shunt Loss | BA8: Iout Shunt Loss | BB8: IQ Loss | BC8: Switching Current Loss | BD8: Switching Current Diss | BE8: Total IC Loss | BF8: Total Loss | BG8: Pout | BH8: EFF, h | BI8: Control FET Temp Rise | BJ8: Sync FET Temp Rise | BK8: Column1 | BL8: h | BM8: Inductor Cu & Core Loss | BN8: Total MOSFET Loss | BO8: Total Sync MOSFET Loss | BP8: Shunt Loss | BW8: Qg | BY8: θJA=80 | BZ8: θJA=100 | CA8: θJA=120 | CB8: θJA=140 | CC8: θJA=160 | CD8: θJA=180 | CE8: θJA=20 | CF8: θJA=30 | CG8: θJA=40 | CH8: θJA=50
A9: Design | B9: Input Value | C9: Units | D9: Description | G9: 0 | H9: =VIN_min+(VIN_max-VIN_min)*(Table1[[#This Row],[Step]]/200) -> 6 | I9: =IF(Table1[[#This Row],[Vin]]>VIN_BB_to_buck, "BUCK", IF(Table1[[#This Row],[Vin]]<=VIN_boost_to_BB,"BOOST","BUCK-BST")) -> BOOST | J9: =IF(Table1[[#This Row],[Mode]]="BOOST",2, IF(Table1[[#This Row],[Mode]]="BUCK", 1,3)) -> 2 | K9: =Iout -> 3 | L9: =Vout*Table1[[#This Row],[Iout]]/(Table1[[#This Row],[Vin]]*Efficiency) -> 4.736842105 | M9: =Iout/(1-Table1[[#This Row],[Duty Cycle BOOST Leg]]) -> 4.539122112 | N9: =CHOOSE(Table1[[#This Row],[Mode Digit]],(Vout+(Rdson2+Rs+Rdcr)*Table1[[#This Row],[Iout]])/(Table1[[#This Row],[Vin]]+(Rs+Rdson2-Rdson1)*Table1[[#This Row],[Iout]]),1,IF(Table1[[#This Row],[Vin]]<Vout,D_max_buck_BB,Vout/Table1[[#This Row],[Vin]]*(1-D_min_boost_exitBB_to_buck))) -> 1 | O9: =CHOOSE(Table1[[#This Row],[Mode Digit]],0,(Vout+(Rdson3+Rdcr)*Table1[[#This Row],[Iin]]-Table1[[#This Row],[Vin]])/(Vout+(Rdson3-Rdson4-Rs)*Table1[[#This Row],[Iin]]),IF(Table1[[#This Row],[Vin]]>Vout, (Vout-Table1[[#This Row],[Vin]]*D_max_exitBB_to_buck)/Vout, (Vout-Table1[[#This Row],[Vin]]*D_max_buck_BB)/Vout)) -> 0.3390792479 | P9: =CHOOSE(Table1[[#This Row],[Mode Digit]],0,0,1-((Table1[[#This Row],[Vin]]-Vout)+((VIN_BB_to_buck-VIN_BB_to_boost)/2))/((VIN_BB_to_buck-VIN_BB_to_boost))) -> 0 | Q9: =CHOOSE(Table1[[#This Row],[Mode Digit]],0,Table1[[#This Row],[Duty Cycle BOOST Leg]]/Fsw,(1/Fsw-Table1[[#This Row],[T BOD/BUE]])*Table1[[#This Row],[BOE/BUD BUBO ratio]]) -> 5.513483706e-07 | R9: =CHOOSE(Table1[[#This Row],[Mode Digit]],Table1[[#This Row],[Duty Cycle BUCK Leg]]/Fsw,(1-Table1[[#This Row],[Duty Cycle BOOST Leg]])/Fsw,TonBubo) -> 1.07466789e-06 | S9: =CHOOSE(Table1[[#This Row],[Mode Digit]],(1-Table1[[#This Row],[Duty Cycle BUCK Leg]])/Fsw,0,(1/Fsw-Table1[[#This Row],[T BOD/BUE]]-Table1[[#This Row],[T BOE]])) -> 0 | T9: =MAX(0, CHOOSE(Table1[[#This Row],[Mode Digit]], (Table1[[#This Row],[Vin]]-(Rdson1+Rdcr)*Table1[[#This Row],[Iout]]-Vout)*Table1[[#This Row],[Duty Cycle BUCK Leg]]/(Fsw*Lf), (Table1[[#This Row],[Vin]]-(Rdson4+Rdcr+Rs)*Table1[[#This Row],[Iin]])*Table1[[#This Row],[Duty Cycle BOOST Leg]]/(Fsw*Lf), IF(Table1[[#This Row],[Vin]]<Vout, (Table1[[#This Row],[Vin]]-(Rdson1+Rdson3+Rdcr+Rs)*Table1[[#This Row],[Iin]])*Table1[[#This Row],[T BOE]]/(Lf),(Vout-(Rdson2+Rdson4+Rdcr+Rs)*Table1[[#This Row],[Iout]])*Table1[[#This Row],[T BUD]]/(Lf)))) -> 0.992242405 | U9: =CHOOSE(Table1[[#This Row],[Mode Digit]], SQRT(Table1[[#This Row],[Iout]]^2+(Table1[[#This Row],[Ripple Current pk-pk]]^2)/12), SQRT(Table1[[#This Row],[Iin]]^2+(Table1[[#This Row],[Ripple Current pk-pk]]^2)/12), SQRT(Table1[[#This Row],[Avg IL]]^2+(Table1[[#This Row],[Ripple Current pk-pk]]^2)/12)) -> 4.745494552 | V9: =(Table1[[#This Row],[Irms Lf]]^2*Rdcr*(1+Ltc*Ta-Ltc*25))/(1-Table1[[#This Row],[Irms Lf]]^2*Rdcr*Ltc*ThetaCa) -> 0.1342937894 | W9: =ABS(7.759*10^-3*Fsw^0.9458*(0.00787*Table1[[#This Row],[Ripple Current pk-pk]])^2.304) -> 0.03231893138 | X9: =Table1[[#This Row],[DCR Loss]]+Table1[[#This Row],[Core Loss]] -> 0.1666127207 | Y9: =IF(Table1[[#This Row],[Vin]]>Vout, Table1[[#This Row],[Ripple Current pk-pk]]/SQRT(12), SQRT(Table1[[#This Row],[Duty Cycle BOOST Leg]]/(1-Table1[[#This Row],[Duty Cycle BOOST Leg]]))*SQRT(Table1[[#This Row],[Iout]]^2+(Table1[[#This Row],[Ripple Current pk-pk]]^2)/12)) -> 2.158577998 | Z9: =RCoutEsr*Table1[[#This Row],[Irms Cout]]^2 -> 0.03867350948 | AA9: =Table1[[#This Row],[Cout ESR Loss]] -> 0.03867350948 | AB9: =IF(Table1[[#This Row],[Vin]]>Vout, SQRT(Table1[[#This Row],[Duty Cycle BUCK Leg]]*(1-Table1[[#This Row],[Duty Cycle BUCK Leg]]))*SQRT(Table1[[#This Row],[Iout]]^2+(Table1[[#This Row],[Ripple Current pk-pk]]^2)/12), Table1[[#This Row],[Ripple Current pk-pk]]/SQRT(12)) -> 0.2864357098 | AC9: =RCinEsr*Table1[[#This Row],[Irms Cin]]^2 -> 0.0006809769516 | AD9: =Table1[[#This Row],[Cin ESR Loss]] -> 0.0006809769516 | AE9: =Table1[[#This Row],[Irms Lf]] -> 4.745494552 | AF9: =Rdson1*Table1[[#This Row],[Irms BuCtrl]]^2 -> 0.09007887418 | AG9: =CHOOSE(Table1[[#This Row],[Mode Digit]], (Table1[[#This Row],[Vin]]*Table1[[#This Row],[Iout]]/2)*(Fsw)*(Tr_buck+Tf_buck), 0, (Table1[[#This Row],[Vin]]*Table1[[#This Row],[Avg IL]]/2)*(Fsw/1)*(Tr_buck+Tf_buck)) -> 0 | AH9: =IF(Table1[[#This Row],[Vin]]>Vout, IF(Table1[[#This Row],[Iout]]>Table1[[#This Row],[Ripple Current pk-pk]]/2,0,ABS(Table1[[#This Row],[Iout]]-Table1[[#This Row],[Ripple Current pk-pk]]/2)*Vsd_Q1*Deadtime*Fsw),0) -> 0 | AI9: =(Table1[[#This Row],[Dead Time Loss BuCtrl]]+Table1[[#This Row],[Transition Loss BuCtrl]]+Table1[[#This Row],[RDS(on) Loss BuCtrl]]*(1+RdsonTopTc*Ta-RdsonTopTc*25))/(1-Table1[[#This Row],[RDS(on) Loss BuCtrl]]*RdsonTopTc*ThetaJA_Q1) -> 0.09213717828 | AJ9: =Table1[[#This Row],[Irms Lf]] -> 4.745494552 | AK9: =Rdson2*Table1[[#This Row],[Irms BuSync]]^2 -> 0.09007887418 | AL9: =CHOOSE(Table1[[#This Row],[Mode Digit]], IF(Table1[[#This Row],[Iout]]<Table1[[#This Row],[Ripple Current pk-pk]]/2,Deadtime*Fsw*IF(VfdSky_Q2>0,0,Vsd_Q2)*(Table1[[#This Row],[Iout]]+Table1[[#This Row],[Ripple Current pk-pk]]/2),2*Deadtime*Fsw*IF(VfdSky_Q2>0,0,Vsd_Q2)*Table1[[#This Row],[Iout]]),0, IF(Table1[[#This Row],[Iout]]<Table1[[#This Row],[Ripple Current pk-pk]]/2,Deadtime*Fsw*IF(VfdSky_Q2>0,0,Vsd_Q2)*(Table1[[#This Row],[Iout]]+Table1[[#This Row],[Ripple Current pk-pk]]/2),2*Deadtime*Fsw*IF(VfdSky_Q2>0,0,Vsd_Q2)*Table1[[#This Row],[Iout]])) -> 0 | AM9: =(Table1[[#This Row],[Deadtime Loss BuSync]]+Table1[[#This Row],[RDS(on) Loss BuSync]]*(1+RdsonBotTc*Ta-RdsonBotTc*25))/(1-Table1[[#This Row],[RDS(on) Loss BuSync]]*RdsonBotTc*ThetaJA_Q2) -> 0.09213717828 | AN9: =Table1[[#This Row],[Irms Lf]] -> 4.745494552 | AO9: =Rdson4*Table1[[#This Row],[Irms BoCtlr]]^2 -> 0.09007887418 | AP9: =CHOOSE(Table1[[#This Row],[Mode Digit]], 0, (Vout*Table1[[#This Row],[Iin]]/2)*(Fsw)*(Tr_boost+Tf_boost), (Vout*Iout/2)*(Fsw/1)*(Tr_boost+Tf_boost)) -> 0.3260014163 | AQ9: =IF(Table1[[#This Row],[Vin]]>Vout, 0, IF(Table1[[#This Row],[Iin]]>Table1[[#This Row],[Ripple Current pk-pk]]/2,0,ABS(Table1[[#This Row],[Iin]]-Table1[[#This Row],[Ripple Current pk-pk]]/2)*Vsd_Q4*Deadtime*Fsw)) -> 0 | AR9: =(Table1[[#This Row],[Dead Time Loss BoCtlr]]+Table1[[#This Row],[Transition Loss BoCtlr]]+Table1[[#This Row],[RDS(on) Loss BoCtlr]]*(1+RdsonTopTc*Ta-RdsonTopTc*25))/(1-Table1[[#This Row],[RDS(on) Loss BoCtlr]]*RdsonTopTc*ThetaJA_Q4) -> 0.4255877335 | AS9: =Table1[[#This Row],[Irms Lf]] -> 4.745494552 | AT9: =Rdson3*Table1[[#This Row],[Irms BoSync]]^2 -> 0.09007887418 | AU9: =CHOOSE(Table1[[#This Row],[Mode Digit]], 0, IF(Table1[[#This Row],[Iin]]<Table1[[#This Row],[Ripple Current pk-pk]]/2,Deadtime*Fsw*IF(VfdSky_Q3>0,0,Vsd_Q3)*(Table1[[#This Row],[Iin]]+Table1[[#This Row],[Ripple Current pk-pk]]/2), 2*Deadtime*Fsw*IF(VfdSky_Q3>0,0,Vsd_Q3)*Table1[[#This Row],[Iin]]), IF(Table1[[#This Row],[Iin]]<Table1[[#This Row],[Ripple Current pk-pk]]/2,Deadtime*Fsw*IF(VfdSky_Q3>0,0,Vsd_Q3)*(Table1[[#This Row],[Iin]]+Table1[[#This Row],[Ripple Current pk-pk]]/2), 2*Deadtime*Fsw*IF(VfdSky_Q3>0,0,Vsd_Q3)*Table1[[#This Row],[Iin]])) -> 0.3495789474 | AV9: =(Table1[[#This Row],[Deadtime Loss BoSync]]+Table1[[#This Row],[RDS(on) Loss BoSync]]*(1+RdsonBotTc*Ta-RdsonBotTc*25))/(1-Table1[[#This Row],[RDS(on) Loss BoSync]]*RdsonBotTc*ThetaJA_Q3) -> 0.4497040117 | AW9: =CHOOSE(Table1[[#This Row],[Mode Digit]], Rdson3*Table1[[#This Row],[Irms Lf]]^2, Rdson1*Table1[[#This Row],[Irms Lf]]^2, 0) -> 0.09007887418 | AX9: =CHOOSE(Table1[[#This Row],[Mode Digit]], 2*Deadtime*Fsw*IF(VfdSky_Q2>0,VfdSky_Q2,0)*Table1[[#This Row],[Iout]], 2*Deadtime*Fsw*IF(VfdSky_Q3>0,VfdSky_Q3,0)*Table1[[#This Row],[Iin]], 2*Deadtime*Fsw*IF(VfdSky_Q2>0,VfdSky_Q2,0)*Table1[[#This Row],[Iout]]+2*Deadtime*Fsw*IF(VfdSky_Q3>0,VfdSky_Q3,0)*Table1[[#This Row],[Iin]]) -> 0 | AY9: =CHOOSE(Table1[[#This Row],[Mode Digit]], IF(QrrSky_Q2>0,QrrSky_Q2,Qrr_Q2)*Fsw*(Table1[[#This Row],[Vin]]-Table1[[#This Row],[Iout]]*Rdson1), IF(QrrSky_Q3>0,QrrSky_Q3,Qrr_Q3)*Fsw*Vout, IF(QrrSky_Q2>0,QrrSky_Q2,Qrr_Q2)*Fsw*(Table1[[#This Row],[Vin]]-Table1[[#This Row],[Iout]]*Rdson1)+IF(QrrSky_Q3>0,QrrSky_Q3,Qrr_Q3)*Fsw*Vout) -> 0.12177 | AZ9: =CHOOSE(Table1[[#This Row],[Mode Digit]], Rs*Table1[[#This Row],[Irms BuSync]]^2, Rs*Table1[[#This Row],[Irms BoCtlr]]^2, Rs*(Table1[[#This Row],[Irms BuSync]]^2+Table1[[#This Row],[Irms BoCtlr]]^2)) -> 0.06755915564 | BA9: =Rshunt/1000*Iout^2 -> 0.09 | BB9: =IF(Vout>8, Iq*Vout, Iq*Table1[[#This Row],[Vin]]) -> 0.027 | BC9: =CHOOSE(Table1[[#This Row],[Mode Digit]], (Qg_Q1+Qg_Q2)*Fsw, (Qg_Q3+Qg_Q4)*Fsw, (Qg_Q1+Qg_Q2+Qg_Q3+Qg_Q4)*Fsw)*IF(Vout>8, Vout, Table1[[#This Row],[Vin]]) -> 0.24354 | BD9: =(Vin-Vdd)*Fsw*(Qg_Q1+Qg_Q2)+(RdsonDRT+RdsonDRT2)*Fsw*Qg_Q1*Vdd/(RdsonDRT+2*Rgate1+RdsonDRT2)+(RdsonDRB+RdsonDRB2)*Fsw*Qg_Q2*Vdd/(RdsonDRB+2*Rgate2+RdsonDRB2) -> 0.1912734247 | BE9: =Table1[[#This Row],[IQ Loss]]+Table1[[#This Row],[Switching Current Loss]] -> 0.27054 | BF9: =SUM(Table1[[#This Row],[Total Inductor Loss]],Table1[[#This Row],[Total Cout Loss]],Table1[[#This Row],[Total Cin Loss]],Table1[[#This Row],[Total Control Bu MOSFET Loss]],Table1[[#This Row],[Total Sync Bu MOSFET Loss]],Table1[[#This Row],[Total Control Bo MOSFET Loss]],Table1[[#This Row],[Total Sync Bo MOSFET Loss]], Table1[[#This Row],[Deadtime Loss ext D]],Table1[[#This Row],[Reverse Recovery Loss MOSFET D]],Table1[[#This Row],[Total IC Loss]],Table1[[#This Row],[Isense Shunt Loss]],Table1[[#This Row],[Iout Shunt Loss]]) -> 1.815402465 | BG9: =Vout*Table1[[#This Row],[Iout]] -> 27 | BH9: =Table1[[#This Row],[Pout]]/(Table1[[#This Row],[Pout]]+Table1[[#This Row],[Total Loss]]) -> 0.9369988857 | BI9: =IF(Table1[[#This Row],[Vin]]>Vout,ThetaJA_Q1*(Table1[[#This Row],[Total Control Bu MOSFET Loss]]+Table1[[#This Row],[Reverse Recovery Loss MOSFET D]]),ThetaJA_Q4*(Table1[[#This Row],[Total Control Bo MOSFET Loss]]+Table1[[#This Row],[Reverse Recovery Loss MOSFET D]])) -> 33.93617948 | BJ9: =IF(Table1[[#This Row],[Vin]]>Vout, Table1[[#This Row],[Total Sync Bu MOSFET Loss]]*ThetaJA_Q2, ThetaJA_Q3*Table1[[#This Row],[Total Sync Bo MOSFET Loss]]) -> 27.88164872 | BL9: =Table1[[#This Row],[EFF, h]]*100 -> 93.69988857 | BM9: =Table1[[#This Row],[Total Inductor Loss]] -> 0.1666127207 | BN9: =Table1[[#This Row],[Total Control Bu MOSFET Loss]]+Table1[[#This Row],[Total Sync Bu MOSFET Loss]]+Table1[[#This Row],[Total Control Bo MOSFET Loss]]+Table1[[#This Row],[Total Sync Bo MOSFET Loss]]+Table1[[#This Row],[Reverse Recovery Loss MOSFET D]] -> 1.181336102 | BO9: =Table1[[#This Row],[Total Sync Bu MOSFET Loss]]+Table1[[#This Row],[Reverse Recovery Loss MOSFET D]]*0.33 -> 0.1323212783 | BP9: =Table1[[#This Row],[Isense Shunt Loss]] -> 0.06755915564 | BT9: 250kHz / 5-1.2V /25A | BU9: 70 | BV9: 70 | BW9: 70 | BX9: =250000*(5-Vdd)*BW9/1000000000+((250000*BW9/1000000000*Vdd)*2.5/(2*4)) -> -0.002734375 | BY9: =BY$6*$BX9 -> -0.21875 | BZ9: -0.2734375 | CA9: -0.328125 | CB9: -0.3828125 | CC9: -0.4375 | CD9: -0.4921875 | CE9: -0.0546875 | CF9: -0.08203125 | CG9: -0.109375 | CH9: -0.13671875
G10: 1 | H10: =VIN_min+(VIN_max-VIN_min)*(Table1[[#This Row],[Step]]/200) -> 6.15 | I10: =IF(Table1[[#This Row],[Vin]]>VIN_BB_to_buck, "BUCK", IF(Table1[[#This Row],[Vin]]<=VIN_boost_to_BB,"BOOST","BUCK-BST")) -> BOOST | J10: =IF(Table1[[#This Row],[Mode]]="BOOST",2, IF(Table1[[#This Row],[Mode]]="BUCK", 1,3)) -> 2 | K10: 3 | L10: =Vout*Table1[[#This Row],[Iout]]/(Table1[[#This Row],[Vin]]*Efficiency) -> 4.621309371 | M10: =Iout/(1-Table1[[#This Row],[Duty Cycle BOOST Leg]]) -> 4.426388107 | N10: =CHOOSE(Table1[[#This Row],[Mode Digit]],(Vout+(Rdson2+Rs+Rdcr)*Table1[[#This Row],[Iout]])/(Table1[[#This Row],[Vin]]+(Rs+Rdson2-Rdson1)*Table1[[#This Row],[Iout]]),1,IF(Table1[[#This Row],[Vin]]<Vout,D_max_buck_BB,Vout/Table1[[#This Row],[Vin]]*(1-D_min_boost_exitBB_to_buck))) -> 1 | O10: =CHOOSE(Table1[[#This Row],[Mode Digit]],0,(Vout+(Rdson3+Rdcr)*Table1[[#This Row],[Iin]]-Table1[[#This Row],[Vin]])/(Vout+(Rdson3-Rdson4-Rs)*Table1[[#This Row],[Iin]]),IF(Table1[[#This Row],[Vin]]>Vout, (Vout-Table1[[#This Row],[Vin]]*D_max_exitBB_to_buck)/Vout, (Vout-Table1[[#This Row],[Vin]]*D_max_buck_BB)/Vout)) -> 0.3222465072 | P10: =CHOOSE(Table1[[#This Row],[Mode Digit]],0,0,1-((Table1[[#This Row],[Vin]]-Vout)+((VIN_BB_to_buck-VIN_BB_to_boost)/2))/((VIN_BB_to_buck-VIN_BB_to_boost))) -> 0 | Q10: =CHOOSE(Table1[[#This Row],[Mode Digit]],0,Table1[[#This Row],[Duty Cycle BOOST Leg]]/Fsw,(1/Fsw-Table1[[#This Row],[T BOD/BUE]])*Table1[[#This Row],[BOE/BUD BUBO ratio]]) -> 5.239780606e-07 | R10: =CHOOSE(Table1[[#This Row],[Mode Digit]],Table1[[#This Row],[Duty Cycle BUCK Leg]]/Fsw,(1-Table1[[#This Row],[Duty Cycle BOOST Leg]])/Fsw,TonBubo) -> 1.1020382e-06 | S10: =CHOOSE(Table1[[#This Row],[Mode Digit]],(1-Table1[[#This Row],[Duty Cycle BUCK Leg]])/Fsw,0,(1/Fsw-Table1[[#This Row],[T BOD/BUE]]-Table1[[#This Row],[T BOE]])) -> 0 | T10: =MAX(0, CHOOSE(Table1[[#This Row],[Mode Digit]], (Table1[[#This Row],[Vin]]-(Rdson1+Rdcr)*Table1[[#This Row],[Iout]]-Vout)*Table1[[#This Row],[Duty Cycle BUCK Leg]]/(Fsw*Lf), (Table1[[#This Row],[Vin]]-(Rdson4+Rdcr+Rs)*Table1[[#This Row],[Iin]])*Table1[[#This Row],[Duty Cycle BOOST Leg]]/(Fsw*Lf), IF(Table1[[#This Row],[Vin]]<Vout, (Table1[[#This Row],[Vin]]-(Rdson1+Rdson3+Rdcr+Rs)*Table1[[#This Row],[Iin]])*Table1[[#This Row],[T BOE]]/(Lf),(Vout-(Rdson2+Rdson4+Rdcr+Rs)*Table1[[#This Row],[Iout]])*Table1[[#This Row],[T BUD]]/(Lf)))) -> 0.9670388417 | U10: =CHOOSE(Table1[[#This Row],[Mode Digit]], SQRT(Table1[[#This Row],[Iout]]^2+(Table1[[#This Row],[Ripple Current pk-pk]]^2)/12), SQRT(Table1[[#This Row],[Iin]]^2+(Table1[[#This Row],[Ripple Current pk-pk]]^2)/12), SQRT(Table1[[#This Row],[Avg IL]]^2+(Table1[[#This Row],[Ripple Current pk-pk]]^2)/12)) -> 4.629733323 | V10: =(Table1[[#This Row],[Irms Lf]]^2*Rdcr*(1+Ltc*Ta-Ltc*25))/(1-Table1[[#This Row],[Irms Lf]]^2*Rdcr*Ltc*ThetaCa) -> 0.1277556513 | W10: =ABS(7.759*10^-3*Fsw^0.9458*(0.00787*Table1[[#This Row],[Ripple Current pk-pk]])^2.304) -> 0.0304587732 | X10: =Table1[[#This Row],[DCR Loss]]+Table1[[#This Row],[Core Loss]] -> 0.1582144245 | Y10: =IF(Table1[[#This Row],[Vin]]>Vout, Table1[[#This Row],[Ripple Current pk-pk]]/SQRT(12), SQRT(Table1[[#This Row],[Duty Cycle BOOST Leg]]/(1-Table1[[#This Row],[Duty Cycle BOOST Leg]]))*SQRT(Table1[[#This Row],[Iout]]^2+(Table1[[#This Row],[Ripple Current pk-pk]]^2)/12)) -> 2.077550792 | Z10: =RCoutEsr*Table1[[#This Row],[Irms Cout]]^2 -> 0.03582460354 | AA10: =Table1[[#This Row],[Cout ESR Loss]] -> 0.03582460354 | AB10: =IF(Table1[[#This Row],[Vin]]>Vout, SQRT(Table1[[#This Row],[Duty Cycle BUCK Leg]]*(1-Table1[[#This Row],[Duty Cycle BUCK Leg]]))*SQRT(Table1[[#This Row],[Iout]]^2+(Table1[[#This Row],[Ripple Current pk-pk]]^2)/12), Table1[[#This Row],[Ripple Current pk-pk]]/SQRT(12)) -> 0.2791600678 | AC10: =RCinEsr*Table1[[#This Row],[Irms Cin]]^2 -> 0.0006468218506 | AD10: =Table1[[#This Row],[Cin ESR Loss]] -> 0.0006468218506 | AE10: =Table1[[#This Row],[Irms Lf]] -> 4.629733323 | AF10: =Rdson1*Table1[[#This Row],[Irms BuCtrl]]^2 -> 0.08573772258 | AG10: =CHOOSE(Table1[[#This Row],[Mode Digit]], (Table1[[#This Row],[Vin]]*Table1[[#This Row],[Iout]]/2)*(Fsw)*(Tr_buck+Tf_buck), 0, (Table1[[#This Row],[Vin]]*Table1[[#This Row],[Avg IL]]/2)*(Fsw/1)*(Tr_buck+Tf_buck)) -> 0 | AH10: =IF(Table1[[#This Row],[Vin]]>Vout, IF(Table1[[#This Row],[Iout]]>Table1[[#This Row],[Ripple Current pk-pk]]/2,0,ABS(Table1[[#This Row],[Iout]]-Table1[[#This Row],[Ripple Current pk-pk]]/2)*Vsd_Q1*Deadtime*Fsw),0) -> 0 | AI10: =(Table1[[#This Row],[Dead Time Loss BuCtrl]]+Table1[[#This Row],[Transition Loss BuCtrl]]+Table1[[#This Row],[RDS(on) Loss BuCtrl]]*(1+RdsonTopTc*Ta-RdsonTopTc*25))/(1-Table1[[#This Row],[RDS(on) Loss BuCtrl]]*RdsonTopTc*ThetaJA_Q1) -> 0.08760036522 | AJ10: =Table1[[#This Row],[Irms Lf]] -> 4.629733323 | AK10: =Rdson2*Table1[[#This Row],[Irms BuSync]]^2 -> 0.08573772258 | AL10: =CHOOSE(Table1[[#This Row],[Mode Digit]], IF(Table1[[#This Row],[Iout]]<Table1[[#This Row],[Ripple Current pk-pk]]/2,Deadtime*Fsw*IF(VfdSky_Q2>0,0,Vsd_Q2)*(Table1[[#This Row],[Iout]]+Table1[[#This Row],[Ripple Current pk-pk]]/2),2*Deadtime*Fsw*IF(VfdSky_Q2>0,0,Vsd_Q2)*Table1[[#This Row],[Iout]]),0, IF(Table1[[#This Row],[Iout]]<Table1[[#This Row],[Ripple Current pk-pk]]/2,Deadtime*Fsw*IF(VfdSky_Q2>0,0,Vsd_Q2)*(Table1[[#This Row],[Iout]]+Table1[[#This Row],[Ripple Current pk-pk]]/2),2*Deadtime*Fsw*IF(VfdSky_Q2>0,0,Vsd_Q2)*Table1[[#This Row],[Iout]])) -> 0 | AM10: =(Table1[[#This Row],[Deadtime Loss BuSync]]+Table1[[#This Row],[RDS(on) Loss BuSync]]*(1+RdsonBotTc*Ta-RdsonBotTc*25))/(1-Table1[[#This Row],[RDS(on) Loss BuSync]]*RdsonBotTc*ThetaJA_Q2) -> 0.08760036522 | AN10: =Table1[[#This Row],[Irms Lf]] -> 4.629733323 | AO10: =Rdson4*Table1[[#This Row],[Irms BoCtlr]]^2 -> 0.08573772258 | AP10: =CHOOSE(Table1[[#This Row],[Mode Digit]], 0, (Vout*Table1[[#This Row],[Iin]]/2)*(Fsw)*(Tr_boost+Tf_boost), (Vout*Iout/2)*(Fsw/1)*(Tr_boost+Tf_boost)) -> 0.3180501622 | AQ10: =IF(Table1[[#This Row],[Vin]]>Vout, 0, IF(Table1[[#This Row],[Iin]]>Table1[[#This Row],[Ripple Current pk-pk]]/2,0,ABS(Table1[[#This Row],[Iin]]-Table1[[#This Row],[Ripple Current pk-pk]]/2)*Vsd_Q4*Deadtime*Fsw)) -> 0 | AR10: =(Table1[[#This Row],[Dead Time Loss BoCtlr]]+Table1[[#This Row],[Transition Loss BoCtlr]]+Table1[[#This Row],[RDS(on) Loss BoCtlr]]*(1+RdsonTopTc*Ta-RdsonTopTc*25))/(1-Table1[[#This Row],[RDS(on) Loss BoCtlr]]*RdsonTopTc*ThetaJA_Q4) -> 0.4125601324 | AS10: =Table1[[#This Row],[Irms Lf]] -> 4.629733323 | AT10: =Rdson3*Table1[[#This Row],[Irms BoSync]]^2 -> 0.08573772258 | AU10: =CHOOSE(Table1[[#This Row],[Mode Digit]], 0, IF(Table1[[#This Row],[Iin]]<Table1[[#This Row],[Ripple Current pk-pk]]/2,Deadtime*Fsw*IF(VfdSky_Q3>0,0,Vsd_Q3)*(Table1[[#This Row],[Iin]]+Table1[[#This Row],[Ripple Current pk-pk]]/2), 2*Deadtime*Fsw*IF(VfdSky_Q3>0,0,Vsd_Q3)*Table1[[#This Row],[Iin]]), IF(Table1[[#This Row],[Iin]]<Table1[[#This Row],[Ripple Current pk-pk]]/2,Deadtime*Fsw*IF(VfdSky_Q3>0,0,Vsd_Q3)*(Table1[[#This Row],[Iin]]+Table1[[#This Row],[Ripple Current pk-pk]]/2), 2*Deadtime*Fsw*IF(VfdSky_Q3>0,0,Vsd_Q3)*Table1[[#This Row],[Iin]])) -> 0.3410526316 | AV10: =(Table1[[#This Row],[Deadtime Loss BoSync]]+Table1[[#This Row],[RDS(on) Loss BoSync]]*(1+RdsonBotTc*Ta-RdsonBotTc*25))/(1-Table1[[#This Row],[RDS(on) Loss BoSync]]*RdsonBotTc*ThetaJA_Q3) -> 0.4360623279 | AW10: =CHOOSE(Table1[[#This Row],[Mode Digit]], Rdson3*Table1[[#This Row],[Irms Lf]]^2, Rdson1*Table1[[#This Row],[Irms Lf]]^2, 0) -> 0.08573772258 | AX10: =CHOOSE(Table1[[#This Row],[Mode Digit]], 2*Deadtime*Fsw*IF(VfdSky_Q2>0,VfdSky_Q2,0)*Table1[[#This Row],[Iout]], 2*Deadtime*Fsw*IF(VfdSky_Q3>0,VfdSky_Q3,0)*Table1[[#This Row],[Iin]], 2*Deadtime*Fsw*IF(VfdSky_Q2>0,VfdSky_Q2,0)*Table1[[#This Row],[Iout]]+2*Deadtime*Fsw*IF(VfdSky_Q3>0,VfdSky_Q3,0)*Table1[[#This Row],[Iin]]) -> 0 | AY10: =CHOOSE(Table1[[#This Row],[Mode Digit]], IF(QrrSky_Q2>0,QrrSky_Q2,Qrr_Q2)*Fsw*(Table1[[#This Row],[Vin]]-Table1[[#This Row],[Iout]]*Rdson1), IF(QrrSky_Q3>0,QrrSky_Q3,Qrr_Q3)*Fsw*Vout, IF(QrrSky_Q2>0,QrrSky_Q2,Qrr_Q2)*Fsw*(Table1[[#This Row],[Vin]]-Table1[[#This Row],[Iout]]*Rdson1)+IF(QrrSky_Q3>0,QrrSky_Q3,Qrr_Q3)*Fsw*Vout) -> 0.12177 | AZ10: =CHOOSE(Table1[[#This Row],[Mode Digit]], Rs*Table1[[#This Row],[Irms BuSync]]^2, Rs*Table1[[#This Row],[Irms BoCtlr]]^2, Rs*(Table1[[#This Row],[Irms BuSync]]^2+Table1[[#This Row],[Irms BoCtlr]]^2)) -> 0.06430329194 | BA10: 0.09 | BB10: =IF(Vout>8, Iq*Vout, Iq*Table1[[#This Row],[Vin]]) -> 0.027 | BC10: =CHOOSE(Table1[[#This Row],[Mode Digit]], (Qg_Q1+Qg_Q2)*Fsw, (Qg_Q3+Qg_Q4)*Fsw, (Qg_Q1+Qg_Q2+Qg_Q3+Qg_Q4)*Fsw)*IF(Vout>8, Vout, Table1[[#This Row],[Vin]]) -> 0.24354 | BD10: 0.1912734247 | BE10: =Table1[[#This Row],[IQ Loss]]+Table1[[#This Row],[Switching Current Loss]] -> 0.27054 | BF10: =SUM(Table1[[#This Row],[Total Inductor Loss]],Table1[[#This Row],[Total Cout Loss]],Table1[[#This Row],[Total Cin Loss]],Table1[[#This Row],[Total Control Bu MOSFET Loss]],Table1[[#This Row],[Total Sync Bu MOSFET Loss]],Table1[[#This Row],[Total Control Bo MOSFET Loss]],Table1[[#This Row],[Total Sync Bo MOSFET Loss]], Table1[[#This Row],[Deadtime Loss ext D]],Table1[[#This Row],[Reverse Recovery Loss MOSFET D]],Table1[[#This Row],[Total IC Loss]],Table1[[#This Row],[Isense Shunt Loss]],Table1[[#This Row],[Iout Shunt Loss]]) -> 1.765122333 | BG10: =Vout*Table1[[#This Row],[Iout]] -> 27 | BH10: =Table1[[#This Row],[Pout]]/(Table1[[#This Row],[Pout]]+Table1[[#This Row],[Total Loss]]) -> 0.9386367173 | BI10: =IF(Table1[[#This Row],[Vin]]>Vout,ThetaJA_Q1*(Table1[[#This Row],[Total Control Bu MOSFET Loss]]+Table1[[#This Row],[Reverse Recovery Loss MOSFET D]]),ThetaJA_Q4*(Table1[[#This Row],[Total Control Bo MOSFET Loss]]+Table1[[#This Row],[Reverse Recovery Loss MOSFET D]])) -> 33.12846821 | BJ10: =IF(Table1[[#This Row],[Vin]]>Vout, Table1[[#This Row],[Total Sync Bu MOSFET Loss]]*ThetaJA_Q2, ThetaJA_Q3*Table1[[#This Row],[Total Sync Bo MOSFET Loss]]) -> 27.03586433 | BL10: =Table1[[#This Row],[EFF, h]]*100 -> 93.86367173 | BM10: =Table1[[#This Row],[Total Inductor Loss]] -> 0.1582144245 | BN10: =Table1[[#This Row],[Total Control Bu MOSFET Loss]]+Table1[[#This Row],[Total Sync Bu MOSFET Loss]]+Table1[[#This Row],[Total Control Bo MOSFET Loss]]+Table1[[#This Row],[Total Sync Bo MOSFET Loss]]+Table1[[#This Row],[Reverse Recovery Loss MOSFET D]] -> 1.145593191 | BO10: =Table1[[#This Row],[Total Sync Bu MOSFET Loss]]+Table1[[#This Row],[Reverse Recovery Loss MOSFET D]]*0.33 -> 0.1277844652 | BP10: =Table1[[#This Row],[Isense Shunt Loss]] -> 0.06430329194
A11: Vin | B11: =Vin -> 12 | C11: V | D11: Vin | G11: 2 | H11: =VIN_min+(VIN_max-VIN_min)*(Table1[[#This Row],[Step]]/200) -> 6.3 | I11: =IF(Table1[[#This Row],[Vin]]>VIN_BB_to_buck, "BUCK", IF(Table1[[#This Row],[Vin]]<=VIN_boost_to_BB,"BOOST","BUCK-BST")) -> BOOST | J11: =IF(Table1[[#This Row],[Mode]]="BOOST",2, IF(Table1[[#This Row],[Mode]]="BUCK", 1,3)) -> 2 | K11: 3 | L11: =Vout*Table1[[#This Row],[Iout]]/(Table1[[#This Row],[Vin]]*Efficiency) -> 4.511278195 | M11: =Iout/(1-Table1[[#This Row],[Duty Cycle BOOST Leg]]) -> 4.319167389 | N11: =CHOOSE(Table1[[#This Row],[Mode Digit]],(Vout+(Rdson2+Rs+Rdcr)*Table1[[#This Row],[Iout]])/(Table1[[#This Row],[Vin]]+(Rs+Rdson2-Rdson1)*Table1[[#This Row],[Iout]]),1,IF(Table1[[#This Row],[Vin]]<Vout,D_max_buck_BB,Vout/Table1[[#This Row],[Vin]]*(1-D_min_boost_exitBB_to_buck))) -> 1 | O11: =CHOOSE(Table1[[#This Row],[Mode Digit]],0,(Vout+(Rdson3+Rdcr)*Table1[[#This Row],[Iin]]-Table1[[#This Row],[Vin]])/(Vout+(Rdson3-Rdson4-Rs)*Table1[[#This Row],[Iin]]),IF(Table1[[#This Row],[Vin]]>Vout, (Vout-Table1[[#This Row],[Vin]]*D_max_exitBB_to_buck)/Vout, (Vout-Table1[[#This Row],[Vin]]*D_max_buck_BB)/Vout)) -> 0.3054216867 | P11: =CHOOSE(Table1[[#This Row],[Mode Digit]],0,0,1-((Table1[[#This Row],[Vin]]-Vout)+((VIN_BB_to_buck-VIN_BB_to_boost)/2))/((VIN_BB_to_buck-VIN_BB_to_boost))) -> 0 | Q11: =CHOOSE(Table1[[#This Row],[Mode Digit]],0,Table1[[#This Row],[Duty Cycle BOOST Leg]]/Fsw,(1/Fsw-Table1[[#This Row],[T BOD/BUE]])*Table1[[#This Row],[BOE/BUD BUBO ratio]]) -> 4.966206289e-07 | R11: =CHOOSE(Table1[[#This Row],[Mode Digit]],Table1[[#This Row],[Duty Cycle BUCK Leg]]/Fsw,(1-Table1[[#This Row],[Duty Cycle BOOST Leg]])/Fsw,TonBubo) -> 1.129395631e-06 | S11: =CHOOSE(Table1[[#This Row],[Mode Digit]],(1-Table1[[#This Row],[Duty Cycle BUCK Leg]])/Fsw,0,(1/Fsw-Table1[[#This Row],[T BOD/BUE]]-Table1[[#This Row],[T BOE]])) -> 0 | T11: =MAX(0, CHOOSE(Table1[[#This Row],[Mode Digit]], (Table1[[#This Row],[Vin]]-(Rdson1+Rdcr)*Table1[[#This Row],[Iout]]-Vout)*Table1[[#This Row],[Duty Cycle BUCK Leg]]/(Fsw*Lf), (Table1[[#This Row],[Vin]]-(Rdson4+Rdcr+Rs)*Table1[[#This Row],[Iin]])*Table1[[#This Row],[Duty Cycle BOOST Leg]]/(Fsw*Lf), IF(Table1[[#This Row],[Vin]]<Vout, (Table1[[#This Row],[Vin]]-(Rdson1+Rdson3+Rdcr+Rs)*Table1[[#This Row],[Iin]])*Table1[[#This Row],[T BOE]]/(Lf),(Vout-(Rdson2+Rdson4+Rdcr+Rs)*Table1[[#This Row],[Iout]])*Table1[[#This Row],[T BUD]]/(Lf)))) -> 0.9393360247 | U11: =CHOOSE(Table1[[#This Row],[Mode Digit]], SQRT(Table1[[#This Row],[Iout]]^2+(Table1[[#This Row],[Ripple Current pk-pk]]^2)/12), SQRT(Table1[[#This Row],[Iin]]^2+(Table1[[#This Row],[Ripple Current pk-pk]]^2)/12), SQRT(Table1[[#This Row],[Avg IL]]^2+(Table1[[#This Row],[Ripple Current pk-pk]]^2)/12)) -> 4.51942035 | V11: =(Table1[[#This Row],[Irms Lf]]^2*Rdcr*(1+Ltc*Ta-Ltc*25))/(1-Table1[[#This Row],[Irms Lf]]^2*Rdcr*Ltc*ThetaCa) -> 0.121681538 | W11: =ABS(7.759*10^-3*Fsw^0.9458*(0.00787*Table1[[#This Row],[Ripple Current pk-pk]])^2.304) -> 0.02848584809 | X11: =Table1[[#This Row],[DCR Loss]]+Table1[[#This Row],[Core Loss]] -> 0.1501673861 | Y11: =IF(Table1[[#This Row],[Vin]]>Vout, Table1[[#This Row],[Ripple Current pk-pk]]/SQRT(12), SQRT(Table1[[#This Row],[Duty Cycle BOOST Leg]]/(1-Table1[[#This Row],[Duty Cycle BOOST Leg]]))*SQRT(Table1[[#This Row],[Iout]]^2+(Table1[[#This Row],[Ripple Current pk-pk]]^2)/12)) -> 1.997457052 | Z11: =RCoutEsr*Table1[[#This Row],[Irms Cout]]^2 -> 0.03311562779 | AA11: =Table1[[#This Row],[Cout ESR Loss]] -> 0.03311562779 | AB11: =IF(Table1[[#This Row],[Vin]]>Vout, SQRT(Table1[[#This Row],[Duty Cycle BUCK Leg]]*(1-Table1[[#This Row],[Duty Cycle BUCK Leg]]))*SQRT(Table1[[#This Row],[Iout]]^2+(Table1[[#This Row],[Ripple Current pk-pk]]^2)/12), Table1[[#This Row],[Ripple Current pk-pk]]/SQRT(12)) -> 0.2711629534 | AC11: =RCinEsr*Table1[[#This Row],[Irms Cin]]^2 -> 0.0006102935824 | AD11: =Table1[[#This Row],[Cin ESR Loss]] -> 0.0006102935824 | AE11: =Table1[[#This Row],[Irms Lf]] -> 4.51942035 | AF11: =Rdson1*Table1[[#This Row],[Irms BuCtrl]]^2 -> 0.08170064122 | AG11: =CHOOSE(Table1[[#This Row],[Mode Digit]], (Table1[[#This Row],[Vin]]*Table1[[#This Row],[Iout]]/2)*(Fsw)*(Tr_buck+Tf_buck), 0, (Table1[[#This Row],[Vin]]*Table1[[#This Row],[Avg IL]]/2)*(Fsw/1)*(Tr_buck+Tf_buck)) -> 0 | AH11: =IF(Table1[[#This Row],[Vin]]>Vout, IF(Table1[[#This Row],[Iout]]>Table1[[#This Row],[Ripple Current pk-pk]]/2,0,ABS(Table1[[#This Row],[Iout]]-Table1[[#This Row],[Ripple Current pk-pk]]/2)*Vsd_Q1*Deadtime*Fsw),0) -> 0 | AI11: =(Table1[[#This Row],[Dead Time Loss BuCtrl]]+Table1[[#This Row],[Transition Loss BuCtrl]]+Table1[[#This Row],[RDS(on) Loss BuCtrl]]*(1+RdsonTopTc*Ta-RdsonTopTc*25))/(1-Table1[[#This Row],[RDS(on) Loss BuCtrl]]*RdsonTopTc*ThetaJA_Q1) -> 0.08339027487 | AJ11: =Table1[[#This Row],[Irms Lf]] -> 4.51942035 | AK11: =Rdson2*Table1[[#This Row],[Irms BuSync]]^2 -> 0.08170064122 | AL11: =CHOOSE(Table1[[#This Row],[Mode Digit]], IF(Table1[[#This Row],[Iout]]<Table1[[#This Row],[Ripple Current pk-pk]]/2,Deadtime*Fsw*IF(VfdSky_Q2>0,0,Vsd_Q2)*(Table1[[#This Row],[Iout]]+Table1[[#This Row],[Ripple Current pk-pk]]/2),2*Deadtime*Fsw*IF(VfdSky_Q2>0,0,Vsd_Q2)*Table1[[#This Row],[Iout]]),0, IF(Table1[[#This Row],[Iout]]<Table1[[#This Row],[Ripple Current pk-pk]]/2,Deadtime*Fsw*IF(VfdSky_Q2>0,0,Vsd_Q2)*(Table1[[#This Row],[Iout]]+Table1[[#This Row],[Ripple Current pk-pk]]/2),2*Deadtime*Fsw*IF(VfdSky_Q2>0,0,Vsd_Q2)*Table1[[#This Row],[Iout]])) -> 0 | AM11: =(Table1[[#This Row],[Deadtime Loss BuSync]]+Table1[[#This Row],[RDS(on) Loss BuSync]]*(1+RdsonBotTc*Ta-RdsonBotTc*25))/(1-Table1[[#This Row],[RDS(on) Loss BuSync]]*RdsonBotTc*ThetaJA_Q2) -> 0.08339027487 | AN11: =Table1[[#This Row],[Irms Lf]] -> 4.51942035 | AO11: =Rdson4*Table1[[#This Row],[Irms BoCtlr]]^2 -> 0.08170064122 | AP11: =CHOOSE(Table1[[#This Row],[Mode Digit]], 0, (Vout*Table1[[#This Row],[Iin]]/2)*(Fsw)*(Tr_boost+Tf_boost), (Vout*Iout/2)*(Fsw/1)*(Tr_boost+Tf_boost)) -> 0.3104775393 | AQ11: =IF(Table1[[#This Row],[Vin]]>Vout, 0, IF(Table1[[#This Row],[Iin]]>Table1[[#This Row],[Ripple Current pk-pk]]/2,0,ABS(Table1[[#This Row],[Iin]]-Table1[[#This Row],[Ripple Current pk-pk]]/2)*Vsd_Q4*Deadtime*Fsw)) -> 0 | AR11: =(Table1[[#This Row],[Dead Time Loss BoCtlr]]+Table1[[#This Row],[Transition Loss BoCtlr]]+Table1[[#This Row],[RDS(on) Loss BoCtlr]]*(1+RdsonTopTc*Ta-RdsonTopTc*25))/(1-Table1[[#This Row],[RDS(on) Loss BoCtlr]]*RdsonTopTc*ThetaJA_Q4) -> 0.4002887344 | AS11: =Table1[[#This Row],[Irms Lf]] -> 4.51942035 | AT11: =Rdson3*Table1[[#This Row],[Irms BoSync]]^2 -> 0.08170064122 | AU11: =CHOOSE(Table1[[#This Row],[Mode Digit]], 0, IF(Table1[[#This Row],[Iin]]<Table1[[#This Row],[Ripple Current pk-pk]]/2,Deadtime*Fsw*IF(VfdSky_Q3>0,0,Vsd_Q3)*(Table1[[#This Row],[Iin]]+Table1[[#This Row],[Ripple Current pk-pk]]/2), 2*Deadtime*Fsw*IF(VfdSky_Q3>0,0,Vsd_Q3)*Table1[[#This Row],[Iin]]), IF(Table1[[#This Row],[Iin]]<Table1[[#This Row],[Ripple Current pk-pk]]/2,Deadtime*Fsw*IF(VfdSky_Q3>0,0,Vsd_Q3)*(Table1[[#This Row],[Iin]]+Table1[[#This Row],[Ripple Current pk-pk]]/2), 2*Deadtime*Fsw*IF(VfdSky_Q3>0,0,Vsd_Q3)*Table1[[#This Row],[Iin]])) -> 0.3329323308 | AV11: =(Table1[[#This Row],[Deadtime Loss BoSync]]+Table1[[#This Row],[RDS(on) Loss BoSync]]*(1+RdsonBotTc*Ta-RdsonBotTc*25))/(1-Table1[[#This Row],[RDS(on) Loss BoSync]]*RdsonBotTc*ThetaJA_Q3) -> 0.4232079087 | AW11: =CHOOSE(Table1[[#This Row],[Mode Digit]], Rdson3*Table1[[#This Row],[Irms Lf]]^2, Rdson1*Table1[[#This Row],[Irms Lf]]^2, 0) -> 0.08170064122 | AX11: =CHOOSE(Table1[[#This Row],[Mode Digit]], 2*Deadtime*Fsw*IF(VfdSky_Q2>0,VfdSky_Q2,0)*Table1[[#This Row],[Iout]], 2*Deadtime*Fsw*IF(VfdSky_Q3>0,VfdSky_Q3,0)*Table1[[#This Row],[Iin]], 2*Deadtime*Fsw*IF(VfdSky_Q2>0,VfdSky_Q2,0)*Table1[[#This Row],[Iout]]+2*Deadtime*Fsw*IF(VfdSky_Q3>0,VfdSky_Q3,0)*Table1[[#This Row],[Iin]]) -> 0 | AY11: =CHOOSE(Table1[[#This Row],[Mode Digit]], IF(QrrSky_Q2>0,QrrSky_Q2,Qrr_Q2)*Fsw*(Table1[[#This Row],[Vin]]-Table1[[#This Row],[Iout]]*Rdson1), IF(QrrSky_Q3>0,QrrSky_Q3,Qrr_Q3)*Fsw*Vout, IF(QrrSky_Q2>0,QrrSky_Q2,Qrr_Q2)*Fsw*(Table1[[#This Row],[Vin]]-Table1[[#This Row],[Iout]]*Rdson1)+IF(QrrSky_Q3>0,QrrSky_Q3,Qrr_Q3)*Fsw*Vout) -> 0.12177 | AZ11: =CHOOSE(Table1[[#This Row],[Mode Digit]], Rs*Table1[[#This Row],[Irms BuSync]]^2, Rs*Table1[[#This Row],[Irms BoCtlr]]^2, Rs*(Table1[[#This Row],[Irms BuSync]]^2+Table1[[#This Row],[Irms BoCtlr]]^2)) -> 0.06127548091 | BA11: 0.09 | BB11: =IF(Vout>8, Iq*Vout, Iq*Table1[[#This Row],[Vin]]) -> 0.027 | BC11: =CHOOSE(Table1[[#This Row],[Mode Digit]], (Qg_Q1+Qg_Q2)*Fsw, (Qg_Q3+Qg_Q4)*Fsw, (Qg_Q1+Qg_Q2+Qg_Q3+Qg_Q4)*Fsw)*IF(Vout>8, Vout, Table1[[#This Row],[Vin]]) -> 0.24354 | BD11: 0.1912734247 | BE11: =Table1[[#This Row],[IQ Loss]]+Table1[[#This Row],[Switching Current Loss]] -> 0.27054 | BF11: =SUM(Table1[[#This Row],[Total Inductor Loss]],Table1[[#This Row],[Total Cout Loss]],Table1[[#This Row],[Total Cin Loss]],Table1[[#This Row],[Total Control Bu MOSFET Loss]],Table1[[#This Row],[Total Sync Bu MOSFET Loss]],Table1[[#This Row],[Total Control Bo MOSFET Loss]],Table1[[#This Row],[Total Sync Bo MOSFET Loss]], Table1[[#This Row],[Deadtime Loss ext D]],Table1[[#This Row],[Reverse Recovery Loss MOSFET D]],Table1[[#This Row],[Total IC Loss]],Table1[[#This Row],[Isense Shunt Loss]],Table1[[#This Row],[Iout Shunt Loss]]) -> 1.717755981 | BG11: =Vout*Table1[[#This Row],[Iout]] -> 27 | BH11: =Table1[[#This Row],[Pout]]/(Table1[[#This Row],[Pout]]+Table1[[#This Row],[Total Loss]]) -> 0.9401848814 | BI11: =IF(Table1[[#This Row],[Vin]]>Vout,ThetaJA_Q1*(Table1[[#This Row],[Total Control Bu MOSFET Loss]]+Table1[[#This Row],[Reverse Recovery Loss MOSFET D]]),ThetaJA_Q4*(Table1[[#This Row],[Total Control Bo MOSFET Loss]]+Table1[[#This Row],[Reverse Recovery Loss MOSFET D]])) -> 32.36764153 | BJ11: =IF(Table1[[#This Row],[Vin]]>Vout, Table1[[#This Row],[Total Sync Bu MOSFET Loss]]*ThetaJA_Q2, ThetaJA_Q3*Table1[[#This Row],[Total Sync Bo MOSFET Loss]]) -> 26.23889034 | BL11: =Table1[[#This Row],[EFF, h]]*100 -> 94.01848814 | BM11: =Table1[[#This Row],[Total Inductor Loss]] -> 0.1501673861 | BN11: =Table1[[#This Row],[Total Control Bu MOSFET Loss]]+Table1[[#This Row],[Total Sync Bu MOSFET Loss]]+Table1[[#This Row],[Total Control Bo MOSFET Loss]]+Table1[[#This Row],[Total Sync Bo MOSFET Loss]]+Table1[[#This Row],[Reverse Recovery Loss MOSFET D]] -> 1.112047193 | BO11: =Table1[[#This Row],[Total Sync Bu MOSFET Loss]]+Table1[[#This Row],[Reverse Recovery Loss MOSFET D]]*0.33 -> 0.1235743749 | BP11: =Table1[[#This Row],[Isense Shunt Loss]] -> 0.06127548091 | BT11: 250kHz / 12-5V / 30A | BU11: 90 | BV11: 90 | BW11: 90 | BX11: =250000*(12-Vdd)*BW11/1000000000+((250000*BW9/1000000000*Vdd)*2.5/(2*4)) -> 0.142265625 | BY11: 11.38125 | BZ11: 14.2265625 | CA11: 17.071875 | CB11: 19.9171875 | CC11: 22.7625 | CD11: 25.6078125 | CE11: 2.8453125 | CF11: 4.26796875 | CG11: 5.690625 | CH11: 7.11328125
A12: Vout | B12: =Vout -> 9 | C12: V | D12: Vout | G12: 3 | H12: =VIN_min+(VIN_max-VIN_min)*(Table1[[#This Row],[Step]]/200) -> 6.45 | I12: =IF(Table1[[#This Row],[Vin]]>VIN_BB_to_buck, "BUCK", IF(Table1[[#This Row],[Vin]]<=VIN_boost_to_BB,"BOOST","BUCK-BST")) -> BOOST | J12: =IF(Table1[[#This Row],[Mode]]="BOOST",2, IF(Table1[[#This Row],[Mode]]="BUCK", 1,3)) -> 2 | K12: 3 | L12: =Vout*Table1[[#This Row],[Iout]]/(Table1[[#This Row],[Vin]]*Efficiency) -> 4.406364749 | M12: =Iout/(1-Table1[[#This Row],[Duty Cycle BOOST Leg]]) -> 4.217061922 | N12: =CHOOSE(Table1[[#This Row],[Mode Digit]],(Vout+(Rdson2+Rs+Rdcr)*Table1[[#This Row],[Iout]])/(Table1[[#This Row],[Vin]]+(Rs+Rdson2-Rdson1)*Table1[[#This Row],[Iout]]),1,IF(Table1[[#This Row],[Vin]]<Vout,D_max_buck_BB,Vout/Table1[[#This Row],[Vin]]*(1-D_min_boost_exitBB_to_buck))) -> 1 | O12: =CHOOSE(Table1[[#This Row],[Mode Digit]],0,(Vout+(Rdson3+Rdcr)*Table1[[#This Row],[Iin]]-Table1[[#This Row],[Vin]])/(Vout+(Rdson3-Rdson4-Rs)*Table1[[#This Row],[Iin]]),IF(Table1[[#This Row],[Vin]]>Vout, (Vout-Table1[[#This Row],[Vin]]*D_max_exitBB_to_buck)/Vout, (Vout-Table1[[#This Row],[Vin]]*D_max_buck_BB)/Vout)) -> 0.2886042331 | P12: =CHOOSE(Table1[[#This Row],[Mode Digit]],0,0,1-((Table1[[#This Row],[Vin]]-Vout)+((VIN_BB_to_buck-VIN_BB_to_boost)/2))/((VIN_BB_to_buck-VIN_BB_to_boost))) -> 0 | Q12: =CHOOSE(Table1[[#This Row],[Mode Digit]],0,Table1[[#This Row],[Duty Cycle BOOST Leg]]/Fsw,(1/Fsw-Table1[[#This Row],[T BOD/BUE]])*Table1[[#This Row],[BOE/BUD BUBO ratio]]) -> 4.692751757e-07 | R12: =CHOOSE(Table1[[#This Row],[Mode Digit]],Table1[[#This Row],[Duty Cycle BUCK Leg]]/Fsw,(1-Table1[[#This Row],[Duty Cycle BOOST Leg]])/Fsw,TonBubo) -> 1.156741084e-06 | S12: =CHOOSE(Table1[[#This Row],[Mode Digit]],(1-Table1[[#This Row],[Duty Cycle BUCK Leg]])/Fsw,0,(1/Fsw-Table1[[#This Row],[T BOD/BUE]]-Table1[[#This Row],[T BOE]])) -> 0 | T12: =MAX(0, CHOOSE(Table1[[#This Row],[Mode Digit]], (Table1[[#This Row],[Vin]]-(Rdson1+Rdcr)*Table1[[#This Row],[Iout]]-Vout)*Table1[[#This Row],[Duty Cycle BUCK Leg]]/(Fsw*Lf), (Table1[[#This Row],[Vin]]-(Rdson4+Rdcr+Rs)*Table1[[#This Row],[Iin]])*Table1[[#This Row],[Duty Cycle BOOST Leg]]/(Fsw*Lf), IF(Table1[[#This Row],[Vin]]<Vout, (Table1[[#This Row],[Vin]]-(Rdson1+Rdson3+Rdcr+Rs)*Table1[[#This Row],[Iin]])*Table1[[#This Row],[T BOE]]/(Lf),(Vout-(Rdson2+Rdson4+Rdcr+Rs)*Table1[[#This Row],[Iout]])*Table1[[#This Row],[T BUD]]/(Lf)))) -> 0.9091364529 | U12: =CHOOSE(Table1[[#This Row],[Mode Digit]], SQRT(Table1[[#This Row],[Iout]]^2+(Table1[[#This Row],[Ripple Current pk-pk]]^2)/12), SQRT(Table1[[#This Row],[Iin]]^2+(Table1[[#This Row],[Ripple Current pk-pk]]^2)/12), SQRT(Table1[[#This Row],[Avg IL]]^2+(Table1[[#This Row],[Ripple Current pk-pk]]^2)/12)) -> 4.414173504 | V12: =(Table1[[#This Row],[Irms Lf]]^2*Rdcr*(1+Ltc*Ta-Ltc*25))/(1-Table1[[#This Row],[Irms Lf]]^2*Rdcr*Ltc*ThetaCa) -> 0.1160281714 | W12: =ABS(7.759*10^-3*Fsw^0.9458*(0.00787*Table1[[#This Row],[Ripple Current pk-pk]])^2.304) -> 0.02641988974 | X12: =Table1[[#This Row],[DCR Loss]]+Table1[[#This Row],[Core Loss]] -> 0.1424480612 | Y12: =IF(Table1[[#This Row],[Vin]]>Vout, Table1[[#This Row],[Ripple Current pk-pk]]/SQRT(12), SQRT(Table1[[#This Row],[Duty Cycle BOOST Leg]]/(1-Table1[[#This Row],[Duty Cycle BOOST Leg]]))*SQRT(Table1[[#This Row],[Iout]]^2+(Table1[[#This Row],[Ripple Current pk-pk]]^2)/12)) -> 1.918105436 | Z12: =RCoutEsr*Table1[[#This Row],[Irms Cout]]^2 -> 0.03053676623 | AA12: =Table1[[#This Row],[Cout ESR Loss]] -> 0.03053676623 | AB12: =IF(Table1[[#This Row],[Vin]]>Vout, SQRT(Table1[[#This Row],[Duty Cycle BUCK Leg]]*(1-Table1[[#This Row],[Duty Cycle BUCK Leg]]))*SQRT(Table1[[#This Row],[Iout]]^2+(Table1[[#This Row],[Ripple Current pk-pk]]^2)/12), Table1[[#This Row],[Ripple Current pk-pk]]/SQRT(12)) -> 0.2624450879 | AC12: =RCinEsr*Table1[[#This Row],[Irms Cin]]^2 -> 0.0005716826205 | AD12: =Table1[[#This Row],[Cin ESR Loss]] -> 0.0005716826205 | AE12: =Table1[[#This Row],[Irms Lf]] -> 4.414173504 | AF12: =Rdson1*Table1[[#This Row],[Irms BuCtrl]]^2 -> 0.0779397109 | AG12: =CHOOSE(Table1[[#This Row],[Mode Digit]], (Table1[[#This Row],[Vin]]*Table1[[#This Row],[Iout]]/2)*(Fsw)*(Tr_buck+Tf_buck), 0, (Table1[[#This Row],[Vin]]*Table1[[#This Row],[Avg IL]]/2)*(Fsw/1)*(Tr_buck+Tf_buck)) -> 0 | AH12: =IF(Table1[[#This Row],[Vin]]>Vout, IF(Table1[[#This Row],[Iout]]>Table1[[#This Row],[Ripple Current pk-pk]]/2,0,ABS(Table1[[#This Row],[Iout]]-Table1[[#This Row],[Ripple Current pk-pk]]/2)*Vsd_Q1*Deadtime*Fsw),0) -> 0 | AI12: =(Table1[[#This Row],[Dead Time Loss BuCtrl]]+Table1[[#This Row],[Transition Loss BuCtrl]]+Table1[[#This Row],[RDS(on) Loss BuCtrl]]*(1+RdsonTopTc*Ta-RdsonTopTc*25))/(1-Table1[[#This Row],[RDS(on) Loss BuCtrl]]*RdsonTopTc*ThetaJA_Q1) -> 0.0794759045 | AJ12: =Table1[[#This Row],[Irms Lf]] -> 4.414173504 | AK12: =Rdson2*Table1[[#This Row],[Irms BuSync]]^2 -> 0.0779397109 | AL12: =CHOOSE(Table1[[#This Row],[Mode Digit]], IF(Table1[[#This Row],[Iout]]<Table1[[#This Row],[Ripple Current pk-pk]]/2,Deadtime*Fsw*IF(VfdSky_Q2>0,0,Vsd_Q2)*(Table1[[#This Row],[Iout]]+Table1[[#This Row],[Ripple Current pk-pk]]/2),2*Deadtime*Fsw*IF(VfdSky_Q2>0,0,Vsd_Q2)*Table1[[#This Row],[Iout]]),0, IF(Table1[[#This Row],[Iout]]<Table1[[#This Row],[Ripple Current pk-pk]]/2,Deadtime*Fsw*IF(VfdSky_Q2>0,0,Vsd_Q2)*(Table1[[#This Row],[Iout]]+Table1[[#This Row],[Ripple Current pk-pk]]/2),2*Deadtime*Fsw*IF(VfdSky_Q2>0,0,Vsd_Q2)*Table1[[#This Row],[Iout]])) -> 0 | AM12: =(Table1[[#This Row],[Deadtime Loss BuSync]]+Table1[[#This Row],[RDS(on) Loss BuSync]]*(1+RdsonBotTc*Ta-RdsonBotTc*25))/(1-Table1[[#This Row],[RDS(on) Loss BuSync]]*RdsonBotTc*ThetaJA_Q2) -> 0.0794759045 | AN12: =Table1[[#This Row],[Irms Lf]] -> 4.414173504 | AO12: =Rdson4*Table1[[#This Row],[Irms BoCtlr]]^2 -> 0.0779397109 | AP12: =CHOOSE(Table1[[#This Row],[Mode Digit]], 0, (Vout*Table1[[#This Row],[Iin]]/2)*(Fsw)*(Tr_boost+Tf_boost), (Vout*Iout/2)*(Fsw/1)*(Tr_boost+Tf_boost)) -> 0.3032571314 | AQ12: =IF(Table1[[#This Row],[Vin]]>Vout, 0, IF(Table1[[#This Row],[Iin]]>Table1[[#This Row],[Ripple Current pk-pk]]/2,0,ABS(Table1[[#This Row],[Iin]]-Table1[[#This Row],[Ripple Current pk-pk]]/2)*Vsd_Q4*Deadtime*Fsw)) -> 0 | AR12: =(Table1[[#This Row],[Dead Time Loss BoCtlr]]+Table1[[#This Row],[Transition Loss BoCtlr]]+Table1[[#This Row],[RDS(on) Loss BoCtlr]]*(1+RdsonTopTc*Ta-RdsonTopTc*25))/(1-Table1[[#This Row],[RDS(on) Loss BoCtlr]]*RdsonTopTc*ThetaJA_Q4) -> 0.3887102414 | AS12: =Table1[[#This Row],[Irms Lf]] -> 4.414173504 | AT12: =Rdson3*Table1[[#This Row],[Irms BoSync]]^2 -> 0.0779397109 | AU12: =CHOOSE(Table1[[#This Row],[Mode Digit]], 0, IF(Table1[[#This Row],[Iin]]<Table1[[#This Row],[Ripple Current pk-pk]]/2,Deadtime*Fsw*IF(VfdSky_Q3>0,0,Vsd_Q3)*(Table1[[#This Row],[Iin]]+Table1[[#This Row],[Ripple Current pk-pk]]/2), 2*Deadtime*Fsw*IF(VfdSky_Q3>0,0,Vsd_Q3)*Table1[[#This Row],[Iin]]), IF(Table1[[#This Row],[Iin]]<Table1[[#This Row],[Ripple Current pk-pk]]/2,Deadtime*Fsw*IF(VfdSky_Q3>0,0,Vsd_Q3)*(Table1[[#This Row],[Iin]]+Table1[[#This Row],[Ripple Current pk-pk]]/2), 2*Deadtime*Fsw*IF(VfdSky_Q3>0,0,Vsd_Q3)*Table1[[#This Row],[Iin]])) -> 0.3251897185 | AV12: =(Table1[[#This Row],[Deadtime Loss BoSync]]+Table1[[#This Row],[RDS(on) Loss BoSync]]*(1+RdsonBotTc*Ta-RdsonBotTc*25))/(1-Table1[[#This Row],[RDS(on) Loss BoSync]]*RdsonBotTc*ThetaJA_Q3) -> 0.4110751202 | AW12: =CHOOSE(Table1[[#This Row],[Mode Digit]], Rdson3*Table1[[#This Row],[Irms Lf]]^2, Rdson1*Table1[[#This Row],[Irms Lf]]^2, 0) -> 0.0779397109 | AX12: =CHOOSE(Table1[[#This Row],[Mode Digit]], 2*Deadtime*Fsw*IF(VfdSky_Q2>0,VfdSky_Q2,0)*Table1[[#This Row],[Iout]], 2*Deadtime*Fsw*IF(VfdSky_Q3>0,VfdSky_Q3,0)*Table1[[#This Row],[Iin]], 2*Deadtime*Fsw*IF(VfdSky_Q2>0,VfdSky_Q2,0)*Table1[[#This Row],[Iout]]+2*Deadtime*Fsw*IF(VfdSky_Q3>0,VfdSky_Q3,0)*Table1[[#This Row],[Iin]]) -> 0 | AY12: =CHOOSE(Table1[[#This Row],[Mode Digit]], IF(QrrSky_Q2>0,QrrSky_Q2,Qrr_Q2)*Fsw*(Table1[[#This Row],[Vin]]-Table1[[#This Row],[Iout]]*Rdson1), IF(QrrSky_Q3>0,QrrSky_Q3,Qrr_Q3)*Fsw*Vout, IF(QrrSky_Q2>0,QrrSky_Q2,Qrr_Q2)*Fsw*(Table1[[#This Row],[Vin]]-Table1[[#This Row],[Iout]]*Rdson1)+IF(QrrSky_Q3>0,QrrSky_Q3,Qrr_Q3)*Fsw*Vout) -> 0.12177 | AZ12: =CHOOSE(Table1[[#This Row],[Mode Digit]], Rs*Table1[[#This Row],[Irms BuSync]]^2, Rs*Table1[[#This Row],[Irms BoCtlr]]^2, Rs*(Table1[[#This Row],[Irms BuSync]]^2+Table1[[#This Row],[Irms BoCtlr]]^2)) -> 0.05845478318 | BA12: 0.09 | BB12: =IF(Vout>8, Iq*Vout, Iq*Table1[[#This Row],[Vin]]) -> 0.027 | BC12: =CHOOSE(Table1[[#This Row],[Mode Digit]], (Qg_Q1+Qg_Q2)*Fsw, (Qg_Q3+Qg_Q4)*Fsw, (Qg_Q1+Qg_Q2+Qg_Q3+Qg_Q4)*Fsw)*IF(Vout>8, Vout, Table1[[#This Row],[Vin]]) -> 0.24354 | BD12: 0.1912734247 | BE12: =Table1[[#This Row],[IQ Loss]]+Table1[[#This Row],[Switching Current Loss]] -> 0.27054 | BF12: =SUM(Table1[[#This Row],[Total Inductor Loss]],Table1[[#This Row],[Total Cout Loss]],Table1[[#This Row],[Total Cin Loss]],Table1[[#This Row],[Total Control Bu MOSFET Loss]],Table1[[#This Row],[Total Sync Bu MOSFET Loss]],Table1[[#This Row],[Total Control Bo MOSFET Loss]],Table1[[#This Row],[Total Sync Bo MOSFET Loss]], Table1[[#This Row],[Deadtime Loss ext D]],Table1[[#This Row],[Reverse Recovery Loss MOSFET D]],Table1[[#This Row],[Total IC Loss]],Table1[[#This Row],[Isense Shunt Loss]],Table1[[#This Row],[Iout Shunt Loss]]) -> 1.673058464 | BG12: =Vout*Table1[[#This Row],[Iout]] -> 27 | BH12: =Table1[[#This Row],[Pout]]/(Table1[[#This Row],[Pout]]+Table1[[#This Row],[Total Loss]]) -> 0.9416505056 | BI12: =IF(Table1[[#This Row],[Vin]]>Vout,ThetaJA_Q1*(Table1[[#This Row],[Total Control Bu MOSFET Loss]]+Table1[[#This Row],[Reverse Recovery Loss MOSFET D]]),ThetaJA_Q4*(Table1[[#This Row],[Total Control Bo MOSFET Loss]]+Table1[[#This Row],[Reverse Recovery Loss MOSFET D]])) -> 31.64977496 | BJ12: =IF(Table1[[#This Row],[Vin]]>Vout, Table1[[#This Row],[Total Sync Bu MOSFET Loss]]*ThetaJA_Q2, ThetaJA_Q3*Table1[[#This Row],[Total Sync Bo MOSFET Loss]]) -> 25.48665746 | BL12: =Table1[[#This Row],[EFF, h]]*100 -> 94.16505056 | BM12: =Table1[[#This Row],[Total Inductor Loss]] -> 0.1424480612 | BN12: =Table1[[#This Row],[Total Control Bu MOSFET Loss]]+Table1[[#This Row],[Total Sync Bu MOSFET Loss]]+Table1[[#This Row],[Total Control Bo MOSFET Loss]]+Table1[[#This Row],[Total Sync Bo MOSFET Loss]]+Table1[[#This Row],[Reverse Recovery Loss MOSFET D]] -> 1.080507171 | BO12: =Table1[[#This Row],[Total Sync Bu MOSFET Loss]]+Table1[[#This Row],[Reverse Recovery Loss MOSFET D]]*0.33 -> 0.1196600045 | BP12: =Table1[[#This Row],[Isense Shunt Loss]] -> 0.05845478318 | BT12: 250kHz / 18-1.2V / 20A | BU12: 60 | BV12: 60 | BW12: 60 | BX12: =250000*(18-Vdd)*BW12/1000000000+((250000*BW9/1000000000*Vdd)*2.5/(2*4)) -> 0.198515625 | BY12: 15.88125 | BZ12: 19.8515625 | CA12: 23.821875 | CB12: 27.7921875 | CC12: 31.7625 | CD12: 35.7328125 | CE12: 3.9703125 | CF12: 5.95546875 | CG12: 7.940625 | CH12: 9.92578125
A13: Fsw | B13: =Fsw/1000 -> 615 | C13: kHz | D13: Switching Frequency | G13: 4 | H13: =VIN_min+(VIN_max-VIN_min)*(Table1[[#This Row],[Step]]/200) -> 6.6 | I13: =IF(Table1[[#This Row],[Vin]]>VIN_BB_to_buck, "BUCK", IF(Table1[[#This Row],[Vin]]<=VIN_boost_to_BB,"BOOST","BUCK-BST")) -> BOOST | J13: =IF(Table1[[#This Row],[Mode]]="BOOST",2, IF(Table1[[#This Row],[Mode]]="BUCK", 1,3)) -> 2 | K13: 3 | L13: =Vout*Table1[[#This Row],[Iout]]/(Table1[[#This Row],[Vin]]*Efficiency) -> 4.306220096 | M13: =Iout/(1-Table1[[#This Row],[Duty Cycle BOOST Leg]]) -> 4.119711359 | N13: =CHOOSE(Table1[[#This Row],[Mode Digit]],(Vout+(Rdson2+Rs+Rdcr)*Table1[[#This Row],[Iout]])/(Table1[[#This Row],[Vin]]+(Rs+Rdson2-Rdson1)*Table1[[#This Row],[Iout]]),1,IF(Table1[[#This Row],[Vin]]<Vout,D_max_buck_BB,Vout/Table1[[#This Row],[Vin]]*(1-D_min_boost_exitBB_to_buck))) -> 1 | O13: =CHOOSE(Table1[[#This Row],[Mode Digit]],0,(Vout+(Rdson3+Rdcr)*Table1[[#This Row],[Iin]]-Table1[[#This Row],[Vin]])/(Vout+(Rdson3-Rdson4-Rs)*Table1[[#This Row],[Iin]]),IF(Table1[[#This Row],[Vin]]>Vout, (Vout-Table1[[#This Row],[Vin]]*D_max_exitBB_to_buck)/Vout, (Vout-Table1[[#This Row],[Vin]]*D_max_buck_BB)/Vout)) -> 0.2717936432 | P13: =CHOOSE(Table1[[#This Row],[Mode Digit]],0,0,1-((Table1[[#This Row],[Vin]]-Vout)+((VIN_BB_to_buck-VIN_BB_to_boost)/2))/((VIN_BB_to_buck-VIN_BB_to_boost))) -> 0 | Q13: =CHOOSE(Table1[[#This Row],[Mode Digit]],0,Table1[[#This Row],[Duty Cycle BOOST Leg]]/Fsw,(1/Fsw-Table1[[#This Row],[T BOD/BUE]])*Table1[[#This Row],[BOE/BUD BUBO ratio]]) -> 4.419408832e-07 | R13: =CHOOSE(Table1[[#This Row],[Mode Digit]],Table1[[#This Row],[Duty Cycle BUCK Leg]]/Fsw,(1-Table1[[#This Row],[Duty Cycle BOOST Leg]])/Fsw,TonBubo) -> 1.184075377e-06 | S13: =CHOOSE(Table1[[#This Row],[Mode Digit]],(1-Table1[[#This Row],[Duty Cycle BUCK Leg]])/Fsw,0,(1/Fsw-Table1[[#This Row],[T BOD/BUE]]-Table1[[#This Row],[T BOE]])) -> 0 | T13: =MAX(0, CHOOSE(Table1[[#This Row],[Mode Digit]], (Table1[[#This Row],[Vin]]-(Rdson1+Rdcr)*Table1[[#This Row],[Iout]]-Vout)*Table1[[#This Row],[Duty Cycle BUCK Leg]]/(Fsw*Lf), (Table1[[#This Row],[Vin]]-(Rdson4+Rdcr+Rs)*Table1[[#This Row],[Iin]])*Table1[[#This Row],[Duty Cycle BOOST Leg]]/(Fsw*Lf), IF(Table1[[#This Row],[Vin]]<Vout, (Table1[[#This Row],[Vin]]-(Rdson1+Rdson3+Rdcr+Rs)*Table1[[#This Row],[Iin]])*Table1[[#This Row],[T BOE]]/(Lf),(Vout-(Rdson2+Rdson4+Rdcr+Rs)*Table1[[#This Row],[Iout]])*Table1[[#This Row],[T BUD]]/(Lf)))) -> 0.8764423962 | U13: =CHOOSE(Table1[[#This Row],[Mode Digit]], SQRT(Table1[[#This Row],[Iout]]^2+(Table1[[#This Row],[Ripple Current pk-pk]]^2)/12), SQRT(Table1[[#This Row],[Iin]]^2+(Table1[[#This Row],[Ripple Current pk-pk]]^2)/12), SQRT(Table1[[#This Row],[Avg IL]]^2+(Table1[[#This Row],[Ripple Current pk-pk]]^2)/12)) -> 4.313646267 | V13: =(Table1[[#This Row],[Irms Lf]]^2*Rdcr*(1+Ltc*Ta-Ltc*25))/(1-Table1[[#This Row],[Irms Lf]]^2*Rdcr*Ltc*ThetaCa) -> 0.1107572649 | W13: =ABS(7.759*10^-3*Fsw^0.9458*(0.00787*Table1[[#This Row],[Ripple Current pk-pk]])^2.304) -> 0.02428199032 | X13: =Table1[[#This Row],[DCR Loss]]+Table1[[#This Row],[Core Loss]] -> 0.1350392552 | Y13: =IF(Table1[[#This Row],[Vin]]>Vout, Table1[[#This Row],[Ripple Current pk-pk]]/SQRT(12), SQRT(Table1[[#This Row],[Duty Cycle BOOST Leg]]/(1-Table1[[#This Row],[Duty Cycle BOOST Leg]]))*SQRT(Table1[[#This Row],[Iout]]^2+(Table1[[#This Row],[Ripple Current pk-pk]]^2)/12)) -> 1.839300399 | Z13: =RCoutEsr*Table1[[#This Row],[Irms Cout]]^2 -> 0.02807911545 | AA13: =Table1[[#This Row],[Cout ESR Loss]] -> 0.02807911545 | AB13: =IF(Table1[[#This Row],[Vin]]>Vout, SQRT(Table1[[#This Row],[Duty Cycle BUCK Leg]]*(1-Table1[[#This Row],[Duty Cycle BUCK Leg]]))*SQRT(Table1[[#This Row],[Iout]]^2+(Table1[[#This Row],[Ripple Current pk-pk]]^2)/12), Table1[[#This Row],[Ripple Current pk-pk]]/SQRT(12)) -> 0.2530071267 | AC13: =RCinEsr*Table1[[#This Row],[Irms Cin]]^2 -> 0.0005313046311 | AD13: =Table1[[#This Row],[Cin ESR Loss]] -> 0.0005313046311 | AE13: =Table1[[#This Row],[Irms Lf]] -> 4.313646267 | AF13: =Rdson1*Table1[[#This Row],[Irms BuCtrl]]^2 -> 0.07443017647 | AG13: =CHOOSE(Table1[[#This Row],[Mode Digit]], (Table1[[#This Row],[Vin]]*Table1[[#This Row],[Iout]]/2)*(Fsw)*(Tr_buck+Tf_buck), 0, (Table1[[#This Row],[Vin]]*Table1[[#This Row],[Avg IL]]/2)*(Fsw/1)*(Tr_buck+Tf_buck)) -> 0 | AH13: =IF(Table1[[#This Row],[Vin]]>Vout, IF(Table1[[#This Row],[Iout]]>Table1[[#This Row],[Ripple Current pk-pk]]/2,0,ABS(Table1[[#This Row],[Iout]]-Table1[[#This Row],[Ripple Current pk-pk]]/2)*Vsd_Q1*Deadtime*Fsw),0) -> 0 | AI13: =(Table1[[#This Row],[Dead Time Loss BuCtrl]]+Table1[[#This Row],[Transition Loss BuCtrl]]+Table1[[#This Row],[RDS(on) Loss BuCtrl]]*(1+RdsonTopTc*Ta-RdsonTopTc*25))/(1-Table1[[#This Row],[RDS(on) Loss BuCtrl]]*RdsonTopTc*ThetaJA_Q1) -> 0.07582989656 | AJ13: =Table1[[#This Row],[Irms Lf]] -> 4.313646267 | AK13: =Rdson2*Table1[[#This Row],[Irms BuSync]]^2 -> 0.07443017647 | AL13: =CHOOSE(Table1[[#This Row],[Mode Digit]], IF(Table1[[#This Row],[Iout]]<Table1[[#This Row],[Ripple Current pk-pk]]/2,Deadtime*Fsw*IF(VfdSky_Q2>0,0,Vsd_Q2)*(Table1[[#This Row],[Iout]]+Table1[[#This Row],[Ripple Current pk-pk]]/2),2*Deadtime*Fsw*IF(VfdSky_Q2>0,0,Vsd_Q2)*Table1[[#This Row],[Iout]]),0, IF(Table1[[#This Row],[Iout]]<Table1[[#This Row],[Ripple Current pk-pk]]/2,Deadtime*Fsw*IF(VfdSky_Q2>0,0,Vsd_Q2)*(Table1[[#This Row],[Iout]]+Table1[[#This Row],[Ripple Current pk-pk]]/2),2*Deadtime*Fsw*IF(VfdSky_Q2>0,0,Vsd_Q2)*Table1[[#This Row],[Iout]])) -> 0 | AM13: =(Table1[[#This Row],[Deadtime Loss BuSync]]+Table1[[#This Row],[RDS(on) Loss BuSync]]*(1+RdsonBotTc*Ta-RdsonBotTc*25))/(1-Table1[[#This Row],[RDS(on) Loss BuSync]]*RdsonBotTc*ThetaJA_Q2) -> 0.07582989656 | AN13: =Table1[[#This Row],[Irms Lf]] -> 4.313646267 | AO13: =Rdson4*Table1[[#This Row],[Irms BoCtlr]]^2 -> 0.07443017647 | AP13: =CHOOSE(Table1[[#This Row],[Mode Digit]], 0, (Vout*Table1[[#This Row],[Iin]]/2)*(Fsw)*(Tr_boost+Tf_boost), (Vout*Iout/2)*(Fsw/1)*(Tr_boost+Tf_boost)) -> 0.2963649239 | AQ13: =IF(Table1[[#This Row],[Vin]]>Vout, 0, IF(Table1[[#This Row],[Iin]]>Table1[[#This Row],[Ripple Current pk-pk]]/2,0,ABS(Table1[[#This Row],[Iin]]-Table1[[#This Row],[Ripple Current pk-pk]]/2)*Vsd_Q4*Deadtime*Fsw)) -> 0 | AR13: =(Table1[[#This Row],[Dead Time Loss BoCtlr]]+Table1[[#This Row],[Transition Loss BoCtlr]]+Table1[[#This Row],[RDS(on) Loss BoCtlr]]*(1+RdsonTopTc*Ta-RdsonTopTc*25))/(1-Table1[[#This Row],[RDS(on) Loss BoCtlr]]*RdsonTopTc*ThetaJA_Q4) -> 0.3777682042 | AS13: =Table1[[#This Row],[Irms Lf]] -> 4.313646267 | AT13: =Rdson3*Table1[[#This Row],[Irms BoSync]]^2 -> 0.07443017647 | AU13: =CHOOSE(Table1[[#This Row],[Mode Digit]], 0, IF(Table1[[#This Row],[Iin]]<Table1[[#This Row],[Ripple Current pk-pk]]/2,Deadtime*Fsw*IF(VfdSky_Q3>0,0,Vsd_Q3)*(Table1[[#This Row],[Iin]]+Table1[[#This Row],[Ripple Current pk-pk]]/2), 2*Deadtime*Fsw*IF(VfdSky_Q3>0,0,Vsd_Q3)*Table1[[#This Row],[Iin]]), IF(Table1[[#This Row],[Iin]]<Table1[[#This Row],[Ripple Current pk-pk]]/2,Deadtime*Fsw*IF(VfdSky_Q3>0,0,Vsd_Q3)*(Table1[[#This Row],[Iin]]+Table1[[#This Row],[Ripple Current pk-pk]]/2), 2*Deadtime*Fsw*IF(VfdSky_Q3>0,0,Vsd_Q3)*Table1[[#This Row],[Iin]])) -> 0.3177990431 | AV13: =(Table1[[#This Row],[Deadtime Loss BoSync]]+Table1[[#This Row],[RDS(on) Loss BoSync]]*(1+RdsonBotTc*Ta-RdsonBotTc*25))/(1-Table1[[#This Row],[RDS(on) Loss BoSync]]*RdsonBotTc*ThetaJA_Q3) -> 0.3996054094 | AW13: =CHOOSE(Table1[[#This Row],[Mode Digit]], Rdson3*Table1[[#This Row],[Irms Lf]]^2, Rdson1*Table1[[#This Row],[Irms Lf]]^2, 0) -> 0.07443017647 | AX13: =CHOOSE(Table1[[#This Row],[Mode Digit]], 2*Deadtime*Fsw*IF(VfdSky_Q2>0,VfdSky_Q2,0)*Table1[[#This Row],[Iout]], 2*Deadtime*Fsw*IF(VfdSky_Q3>0,VfdSky_Q3,0)*Table1[[#This Row],[Iin]], 2*Deadtime*Fsw*IF(VfdSky_Q2>0,VfdSky_Q2,0)*Table1[[#This Row],[Iout]]+2*Deadtime*Fsw*IF(VfdSky_Q3>0,VfdSky_Q3,0)*Table1[[#This Row],[Iin]]) -> 0 | AY13: =CHOOSE(Table1[[#This Row],[Mode Digit]], IF(QrrSky_Q2>0,QrrSky_Q2,Qrr_Q2)*Fsw*(Table1[[#This Row],[Vin]]-Table1[[#This Row],[Iout]]*Rdson1), IF(QrrSky_Q3>0,QrrSky_Q3,Qrr_Q3)*Fsw*Vout, IF(QrrSky_Q2>0,QrrSky_Q2,Qrr_Q2)*Fsw*(Table1[[#This Row],[Vin]]-Table1[[#This Row],[Iout]]*Rdson1)+IF(QrrSky_Q3>0,QrrSky_Q3,Qrr_Q3)*Fsw*Vout) -> 0.12177 | AZ13: =CHOOSE(Table1[[#This Row],[Mode Digit]], Rs*Table1[[#This Row],[Irms BuSync]]^2, Rs*Table1[[#This Row],[Irms BoCtlr]]^2, Rs*(Table1[[#This Row],[Irms BuSync]]^2+Table1[[#This Row],[Irms BoCtlr]]^2)) -> 0.05582263236 | BA13: 0.09 | BB13: =IF(Vout>8, Iq*Vout, Iq*Table1[[#This Row],[Vin]]) -> 0.027 | BC13: =CHOOSE(Table1[[#This Row],[Mode Digit]], (Qg_Q1+Qg_Q2)*Fsw, (Qg_Q3+Qg_Q4)*Fsw, (Qg_Q1+Qg_Q2+Qg_Q3+Qg_Q4)*Fsw)*IF(Vout>8, Vout, Table1[[#This Row],[Vin]]) -> 0.24354 | BD13: 0.1912734247 | BE13: =Table1[[#This Row],[IQ Loss]]+Table1[[#This Row],[Switching Current Loss]] -> 0.27054 | BF13: =SUM(Table1[[#This Row],[Total Inductor Loss]],Table1[[#This Row],[Total Cout Loss]],Table1[[#This Row],[Total Cin Loss]],Table1[[#This Row],[Total Control Bu MOSFET Loss]],Table1[[#This Row],[Total Sync Bu MOSFET Loss]],Table1[[#This Row],[Total Control Bo MOSFET Loss]],Table1[[#This Row],[Total Sync Bo MOSFET Loss]], Table1[[#This Row],[Deadtime Loss ext D]],Table1[[#This Row],[Reverse Recovery Loss MOSFET D]],Table1[[#This Row],[Total IC Loss]],Table1[[#This Row],[Isense Shunt Loss]],Table1[[#This Row],[Iout Shunt Loss]]) -> 1.630815714 | BG13: =Vout*Table1[[#This Row],[Iout]] -> 27 | BH13: =Table1[[#This Row],[Pout]]/(Table1[[#This Row],[Pout]]+Table1[[#This Row],[Total Loss]]) -> 0.9430398445 | BI13: =IF(Table1[[#This Row],[Vin]]>Vout,ThetaJA_Q1*(Table1[[#This Row],[Total Control Bu MOSFET Loss]]+Table1[[#This Row],[Reverse Recovery Loss MOSFET D]]),ThetaJA_Q4*(Table1[[#This Row],[Total Control Bo MOSFET Loss]]+Table1[[#This Row],[Reverse Recovery Loss MOSFET D]])) -> 30.97136866 | BJ13: =IF(Table1[[#This Row],[Vin]]>Vout, Table1[[#This Row],[Total Sync Bu MOSFET Loss]]*ThetaJA_Q2, ThetaJA_Q3*Table1[[#This Row],[Total Sync Bo MOSFET Loss]]) -> 24.77553538 | BL13: =Table1[[#This Row],[EFF, h]]*100 -> 94.30398445 | BM13: =Table1[[#This Row],[Total Inductor Loss]] -> 0.1350392552 | BN13: =Table1[[#This Row],[Total Control Bu MOSFET Loss]]+Table1[[#This Row],[Total Sync Bu MOSFET Loss]]+Table1[[#This Row],[Total Control Bo MOSFET Loss]]+Table1[[#This Row],[Total Sync Bo MOSFET Loss]]+Table1[[#This Row],[Reverse Recovery Loss MOSFET D]] -> 1.050803407 | BO13: =Table1[[#This Row],[Total Sync Bu MOSFET Loss]]+Table1[[#This Row],[Reverse Recovery Loss MOSFET D]]*0.33 -> 0.1160139966 | BP13: =Table1[[#This Row],[Isense Shunt Loss]] -> 0.05582263236 | BT13: 500kHz / 5-1.2V / 15A | BU13: 30 | BV13: 30 | BW13: 30 | BX13: =500000*(5-Vdd)*BW13/1000000000+((500000*BW9/1000000000*Vdd)*2.5/(2*4)) -> 0.04453125 | BY13: 3.5625 | BZ13: 4.453125 | CA13: 5.34375 | CB13: 6.234375 | CC13: 7.125 | CD13: 8.015625 | CE13: 0.890625 | CF13: 1.3359375 | CG13: 1.78125 | CH13: 2.2265625
A14: Iout | B14: =Iout -> 3 | C14: A | D14: Max Output Current | G14: 5 | H14: =VIN_min+(VIN_max-VIN_min)*(Table1[[#This Row],[Step]]/200) -> 6.75 | I14: =IF(Table1[[#This Row],[Vin]]>VIN_BB_to_buck, "BUCK", IF(Table1[[#This Row],[Vin]]<=VIN_boost_to_BB,"BOOST","BUCK-BST")) -> BOOST | J14: =IF(Table1[[#This Row],[Mode]]="BOOST",2, IF(Table1[[#This Row],[Mode]]="BUCK", 1,3)) -> 2 | K14: 3 | L14: =Vout*Table1[[#This Row],[Iout]]/(Table1[[#This Row],[Vin]]*Efficiency) -> 4.210526316 | M14: =Iout/(1-Table1[[#This Row],[Duty Cycle BOOST Leg]]) -> 4.026788662 | N14: =CHOOSE(Table1[[#This Row],[Mode Digit]],(Vout+(Rdson2+Rs+Rdcr)*Table1[[#This Row],[Iout]])/(Table1[[#This Row],[Vin]]+(Rs+Rdson2-Rdson1)*Table1[[#This Row],[Iout]]),1,IF(Table1[[#This Row],[Vin]]<Vout,D_max_buck_BB,Vout/Table1[[#This Row],[Vin]]*(1-D_min_boost_exitBB_to_buck))) -> 1 | O14: =CHOOSE(Table1[[#This Row],[Mode Digit]],0,(Vout+(Rdson3+Rdcr)*Table1[[#This Row],[Iin]]-Table1[[#This Row],[Vin]])/(Vout+(Rdson3-Rdson4-Rs)*Table1[[#This Row],[Iin]]),IF(Table1[[#This Row],[Vin]]>Vout, (Vout-Table1[[#This Row],[Vin]]*D_max_exitBB_to_buck)/Vout, (Vout-Table1[[#This Row],[Vin]]*D_max_buck_BB)/Vout)) -> 0.2549894589 | P14: =CHOOSE(Table1[[#This Row],[Mode Digit]],0,0,1-((Table1[[#This Row],[Vin]]-Vout)+((VIN_BB_to_buck-VIN_BB_to_boost)/2))/((VIN_BB_to_buck-VIN_BB_to_boost))) -> 0 | Q14: =CHOOSE(Table1[[#This Row],[Mode Digit]],0,Table1[[#This Row],[Duty Cycle BOOST Leg]]/Fsw,(1/Fsw-Table1[[#This Row],[T BOD/BUE]])*Table1[[#This Row],[BOE/BUD BUBO ratio]]) -> 4.146170063e-07 | R14: =CHOOSE(Table1[[#This Row],[Mode Digit]],Table1[[#This Row],[Duty Cycle BUCK Leg]]/Fsw,(1-Table1[[#This Row],[Duty Cycle BOOST Leg]])/Fsw,TonBubo) -> 1.211399254e-06 | S14: =CHOOSE(Table1[[#This Row],[Mode Digit]],(1-Table1[[#This Row],[Duty Cycle BUCK Leg]])/Fsw,0,(1/Fsw-Table1[[#This Row],[T BOD/BUE]]-Table1[[#This Row],[T BOE]])) -> 0 | T14: =MAX(0, CHOOSE(Table1[[#This Row],[Mode Digit]], (Table1[[#This Row],[Vin]]-(Rdson1+Rdcr)*Table1[[#This Row],[Iout]]-Vout)*Table1[[#This Row],[Duty Cycle BUCK Leg]]/(Fsw*Lf), (Table1[[#This Row],[Vin]]-(Rdson4+Rdcr+Rs)*Table1[[#This Row],[Iin]])*Table1[[#This Row],[Duty Cycle BOOST Leg]]/(Fsw*Lf), IF(Table1[[#This Row],[Vin]]<Vout, (Table1[[#This Row],[Vin]]-(Rdson1+Rdson3+Rdcr+Rs)*Table1[[#This Row],[Iin]])*Table1[[#This Row],[T BOE]]/(Lf),(Vout-(Rdson2+Rdson4+Rdcr+Rs)*Table1[[#This Row],[Iout]])*Table1[[#This Row],[T BUD]]/(Lf)))) -> 0.841255922 | U14: =CHOOSE(Table1[[#This Row],[Mode Digit]], SQRT(Table1[[#This Row],[Iout]]^2+(Table1[[#This Row],[Ripple Current pk-pk]]^2)/12), SQRT(Table1[[#This Row],[Iin]]^2+(Table1[[#This Row],[Ripple Current pk-pk]]^2)/12), SQRT(Table1[[#This Row],[Avg IL]]^2+(Table1[[#This Row],[Ripple Current pk-pk]]^2)/12)) -> 4.217523896 | V14: =(Table1[[#This Row],[Irms Lf]]^2*Rdcr*(1+Ltc*Ta-Ltc*25))/(1-Table1[[#This Row],[Irms Lf]]^2*Rdcr*Ltc*ThetaCa) -> 0.1058348542 | W14: =ABS(7.759*10^-3*Fsw^0.9458*(0.00787*Table1[[#This Row],[Ripple Current pk-pk]])^2.304) -> 0.02209449306 | X14: =Table1[[#This Row],[DCR Loss]]+Table1[[#This Row],[Core Loss]] -> 0.1279293473 | Y14: =IF(Table1[[#This Row],[Vin]]>Vout, Table1[[#This Row],[Ripple Current pk-pk]]/SQRT(12), SQRT(Table1[[#This Row],[Duty Cycle BOOST Leg]]/(1-Table1[[#This Row],[Duty Cycle BOOST Leg]]))*SQRT(Table1[[#This Row],[Iout]]^2+(Table1[[#This Row],[Ripple Current pk-pk]]^2)/12)) -> 1.760838229 | Z14: =RCoutEsr*Table1[[#This Row],[Irms Cout]]^2 -> 0.02573457553 | AA14: =Table1[[#This Row],[Cout ESR Loss]] -> 0.02573457553 | AB14: =IF(Table1[[#This Row],[Vin]]>Vout, SQRT(Table1[[#This Row],[Duty Cycle BUCK Leg]]*(1-Table1[[#This Row],[Duty Cycle BUCK Leg]]))*SQRT(Table1[[#This Row],[Iout]]^2+(Table1[[#This Row],[Ripple Current pk-pk]]^2)/12), Table1[[#This Row],[Ripple Current pk-pk]]/SQRT(12)) -> 0.2428496665 | AC14: =RCinEsr*Table1[[#This Row],[Irms Cin]]^2 -> 0.0004895004724 | AD14: =Table1[[#This Row],[Cin ESR Loss]] -> 0.0004895004724 | AE14: =Table1[[#This Row],[Irms Lf]] -> 4.217523896 | AF14: =Rdson1*Table1[[#This Row],[Irms BuCtrl]]^2 -> 0.07115003127 | AG14: =CHOOSE(Table1[[#This Row],[Mode Digit]], (Table1[[#This Row],[Vin]]*Table1[[#This Row],[Iout]]/2)*(Fsw)*(Tr_buck+Tf_buck), 0, (Table1[[#This Row],[Vin]]*Table1[[#This Row],[Avg IL]]/2)*(Fsw/1)*(Tr_buck+Tf_buck)) -> 0 | AH14: =IF(Table1[[#This Row],[Vin]]>Vout, IF(Table1[[#This Row],[Iout]]>Table1[[#This Row],[Ripple Current pk-pk]]/2,0,ABS(Table1[[#This Row],[Iout]]-Table1[[#This Row],[Ripple Current pk-pk]]/2)*Vsd_Q1*Deadtime*Fsw),0) -> 0 | AI14: =(Table1[[#This Row],[Dead Time Loss BuCtrl]]+Table1[[#This Row],[Transition Loss BuCtrl]]+Table1[[#This Row],[RDS(on) Loss BuCtrl]]*(1+RdsonTopTc*Ta-RdsonTopTc*25))/(1-Table1[[#This Row],[RDS(on) Loss BuCtrl]]*RdsonTopTc*ThetaJA_Q1) -> 0.07242803906 | AJ14: =Table1[[#This Row],[Irms Lf]] -> 4.217523896 | AK14: =Rdson2*Table1[[#This Row],[Irms BuSync]]^2 -> 0.07115003127 | AL14: =CHOOSE(Table1[[#This Row],[Mode Digit]], IF(Table1[[#This Row],[Iout]]<Table1[[#This Row],[Ripple Current pk-pk]]/2,Deadtime*Fsw*IF(VfdSky_Q2>0,0,Vsd_Q2)*(Table1[[#This Row],[Iout]]+Table1[[#This Row],[Ripple Current pk-pk]]/2),2*Deadtime*Fsw*IF(VfdSky_Q2>0,0,Vsd_Q2)*Table1[[#This Row],[Iout]]),0, IF(Table1[[#This Row],[Iout]]<Table1[[#This Row],[Ripple Current pk-pk]]/2,Deadtime*Fsw*IF(VfdSky_Q2>0,0,Vsd_Q2)*(Table1[[#This Row],[Iout]]+Table1[[#This Row],[Ripple Current pk-pk]]/2),2*Deadtime*Fsw*IF(VfdSky_Q2>0,0,Vsd_Q2)*Table1[[#This Row],[Iout]])) -> 0 | AM14: =(Table1[[#This Row],[Deadtime Loss BuSync]]+Table1[[#This Row],[RDS(on) Loss BuSync]]*(1+RdsonBotTc*Ta-RdsonBotTc*25))/(1-Table1[[#This Row],[RDS(on) Loss BuSync]]*RdsonBotTc*ThetaJA_Q2) -> 0.07242803906 | AN14: =Table1[[#This Row],[Irms Lf]] -> 4.217523896 | AO14: =Rdson4*Table1[[#This Row],[Irms BoCtlr]]^2 -> 0.07115003127 | AP14: =CHOOSE(Table1[[#This Row],[Mode Digit]], 0, (Vout*Table1[[#This Row],[Iin]]/2)*(Fsw)*(Tr_boost+Tf_boost), (Vout*Iout/2)*(Fsw/1)*(Tr_boost+Tf_boost)) -> 0.2897790367 | AQ14: =IF(Table1[[#This Row],[Vin]]>Vout, 0, IF(Table1[[#This Row],[Iin]]>Table1[[#This Row],[Ripple Current pk-pk]]/2,0,ABS(Table1[[#This Row],[Iin]]-Table1[[#This Row],[Ripple Current pk-pk]]/2)*Vsd_Q4*Deadtime*Fsw)) -> 0 | AR14: =(Table1[[#This Row],[Dead Time Loss BoCtlr]]+Table1[[#This Row],[Transition Loss BoCtlr]]+Table1[[#This Row],[RDS(on) Loss BoCtlr]]*(1+RdsonTopTc*Ta-RdsonTopTc*25))/(1-Table1[[#This Row],[RDS(on) Loss BoCtlr]]*RdsonTopTc*ThetaJA_Q4) -> 0.3674121313 | AS14: =Table1[[#This Row],[Irms Lf]] -> 4.217523896 | AT14: =Rdson3*Table1[[#This Row],[Irms BoSync]]^2 -> 0.07115003127 | AU14: =CHOOSE(Table1[[#This Row],[Mode Digit]], 0, IF(Table1[[#This Row],[Iin]]<Table1[[#This Row],[Ripple Current pk-pk]]/2,Deadtime*Fsw*IF(VfdSky_Q3>0,0,Vsd_Q3)*(Table1[[#This Row],[Iin]]+Table1[[#This Row],[Ripple Current pk-pk]]/2), 2*Deadtime*Fsw*IF(VfdSky_Q3>0,0,Vsd_Q3)*Table1[[#This Row],[Iin]]), IF(Table1[[#This Row],[Iin]]<Table1[[#This Row],[Ripple Current pk-pk]]/2,Deadtime*Fsw*IF(VfdSky_Q3>0,0,Vsd_Q3)*(Table1[[#This Row],[Iin]]+Table1[[#This Row],[Ripple Current pk-pk]]/2), 2*Deadtime*Fsw*IF(VfdSky_Q3>0,0,Vsd_Q3)*Table1[[#This Row],[Iin]])) -> 0.3107368421 | AV14: =(Table1[[#This Row],[Deadtime Loss BoSync]]+Table1[[#This Row],[RDS(on) Loss BoSync]]*(1+RdsonBotTc*Ta-RdsonBotTc*25))/(1-Table1[[#This Row],[RDS(on) Loss BoSync]]*RdsonBotTc*ThetaJA_Q3) -> 0.3887463841 | AW14: =CHOOSE(Table1[[#This Row],[Mode Digit]], Rdson3*Table1[[#This Row],[Irms Lf]]^2, Rdson1*Table1[[#This Row],[Irms Lf]]^2, 0) -> 0.07115003127 | AX14: =CHOOSE(Table1[[#This Row],[Mode Digit]], 2*Deadtime*Fsw*IF(VfdSky_Q2>0,VfdSky_Q2,0)*Table1[[#This Row],[Iout]], 2*Deadtime*Fsw*IF(VfdSky_Q3>0,VfdSky_Q3,0)*Table1[[#This Row],[Iin]], 2*Deadtime*Fsw*IF(VfdSky_Q2>0,VfdSky_Q2,0)*Table1[[#This Row],[Iout]]+2*Deadtime*Fsw*IF(VfdSky_Q3>0,VfdSky_Q3,0)*Table1[[#This Row],[Iin]]) -> 0 | AY14: =CHOOSE(Table1[[#This Row],[Mode Digit]], IF(QrrSky_Q2>0,QrrSky_Q2,Qrr_Q2)*Fsw*(Table1[[#This Row],[Vin]]-Table1[[#This Row],[Iout]]*Rdson1), IF(QrrSky_Q3>0,QrrSky_Q3,Qrr_Q3)*Fsw*Vout, IF(QrrSky_Q2>0,QrrSky_Q2,Qrr_Q2)*Fsw*(Table1[[#This Row],[Vin]]-Table1[[#This Row],[Iout]]*Rdson1)+IF(QrrSky_Q3>0,QrrSky_Q3,Qrr_Q3)*Fsw*Vout) -> 0.12177 | AZ14: =CHOOSE(Table1[[#This Row],[Mode Digit]], Rs*Table1[[#This Row],[Irms BuSync]]^2, Rs*Table1[[#This Row],[Irms BoCtlr]]^2, Rs*(Table1[[#This Row],[Irms BuSync]]^2+Table1[[#This Row],[Irms BoCtlr]]^2)) -> 0.05336252345 | BA14: 0.09 | BB14: =IF(Vout>8, Iq*Vout, Iq*Table1[[#This Row],[Vin]]) -> 0.027 | BC14: =CHOOSE(Table1[[#This Row],[Mode Digit]], (Qg_Q1+Qg_Q2)*Fsw, (Qg_Q3+Qg_Q4)*Fsw, (Qg_Q1+Qg_Q2+Qg_Q3+Qg_Q4)*Fsw)*IF(Vout>8, Vout, Table1[[#This Row],[Vin]]) -> 0.24354 | BD14: 0.1912734247 | BE14: =Table1[[#This Row],[IQ Loss]]+Table1[[#This Row],[Switching Current Loss]] -> 0.27054 | BF14: =SUM(Table1[[#This Row],[Total Inductor Loss]],Table1[[#This Row],[Total Cout Loss]],Table1[[#This Row],[Total Cin Loss]],Table1[[#This Row],[Total Control Bu MOSFET Loss]],Table1[[#This Row],[Total Sync Bu MOSFET Loss]],Table1[[#This Row],[Total Control Bo MOSFET Loss]],Table1[[#This Row],[Total Sync Bo MOSFET Loss]], Table1[[#This Row],[Deadtime Loss ext D]],Table1[[#This Row],[Reverse Recovery Loss MOSFET D]],Table1[[#This Row],[Total IC Loss]],Table1[[#This Row],[Isense Shunt Loss]],Table1[[#This Row],[Iout Shunt Loss]]) -> 1.59084054 | BG14: =Vout*Table1[[#This Row],[Iout]] -> 27 | BH14: =Table1[[#This Row],[Pout]]/(Table1[[#This Row],[Pout]]+Table1[[#This Row],[Total Loss]]) -> 0.9443583851 | BI14: =IF(Table1[[#This Row],[Vin]]>Vout,ThetaJA_Q1*(Table1[[#This Row],[Total Control Bu MOSFET Loss]]+Table1[[#This Row],[Reverse Recovery Loss MOSFET D]]),ThetaJA_Q4*(Table1[[#This Row],[Total Control Bo MOSFET Loss]]+Table1[[#This Row],[Reverse Recovery Loss MOSFET D]])) -> 30.32929214 | BJ14: =IF(Table1[[#This Row],[Vin]]>Vout, Table1[[#This Row],[Total Sync Bu MOSFET Loss]]*ThetaJA_Q2, ThetaJA_Q3*Table1[[#This Row],[Total Sync Bo MOSFET Loss]]) -> 24.10227581 | BL14: =Table1[[#This Row],[EFF, h]]*100 -> 94.43583851 | BM14: =Table1[[#This Row],[Total Inductor Loss]] -> 0.1279293473 | BN14: =Table1[[#This Row],[Total Control Bu MOSFET Loss]]+Table1[[#This Row],[Total Sync Bu MOSFET Loss]]+Table1[[#This Row],[Total Control Bo MOSFET Loss]]+Table1[[#This Row],[Total Sync Bo MOSFET Loss]]+Table1[[#This Row],[Reverse Recovery Loss MOSFET D]] -> 1.022784594 | BO14: =Table1[[#This Row],[Total Sync Bu MOSFET Loss]]+Table1[[#This Row],[Reverse Recovery Loss MOSFET D]]*0.33 -> 0.1126121391 | BP14: =Table1[[#This Row],[Isense Shunt Loss]] -> 0.05336252345 | BT14: 500kHz / 12-5V / 15A | BU14: 45 | BV14: 45 | BW14: 45 | BX14: =500000*(12-Vdd)*BW14/1000000000+((500000*BW9/1000000000*Vdd)*2.5/(2*4)) -> 0.18328125 | BY14: 14.6625 | BZ14: 18.328125 | CA14: 21.99375 | CB14: 25.659375 | CC14: 29.325 | CD14: 32.990625 | CE14: 3.665625 | CF14: 5.4984375 | CG14: 7.33125 | CH14: 9.1640625
A15: Ta | B15: =Ta -> 25 | C15: °C | D15: Ambient Temperature | G15: 6 | H15: =VIN_min+(VIN_max-VIN_min)*(Table1[[#This Row],[Step]]/200) -> 6.9 | I15: =IF(Table1[[#This Row],[Vin]]>VIN_BB_to_buck, "BUCK", IF(Table1[[#This Row],[Vin]]<=VIN_boost_to_BB,"BOOST","BUCK-BST")) -> BOOST | J15: =IF(Table1[[#This Row],[Mode]]="BOOST",2, IF(Table1[[#This Row],[Mode]]="BUCK", 1,3)) -> 2 | K15: 3 | L15: =Vout*Table1[[#This Row],[Iout]]/(Table1[[#This Row],[Vin]]*Efficiency) -> 4.118993135 | M15: =Iout/(1-Table1[[#This Row],[Duty Cycle BOOST Leg]]) -> 3.93799631 | N15: =CHOOSE(Table1[[#This Row],[Mode Digit]],(Vout+(Rdson2+Rs+Rdcr)*Table1[[#This Row],[Iout]])/(Table1[[#This Row],[Vin]]+(Rs+Rdson2-Rdson1)*Table1[[#This Row],[Iout]]),1,IF(Table1[[#This Row],[Vin]]<Vout,D_max_buck_BB,Vout/Table1[[#This Row],[Vin]]*(1-D_min_boost_exitBB_to_buck))) -> 1 | O15: =CHOOSE(Table1[[#This Row],[Mode Digit]],0,(Vout+(Rdson3+Rdcr)*Table1[[#This Row],[Iin]]-Table1[[#This Row],[Vin]])/(Vout+(Rdson3-Rdson4-Rs)*Table1[[#This Row],[Iin]]),IF(Table1[[#This Row],[Vin]]>Vout, (Vout-Table1[[#This Row],[Vin]]*D_max_exitBB_to_buck)/Vout, (Vout-Table1[[#This Row],[Vin]]*D_max_buck_BB)/Vout)) -> 0.2381912618 | P15: =CHOOSE(Table1[[#This Row],[Mode Digit]],0,0,1-((Table1[[#This Row],[Vin]]-Vout)+((VIN_BB_to_buck-VIN_BB_to_boost)/2))/((VIN_BB_to_buck-VIN_BB_to_boost))) -> 0 | Q15: =CHOOSE(Table1[[#This Row],[Mode Digit]],0,Table1[[#This Row],[Duty Cycle BOOST Leg]]/Fsw,(1/Fsw-Table1[[#This Row],[T BOD/BUE]])*Table1[[#This Row],[BOE/BUD BUBO ratio]]) -> 3.873028648e-07 | R15: =CHOOSE(Table1[[#This Row],[Mode Digit]],Table1[[#This Row],[Duty Cycle BUCK Leg]]/Fsw,(1-Table1[[#This Row],[Duty Cycle BOOST Leg]])/Fsw,TonBubo) -> 1.238713395e-06 | S15: =CHOOSE(Table1[[#This Row],[Mode Digit]],(1-Table1[[#This Row],[Duty Cycle BUCK Leg]])/Fsw,0,(1/Fsw-Table1[[#This Row],[T BOD/BUE]]-Table1[[#This Row],[T BOE]])) -> 0 | T15: =MAX(0, CHOOSE(Table1[[#This Row],[Mode Digit]], (Table1[[#This Row],[Vin]]-(Rdson1+Rdcr)*Table1[[#This Row],[Iout]]-Vout)*Table1[[#This Row],[Duty Cycle BUCK Leg]]/(Fsw*Lf), (Table1[[#This Row],[Vin]]-(Rdson4+Rdcr+Rs)*Table1[[#This Row],[Iin]])*Table1[[#This Row],[Duty Cycle BOOST Leg]]/(Fsw*Lf), IF(Table1[[#This Row],[Vin]]<Vout, (Table1[[#This Row],[Vin]]-(Rdson1+Rdson3+Rdcr+Rs)*Table1[[#This Row],[Iin]])*Table1[[#This Row],[T BOE]]/(Lf),(Vout-(Rdson2+Rdson4+Rdcr+Rs)*Table1[[#This Row],[Iout]])*Table1[[#This Row],[T BUD]]/(Lf)))) -> 0.8035789166 | U15: =CHOOSE(Table1[[#This Row],[Mode Digit]], SQRT(Table1[[#This Row],[Iout]]^2+(Table1[[#This Row],[Ripple Current pk-pk]]^2)/12), SQRT(Table1[[#This Row],[Iin]]^2+(Table1[[#This Row],[Ripple Current pk-pk]]^2)/12), SQRT(Table1[[#This Row],[Avg IL]]^2+(Table1[[#This Row],[Ripple Current pk-pk]]^2)/12)) -> 4.125520093 | V15: =(Table1[[#This Row],[Irms Lf]]^2*Rdcr*(1+Ltc*Ta-Ltc*25))/(1-Table1[[#This Row],[Irms Lf]]^2*Rdcr*Ltc*ThetaCa) -> 0.1012307316 | W15: =ABS(7.759*10^-3*Fsw^0.9458*(0.00787*Table1[[#This Row],[Ripple Current pk-pk]])^2.304) -> 0.0198808689 | X15: =Table1[[#This Row],[DCR Loss]]+Table1[[#This Row],[Core Loss]] -> 0.1211116005 | Y15: =IF(Table1[[#This Row],[Vin]]>Vout, Table1[[#This Row],[Ripple Current pk-pk]]/SQRT(12), SQRT(Table1[[#This Row],[Duty Cycle BOOST Leg]]/(1-Table1[[#This Row],[Duty Cycle BOOST Leg]]))*SQRT(Table1[[#This Row],[Iout]]^2+(Table1[[#This Row],[Ripple Current pk-pk]]^2)/12)) -> 1.68250229 | Z15: =RCoutEsr*Table1[[#This Row],[Irms Cout]]^2 -> 0.02349575583 | AA15: =Table1[[#This Row],[Cout ESR Loss]] -> 0.02349575583 | AB15: =IF(Table1[[#This Row],[Vin]]>Vout, SQRT(Table1[[#This Row],[Duty Cycle BUCK Leg]]*(1-Table1[[#This Row],[Duty Cycle BUCK Leg]]))*SQRT(Table1[[#This Row],[Iout]]^2+(Table1[[#This Row],[Ripple Current pk-pk]]^2)/12), Table1[[#This Row],[Ripple Current pk-pk]]/SQRT(12)) -> 0.2319732519 | AC15: =RCinEsr*Table1[[#This Row],[Irms Cin]]^2 -> 0.0004466361937 | AD15: =Table1[[#This Row],[Cin ESR Loss]] -> 0.0004466361937 | AE15: =Table1[[#This Row],[Irms Lf]] -> 4.125520093 | AF15: =Rdson1*Table1[[#This Row],[Irms BuCtrl]]^2 -> 0.06807966414 | AG15: =CHOOSE(Table1[[#This Row],[Mode Digit]], (Table1[[#This Row],[Vin]]*Table1[[#This Row],[Iout]]/2)*(Fsw)*(Tr_buck+Tf_buck), 0, (Table1[[#This Row],[Vin]]*Table1[[#This Row],[Avg IL]]/2)*(Fsw/1)*(Tr_buck+Tf_buck)) -> 0 | AH15: =IF(Table1[[#This Row],[Vin]]>Vout, IF(Table1[[#This Row],[Iout]]>Table1[[#This Row],[Ripple Current pk-pk]]/2,0,ABS(Table1[[#This Row],[Iout]]-Table1[[#This Row],[Ripple Current pk-pk]]/2)*Vsd_Q1*Deadtime*Fsw),0) -> 0 | AI15: =(Table1[[#This Row],[Dead Time Loss BuCtrl]]+Table1[[#This Row],[Transition Loss BuCtrl]]+Table1[[#This Row],[RDS(on) Loss BuCtrl]]*(1+RdsonTopTc*Ta-RdsonTopTc*25))/(1-Table1[[#This Row],[RDS(on) Loss BuCtrl]]*RdsonTopTc*ThetaJA_Q1) -> 0.06924884479 | AJ15: =Table1[[#This Row],[Irms Lf]] -> 4.125520093 | AK15: =Rdson2*Table1[[#This Row],[Irms BuSync]]^2 -> 0.06807966414 | AL15: =CHOOSE(Table1[[#This Row],[Mode Digit]], IF(Table1[[#This Row],[Iout]]<Table1[[#This Row],[Ripple Current pk-pk]]/2,Deadtime*Fsw*IF(VfdSky_Q2>0,0,Vsd_Q2)*(Table1[[#This Row],[Iout]]+Table1[[#This Row],[Ripple Current pk-pk]]/2),2*Deadtime*Fsw*IF(VfdSky_Q2>0,0,Vsd_Q2)*Table1[[#This Row],[Iout]]),0, IF(Table1[[#This Row],[Iout]]<Table1[[#This Row],[Ripple Current pk-pk]]/2,Deadtime*Fsw*IF(VfdSky_Q2>0,0,Vsd_Q2)*(Table1[[#This Row],[Iout]]+Table1[[#This Row],[Ripple Current pk-pk]]/2),2*Deadtime*Fsw*IF(VfdSky_Q2>0,0,Vsd_Q2)*Table1[[#This Row],[Iout]])) -> 0 | AM15: =(Table1[[#This Row],[Deadtime Loss BuSync]]+Table1[[#This Row],[RDS(on) Loss BuSync]]*(1+RdsonBotTc*Ta-RdsonBotTc*25))/(1-Table1[[#This Row],[RDS(on) Loss BuSync]]*RdsonBotTc*ThetaJA_Q2) -> 0.06924884479 | AN15: =Table1[[#This Row],[Irms Lf]] -> 4.125520093 | AO15: =Rdson4*Table1[[#This Row],[Irms BoCtlr]]^2 -> 0.06807966414 | AP15: =CHOOSE(Table1[[#This Row],[Mode Digit]], 0, (Vout*Table1[[#This Row],[Iin]]/2)*(Fsw)*(Tr_boost+Tf_boost), (Vout*Iout/2)*(Fsw/1)*(Tr_boost+Tf_boost)) -> 0.2834794924 | AQ15: =IF(Table1[[#This Row],[Vin]]>Vout, 0, IF(Table1[[#This Row],[Iin]]>Table1[[#This Row],[Ripple Current pk-pk]]/2,0,ABS(Table1[[#This Row],[Iin]]-Table1[[#This Row],[Ripple Current pk-pk]]/2)*Vsd_Q4*Deadtime*Fsw)) -> 0 | AR15: =(Table1[[#This Row],[Dead Time Loss BoCtlr]]+Table1[[#This Row],[Transition Loss BoCtlr]]+Table1[[#This Row],[RDS(on) Loss BoCtlr]]*(1+RdsonTopTc*Ta-RdsonTopTc*25))/(1-Table1[[#This Row],[RDS(on) Loss BoCtlr]]*RdsonTopTc*ThetaJA_Q4) -> 0.3575967328 | AS15: =Table1[[#This Row],[Irms Lf]] -> 4.125520093 | AT15: =Rdson3*Table1[[#This Row],[Irms BoSync]]^2 -> 0.06807966414 | AU15: =CHOOSE(Table1[[#This Row],[Mode Digit]], 0, IF(Table1[[#This Row],[Iin]]<Table1[[#This Row],[Ripple Current pk-pk]]/2,Deadtime*Fsw*IF(VfdSky_Q3>0,0,Vsd_Q3)*(Table1[[#This Row],[Iin]]+Table1[[#This Row],[Ripple Current pk-pk]]/2), 2*Deadtime*Fsw*IF(VfdSky_Q3>0,0,Vsd_Q3)*Table1[[#This Row],[Iin]]), IF(Table1[[#This Row],[Iin]]<Table1[[#This Row],[Ripple Current pk-pk]]/2,Deadtime*Fsw*IF(VfdSky_Q3>0,0,Vsd_Q3)*(Table1[[#This Row],[Iin]]+Table1[[#This Row],[Ripple Current pk-pk]]/2), 2*Deadtime*Fsw*IF(VfdSky_Q3>0,0,Vsd_Q3)*Table1[[#This Row],[Iin]])) -> 0.3039816934 | AV15: =(Table1[[#This Row],[Deadtime Loss BoSync]]+Table1[[#This Row],[RDS(on) Loss BoSync]]*(1+RdsonBotTc*Ta-RdsonBotTc*25))/(1-Table1[[#This Row],[RDS(on) Loss BoSync]]*RdsonBotTc*ThetaJA_Q3) -> 0.3784510327 | AW15: =CHOOSE(Table1[[#This Row],[Mode Digit]], Rdson3*Table1[[#This Row],[Irms Lf]]^2, Rdson1*Table1[[#This Row],[Irms Lf]]^2, 0) -> 0.06807966414 | AX15: =CHOOSE(Table1[[#This Row],[Mode Digit]], 2*Deadtime*Fsw*IF(VfdSky_Q2>0,VfdSky_Q2,0)*Table1[[#This Row],[Iout]], 2*Deadtime*Fsw*IF(VfdSky_Q3>0,VfdSky_Q3,0)*Table1[[#This Row],[Iin]], 2*Deadtime*Fsw*IF(VfdSky_Q2>0,VfdSky_Q2,0)*Table1[[#This Row],[Iout]]+2*Deadtime*Fsw*IF(VfdSky_Q3>0,VfdSky_Q3,0)*Table1[[#This Row],[Iin]]) -> 0 | AY15: =CHOOSE(Table1[[#This Row],[Mode Digit]], IF(QrrSky_Q2>0,QrrSky_Q2,Qrr_Q2)*Fsw*(Table1[[#This Row],[Vin]]-Table1[[#This Row],[Iout]]*Rdson1), IF(QrrSky_Q3>0,QrrSky_Q3,Qrr_Q3)*Fsw*Vout, IF(QrrSky_Q2>0,QrrSky_Q2,Qrr_Q2)*Fsw*(Table1[[#This Row],[Vin]]-Table1[[#This Row],[Iout]]*Rdson1)+IF(QrrSky_Q3>0,QrrSky_Q3,Qrr_Q3)*Fsw*Vout) -> 0.12177 | AZ15: =CHOOSE(Table1[[#This Row],[Mode Digit]], Rs*Table1[[#This Row],[Irms BuSync]]^2, Rs*Table1[[#This Row],[Irms BoCtlr]]^2, Rs*(Table1[[#This Row],[Irms BuSync]]^2+Table1[[#This Row],[Irms BoCtlr]]^2)) -> 0.05105974811 | BA15: 0.09 | BB15: =IF(Vout>8, Iq*Vout, Iq*Table1[[#This Row],[Vin]]) -> 0.027 | BC15: =CHOOSE(Table1[[#This Row],[Mode Digit]], (Qg_Q1+Qg_Q2)*Fsw, (Qg_Q3+Qg_Q4)*Fsw, (Qg_Q1+Qg_Q2+Qg_Q3+Qg_Q4)*Fsw)*IF(Vout>8, Vout, Table1[[#This Row],[Vin]]) -> 0.24354 | BD15: 0.1912734247 | BE15: =Table1[[#This Row],[IQ Loss]]+Table1[[#This Row],[Switching Current Loss]] -> 0.27054 | BF15: =SUM(Table1[[#This Row],[Total Inductor Loss]],Table1[[#This Row],[Total Cout Loss]],Table1[[#This Row],[Total Cin Loss]],Table1[[#This Row],[Total Control Bu MOSFET Loss]],Table1[[#This Row],[Total Sync Bu MOSFET Loss]],Table1[[#This Row],[Total Control Bo MOSFET Loss]],Table1[[#This Row],[Total Sync Bo MOSFET Loss]], Table1[[#This Row],[Deadtime Loss ext D]],Table1[[#This Row],[Reverse Recovery Loss MOSFET D]],Table1[[#This Row],[Total IC Loss]],Table1[[#This Row],[Isense Shunt Loss]],Table1[[#This Row],[Iout Shunt Loss]]) -> 1.552969196 | BG15: =Vout*Table1[[#This Row],[Iout]] -> 27 | BH15: =Table1[[#This Row],[Pout]]/(Table1[[#This Row],[Pout]]+Table1[[#This Row],[Total Loss]]) -> 0.9456109386 | BI15: =IF(Table1[[#This Row],[Vin]]>Vout,ThetaJA_Q1*(Table1[[#This Row],[Total Control Bu MOSFET Loss]]+Table1[[#This Row],[Reverse Recovery Loss MOSFET D]]),ThetaJA_Q4*(Table1[[#This Row],[Total Control Bo MOSFET Loss]]+Table1[[#This Row],[Reverse Recovery Loss MOSFET D]])) -> 29.72073743 | BJ15: =IF(Table1[[#This Row],[Vin]]>Vout, Table1[[#This Row],[Total Sync Bu MOSFET Loss]]*ThetaJA_Q2, ThetaJA_Q3*Table1[[#This Row],[Total Sync Bo MOSFET Loss]]) -> 23.46396403 | BL15: =Table1[[#This Row],[EFF, h]]*100 -> 94.56109386 | BM15: =Table1[[#This Row],[Total Inductor Loss]] -> 0.1211116005 | BN15: =Table1[[#This Row],[Total Control Bu MOSFET Loss]]+Table1[[#This Row],[Total Sync Bu MOSFET Loss]]+Table1[[#This Row],[Total Control Bo MOSFET Loss]]+Table1[[#This Row],[Total Sync Bo MOSFET Loss]]+Table1[[#This Row],[Reverse Recovery Loss MOSFET D]] -> 0.996315455 | BO15: =Table1[[#This Row],[Total Sync Bu MOSFET Loss]]+Table1[[#This Row],[Reverse Recovery Loss MOSFET D]]*0.33 -> 0.1094329448 | BP15: =Table1[[#This Row],[Isense Shunt Loss]] -> 0.05105974811 | BT15: 1Mhz / 5-1.2V / 10A | BU15: 20 | BV15: 20 | BW15: 20 | BX15: =1000000*(5-Vdd)*BW15/1000000000+((1000000*BW9/1000000000*Vdd)*2.5/(2*4)) -> 0.1140625 | BY15: 9.125 | BZ15: 11.40625 | CA15: 13.6875 | CB15: 15.96875 | CC15: 18.25 | CD15: 20.53125 | CE15: 2.28125 | CF15: 3.421875 | CG15: 4.5625 | CH15: 5.703125
A16: Vcc | B16: =Vdd -> 7.5 | C16: V | D16: Subregulated VCC Voltage | G16: 7 | H16: =VIN_min+(VIN_max-VIN_min)*(Table1[[#This Row],[Step]]/200) -> 7.05 | I16: =IF(Table1[[#This Row],[Vin]]>VIN_BB_to_buck, "BUCK", IF(Table1[[#This Row],[Vin]]<=VIN_boost_to_BB,"BOOST","BUCK-BST")) -> BOOST | J16: =IF(Table1[[#This Row],[Mode]]="BOOST",2, IF(Table1[[#This Row],[Mode]]="BUCK", 1,3)) -> 2 | K16: 3 | L16: =Vout*Table1[[#This Row],[Iout]]/(Table1[[#This Row],[Vin]]*Efficiency) -> 4.031354983 | M16: =Iout/(1-Table1[[#This Row],[Duty Cycle BOOST Leg]]) -> 3.853063027 | N16: =CHOOSE(Table1[[#This Row],[Mode Digit]],(Vout+(Rdson2+Rs+Rdcr)*Table1[[#This Row],[Iout]])/(Table1[[#This Row],[Vin]]+(Rs+Rdson2-Rdson1)*Table1[[#This Row],[Iout]]),1,IF(Table1[[#This Row],[Vin]]<Vout,D_max_buck_BB,Vout/Table1[[#This Row],[Vin]]*(1-D_min_boost_exitBB_to_buck))) -> 1 | O16: =CHOOSE(Table1[[#This Row],[Mode Digit]],0,(Vout+(Rdson3+Rdcr)*Table1[[#This Row],[Iin]]-Table1[[#This Row],[Vin]])/(Vout+(Rdson3-Rdson4-Rs)*Table1[[#This Row],[Iin]]),IF(Table1[[#This Row],[Vin]]>Vout, (Vout-Table1[[#This Row],[Vin]]*D_max_exitBB_to_buck)/Vout, (Vout-Table1[[#This Row],[Vin]]*D_max_buck_BB)/Vout)) -> 0.2213986694 | P16: =CHOOSE(Table1[[#This Row],[Mode Digit]],0,0,1-((Table1[[#This Row],[Vin]]-Vout)+((VIN_BB_to_buck-VIN_BB_to_boost)/2))/((VIN_BB_to_buck-VIN_BB_to_boost))) -> 0 | Q16: =CHOOSE(Table1[[#This Row],[Mode Digit]],0,Table1[[#This Row],[Duty Cycle BOOST Leg]]/Fsw,(1/Fsw-Table1[[#This Row],[T BOD/BUE]])*Table1[[#This Row],[BOE/BUD BUBO ratio]]) -> 3.599978364e-07 | R16: =CHOOSE(Table1[[#This Row],[Mode Digit]],Table1[[#This Row],[Duty Cycle BUCK Leg]]/Fsw,(1-Table1[[#This Row],[Duty Cycle BOOST Leg]])/Fsw,TonBubo) -> 1.266018424e-06 | S16: =CHOOSE(Table1[[#This Row],[Mode Digit]],(1-Table1[[#This Row],[Duty Cycle BUCK Leg]])/Fsw,0,(1/Fsw-Table1[[#This Row],[T BOD/BUE]]-Table1[[#This Row],[T BOE]])) -> 0 | T16: =MAX(0, CHOOSE(Table1[[#This Row],[Mode Digit]], (Table1[[#This Row],[Vin]]-(Rdson1+Rdcr)*Table1[[#This Row],[Iout]]-Vout)*Table1[[#This Row],[Duty Cycle BUCK Leg]]/(Fsw*Lf), (Table1[[#This Row],[Vin]]-(Rdson4+Rdcr+Rs)*Table1[[#This Row],[Iin]])*Table1[[#This Row],[Duty Cycle BOOST Leg]]/(Fsw*Lf), IF(Table1[[#This Row],[Vin]]<Vout, (Table1[[#This Row],[Vin]]-(Rdson1+Rdson3+Rdcr+Rs)*Table1[[#This Row],[Iin]])*Table1[[#This Row],[T BOE]]/(Lf),(Vout-(Rdson2+Rdson4+Rdcr+Rs)*Table1[[#This Row],[Iout]])*Table1[[#This Row],[T BUD]]/(Lf)))) -> 0.7634131049 | U16: =CHOOSE(Table1[[#This Row],[Mode Digit]], SQRT(Table1[[#This Row],[Iout]]^2+(Table1[[#This Row],[Ripple Current pk-pk]]^2)/12), SQRT(Table1[[#This Row],[Iin]]^2+(Table1[[#This Row],[Ripple Current pk-pk]]^2)/12), SQRT(Table1[[#This Row],[Avg IL]]^2+(Table1[[#This Row],[Ripple Current pk-pk]]^2)/12)) -> 4.037374101 | V16: =(Table1[[#This Row],[Irms Lf]]^2*Rdcr*(1+Ltc*Ta-Ltc*25))/(1-Table1[[#This Row],[Irms Lf]]^2*Rdcr*Ltc*ThetaCa) -> 0.0969179647 | W16: =ABS(7.759*10^-3*Fsw^0.9458*(0.00787*Table1[[#This Row],[Ripple Current pk-pk]])^2.304) -> 0.0176655744 | X16: =Table1[[#This Row],[DCR Loss]]+Table1[[#This Row],[Core Loss]] -> 0.1145835391 | Y16: =IF(Table1[[#This Row],[Vin]]>Vout, Table1[[#This Row],[Ripple Current pk-pk]]/SQRT(12), SQRT(Table1[[#This Row],[Duty Cycle BOOST Leg]]/(1-Table1[[#This Row],[Duty Cycle BOOST Leg]]))*SQRT(Table1[[#This Row],[Iout]]^2+(Table1[[#This Row],[Ripple Current pk-pk]]^2)/12)) -> 1.604057111 | Z16: =RCoutEsr*Table1[[#This Row],[Irms Cout]]^2 -> 0.02135589347 | AA16: =Table1[[#This Row],[Cout ESR Loss]] -> 0.02135589347 | AB16: =IF(Table1[[#This Row],[Vin]]>Vout, SQRT(Table1[[#This Row],[Duty Cycle BUCK Leg]]*(1-Table1[[#This Row],[Duty Cycle BUCK Leg]]))*SQRT(Table1[[#This Row],[Iout]]^2+(Table1[[#This Row],[Ripple Current pk-pk]]^2)/12), Table1[[#This Row],[Ripple Current pk-pk]]/SQRT(12)) -> 0.2203783808 | AC16: =RCinEsr*Table1[[#This Row],[Irms Cin]]^2 -> 0.0004031030351 | AD16: =Table1[[#This Row],[Cin ESR Loss]] -> 0.0004031030351 | AE16: =Table1[[#This Row],[Irms Lf]] -> 4.037374101 | AF16: =Rdson1*Table1[[#This Row],[Irms BuCtrl]]^2 -> 0.06520155853 | AG16: =CHOOSE(Table1[[#This Row],[Mode Digit]], (Table1[[#This Row],[Vin]]*Table1[[#This Row],[Iout]]/2)*(Fsw)*(Tr_buck+Tf_buck), 0, (Table1[[#This Row],[Vin]]*Table1[[#This Row],[Avg IL]]/2)*(Fsw/1)*(Tr_buck+Tf_buck)) -> 0 | AH16: =IF(Table1[[#This Row],[Vin]]>Vout, IF(Table1[[#This Row],[Iout]]>Table1[[#This Row],[Ripple Current pk-pk]]/2,0,ABS(Table1[[#This Row],[Iout]]-Table1[[#This Row],[Ripple Current pk-pk]]/2)*Vsd_Q1*Deadtime*Fsw),0) -> 0 | AI16: =(Table1[[#This Row],[Dead Time Loss BuCtrl]]+Table1[[#This Row],[Transition Loss BuCtrl]]+Table1[[#This Row],[RDS(on) Loss BuCtrl]]*(1+RdsonTopTc*Ta-RdsonTopTc*25))/(1-Table1[[#This Row],[RDS(on) Loss BuCtrl]]*RdsonTopTc*ThetaJA_Q1) -> 0.0662731952 | AJ16: =Table1[[#This Row],[Irms Lf]] -> 4.037374101 | AK16: =Rdson2*Table1[[#This Row],[Irms BuSync]]^2 -> 0.06520155853 | AL16: =CHOOSE(Table1[[#This Row],[Mode Digit]], IF(Table1[[#This Row],[Iout]]<Table1[[#This Row],[Ripple Current pk-pk]]/2,Deadtime*Fsw*IF(VfdSky_Q2>0,0,Vsd_Q2)*(Table1[[#This Row],[Iout]]+Table1[[#This Row],[Ripple Current pk-pk]]/2),2*Deadtime*Fsw*IF(VfdSky_Q2>0,0,Vsd_Q2)*Table1[[#This Row],[Iout]]),0, IF(Table1[[#This Row],[Iout]]<Table1[[#This Row],[Ripple Current pk-pk]]/2,Deadtime*Fsw*IF(VfdSky_Q2>0,0,Vsd_Q2)*(Table1[[#This Row],[Iout]]+Table1[[#This Row],[Ripple Current pk-pk]]/2),2*Deadtime*Fsw*IF(VfdSky_Q2>0,0,Vsd_Q2)*Table1[[#This Row],[Iout]])) -> 0 | AM16: =(Table1[[#This Row],[Deadtime Loss BuSync]]+Table1[[#This Row],[RDS(on) Loss BuSync]]*(1+RdsonBotTc*Ta-RdsonBotTc*25))/(1-Table1[[#This Row],[RDS(on) Loss BuSync]]*RdsonBotTc*ThetaJA_Q2) -> 0.0662731952 | AN16: =Table1[[#This Row],[Irms Lf]] -> 4.037374101 | AO16: =Rdson4*Table1[[#This Row],[Irms BoCtlr]]^2 -> 0.06520155853 | AP16: =CHOOSE(Table1[[#This Row],[Mode Digit]], 0, (Vout*Table1[[#This Row],[Iin]]/2)*(Fsw)*(Tr_boost+Tf_boost), (Vout*Iout/2)*(Fsw/1)*(Tr_boost+Tf_boost)) -> 0.2774480139 | AQ16: =IF(Table1[[#This Row],[Vin]]>Vout, 0, IF(Table1[[#This Row],[Iin]]>Table1[[#This Row],[Ripple Current pk-pk]]/2,0,ABS(Table1[[#This Row],[Iin]]-Table1[[#This Row],[Ripple Current pk-pk]]/2)*Vsd_Q4*Deadtime*Fsw)) -> 0 | AR16: =(Table1[[#This Row],[Dead Time Loss BoCtlr]]+Table1[[#This Row],[Transition Loss BoCtlr]]+Table1[[#This Row],[RDS(on) Loss BoCtlr]]*(1+RdsonTopTc*Ta-RdsonTopTc*25))/(1-Table1[[#This Row],[RDS(on) Loss BoCtlr]]*RdsonTopTc*ThetaJA_Q4) -> 0.3482812759 | AS16: =Table1[[#This Row],[Irms Lf]] -> 4.037374101 | AT16: =Rdson3*Table1[[#This Row],[Irms BoSync]]^2 -> 0.06520155853 | AU16: =CHOOSE(Table1[[#This Row],[Mode Digit]], 0, IF(Table1[[#This Row],[Iin]]<Table1[[#This Row],[Ripple Current pk-pk]]/2,Deadtime*Fsw*IF(VfdSky_Q3>0,0,Vsd_Q3)*(Table1[[#This Row],[Iin]]+Table1[[#This Row],[Ripple Current pk-pk]]/2), 2*Deadtime*Fsw*IF(VfdSky_Q3>0,0,Vsd_Q3)*Table1[[#This Row],[Iin]]), IF(Table1[[#This Row],[Iin]]<Table1[[#This Row],[Ripple Current pk-pk]]/2,Deadtime*Fsw*IF(VfdSky_Q3>0,0,Vsd_Q3)*(Table1[[#This Row],[Iin]]+Table1[[#This Row],[Ripple Current pk-pk]]/2), 2*Deadtime*Fsw*IF(VfdSky_Q3>0,0,Vsd_Q3)*Table1[[#This Row],[Iin]])) -> 0.2975139978 | AV16: =(Table1[[#This Row],[Deadtime Loss BoSync]]+Table1[[#This Row],[RDS(on) Loss BoSync]]*(1+RdsonBotTc*Ta-RdsonBotTc*25))/(1-Table1[[#This Row],[RDS(on) Loss BoSync]]*RdsonBotTc*ThetaJA_Q3) -> 0.3686770594 | AW16: =CHOOSE(Table1[[#This Row],[Mode Digit]], Rdson3*Table1[[#This Row],[Irms Lf]]^2, Rdson1*Table1[[#This Row],[Irms Lf]]^2, 0) -> 0.06520155853 | AX16: =CHOOSE(Table1[[#This Row],[Mode Digit]], 2*Deadtime*Fsw*IF(VfdSky_Q2>0,VfdSky_Q2,0)*Table1[[#This Row],[Iout]], 2*Deadtime*Fsw*IF(VfdSky_Q3>0,VfdSky_Q3,0)*Table1[[#This Row],[Iin]], 2*Deadtime*Fsw*IF(VfdSky_Q2>0,VfdSky_Q2,0)*Table1[[#This Row],[Iout]]+2*Deadtime*Fsw*IF(VfdSky_Q3>0,VfdSky_Q3,0)*Table1[[#This Row],[Iin]]) -> 0 | AY16: =CHOOSE(Table1[[#This Row],[Mode Digit]], IF(QrrSky_Q2>0,QrrSky_Q2,Qrr_Q2)*Fsw*(Table1[[#This Row],[Vin]]-Table1[[#This Row],[Iout]]*Rdson1), IF(QrrSky_Q3>0,QrrSky_Q3,Qrr_Q3)*Fsw*Vout, IF(QrrSky_Q2>0,QrrSky_Q2,Qrr_Q2)*Fsw*(Table1[[#This Row],[Vin]]-Table1[[#This Row],[Iout]]*Rdson1)+IF(QrrSky_Q3>0,QrrSky_Q3,Qrr_Q3)*Fsw*Vout) -> 0.12177 | AZ16: =CHOOSE(Table1[[#This Row],[Mode Digit]], Rs*Table1[[#This Row],[Irms BuSync]]^2, Rs*Table1[[#This Row],[Irms BoCtlr]]^2, Rs*(Table1[[#This Row],[Irms BuSync]]^2+Table1[[#This Row],[Irms BoCtlr]]^2)) -> 0.04890116889 | BA16: 0.09 | BB16: =IF(Vout>8, Iq*Vout, Iq*Table1[[#This Row],[Vin]]) -> 0.027 | BC16: =CHOOSE(Table1[[#This Row],[Mode Digit]], (Qg_Q1+Qg_Q2)*Fsw, (Qg_Q3+Qg_Q4)*Fsw, (Qg_Q1+Qg_Q2+Qg_Q3+Qg_Q4)*Fsw)*IF(Vout>8, Vout, Table1[[#This Row],[Vin]]) -> 0.24354 | BD16: 0.1912734247 | BE16: =Table1[[#This Row],[IQ Loss]]+Table1[[#This Row],[Switching Current Loss]] -> 0.27054 | BF16: =SUM(Table1[[#This Row],[Total Inductor Loss]],Table1[[#This Row],[Total Cout Loss]],Table1[[#This Row],[Total Cin Loss]],Table1[[#This Row],[Total Control Bu MOSFET Loss]],Table1[[#This Row],[Total Sync Bu MOSFET Loss]],Table1[[#This Row],[Total Control Bo MOSFET Loss]],Table1[[#This Row],[Total Sync Bo MOSFET Loss]], Table1[[#This Row],[Deadtime Loss ext D]],Table1[[#This Row],[Reverse Recovery Loss MOSFET D]],Table1[[#This Row],[Total IC Loss]],Table1[[#This Row],[Isense Shunt Loss]],Table1[[#This Row],[Iout Shunt Loss]]) -> 1.51705843 | BG16: =Vout*Table1[[#This Row],[Iout]] -> 27 | BH16: =Table1[[#This Row],[Pout]]/(Table1[[#This Row],[Pout]]+Table1[[#This Row],[Total Loss]]) -> 0.946801721 | BI16: =IF(Table1[[#This Row],[Vin]]>Vout,ThetaJA_Q1*(Table1[[#This Row],[Total Control Bu MOSFET Loss]]+Table1[[#This Row],[Reverse Recovery Loss MOSFET D]]),ThetaJA_Q4*(Table1[[#This Row],[Total Control Bo MOSFET Loss]]+Table1[[#This Row],[Reverse Recovery Loss MOSFET D]])) -> 29.14317911 | BJ16: =IF(Table1[[#This Row],[Vin]]>Vout, Table1[[#This Row],[Total Sync Bu MOSFET Loss]]*ThetaJA_Q2, ThetaJA_Q3*Table1[[#This Row],[Total Sync Bo MOSFET Loss]]) -> 22.85797768 | BL16: =Table1[[#This Row],[EFF, h]]*100 -> 94.6801721 | BM16: =Table1[[#This Row],[Total Inductor Loss]] -> 0.1145835391 | BN16: =Table1[[#This Row],[Total Control Bu MOSFET Loss]]+Table1[[#This Row],[Total Sync Bu MOSFET Loss]]+Table1[[#This Row],[Total Control Bo MOSFET Loss]]+Table1[[#This Row],[Total Sync Bo MOSFET Loss]]+Table1[[#This Row],[Reverse Recovery Loss MOSFET D]] -> 0.9712747257 | BO16: =Table1[[#This Row],[Total Sync Bu MOSFET Loss]]+Table1[[#This Row],[Reverse Recovery Loss MOSFET D]]*0.33 -> 0.1064572952 | BP16: =Table1[[#This Row],[Isense Shunt Loss]] -> 0.04890116889 | BT16: 1Mhz / 12-1.2V/ 10A | BU16: 25 | BV16: 25 | BW16: 25 | BX16: =1000000*(12-Vdd)*BW16/1000000000+((1000000*BW9/1000000000*Vdd)*2.5/(2*4)) -> 0.2765625 | BY16: 22.125 | BZ16: 27.65625 | CA16: 33.1875 | CB16: 38.71875 | CC16: 44.25 | CD16: 49.78125 | CE16: 5.53125 | CF16: 8.296875 | CG16: 11.0625 | CH16: 13.828125
A17: Components | B17: Input Value | C17: Units | D17: Description | G17: 8 | H17: =VIN_min+(VIN_max-VIN_min)*(Table1[[#This Row],[Step]]/200) -> 7.2 | I17: =IF(Table1[[#This Row],[Vin]]>VIN_BB_to_buck, "BUCK", IF(Table1[[#This Row],[Vin]]<=VIN_boost_to_BB,"BOOST","BUCK-BST")) -> BOOST | J17: =IF(Table1[[#This Row],[Mode]]="BOOST",2, IF(Table1[[#This Row],[Mode]]="BUCK", 1,3)) -> 2 | K17: 3 | L17: =Vout*Table1[[#This Row],[Iout]]/(Table1[[#This Row],[Vin]]*Efficiency) -> 3.947368421 | M17: =Iout/(1-Table1[[#This Row],[Duty Cycle BOOST Leg]]) -> 3.771740931 | N17: =CHOOSE(Table1[[#This Row],[Mode Digit]],(Vout+(Rdson2+Rs+Rdcr)*Table1[[#This Row],[Iout]])/(Table1[[#This Row],[Vin]]+(Rs+Rdson2-Rdson1)*Table1[[#This Row],[Iout]]),1,IF(Table1[[#This Row],[Vin]]<Vout,D_max_buck_BB,Vout/Table1[[#This Row],[Vin]]*(1-D_min_boost_exitBB_to_buck))) -> 1 | O17: =CHOOSE(Table1[[#This Row],[Mode Digit]],0,(Vout+(Rdson3+Rdcr)*Table1[[#This Row],[Iin]]-Table1[[#This Row],[Vin]])/(Vout+(Rdson3-Rdson4-Rs)*Table1[[#This Row],[Iin]]),IF(Table1[[#This Row],[Vin]]>Vout, (Vout-Table1[[#This Row],[Vin]]*D_max_exitBB_to_buck)/Vout, (Vout-Table1[[#This Row],[Vin]]*D_max_buck_BB)/Vout)) -> 0.2046113307 | P17: =CHOOSE(Table1[[#This Row],[Mode Digit]],0,0,1-((Table1[[#This Row],[Vin]]-Vout)+((VIN_BB_to_buck-VIN_BB_to_boost)/2))/((VIN_BB_to_buck-VIN_BB_to_boost))) -> 0 | Q17: =CHOOSE(Table1[[#This Row],[Mode Digit]],0,Table1[[#This Row],[Duty Cycle BOOST Leg]]/Fsw,(1/Fsw-Table1[[#This Row],[T BOD/BUE]])*Table1[[#This Row],[BOE/BUD BUBO ratio]]) -> 3.327013507e-07 | R17: =CHOOSE(Table1[[#This Row],[Mode Digit]],Table1[[#This Row],[Duty Cycle BUCK Leg]]/Fsw,(1-Table1[[#This Row],[Duty Cycle BOOST Leg]])/Fsw,TonBubo) -> 1.293314909e-06 | S17: =CHOOSE(Table1[[#This Row],[Mode Digit]],(1-Table1[[#This Row],[Duty Cycle BUCK Leg]])/Fsw,0,(1/Fsw-Table1[[#This Row],[T BOD/BUE]]-Table1[[#This Row],[T BOE]])) -> 0 | T17: =MAX(0, CHOOSE(Table1[[#This Row],[Mode Digit]], (Table1[[#This Row],[Vin]]-(Rdson1+Rdcr)*Table1[[#This Row],[Iout]]-Vout)*Table1[[#This Row],[Duty Cycle BUCK Leg]]/(Fsw*Lf), (Table1[[#This Row],[Vin]]-(Rdson4+Rdcr+Rs)*Table1[[#This Row],[Iin]])*Table1[[#This Row],[Duty Cycle BOOST Leg]]/(Fsw*Lf), IF(Table1[[#This Row],[Vin]]<Vout, (Table1[[#This Row],[Vin]]-(Rdson1+Rdson3+Rdcr+Rs)*Table1[[#This Row],[Iin]])*Table1[[#This Row],[T BOE]]/(Lf),(Vout-(Rdson2+Rdson4+Rdcr+Rs)*Table1[[#This Row],[Iout]])*Table1[[#This Row],[T BUD]]/(Lf)))) -> 0.7207600674 | U17: =CHOOSE(Table1[[#This Row],[Mode Digit]], SQRT(Table1[[#This Row],[Iout]]^2+(Table1[[#This Row],[Ripple Current pk-pk]]^2)/12), SQRT(Table1[[#This Row],[Iin]]^2+(Table1[[#This Row],[Ripple Current pk-pk]]^2)/12), SQRT(Table1[[#This Row],[Avg IL]]^2+(Table1[[#This Row],[Ripple Current pk-pk]]^2)/12)) -> 3.952848177 | V17: =(Table1[[#This Row],[Irms Lf]]^2*Rdcr*(1+Ltc*Ta-Ltc*25))/(1-Table1[[#This Row],[Irms Lf]]^2*Rdcr*Ltc*ThetaCa) -> 0.09287248634 | W17: =ABS(7.759*10^-3*Fsw^0.9458*(0.00787*Table1[[#This Row],[Ripple Current pk-pk]])^2.304) -> 0.0154738874 | X17: =Table1[[#This Row],[DCR Loss]]+Table1[[#This Row],[Core Loss]] -> 0.1083463737 | Y17: =IF(Table1[[#This Row],[Vin]]>Vout, Table1[[#This Row],[Ripple Current pk-pk]]/SQRT(12), SQRT(Table1[[#This Row],[Duty Cycle BOOST Leg]]/(1-Table1[[#This Row],[Duty Cycle BOOST Leg]]))*SQRT(Table1[[#This Row],[Iout]]^2+(Table1[[#This Row],[Ripple Current pk-pk]]^2)/12)) -> 1.525240747 | Z17: =RCoutEsr*Table1[[#This Row],[Irms Cout]]^2 -> 0.0193087825 | AA17: =Table1[[#This Row],[Cout ESR Loss]] -> 0.0193087825 | AB17: =IF(Table1[[#This Row],[Vin]]>Vout, SQRT(Table1[[#This Row],[Duty Cycle BUCK Leg]]*(1-Table1[[#This Row],[Duty Cycle BUCK Leg]]))*SQRT(Table1[[#This Row],[Iout]]^2+(Table1[[#This Row],[Ripple Current pk-pk]]^2)/12), Table1[[#This Row],[Ripple Current pk-pk]]/SQRT(12)) -> 0.2080655095 | AC17: =RCinEsr*Table1[[#This Row],[Irms Cin]]^2 -> 0.0003593174267 | AD17: =Table1[[#This Row],[Cin ESR Loss]] -> 0.0003593174267 | AE17: =Table1[[#This Row],[Irms Lf]] -> 3.952848177 | AF17: =Rdson1*Table1[[#This Row],[Irms BuCtrl]]^2 -> 0.06250003483 | AG17: =CHOOSE(Table1[[#This Row],[Mode Digit]], (Table1[[#This Row],[Vin]]*Table1[[#This Row],[Iout]]/2)*(Fsw)*(Tr_buck+Tf_buck), 0, (Table1[[#This Row],[Vin]]*Table1[[#This Row],[Avg IL]]/2)*(Fsw/1)*(Tr_buck+Tf_buck)) -> 0 | AH17: =IF(Table1[[#This Row],[Vin]]>Vout, IF(Table1[[#This Row],[Iout]]>Table1[[#This Row],[Ripple Current pk-pk]]/2,0,ABS(Table1[[#This Row],[Iout]]-Table1[[#This Row],[Ripple Current pk-pk]]/2)*Vsd_Q1*Deadtime*Fsw),0) -> 0 | AI17: =(Table1[[#This Row],[Dead Time Loss BuCtrl]]+Table1[[#This Row],[Transition Loss BuCtrl]]+Table1[[#This Row],[RDS(on) Loss BuCtrl]]*(1+RdsonTopTc*Ta-RdsonTopTc*25))/(1-Table1[[#This Row],[RDS(on) Loss BuCtrl]]*RdsonTopTc*ThetaJA_Q1) -> 0.06348403797 | AJ17: =Table1[[#This Row],[Irms Lf]] -> 3.952848177 | AK17: =Rdson2*Table1[[#This Row],[Irms BuSync]]^2 -> 0.06250003483 | AL17: =CHOOSE(Table1[[#This Row],[Mode Digit]], IF(Table1[[#This Row],[Iout]]<Table1[[#This Row],[Ripple Current pk-pk]]/2,Deadtime*Fsw*IF(VfdSky_Q2>0,0,Vsd_Q2)*(Table1[[#This Row],[Iout]]+Table1[[#This Row],[Ripple Current pk-pk]]/2),2*Deadtime*Fsw*IF(VfdSky_Q2>0,0,Vsd_Q2)*Table1[[#This Row],[Iout]]),0, IF(Table1[[#This Row],[Iout]]<Table1[[#This Row],[Ripple Current pk-pk]]/2,Deadtime*Fsw*IF(VfdSky_Q2>0,0,Vsd_Q2)*(Table1[[#This Row],[Iout]]+Table1[[#This Row],[Ripple Current pk-pk]]/2),2*Deadtime*Fsw*IF(VfdSky_Q2>0,0,Vsd_Q2)*Table1[[#This Row],[Iout]])) -> 0 | AM17: =(Table1[[#This Row],[Deadtime Loss BuSync]]+Table1[[#This Row],[RDS(on) Loss BuSync]]*(1+RdsonBotTc*Ta-RdsonBotTc*25))/(1-Table1[[#This Row],[RDS(on) Loss BuSync]]*RdsonBotTc*ThetaJA_Q2) -> 0.06348403797 | AN17: =Table1[[#This Row],[Irms Lf]] -> 3.952848177 | AO17: =Rdson4*Table1[[#This Row],[Irms BoCtlr]]^2 -> 0.06250003483 | AP17: =CHOOSE(Table1[[#This Row],[Mode Digit]], 0, (Vout*Table1[[#This Row],[Iin]]/2)*(Fsw)*(Tr_boost+Tf_boost), (Vout*Iout/2)*(Fsw/1)*(Tr_boost+Tf_boost)) -> 0.2716678469 | AQ17: =IF(Table1[[#This Row],[Vin]]>Vout, 0, IF(Table1[[#This Row],[Iin]]>Table1[[#This Row],[Ripple Current pk-pk]]/2,0,ABS(Table1[[#This Row],[Iin]]-Table1[[#This Row],[Ripple Current pk-pk]]/2)*Vsd_Q4*Deadtime*Fsw)) -> 0 | AR17: =(Table1[[#This Row],[Dead Time Loss BoCtlr]]+Table1[[#This Row],[Transition Loss BoCtlr]]+Table1[[#This Row],[RDS(on) Loss BoCtlr]]*(1+RdsonTopTc*Ta-RdsonTopTc*25))/(1-Table1[[#This Row],[RDS(on) Loss BoCtlr]]*RdsonTopTc*ThetaJA_Q4) -> 0.3394290347 | AS17: =Table1[[#This Row],[Irms Lf]] -> 3.952848177 | AT17: =Rdson3*Table1[[#This Row],[Irms BoSync]]^2 -> 0.06250003483 | AU17: =CHOOSE(Table1[[#This Row],[Mode Digit]], 0, IF(Table1[[#This Row],[Iin]]<Table1[[#This Row],[Ripple Current pk-pk]]/2,Deadtime*Fsw*IF(VfdSky_Q3>0,0,Vsd_Q3)*(Table1[[#This Row],[Iin]]+Table1[[#This Row],[Ripple Current pk-pk]]/2), 2*Deadtime*Fsw*IF(VfdSky_Q3>0,0,Vsd_Q3)*Table1[[#This Row],[Iin]]), IF(Table1[[#This Row],[Iin]]<Table1[[#This Row],[Ripple Current pk-pk]]/2,Deadtime*Fsw*IF(VfdSky_Q3>0,0,Vsd_Q3)*(Table1[[#This Row],[Iin]]+Table1[[#This Row],[Ripple Current pk-pk]]/2), 2*Deadtime*Fsw*IF(VfdSky_Q3>0,0,Vsd_Q3)*Table1[[#This Row],[Iin]])) -> 0.2913157895 | AV17: =(Table1[[#This Row],[Deadtime Loss BoSync]]+Table1[[#This Row],[RDS(on) Loss BoSync]]*(1+RdsonBotTc*Ta-RdsonBotTc*25))/(1-Table1[[#This Row],[RDS(on) Loss BoSync]]*RdsonBotTc*ThetaJA_Q3) -> 0.3593863153 | AW17: =CHOOSE(Table1[[#This Row],[Mode Digit]], Rdson3*Table1[[#This Row],[Irms Lf]]^2, Rdson1*Table1[[#This Row],[Irms Lf]]^2, 0) -> 0.06250003483 | AX17: =CHOOSE(Table1[[#This Row],[Mode Digit]], 2*Deadtime*Fsw*IF(VfdSky_Q2>0,VfdSky_Q2,0)*Table1[[#This Row],[Iout]], 2*Deadtime*Fsw*IF(VfdSky_Q3>0,VfdSky_Q3,0)*Table1[[#This Row],[Iin]], 2*Deadtime*Fsw*IF(VfdSky_Q2>0,VfdSky_Q2,0)*Table1[[#This Row],[Iout]]+2*Deadtime*Fsw*IF(VfdSky_Q3>0,VfdSky_Q3,0)*Table1[[#This Row],[Iin]]) -> 0 | AY17: =CHOOSE(Table1[[#This Row],[Mode Digit]], IF(QrrSky_Q2>0,QrrSky_Q2,Qrr_Q2)*Fsw*(Table1[[#This Row],[Vin]]-Table1[[#This Row],[Iout]]*Rdson1), IF(QrrSky_Q3>0,QrrSky_Q3,Qrr_Q3)*Fsw*Vout, IF(QrrSky_Q2>0,QrrSky_Q2,Qrr_Q2)*Fsw*(Table1[[#This Row],[Vin]]-Table1[[#This Row],[Iout]]*Rdson1)+IF(QrrSky_Q3>0,QrrSky_Q3,Qrr_Q3)*Fsw*Vout) -> 0.12177 | AZ17: =CHOOSE(Table1[[#This Row],[Mode Digit]], Rs*Table1[[#This Row],[Irms BuSync]]^2, Rs*Table1[[#This Row],[Irms BoCtlr]]^2, Rs*(Table1[[#This Row],[Irms BuSync]]^2+Table1[[#This Row],[Irms BoCtlr]]^2)) -> 0.04687502612 | BA17: 0.09 | BB17: =IF(Vout>8, Iq*Vout, Iq*Table1[[#This Row],[Vin]]) -> 0.027 | BC17: =CHOOSE(Table1[[#This Row],[Mode Digit]], (Qg_Q1+Qg_Q2)*Fsw, (Qg_Q3+Qg_Q4)*Fsw, (Qg_Q1+Qg_Q2+Qg_Q3+Qg_Q4)*Fsw)*IF(Vout>8, Vout, Table1[[#This Row],[Vin]]) -> 0.24354 | BD17: 0.1912734247 | BE17: =Table1[[#This Row],[IQ Loss]]+Table1[[#This Row],[Switching Current Loss]] -> 0.27054 | BF17: =SUM(Table1[[#This Row],[Total Inductor Loss]],Table1[[#This Row],[Total Cout Loss]],Table1[[#This Row],[Total Cin Loss]],Table1[[#This Row],[Total Control Bu MOSFET Loss]],Table1[[#This Row],[Total Sync Bu MOSFET Loss]],Table1[[#This Row],[Total Control Bo MOSFET Loss]],Table1[[#This Row],[Total Sync Bo MOSFET Loss]], Table1[[#This Row],[Deadtime Loss ext D]],Table1[[#This Row],[Reverse Recovery Loss MOSFET D]],Table1[[#This Row],[Total IC Loss]],Table1[[#This Row],[Isense Shunt Loss]],Table1[[#This Row],[Iout Shunt Loss]]) -> 1.482982926 | BG17: =Vout*Table1[[#This Row],[Iout]] -> 27 | BH17: =Table1[[#This Row],[Pout]]/(Table1[[#This Row],[Pout]]+Table1[[#This Row],[Total Loss]]) -> 0.9479344235 | BI17: =IF(Table1[[#This Row],[Vin]]>Vout,ThetaJA_Q1*(Table1[[#This Row],[Total Control Bu MOSFET Loss]]+Table1[[#This Row],[Reverse Recovery Loss MOSFET D]]),ThetaJA_Q4*(Table1[[#This Row],[Total Control Bo MOSFET Loss]]+Table1[[#This Row],[Reverse Recovery Loss MOSFET D]])) -> 28.59434015 | BJ17: =IF(Table1[[#This Row],[Vin]]>Vout, Table1[[#This Row],[Total Sync Bu MOSFET Loss]]*ThetaJA_Q2, ThetaJA_Q3*Table1[[#This Row],[Total Sync Bo MOSFET Loss]]) -> 22.28195155 | BL17: =Table1[[#This Row],[EFF, h]]*100 -> 94.79344235 | BM17: =Table1[[#This Row],[Total Inductor Loss]] -> 0.1083463737 | BN17: =Table1[[#This Row],[Total Control Bu MOSFET Loss]]+Table1[[#This Row],[Total Sync Bu MOSFET Loss]]+Table1[[#This Row],[Total Control Bo MOSFET Loss]]+Table1[[#This Row],[Total Sync Bo MOSFET Loss]]+Table1[[#This Row],[Reverse Recovery Loss MOSFET D]] -> 0.9475534259 | BO17: =Table1[[#This Row],[Total Sync Bu MOSFET Loss]]+Table1[[#This Row],[Reverse Recovery Loss MOSFET D]]*0.33 -> 0.103668138 | BP17: =Table1[[#This Row],[Isense Shunt Loss]] -> 0.04687502612 | BT17: 500kHz / 18-1.2V / 20A | BU17: 50 | BV17: 50 | BW17: 50 | BX17: =500000*(18-Vdd)*BW17/1000000000+((500000*BW15/1000000000*Vdd)*2.5/(2*4)) -> 0.2859375 | BY17: 22.875 | BZ17: 28.59375 | CA17: 34.3125 | CB17: 40.03125 | CC17: 45.75 | CD17: 51.46875 | CE17: 5.71875 | CF17: 8.578125 | CG17: 11.4375 | CH17: 14.296875
A18: L | B18: =Lf*1000000 -> 3.3 | C18: uH | D18: Filter Inductance | G18: 9 | H18: =VIN_min+(VIN_max-VIN_min)*(Table1[[#This Row],[Step]]/200) -> 7.35 | I18: =IF(Table1[[#This Row],[Vin]]>VIN_BB_to_buck, "BUCK", IF(Table1[[#This Row],[Vin]]<=VIN_boost_to_BB,"BOOST","BUCK-BST")) -> BOOST | J18: =IF(Table1[[#This Row],[Mode]]="BOOST",2, IF(Table1[[#This Row],[Mode]]="BUCK", 1,3)) -> 2 | K18: 3 | L18: =Vout*Table1[[#This Row],[Iout]]/(Table1[[#This Row],[Vin]]*Efficiency) -> 3.866809882 | M18: =Iout/(1-Table1[[#This Row],[Duty Cycle BOOST Leg]]) -> 3.693803052 | N18: =CHOOSE(Table1[[#This Row],[Mode Digit]],(Vout+(Rdson2+Rs+Rdcr)*Table1[[#This Row],[Iout]])/(Table1[[#This Row],[Vin]]+(Rs+Rdson2-Rdson1)*Table1[[#This Row],[Iout]]),1,IF(Table1[[#This Row],[Vin]]<Vout,D_max_buck_BB,Vout/Table1[[#This Row],[Vin]]*(1-D_min_boost_exitBB_to_buck))) -> 1 | O18: =CHOOSE(Table1[[#This Row],[Mode Digit]],0,(Vout+(Rdson3+Rdcr)*Table1[[#This Row],[Iin]]-Table1[[#This Row],[Vin]])/(Vout+(Rdson3-Rdson4-Rs)*Table1[[#This Row],[Iin]]),IF(Table1[[#This Row],[Vin]]>Vout, (Vout-Table1[[#This Row],[Vin]]*D_max_exitBB_to_buck)/Vout, (Vout-Table1[[#This Row],[Vin]]*D_max_buck_BB)/Vout)) -> 0.1878289238 | P18: =CHOOSE(Table1[[#This Row],[Mode Digit]],0,0,1-((Table1[[#This Row],[Vin]]-Vout)+((VIN_BB_to_buck-VIN_BB_to_boost)/2))/((VIN_BB_to_buck-VIN_BB_to_boost))) -> 0 | Q18: =CHOOSE(Table1[[#This Row],[Mode Digit]],0,Table1[[#This Row],[Duty Cycle BOOST Leg]]/Fsw,(1/Fsw-Table1[[#This Row],[T BOD/BUE]])*Table1[[#This Row],[BOE/BUD BUBO ratio]]) -> 3.054128842e-07 | R18: =CHOOSE(Table1[[#This Row],[Mode Digit]],Table1[[#This Row],[Duty Cycle BUCK Leg]]/Fsw,(1-Table1[[#This Row],[Duty Cycle BOOST Leg]])/Fsw,TonBubo) -> 1.320603376e-06 | S18: =CHOOSE(Table1[[#This Row],[Mode Digit]],(1-Table1[[#This Row],[Duty Cycle BUCK Leg]])/Fsw,0,(1/Fsw-Table1[[#This Row],[T BOD/BUE]]-Table1[[#This Row],[T BOE]])) -> 0 | T18: =MAX(0, CHOOSE(Table1[[#This Row],[Mode Digit]], (Table1[[#This Row],[Vin]]-(Rdson1+Rdcr)*Table1[[#This Row],[Iout]]-Vout)*Table1[[#This Row],[Duty Cycle BUCK Leg]]/(Fsw*Lf), (Table1[[#This Row],[Vin]]-(Rdson4+Rdcr+Rs)*Table1[[#This Row],[Iin]])*Table1[[#This Row],[Duty Cycle BOOST Leg]]/(Fsw*Lf), IF(Table1[[#This Row],[Vin]]<Vout, (Table1[[#This Row],[Vin]]-(Rdson1+Rdson3+Rdcr+Rs)*Table1[[#This Row],[Iin]])*Table1[[#This Row],[T BOE]]/(Lf),(Vout-(Rdson2+Rdson4+Rdcr+Rs)*Table1[[#This Row],[Iout]])*Table1[[#This Row],[T BUD]]/(Lf)))) -> 0.6756212545 | U18: =CHOOSE(Table1[[#This Row],[Mode Digit]], SQRT(Table1[[#This Row],[Iout]]^2+(Table1[[#This Row],[Ripple Current pk-pk]]^2)/12), SQRT(Table1[[#This Row],[Iin]]^2+(Table1[[#This Row],[Ripple Current pk-pk]]^2)/12), SQRT(Table1[[#This Row],[Avg IL]]^2+(Table1[[#This Row],[Ripple Current pk-pk]]^2)/12)) -> 3.871725369 | V18: =(Table1[[#This Row],[Irms Lf]]^2*Rdcr*(1+Ltc*Ta-Ltc*25))/(1-Table1[[#This Row],[Irms Lf]]^2*Rdcr*Ltc*ThetaCa) -> 0.0890727437 | W18: =ABS(7.759*10^-3*Fsw^0.9458*(0.00787*Table1[[#This Row],[Ripple Current pk-pk]])^2.304) -> 0.01333171532 | X18: =Table1[[#This Row],[DCR Loss]]+Table1[[#This Row],[Core Loss]] -> 0.102404459 | Y18: =IF(Table1[[#This Row],[Vin]]>Vout, Table1[[#This Row],[Ripple Current pk-pk]]/SQRT(12), SQRT(Table1[[#This Row],[Duty Cycle BOOST Leg]]/(1-Table1[[#This Row],[Duty Cycle BOOST Leg]]))*SQRT(Table1[[#This Row],[Iout]]^2+(Table1[[#This Row],[Ripple Current pk-pk]]^2)/12)) -> 1.445754568 | Z18: =RCoutEsr*Table1[[#This Row],[Irms Cout]]^2 -> 0.01734871205 | AA18: =Table1[[#This Row],[Cout ESR Loss]] -> 0.01734871205 | AB18: =IF(Table1[[#This Row],[Vin]]>Vout, SQRT(Table1[[#This Row],[Duty Cycle BUCK Leg]]*(1-Table1[[#This Row],[Duty Cycle BUCK Leg]]))*SQRT(Table1[[#This Row],[Iout]]^2+(Table1[[#This Row],[Ripple Current pk-pk]]^2)/12), Table1[[#This Row],[Ripple Current pk-pk]]/SQRT(12)) -> 0.1950350566 | AC18: =RCinEsr*Table1[[#This Row],[Irms Cin]]^2 -> 0.0003157209884 | AD18: =Table1[[#This Row],[Cin ESR Loss]] -> 0.0003157209884 | AE18: =Table1[[#This Row],[Irms Lf]] -> 3.871725369 | AF18: =Rdson1*Table1[[#This Row],[Irms BuCtrl]]^2 -> 0.05996102934 | AG18: =CHOOSE(Table1[[#This Row],[Mode Digit]], (Table1[[#This Row],[Vin]]*Table1[[#This Row],[Iout]]/2)*(Fsw)*(Tr_buck+Tf_buck), 0, (Table1[[#This Row],[Vin]]*Table1[[#This Row],[Avg IL]]/2)*(Fsw/1)*(Tr_buck+Tf_buck)) -> 0 | AH18: =IF(Table1[[#This Row],[Vin]]>Vout, IF(Table1[[#This Row],[Iout]]>Table1[[#This Row],[Ripple Current pk-pk]]/2,0,ABS(Table1[[#This Row],[Iout]]-Table1[[#This Row],[Ripple Current pk-pk]]/2)*Vsd_Q1*Deadtime*Fsw),0) -> 0 | AI18: =(Table1[[#This Row],[Dead Time Loss BuCtrl]]+Table1[[#This Row],[Transition Loss BuCtrl]]+Table1[[#This Row],[RDS(on) Loss BuCtrl]]*(1+RdsonTopTc*Ta-RdsonTopTc*25))/(1-Table1[[#This Row],[RDS(on) Loss BuCtrl]]*RdsonTopTc*ThetaJA_Q1) -> 0.06086612909 | AJ18: =Table1[[#This Row],[Irms Lf]] -> 3.871725369 | AK18: =Rdson2*Table1[[#This Row],[Irms BuSync]]^2 -> 0.05996102934 | AL18: =CHOOSE(Table1[[#This Row],[Mode Digit]], IF(Table1[[#This Row],[Iout]]<Table1[[#This Row],[Ripple Current pk-pk]]/2,Deadtime*Fsw*IF(VfdSky_Q2>0,0,Vsd_Q2)*(Table1[[#This Row],[Iout]]+Table1[[#This Row],[Ripple Current pk-pk]]/2),2*Deadtime*Fsw*IF(VfdSky_Q2>0,0,Vsd_Q2)*Table1[[#This Row],[Iout]]),0, IF(Table1[[#This Row],[Iout]]<Table1[[#This Row],[Ripple Current pk-pk]]/2,Deadtime*Fsw*IF(VfdSky_Q2>0,0,Vsd_Q2)*(Table1[[#This Row],[Iout]]+Table1[[#This Row],[Ripple Current pk-pk]]/2),2*Deadtime*Fsw*IF(VfdSky_Q2>0,0,Vsd_Q2)*Table1[[#This Row],[Iout]])) -> 0 | AM18: =(Table1[[#This Row],[Deadtime Loss BuSync]]+Table1[[#This Row],[RDS(on) Loss BuSync]]*(1+RdsonBotTc*Ta-RdsonBotTc*25))/(1-Table1[[#This Row],[RDS(on) Loss BuSync]]*RdsonBotTc*ThetaJA_Q2) -> 0.06086612909 | AN18: =Table1[[#This Row],[Irms Lf]] -> 3.871725369 | AO18: =Rdson4*Table1[[#This Row],[Irms BoCtlr]]^2 -> 0.05996102934 | AP18: =CHOOSE(Table1[[#This Row],[Mode Digit]], 0, (Vout*Table1[[#This Row],[Iin]]/2)*(Fsw)*(Tr_boost+Tf_boost), (Vout*Iout/2)*(Fsw/1)*(Tr_boost+Tf_boost)) -> 0.2661236051 | AQ18: =IF(Table1[[#This Row],[Vin]]>Vout, 0, IF(Table1[[#This Row],[Iin]]>Table1[[#This Row],[Ripple Current pk-pk]]/2,0,ABS(Table1[[#This Row],[Iin]]-Table1[[#This Row],[Ripple Current pk-pk]]/2)*Vsd_Q4*Deadtime*Fsw)) -> 0 | AR18: =(Table1[[#This Row],[Dead Time Loss BoCtlr]]+Table1[[#This Row],[Transition Loss BoCtlr]]+Table1[[#This Row],[RDS(on) Loss BoCtlr]]*(1+RdsonTopTc*Ta-RdsonTopTc*25))/(1-Table1[[#This Row],[RDS(on) Loss BoCtlr]]*RdsonTopTc*ThetaJA_Q4) -> 0.3310068168 | AS18: =Table1[[#This Row],[Irms Lf]] -> 3.871725369 | AT18: =Rdson3*Table1[[#This Row],[Irms BoSync]]^2 -> 0.05996102934 | AU18: =CHOOSE(Table1[[#This Row],[Mode Digit]], 0, IF(Table1[[#This Row],[Iin]]<Table1[[#This Row],[Ripple Current pk-pk]]/2,Deadtime*Fsw*IF(VfdSky_Q3>0,0,Vsd_Q3)*(Table1[[#This Row],[Iin]]+Table1[[#This Row],[Ripple Current pk-pk]]/2), 2*Deadtime*Fsw*IF(VfdSky_Q3>0,0,Vsd_Q3)*Table1[[#This Row],[Iin]]), IF(Table1[[#This Row],[Iin]]<Table1[[#This Row],[Ripple Current pk-pk]]/2,Deadtime*Fsw*IF(VfdSky_Q3>0,0,Vsd_Q3)*(Table1[[#This Row],[Iin]]+Table1[[#This Row],[Ripple Current pk-pk]]/2), 2*Deadtime*Fsw*IF(VfdSky_Q3>0,0,Vsd_Q3)*Table1[[#This Row],[Iin]])) -> 0.2853705693 | AV18: =(Table1[[#This Row],[Deadtime Loss BoSync]]+Table1[[#This Row],[RDS(on) Loss BoSync]]*(1+RdsonBotTc*Ta-RdsonBotTc*25))/(1-Table1[[#This Row],[RDS(on) Loss BoSync]]*RdsonBotTc*ThetaJA_Q3) -> 0.35054431 | AW18: =CHOOSE(Table1[[#This Row],[Mode Digit]], Rdson3*Table1[[#This Row],[Irms Lf]]^2, Rdson1*Table1[[#This Row],[Irms Lf]]^2, 0) -> 0.05996102934 | AX18: =CHOOSE(Table1[[#This Row],[Mode Digit]], 2*Deadtime*Fsw*IF(VfdSky_Q2>0,VfdSky_Q2,0)*Table1[[#This Row],[Iout]], 2*Deadtime*Fsw*IF(VfdSky_Q3>0,VfdSky_Q3,0)*Table1[[#This Row],[Iin]], 2*Deadtime*Fsw*IF(VfdSky_Q2>0,VfdSky_Q2,0)*Table1[[#This Row],[Iout]]+2*Deadtime*Fsw*IF(VfdSky_Q3>0,VfdSky_Q3,0)*Table1[[#This Row],[Iin]]) -> 0 | AY18: =CHOOSE(Table1[[#This Row],[Mode Digit]], IF(QrrSky_Q2>0,QrrSky_Q2,Qrr_Q2)*Fsw*(Table1[[#This Row],[Vin]]-Table1[[#This Row],[Iout]]*Rdson1), IF(QrrSky_Q3>0,QrrSky_Q3,Qrr_Q3)*Fsw*Vout, IF(QrrSky_Q2>0,QrrSky_Q2,Qrr_Q2)*Fsw*(Table1[[#This Row],[Vin]]-Table1[[#This Row],[Iout]]*Rdson1)+IF(QrrSky_Q3>0,QrrSky_Q3,Qrr_Q3)*Fsw*Vout) -> 0.12177 | AZ18: =CHOOSE(Table1[[#This Row],[Mode Digit]], Rs*Table1[[#This Row],[Irms BuSync]]^2, Rs*Table1[[#This Row],[Irms BoCtlr]]^2, Rs*(Table1[[#This Row],[Irms BuSync]]^2+Table1[[#This Row],[Irms BoCtlr]]^2)) -> 0.04497077201 | BA18: 0.09 | BB18: =IF(Vout>8, Iq*Vout, Iq*Table1[[#This Row],[Vin]]) -> 0.027 | BC18: =CHOOSE(Table1[[#This Row],[Mode Digit]], (Qg_Q1+Qg_Q2)*Fsw, (Qg_Q3+Qg_Q4)*Fsw, (Qg_Q1+Qg_Q2+Qg_Q3+Qg_Q4)*Fsw)*IF(Vout>8, Vout, Table1[[#This Row],[Vin]]) -> 0.24354 | BD18: 0.1912734247 | BE18: =Table1[[#This Row],[IQ Loss]]+Table1[[#This Row],[Switching Current Loss]] -> 0.27054 | BF18: =SUM(Table1[[#This Row],[Total Inductor Loss]],Table1[[#This Row],[Total Cout Loss]],Table1[[#This Row],[Total Cin Loss]],Table1[[#This Row],[Total Control Bu MOSFET Loss]],Table1[[#This Row],[Total Sync Bu MOSFET Loss]],Table1[[#This Row],[Total Control Bo MOSFET Loss]],Table1[[#This Row],[Total Sync Bo MOSFET Loss]], Table1[[#This Row],[Deadtime Loss ext D]],Table1[[#This Row],[Reverse Recovery Loss MOSFET D]],Table1[[#This Row],[Total IC Loss]],Table1[[#This Row],[Isense Shunt Loss]],Table1[[#This Row],[Iout Shunt Loss]]) -> 1.450633049 | BG18: =Vout*Table1[[#This Row],[Iout]] -> 27 | BH18: =Table1[[#This Row],[Pout]]/(Table1[[#This Row],[Pout]]+Table1[[#This Row],[Total Loss]]) -> 0.9490122752 | BI18: =IF(Table1[[#This Row],[Vin]]>Vout,ThetaJA_Q1*(Table1[[#This Row],[Total Control Bu MOSFET Loss]]+Table1[[#This Row],[Reverse Recovery Loss MOSFET D]]),ThetaJA_Q4*(Table1[[#This Row],[Total Control Bo MOSFET Loss]]+Table1[[#This Row],[Reverse Recovery Loss MOSFET D]])) -> 28.07216264 | BJ18: =IF(Table1[[#This Row],[Vin]]>Vout, Table1[[#This Row],[Total Sync Bu MOSFET Loss]]*ThetaJA_Q2, ThetaJA_Q3*Table1[[#This Row],[Total Sync Bo MOSFET Loss]]) -> 21.73374722 | BL18: =Table1[[#This Row],[EFF, h]]*100 -> 94.90122752 | BM18: =Table1[[#This Row],[Total Inductor Loss]] -> 0.102404459 | BN18: =Table1[[#This Row],[Total Control Bu MOSFET Loss]]+Table1[[#This Row],[Total Sync Bu MOSFET Loss]]+Table1[[#This Row],[Total Control Bo MOSFET Loss]]+Table1[[#This Row],[Total Sync Bo MOSFET Loss]]+Table1[[#This Row],[Reverse Recovery Loss MOSFET D]] -> 0.925053385 | BO18: =Table1[[#This Row],[Total Sync Bu MOSFET Loss]]+Table1[[#This Row],[Reverse Recovery Loss MOSFET D]]*0.33 -> 0.1010502291 | BP18: =Table1[[#This Row],[Isense Shunt Loss]] -> 0.04497077201 | BT18: θJA=120°C/W - 160°C/W
